Workbook

Sheet Input
A1: Inputs (Fill only the green cells in column B) | D1: Results | K1: Trial | L1: SIP | N1: VIP | P1: SIP | Q1: VIP | R1: Lumpsum | S1: Lumpsum | T1: STP | U1: STP | V1: STP/LSP | W1: Growth SIP I | Y1: Growth SIP I | Z1: SIP | AA1: GSIP-I | AB1: GSIP-I vs | AE1: =dura*12 -> 300 | AG1: GSIP-I/SIP | AH1: =SUM(AK5:AK37) -> 1 | AI1: No of STP | AR1: SIP vs | AS1: VIP vs | AT1: VIP vs | AU1: Growth SIP-II | AW1: GSIP-II | AX1: GSIP-II | AY1: GSIP-II/SIP | AZ1: GSIP-II | BA1: GSIP-I/GSIP-II
A2: Return expected from investment | B2: 0.1 | D2: Compounded Growth Rate | G2: Portfolio | H2: Total | I2: Cost per | K2: period | L2: Portfolio | M2: Invest. | N2: Portfolio | O2: Invest. | P2: probability | Q2: probability | R2: Portfolio | S2: probability | T2: Portfolio | U2: probability | V2: probability | W2: Portfolio | X2: Invest. | Y2: probability | Z2: CAGR | AA2: CAGR | AB2: target | AD2: startm | AE2: endm | AG2: probability | AH2: =SUM(AN5:AN37) -> 396 | AI2: installments | AJ2: =lumpsum/stp -> 10 | AR2: Target | AS2: Target | AT2: SIP | AU2: Portfolio | AV2: Invest. | AW2: probability | AX2: CAGR | AY2: probability | AZ2: Target | BA2: probability
A3: Duration of invest. (years) for testing | B3: 25 | E3: Monthly | F3: Annual | G3: Final Value | H3: Investment | I3: unit | K3: 1 | L3: 17302554.2 | M3: 1500000 | N3: 13163683.51 | O3: 613627.841 | P3: =IF(L3<M3,1,"") ->  | Q3: =IF(N3<O3,1,"") ->  | R3: 5758641.315 | S3: =IF(K3=0,"",IF(R3<lumpsum,1,"")) ->  | T3: 5518027.197 | U3: =IF(K3=0,"",IF(T3<lumpsum,1,"")) ->  | V3: =IF(K3=0,"",IF(T3>R3,1,"")) ->  | W3: 31766217.35 | X3: 5990289.723 | Y3: =IF(K3=0,"",IF(W3<X3,1,"")) ->  | Z3: 0.1534819168 | AA3: 0.1852603216 | AB3: =IF(K3=0,"",IF(W3>target1,1,"")) -> 1 | AD3: range | AE3: range | AG3: =IF(K3=0,"",IF(W3>L3,1,"")) -> 1 | AR3: =IF(K3=0,"",IF(L3>targetp,1,"")) -> 1 | AS3: =IF(K3=0,"",IF(N3>targetp,1,"")) -> 1 | AT3: =IF(K3=0,"",IF(N3>L3,1,"")) ->  | AU3: 11635669.12 | AV3: 2194187.252 | AW3: =IF(K3=0,"",IF(AU3<AV3,1,"")) ->  | AX3: 0.1852603216 | AY3: =IF(K3=0,"",IF(AU3>L3,1,"")) ->  | AZ3: =IF(K3=0,"",IF(AU3>target1,1,"")) -> 1 | BA3: =IF(K3=0,"",IF(W3>AU3,1,"")) -> 1
A4: Target amount expected | B4: =(1+(rate/12))*sipamt*((1+(rate)/12)^(12*dura-1)-1)/(rate/12) -> 6629167.014 | D4: Target | E4: =B2/12 -> 0.008333333333 | F4: =12*E4 -> 0.1 | G4: =SUM('Sensex VIP & SIP'!AI10:AI405) -> 6629167.014 | H4: =H5 -> 1500000 | I4: NA | J4: Press 'Run' after completing entires in | K4: 2 | L4: 16900519.78 | M4: 1500000 | N4: 13062063.64 | O4: 421434.6899 | P4: =IF(L4<M4,1,"") ->  | Q4: =IF(N4<O4,1,"") ->  | R4: 5508989.235 | T4: 5411459.465 | V4: =IF(K4=0,"",IF(T4>R4,1,"")) ->  | W4: 31070120.73 | X4: 5990289.723 | Y4: =IF(K4=0,"",IF(W4<X4,1,"")) ->  | Z4: 0.1522257388 | AA4: 0.1841219909 | AB4: =IF(K4=0,"",IF(W4>target1,1,"")) -> 1 | AC4: 97 | AD4: =startm2 -> 1 | AE4: =startm2+durm-1 -> 300 | AG4: =IF(K4=0,"",IF(W4>L4,1,"")) -> 1 | AI4: Start | AJ4: start | AL4: end | AM4: end | AR4: 1 | AS4: 1 | AT4: =IF(K4=0,"",IF(N4>L4,1,"")) ->  | AU4: 11380695.42 | AV4: 2194187.252 | AW4: =IF(K4=0,"",IF(AU4<AV4,1,"")) ->  | AX4: 0.1841219909 | AY4: =IF(K4=0,"",IF(AU4>L4,1,"")) ->  | AZ4: 1 | BA4: =IF(K4=0,"",IF(W4>AU4,1,"")) -> 1
D5: SIP | E5: =IRR('Sensex VIP & SIP'!AE10:AE405) -> 0.01087979538 | F5: =12*E5 -> 0.1305575445 | G5: =SUM('Sensex VIP & SIP'!AJ10:AJ405) -> 11344189.14 | H5: =SUM('Sensex VIP & SIP'!AL10:AL405) -> 1500000 | I5: =H5/SUM('Sensex VIP & SIP'!AG10:AG405) -> 213.7451259 | J5: column 'B' and wait till the macro | K5: 3 | L5: 16995821.86 | M5: 1500000 | N5: 13076451.14 | O5: 461811.0268 | R5: 5613346.957 | T5: 5454238.767 | W5: 31287489.93 | X5: 5990289.723 | Z5: 0.152526399 | AA5: 0.1844803218 | AB5: =IF(K5=0,"",IF(W5>target1,1,"")) -> 1 | AC5: 396 | AD5: =endm2-durm+1 -> 97 | AE5: =endm2 -> 396 | AF5: =AD5-AD4+1 -> 97 | AG5: 1 | AI5: 1980 | AJ5: 1 | AK5: =IF(AI5=start,AJ5,0) -> 1 | AL5: 1980 | AM5: =AJ5+11 -> 12 | AN5: =IF(AL5=end,AM5,0) -> 0 | AO5: 1980 | AP5: 1 | AQ5: 1 | AR5: 1 | AS5: 1 | AU5: 11460315.73 | AV5: 2194187.252 | AX5: 0.1844803218 | AZ5: 1 | BA5: 1
A6: SIP and VIP investment | D6: VIP | E6: =IRR('Sensex VIP & SIP'!AF10:AF405) ->  | F6: =12*E6 ->  | G6: =SUM('Sensex VIP & SIP'!AK10:AK405) -> 4578235.896 | H6: =SUM('Sensex VIP & SIP'!AM10:AM405) -> 3512607.171 | I6: =H6/SUM('Sensex VIP & SIP'!AH1:AH405) -> 293.4622118 | J6: finishes executing | K6: 4 | L6: 16185269.57 | M6: 1500000 | N6: 12387120.95 | O6: 522875.5099 | R6: 5488605.914 | T6: 5212741.682 | W6: 29837160.98 | X6: 5990289.723 | Z6: 0.1499093186 | AA6: 0.1820380402 | AB6: =IF(K6=0,"",IF(W6>target1,1,"")) -> 1 | AG6: 1 | AI6: =AI5+1 -> 1981 | AJ6: =AJ5+12 -> 13 | AK6: 0 | AL6: =AL5+1 -> 1981 | AM6: =AJ6+11 -> 24 | AN6: 0 | AO6: =AO5+1 -> 1981 | AP6: 2 | AQ6: =1+AQ5 -> 2 | AR6: 1 | AS6: 1 | AU6: 10929073.77 | AV6: 2194187.252 | AX6: 0.1820380402 | AZ6: 1 | BA6: 1
A7: Minimum investment | B7: 1000 | D7: The compounded growth may sometimes show a #DIV/0! or divide by | K7: 5 | L7: 14881634.72 | M7: 1500000 | N7: 11314662.09 | O7: 601829.2264 | R7: 5183683.363 | T7: 4772795.291 | W7: 27483392.48 | X7: 5990289.723 | Z7: 0.1453886799 | AA7: 0.1777941587 | AB7: =IF(K7=0,"",IF(W7>target1,1,"")) -> 1 | AG7: 1 | AI7: =AI6+1 -> 1982 | AJ7: =AJ6+12 -> 25 | AK7: 0 | AL7: 1982 | AM7: =AJ7+11 -> 36 | AN7: 0 | AO7: =AO6+1 -> 1982 | AP7: 3 | AQ7: =1+AQ6 -> 3 | AR7: 1 | AS7: 1 | AU7: 10066910.32 | AV7: 2194187.252 | AX7: 0.1777941587 | AZ7: 1 | BA7: 1
A8: Typical SIP amt* | B8: 5000 | D8: zero error. Increase or decrease the investment tenure by 1/2 years to | K8: 6 | L8: 16045828.26 | M8: 1500000 | N8: 12116637.26 | O8: 679223.8681 | R8: 5862371.803 | T8: 5080302.822 | W8: 29690285.05 | X8: 5990289.723 | Z8: 0.1494448903 | AA8: 0.1817837456 | AB8: =IF(K8=0,"",IF(W8>target1,1,"")) -> 1 | AG8: 1 | AI8: 1983 | AJ8: 37 | AK8: 0 | AL8: 1983 | AM8: 48 | AN8: 0 | AO8: 1983 | AP8: 4 | AQ8: 4 | AR8: 1 | AS8: 1 | AU8: 10875274.49 | AV8: 2194187.252 | AX8: 0.1817837456 | AZ8: 1 | BA8: 1
A9: Maximum investment | B9: 15000 | D9: get rid of it! More intelligent ways to get rid of this will take some doing | K9: 7 | L9: 16765883.09 | M9: 1500000 | N9: 12504809.02 | O9: 840096.4783 | R9: 5923612.154 | T9: 5191035.028 | W9: 31097305.32 | X9: 5990289.723 | Z9: 0.1517978627 | AA9: 0.184166949 | AB9: =IF(K9=0,"",IF(W9>target1,1,"")) -> 1 | AG9: 1 | AI9: 1984 | AJ9: 49 | AK9: 0 | AL9: 1984 | AM9: 60 | AN9: 0 | AO9: 1984 | AP9: 5 | AQ9: 5 | AR9: 1 | AS9: 1 | AU9: 11390652.88 | AV9: 2194187.252 | AX9: 0.184166949 | AZ9: 1 | BA9: 1
A10: * VIP invest. will be calculated wrt this amt | D10: For example see: | F10: Getting IRR in Excel | K10: 8 | L10: 17149960.28 | M10: 1500000 | N10: 12768102.55 | O10: 857446.9429 | R10: 5636636.428 | T10: 5235779.968 | W10: 31879122.31 | X10: 5990289.723 | Z10: 0.1530088601 | AA10: 0.1854424728 | AB10: =IF(K10=0,"",IF(W10>target1,1,"")) -> 1 | AG10: 1 | AI10: 1985 | AJ10: 61 | AK10: 0 | AL10: 1985 | AM10: 72 | AN10: 0 | AO10: 1985 | AP10: 6 | AQ10: 6 | AR10: 1 | AS10: 1 | AU10: 11677025.16 | AV10: 2194187.252 | AX10: 0.1854424728 | AZ10: 1 | BA10: 1
D11: The #DIV/0! error is seen for all input values with Excel 2007/2002! | K11: 9 | L11: 17396040.44 | M11: 1500000 | N11: 13066729.26 | O11: 748566.1029 | R11: 6085206.448 | T11: 5203952.688 | W11: 32384328.78 | X11: 5990289.723 | Z11: 0.153769524 | AA11: 0.1862492809 | AB11: =IF(K11=0,"",IF(W11>target1,1,"")) -> 1 | AG11: 1 | AI11: 1986 | AJ11: 73 | AK11: 0 | AL11: 1986 | AM11: 84 | AN11: 0 | AO11: 1986 | AP11: 7 | AQ11: 7 | AR11: 1 | AS11: 1 | AU11: 11862077.57 | AV11: 2194187.252 | AX11: 0.1862492809 | AZ11: 1 | BA11: 1
A12: SIP and Growth-SIP investment | D12: Lump sum | F12: =(G12/H12)^(1/(dura))-1 -> 0.1660730426 | G12: =SUM('Sensex Lumpsum & STP'!AK10:AK405) -> 4657403.713 | H12: =SUM('Sensex Lumpsum & STP'!AM10:AM405) -> 100000 | K12: 10 | L12: 18652132.11 | M12: 1500000 | N12: 13787974.02 | O12: 900949.1534 | R12: 6816180.939 | T12: 5443136.02 | W12: 34789549.32 | X12: 5990289.723 | Z12: 0.1574803975 | AA12: 0.1899168296 | AB12: =IF(K12=0,"",IF(W12>target1,1,"")) -> 1 | AG12: 1 | AI12: 1987 | AJ12: 85 | AK12: 0 | AL12: 1987 | AM12: 96 | AN12: 0 | AO12: 1987 | AP12: 8 | AQ12: 8 | AR12: 1 | AS12: 1 | AU12: 12743087.42 | AV12: 2194187.252 | AX12: 0.1899168296 | AZ12: 1 | BA12: 1
A13: SIP amount (as above) | B13: =sipamt -> 5000 | D13: STP | E13: =IRR('Sensex Lumpsum & STP'!AE10:AE405) -> 0.005693049319 | F13: =12*E13 -> 0.06831659183 | G13: =SUM('Sensex Lumpsum & STP'!AJ10:AJ405) -> 3939096.105 | H13: =SUM('Sensex Lumpsum & STP'!AL10:AL405) -> 100000 | K13: 11 | L13: 16686615.31 | M13: 1500000 | N13: 12131768.42 | O13: 1077118.012 | R13: 5803309.192 | T13: 4758487.358 | W13: 31194879.93 | X13: 5990289.723 | Z13: 0.1515442167 | AA13: 0.1843279774 | AB13: =IF(K13=0,"",IF(W13>target1,1,"")) -> 1 | AG13: 1 | AI13: 1988 | AJ13: 97 | AK13: 0 | AL13: 1988 | AM13: 108 | AN13: 0 | AO13: 1988 | AP13: 9 | AQ13: 9 | AR13: 1 | AS13: 1 | AU13: 11426393.56 | AV13: 2194187.252 | AX13: 0.1843279774 | AZ13: 1 | BA13: 1
A14: Growth SIP amt reqd. to reach target | B14: =(rate/12-(gsip1+0.00000001%)/12)*target1/((1+(rate/12))*((1+(rate)/12)^(12*dura-1)-(1+(gsip1+0.00000001%)/12)^(12*dura-1))) -> 1831.453364 | D14: GSIP | E14: =IRR('Sensex Growth SIP'!AE10:AE405) -> 0.01417786214 | F14: =12*E14 -> 0.1701343456 | G14: =SUM('Sensex Growth SIP'!AJ10:AJ405) -> 23719048.85 | H14: =SUM('Sensex Growth SIP'!AL10:AL405) -> 5990289.723 | K14: 12 | L14: 18352627.38 | M14: 1500000 | N14: 13441979.35 | O14: 1018186.202 | R14: 6137904.524 | T14: 5118683.917 | W14: 34365958.28 | X14: 5990289.723 | Z14: 0.1566204537 | AA14: 0.1892906841 | AB14: =IF(K14=0,"",IF(W14>target1,1,"")) -> 1 | AG14: 1 | AI14: 1989 | AJ14: 109 | AK14: 0 | AL14: 1989 | AM14: 120 | AN14: 0 | AO14: 1989 | AP14: 10 | AQ14: 10 | AR14: 1 | AS14: 1 | AU14: 12587929.98 | AV14: 2194187.252 | AX14: 0.1892906841 | AZ14: 1 | BA14: 1
A15: % annual increase in SIP growth invest. | B15: 0.101 | D15: Tgt-GSIP | E15: =IRR('Sensex Target Growth SIP '!AE10:AE405) -> 0.01417786214 | F15: =12*E15 -> 0.1701343456 | G15: =SUM('Sensex Target Growth SIP '!AJ10:AJ405) -> 8688066.361 | H15: =SUM('Sensex Target Growth SIP '!AL10:AL405) -> 2194187.252 | K15: 13 | L15: 19295887.67 | M15: 1500000 | N15: 14233017 | O15: 957033.0605 | R15: 6634398.317 | T15: 5282643.837 | W15: 36184782.71 | X15: 5990289.723 | Z15: 0.15927972 | AA15: 0.191923919 | AB15: =IF(K15=0,"",IF(W15>target1,1,"")) -> 1 | AG15: 1 | AI15: 1990 | AJ15: 121 | AK15: 0 | AL15: 1990 | AM15: 132 | AN15: 0 | AO15: 1990 | AP15: 11 | AQ15: 11 | AR15: 1 | AS15: 1 | AU15: 13254148.4 | AV15: 2194187.252 | AX15: 0.191923919 | AZ15: 1 | BA15: 1
K16: 14 | L16: 20031161.15 | M16: 1500000 | N16: 14569478.83 | O16: 1061447.025 | R16: 6480966.349 | T16: 5356578.3 | W16: 37621900.99 | X16: 5990289.723 | Z16: 0.1612578349 | AA16: 0.1939079225 | AB16: =IF(K16=0,"",IF(W16>target1,1,"")) -> 1 | AG16: 1 | AI16: 1991 | AJ16: 133 | AK16: 0 | AL16: 1991 | AM16: 144 | AN16: 0 | AO16: 1991 | AP16: 12 | AQ16: 12 | AR16: 1 | AS16: 1 | AU16: 13780551.42 | AV16: 2194187.252 | AX16: 0.1939079225 | AZ16: 1 | BA16: 1
A17: Lump sum and STP investments | K17: 15 | L17: 20204790.66 | M17: 1500000 | N17: 14839771.54 | O17: 981708.8536 | R17: 6072203.389 | T17: 5288650.202 | W17: 37992935.3 | X17: 5990289.723 | Z17: 0.16171362 | AA17: 0.1944072254 | AB17: =IF(K17=0,"",IF(W17>target1,1,"")) -> 1 | AG17: 1 | AI17: 1992 | AJ17: 145 | AK17: 0 | AL17: 1992 | AM17: 156 | AN17: 0 | AO17: 1992 | AQ17: 13 | AR17: 1 | AS17: 1 | AU17: 13916457.83 | AV17: 2194187.252 | AX17: 0.1944072254 | AZ17: 1 | BA17: 1
A18: Lump sum investment | B18: 100000 | K18: 16 | L18: 22035606.8 | M18: 1500000 | N18: 16338357.32 | O18: 865906.9633 | R18: 6258779.471 | T18: 5712300.768 | W18: 41450337.44 | X18: 5990289.723 | Z18: 0.1662795587 | AA18: 0.1988277793 | AB18: =IF(K18=0,"",IF(W18>target1,1,"")) -> 1 | AG18: 1 | AI18: 1993 | AJ18: 157 | AK18: 0 | AL18: 1993 | AM18: 168 | AN18: 0 | AO18: 1993 | AQ18: 14 | AR18: 1 | AS18: 1 | AU18: 15182871.99 | AV18: 2194187.252 | AX18: 0.1988277793 | AZ18: 1 | BA18: 1
A19: No of STP installments | B19: 10 | K19: 17 | L19: 22726910.55 | M19: 1500000 | N19: 17042729.04 | O19: 702203.9913 | R19: 6891245.607 | T19: 5854955.623 | W19: 42748644.12 | X19: 5990289.723 | Z19: 0.1678992435 | AA19: 0.2003886566 | AB19: =IF(K19=0,"",IF(W19>target1,1,"")) -> 1 | AG19: 1 | AI19: 1994 | AJ19: 169 | AK19: 0 | AL19: 1994 | AM19: 180 | AN19: 0 | AO19: 1994 | AQ19: 15 | AR19: 1 | AS19: 1 | AU19: 15658429.61 | AV19: 2194187.252 | AX19: 0.2003886566 | AZ19: 1 | BA19: 1
A20: STP installment | B20: =lumpsum/B19 -> 10000 | K20: 18 | L20: 19320966.55 | M20: 1500000 | N20: 14342098.96 | O20: 789229.2335 | R20: 4976690.342 | T20: 4941172.934 | W20: 36365440.17 | X20: 5990289.723 | Z20: 0.1593485097 | AA20: 0.1921778323 | AB20: =IF(K20=0,"",IF(W20>target1,1,"")) -> 1 | AG20: 1 | AI20: 1995 | AJ20: 181 | AK20: 0 | AL20: 1995 | AM20: 192 | AN20: 0 | AO20: 1995 | AQ20: 16 | AR20: 1 | AS20: 1 | AU20: 13320321.54 | AV20: 2194187.252 | AX20: 0.1921778323 | AZ20: 1 | BA20: 1
K21: 19 | L21: 19439502.55 | M21: 1500000 | N21: 14569290.48 | O21: 648237.0964 | R21: 5158949.602 | T21: 5002149.048 | W21: 36574059.31 | X21: 5990289.723 | Z21: 0.1596723581 | AA21: 0.1924694009 | AB21: =IF(K21=0,"",IF(W21>target1,1,"")) -> 1 | AG21: 1 | AI21: 1996 | AJ21: 193 | AK21: 0 | AL21: 1996 | AM21: 204 | AN21: 0 | AO21: 1996 | AQ21: 17 | AR21: 1 | AS21: 1 | AU21: 13396736.79 | AV21: 2194187.252 | AX21: 0.1924694009 | AZ21: 1 | BA21: 1
A22: Year investment starts (from Jan.) | B22: 1980 | K22: 20 | L22: 19282462.84 | M22: 1500000 | N22: 14610806.96 | O22: 540493.5013 | R22: 5574993.924 | T22: 4979158.871 | W22: 36275506.25 | X22: 5990289.723 | Z22: 0.1592428572 | AA22: 0.1920515967 | AB22: =IF(K22=0,"",IF(W22>target1,1,"")) -> 1 | AG22: 1 | AI22: 1997 | AJ22: 205 | AK22: 0 | AL22: 1997 | AM22: 216 | AN22: 0 | AO22: 1997 | AQ22: 18 | AR22: 1 | AS22: 1 | AU22: 13287379.59 | AV22: 2194187.252 | AX22: 0.1920515967 | AZ22: 1 | BA22: 1
K23: 21 | L23: 20643032.47 | M23: 1500000 | N23: 15416788.53 | O23: 622299.0993 | R23: 5700982.488 | T23: 5351313.843 | W23: 38848563.59 | X23: 5990289.723 | Z23: 0.1628456572 | AA23: 0.195539395 | AB23: =IF(K23=0,"",IF(W23>target1,1,"")) -> 1 | AG23: 1 | AI23: =AI22+1 -> 1998 | AJ23: 217 | AK23: 0 | AL23: 1998 | AM23: 228 | AN23: 0 | AO23: 1998 | AQ23: 19 | AR23: 1 | AS23: 1 | AU23: 14229866.49 | AV23: 2194187.252 | AX23: 0.195539395 | AZ23: 1 | BA23: 1
A24: Year investment ends (up to Dec.) | B24: 2012 | K24: 22 | L24: 21401240.5 | M24: 1500000 | N24: 16139751.03 | O24: 543886.9796 | R24: 5903184.822 | T24: 5593375.133 | W24: 40276174.92 | X24: 5990289.723 | Z24: 0.164744893 | AA24: 0.197371374 | AB24: =IF(K24=0,"",IF(W24>target1,1,"")) -> 1 | AG24: 1 | AI24: 1999 | AJ24: 229 | AK24: 0 | AL24: 1999 | AM24: 240 | AN24: 0 | AO24: 1999 | AQ24: 20 | AR24: 1 | AS24: 1 | AU24: 14752787.2 | AV24: 2194187.252 | AX24: 0.197371374 | AZ24: 1 | BA24: 1
A25: Example: If the duration of investment is 3 yrs then every 3 year period from investment start | K25: 23 | L25: 22018642.75 | M25: 1500000 | N25: 16678208.5 | O25: 522056.1146 | R25: 5977691.038 | T25: 5816930.711 | W25: 41430140.08 | X25: 5990289.723 | Z25: 0.1662391352 | AA25: 0.1988030943 | AB25: =IF(K25=0,"",IF(W25>target1,1,"")) -> 1 | AG25: 1 | AI25: 2000 | AJ25: 241 | AK25: 0 | AL25: 2000 | AM25: 252 | AN25: 0 | AO25: 2000 | AQ25: 21 | AR25: 1 | AS25: 1 | AU25: 15175473.88 | AV25: 2194187.252 | AX25: 0.1988030943 | AZ25: 1 | BA25: 1
A26: year(say 1990 as chosen above) to investment end year (say 1998 as chosen above) | K26: 24 | L26: 22941064.66 | M26: 1500000 | N26: 17443847.82 | O26: 507189.4361 | R26: 5949520.958 | T26: 6104560.558 | V26: 1 | W26: 43146361.61 | X26: 5990289.723 | Z26: 0.1683903664 | AA26: 0.2008568862 | AB26: =IF(K26=0,"",IF(W26>target1,1,"")) -> 1 | AG26: 1 | AI26: 2001 | AJ26: 253 | AK26: 0 | AL26: 2001 | AM26: 264 | AN26: 0 | AO26: 2001 | AQ26: 22 | AR26: 1 | AS26: 1 | AU26: 15804109.82 | AV26: 2194187.252 | AX26: 0.2008568862 | AZ26: 1 | BA26: 1
A27: will be tested when you press 'RUN'. Thus a total of 73 3-year periods will be tested for the | K27: 25 | L27: 22716519.38 | M27: 1500000 | N27: 17448010.25 | O27: 486221.3521 | R27: 6177401.16 | T27: 6137550.73 | W27: 42700226.2 | X27: 5990289.723 | Z27: 0.167875288 | AA27: 0.2003313432 | AB27: =IF(K27=0,"",IF(W27>target1,1,"")) -> 1 | AG27: 1 | AI27: 2002 | AJ27: 265 | AK27: 0 | AL27: 2002 | AM27: 276 | AN27: 0 | AO27: 2002 | AQ27: 23 | AR27: 1 | AS27: 1 | AU27: 15640694.58 | AV27: 2194187.252 | AX27: 0.2003313432 | AZ27: 1 | BA27: 1
A28: probability calculation | K28: 26 | L28: 22905617.61 | M28: 1500000 | N28: 17313894.44 | O28: 505170.8565 | R28: 6088046.274 | T28: 6250276.211 | V28: 1 | W28: 43041876.46 | X28: 5990289.723 | Z28: 0.1683094131 | AA28: 0.2007343158 | AB28: =IF(K28=0,"",IF(W28>target1,1,"")) -> 1 | AG28: 1 | AI28: 2003 | AJ28: 277 | AK28: 0 | AL28: 2003 | AM28: 288 | AN28: 0 | AO28: 2003 | AQ28: 24 | AR28: 1 | AS28: 1 | AU28: 15765837.88 | AV28: 2194187.252 | AX28: 0.2007343158 | AZ28: 1 | BA28: 1
K29: 27 | L29: 20730314.42 | M29: 1500000 | N29: 15833166.04 | O29: 500000 | R29: 5845799.406 | T29: 5713345.78 | W29: 38944624.67 | X29: 5990289.723 | Z29: 0.1630680509 | AA29: 0.1956648657 | AB29: =IF(K29=0,"",IF(W29>target1,1,"")) -> 1 | AG29: 1 | AI29: 2004 | AJ29: 289 | AK29: 0 | AL29: 2004 | AM29: 300 | AN29: 0 | AO29: 2004 | AQ29: 25 | AR29: 1 | AS29: 1 | AU29: 14265052.77 | AV29: 2194187.252 | AX29: 0.1956648657 | AZ29: 1 | BA29: 1
A30: If above entires are complete to your satisfaction scroll up and press the 'RUN' button. | K30: 28 | L30: 20851784.94 | M30: 1500000 | N30: 15382306.49 | O30: 566398.7005 | R30: 5744427.162 | T30: 5817424.842 | V30: 1 | W30: 39171962.63 | X30: 5990289.723 | Z30: 0.1633758982 | AA30: 0.195960515 | AB30: =IF(K30=0,"",IF(W30>target1,1,"")) -> 1 | AG30: 1 | AI30: 2005 | AJ30: 301 | AK30: 0 | AL30: 2005 | AM30: 312 | AN30: 0 | AO30: 2005 | AQ30: 26 | AR30: 1 | AS30: 1 | AU30: 14348324.54 | AV30: 2194187.252 | AX30: 0.195960515 | AZ30: 1 | BA30: 1
A31: The macro may take several minutes to execute and your may take several minutes to | K31: 29 | L31: 22009083.03 | M31: 1500000 | N31: 16394728.6 | O31: 520200.8032 | R31: 6067657.516 | T31: 6245360.22 | V31: 1 | W31: 41336842.39 | X31: 5990289.723 | Z31: 0.1662163408 | AA31: 0.1986889031 | AB31: =IF(K31=0,"",IF(W31>target1,1,"")) -> 1 | AG31: 1 | AI31: 2006 | AJ31: 313 | AK31: 0 | AL31: 2006 | AM31: 324 | AN31: 0 | AO31: 2006 | AQ31: 27 | AR31: 1 | AS31: 1 | AU31: 15141299.81 | AV31: 2194187.252 | AX31: 0.1986889031 | AZ31: 1 | BA31: 1
A32: execute and your computer could slow down a bit. So best to press 'RUN' and take a short | K32: 30 | L32: 22817690.87 | M32: 1500000 | N32: 17014162 | O32: 530228.6583 | R32: 6857105.429 | T32: 6616724.504 | W32: 42846803.75 | X32: 5990289.723 | Z32: 0.1681080305 | AA32: 0.2005046419 | AB32: =IF(K32=0,"",IF(W32>target1,1,"")) -> 1 | AG32: 1 | AI32: 2007 | AJ32: 325 | AK32: 0 | AL32: 2007 | AM32: 336 | AN32: 0 | AO32: 2007 | AQ32: 28 | AR32: 1 | AS32: 1 | AU32: 15694384.57 | AV32: 2194187.252 | AX32: 0.2005046419 | AZ32: 1 | BA32: 1
A33: break! The entries in the adjoning column will be cleared and when the macro is finished the | K33: 31 | L33: 22592209.77 | M33: 1500000 | N33: 16061102.88 | O33: 673844.7289 | R33: 6782865.115 | T33: 6645777.153 | W33: 42445043.82 | X33: 5990289.723 | Z33: 0.1675878009 | AA33: 0.200028149 | AB33: =IF(K33=0,"",IF(W33>target1,1,"")) -> 1 | AG33: 1 | AI33: 2008 | AJ33: 337 | AK33: 0 | AL33: 2008 | AM33: 348 | AN33: 0 | AO33: 2008 | AQ33: 29 | AR33: 1 | AS33: 1 | AU33: 15547223.65 | AV33: 2194187.252 | AX33: 0.200028149 | AZ33: 1 | BA33: 1
A34: table will be filled with output corresponding to your input values. You will then be taken to | K34: 32 | L34: 23348466.78 | M34: 1500000 | N34: 16387924.05 | O34: 725493.7305 | R34: 7187096.47 | T34: 6907939.54 | W34: 43891755.78 | X34: 5990289.723 | Z34: 0.1693113386 | AA34: 0.2017223831 | AB34: =IF(K34=0,"",IF(W34>target1,1,"")) -> 1 | AG34: 1 | AI34: 2009 | AJ34: 349 | AK34: 0 | AL34: 2009 | AM34: 360 | AN34: 0 | AO34: 2009 | AQ34: 30 | AR34: 1 | AS34: 1 | AU34: 16077140.75 | AV34: 2194187.252 | AX34: 0.2017223831 | AZ34: 1 | BA34: 1
A35: the 'Results' sheet to review the results | K35: 33 | L35: 22672264.39 | M35: 1500000 | N35: 15554520.41 | O35: 766190.4463 | R35: 6647727.129 | T35: 6741549.946 | V35: 1 | W35: 42653054.76 | X35: 5990289.723 | Z35: 0.1677731333 | AA35: 0.2002754399 | AB35: =IF(K35=0,"",IF(W35>target1,1,"")) -> 1 | AG35: 1 | AI35: =AI34+1 -> 2010 | AJ35: =AJ34+12 -> 361 | AK35: 0 | AL35: =AL34+1 -> 2010 | AM35: 372 | AN35: 0 | AO35: 2010 | AQ35: 31 | AR35: 1 | AS35: 1 | AU35: 15623416.12 | AV35: 2194187.252 | AX35: 0.2002754399 | AZ35: 1 | BA35: 1
K36: 34 | L36: 25137362.78 | M36: 1500000 | N36: 17435549.93 | O36: 738387.7975 | R36: 7686220.987 | T36: 7561011.917 | W36: 47305001.44 | X36: 5990289.723 | Z36: 0.1731626155 | AA36: 0.205498463 | AB36: =IF(K36=0,"",IF(W36>target1,1,"")) -> 1 | AG36: 1 | AI36: =AI35+1 -> 2011 | AJ36: =AJ35+12 -> 373 | AK36: 0 | AL36: =AL35+1 -> 2011 | AM36: 384 | AN36: 0 | AO36: 2011 | AQ36: 32 | AR36: 1 | AS36: 1 | AU36: 17327380.8 | AV36: 2194187.252 | AX36: 0.205498463 | AZ36: 1 | BA36: 1
K37: 35 | L37: 29089835.79 | M37: 1500000 | N37: 19995065.25 | O37: 761098.9951 | R37: 8802446.062 | T37: 8821580.345 | V37: 1 | W37: 54761067.22 | X37: 5990289.723 | Z37: 0.1807301427 | AA37: 0.2128419539 | AB37: =IF(K37=0,"",IF(W37>target1,1,"")) -> 1 | AG37: 1 | AI37: =AI36+1 -> 2012 | AJ37: =AJ36+12 -> 385 | AK37: 0 | AL37: =AL36+1 -> 2012 | AM37: 396 | AN37: 396 | AO37: 2012 | AQ37: 33 | AR37: 1 | AS37: 1 | AU37: 20058468.15 | AV37: 2194187.252 | AX37: 0.2128419539 | AZ37: 1 | BA37: 1
K38: 36 | L38: 27995770.07 | M38: 1500000 | N38: 19389189.08 | O38: 745684.0741 | R38: 8317204.838 | T38: 8588170.163 | V38: 1 | W38: 52709533.34 | X38: 5990289.723 | Z38: 0.1787498974 | AA38: 0.2109306965 | AB38: =IF(K38=0,"",IF(W38>target1,1,"")) -> 1 | AG38: 1 | AR38: 1 | AS38: 1 | AU38: 19307010.43 | AV38: 2194187.252 | AX38: 0.2109306965 | AZ38: 1 | BA38: 1
K39: 37 | L39: 29377603.97 | M39: 1500000 | N39: 20590242.78 | O39: 710202.4497 | R39: 9423216.119 | T39: 9141378.311 | W39: 55319395.06 | X39: 5990289.723 | Z39: 0.1812379269 | AA39: 0.2133491952 | AB39: =IF(K39=0,"",IF(W39>target1,1,"")) -> 1 | AG39: 1 | AR39: 1 | AS39: 1 | AU39: 20262978.43 | AV39: 2194187.252 | AX39: 0.2133491952 | AZ39: 1 | BA39: 1
K40: 38 | L40: 25153605.55 | M40: 1500000 | N40: 16690050.53 | O40: 847045.4275 | R40: 8306178.342 | T40: 7888860.473 | W40: 47404827.06 | X40: 5990289.723 | Z40: 0.1731962355 | AA40: 0.205604567 | AB40: =IF(K40=0,"",IF(W40>target1,1,"")) -> 1 | AG40: 1 | AR40: 1 | AS40: 1 | AU40: 17363945.99 | AV40: 2194187.252 | AX40: 0.205604567 | AZ40: 1 | BA40: 1
K41: 39 | L41: 25163847.68 | M41: 1500000 | N41: 15915045.81 | O41: 988283.4173 | R41: 8735660.159 | T41: 7908078.655 | W41: 47480647.59 | X41: 5990289.723 | Z41: 0.1732174233 | AA41: 0.2056850001 | AB41: =IF(K41=0,"",IF(W41>target1,1,"")) -> 1 | AG41: 1 | AR41: 1 | AS41: 1 | AU41: 17391718.35 | AV41: 2194187.252 | AX41: 0.2056850001 | AZ41: 1 | BA41: 1
K42: 40 | L42: 22407720.59 | M42: 1500000 | N42: 13291435.81 | O42: 1428728.536 | R42: 7812939.886 | T42: 7046629.324 | W42: 42346842.9 | X42: 5990289.723 | Z42: 0.1671580178 | AA42: 0.1999109626 | AB42: =IF(K42=0,"",IF(W42>target1,1,"")) -> 1 | AG42: 1 | AR42: 1 | AS42: 1 | AU42: 15511253.57 | AV42: 2194187.252 | AX42: 0.1999109626 | AZ42: 1 | BA42: 1
K43: 41 | L43: 24025627.3 | M43: 1500000 | N43: 14125174.12 | O43: 1484719.819 | R43: 7686129.32 | T43: 7564287.114 | W43: 45475421.48 | X43: 5990289.723 | Z43: 0.1708049401 | AA43: 0.2035112399 | AB43: =IF(K43=0,"",IF(W43>target1,1,"")) -> 1 | AG43: 1 | AR43: 1 | AS43: 1 | AU43: 16657222.72 | AV43: 2194187.252 | AX43: 0.2035112399 | AZ43: 1 | BA43: 1
K44: 42 | L44: 22298765.54 | M44: 1500000 | N44: 13248502 | O44: 1366368.322 | R44: 7248019.948 | T44: 7110327.195 | W44: 42245966.46 | X44: 5990289.723 | Z44: 0.1669024237 | AA44: 0.1997902867 | AB44: =IF(K44=0,"",IF(W44>target1,1,"")) -> 1 | AG44: 1 | AR44: 1 | AS44: 1 | AU44: 15474303.47 | AV44: 2194187.252 | AX44: 0.1997902867 | AZ44: 1 | BA44: 1
K45: 43 | L45: 18212182.57 | M45: 1500000 | N45: 10939353.84 | O45: 1254148.007 | R45: 6064371.529 | T45: 5907561.877 | W45: 34552204.8 | X45: 5990289.723 | Z45: 0.1562120086 | AA45: 0.1895669858 | AB45: =IF(K45=0,"",IF(W45>target1,1,"")) -> 1 | AG45: 1 | AR45: 1 | AS45: 1 | AU45: 12656150.34 | AV45: 2194187.252 | AX45: 0.1895669858 | AZ45: 1 | BA45: 1
K46: 44 | L46: 19203409.4 | M46: 1500000 | N46: 11658877.83 | O46: 1182476.147 | R46: 6417577.768 | T46: 6319483.543 | W46: 36494304.25 | X46: 5990289.723 | Z46: 0.1590252281 | AA46: 0.1923581412 | AB46: =IF(K46=0,"",IF(W46>target1,1,"")) -> 1 | AG46: 1 | AR46: 1 | AS46: 1 | AU46: 13367523.25 | AV46: 2194187.252 | AX46: 0.1923581412 | AZ46: 1 | BA46: 1
K47: 45 | L47: 19000825.7 | M47: 1500000 | N47: 11668536.91 | O47: 1153040.4 | R47: 6521296.197 | T47: 6330033.343 | W47: 36170412.61 | X47: 5990289.723 | Z47: 0.1584631197 | AA47: 0.1919036646 | AB47: =IF(K47=0,"",IF(W47>target1,1,"")) -> 1 | AG47: 1 | AR47: 1 | AS47: 1 | AU47: 13248884.77 | AV47: 2194187.252 | AX47: 0.1919036646 | AZ47: 1 | BA47: 1
K48: 46 | L48: 16793610.04 | M48: 1500000 | N48: 10076841.08 | O48: 1255054.127 | R48: 5845109.951 | T48: 5650943.667 | W48: 32035135.09 | X48: 5990289.723 | Z48: 0.1518862806 | AA48: 0.1856930538 | AB48: =IF(K48=0,"",IF(W48>target1,1,"")) -> 1 | AG48: 1 | AR48: 1 | AS48: 1 | AU48: 11734171.18 | AV48: 2194187.252 | AX48: 0.1856930538 | AZ48: 1 | BA48: 1
K49: 47 | L49: 12149996.94 | M49: 1500000 | N49: 7136896.213 | O49: 1380724.613 | R49: 4242604.462 | T49: 4138497.348 | W49: 23236107.6 | X49: 5990289.723 | Z49: 0.1343408647 | AA49: 0.169059058 | AB49: =IF(K49=0,"",IF(W49>target1,1,"")) -> 1 | AG49: 1 | AR49: 1 | AS49: 1 | AU49: 8511169.482 | AV49: 2194187.252 | AX49: 0.169059058 | AZ49: 1 | BA49: 1
K50: 48 | L50: 11405662.72 | M50: 1500000 | N50: 6667944.88 | O50: 1450670.717 | R50: 3847756.183 | T50: 3914048.184 | V50: 1 | W50: 21868460.08 | X50: 5990289.723 | Z50: 0.1308563658 | AA50: 0.1658798116 | AB50: =IF(K50=0,"",IF(W50>target1,1,"")) -> 1 | AG50: 1 | AR50: 1 | AS50: 1 | AU50: 8010212.954 | AV50: 2194187.252 | AX50: 0.1658798116 | AZ50: 1 | BA50: 1
K51: 49 | L51: 12048057.25 | M51: 1500000 | N51: 7124909.315 | O51: 1362303.834 | R51: 4208238.433 | T51: 4181417.294 | W51: 23154283.61 | X51: 5990289.723 | Z51: 0.1338776317 | AA51: 0.1688745199 | AB51: =IF(K51=0,"",IF(W51>target1,1,"")) -> 1 | AG51: 1 | AR51: 1 | AS51: 1 | AU51: 8481198.119 | AV51: 2194187.252 | AX51: 0.1688745199 | AZ51: 1 | BA51: 1
K52: 50 | L52: 11570379.49 | M52: 1500000 | N52: 6791602.573 | O52: 1438978.971 | R52: 4078818.401 | T52: 4068306.252 | W52: 22297028.88 | X52: 5990289.723 | Z52: 0.1316484485 | AA52: 0.1668983389 | AB52: =IF(K52=0,"",IF(W52>target1,1,"")) -> 1 | AG52: 1 | AR52: 1 | AS52: 1 | AU52: 8167193.709 | AV52: 2194187.252 | AX52: 0.1668983389 | AZ52: 1 | BA52: 1
K53: 51 | L53: 10928147.46 | M53: 1500000 | N53: 6331974.281 | O53: 1511449.18 | R53: 4003824.805 | T53: 3879149.157 | W53: 21124443.28 | X53: 5990289.723 | Z53: 0.1284874125 | AA53: 0.1640599899 | AB53: =IF(K53=0,"",IF(W53>target1,1,"")) -> 1 | AG53: 1 | AR53: 1 | AU53: 7737686.54 | AV53: 2194187.252 | AX53: 0.1640599899 | AZ53: 1 | BA53: 1
K54: 52 | L54: 11730656.15 | M54: 1500000 | N54: 6316384.052 | O54: 1955197.182 | R54: 4563274.777 | T54: 4175731.541 | W54: 22748201.65 | X54: 5990289.723 | Z54: 0.1324074396 | AA54: 0.1679482908 | AB54: =IF(K54=0,"",IF(W54>target1,1,"")) -> 1 | AG54: 1 | AR54: 1 | AU54: 8332454.087 | AV54: 2194187.252 | AX54: 0.1679482908 | AZ54: 1 | BA54: 1
K55: 53 | L55: 13232866.27 | M55: 1500000 | N55: 6471927.512 | O55: 2513973.774 | R55: 5129781.03 | T55: 4683996.016 | W55: 25754961.42 | X55: 5990289.723 | Z55: 0.1390152104 | AA55: 0.1744249918 | AB55: =IF(K55=0,"",IF(W55>target1,1,"")) -> 1 | AG55: 1 | AR55: 1 | AU55: 9433802.146 | AV55: 2194187.252 | AX55: 0.1744249918 | AZ55: 1 | BA55: 1
K56: 54 | L56: 16627739.22 | M56: 1500000 | N56: 7887689.176 | O56: 2696002.566 | R56: 6342904.923 | T56: 5790248.882 | W56: 32468456.62 | X56: 5990289.723 | Z56: 0.1513549808 | AA56: 0.1863823421 | AB56: =IF(K56=0,"",IF(W56>target1,1,"")) -> 1 | AG56: 1 | AR56: 1 | AS56: 1 | AU56: 11892892.82 | AV56: 2194187.252 | AX56: 0.1863823421 | AZ56: 1 | BA56: 1
K57: 55 | L57: 15744723.19 | M57: 1500000 | N57: 7546260.223 | O57: 2644723.034 | R57: 6018587.267 | T57: 5369945.744 | W57: 30845914.05 | X57: 5990289.723 | Z57: 0.1484270043 | AA57: 0.1837496059 | AB57: =IF(K57=0,"",IF(W57>target1,1,"")) -> 1 | AG57: 1 | AR57: 1 | AS57: 1 | AU57: 11298570.61 | AV57: 2194187.252 | AX57: 0.1837496059 | AZ57: 1 | BA57: 1
K58: 56 | L58: 16684297.33 | M58: 1500000 | N58: 8091997.597 | O58: 2591184.471 | R58: 6619220.212 | T58: 5562326.198 | W58: 32799055.09 | X58: 5990289.723 | Z58: 0.15153678 | AA58: 0.1869017371 | AB58: =IF(K58=0,"",IF(W58>target1,1,"")) -> 1 | AG58: 1 | AR58: 1 | AS58: 1 | AU58: 12013987.95 | AV58: 2194187.252 | AX58: 0.1869017371 | AZ58: 1 | BA58: 1
K59: 57 | L59: 16456456.34 | M59: 1500000 | N59: 7453969.583 | O59: 2959477.655 | R59: 6246656.222 | T59: 5276731.391 | W59: 32474645.8 | X59: 5990289.723 | Z59: 0.1508003254 | AA59: 0.1863921169 | AB59: =IF(K59=0,"",IF(W59>target1,1,"")) -> 1 | AG59: 1 | AR59: 1 | AS59: 1 | AU59: 11895159.86 | AV59: 2194187.252 | AX59: 0.1863921169 | AZ59: 1 | BA59: 1
K60: 58 | L60: 17602094.64 | M60: 1500000 | N60: 8055126.366 | O60: 2923167.416 | R60: 6754816.748 | T60: 5421864.056 | W60: 34849035.53 | X60: 5990289.723 | Z60: 0.1543976217 | AA60: 0.1900041181 | AB60: =IF(K60=0,"",IF(W60>target1,1,"")) -> 1 | AG60: 1 | AR60: 1 | AS60: 1 | AU60: 12764876.67 | AV60: 2194187.252 | AX60: 0.1900041181 | AZ60: 1 | BA60: 1
K61: 59 | L61: 16009055.98 | M61: 1500000 | N61: 7415428.15 | O61: 2891825.617 | R61: 6462038.314 | T61: 4757961.555 | W61: 31799382.07 | X61: 5990289.723 | Z61: 0.1493216904 | AA61: 0.1853138975 | AB61: =IF(K61=0,"",IF(W61>target1,1,"")) -> 1 | AG61: 1 | AR61: 1 | AS61: 1 | AU61: 11647817.05 | AV61: 2194187.252 | AX61: 0.1853138975 | AZ61: 1 | BA61: 1
K62: 60 | L62: 16757598.94 | M62: 1500000 | N62: 7387521.296 | O62: 3135186.456 | R62: 6585359.655 | T62: 4802997.199 | W62: 33406907.08 | X62: 5990289.723 | Z62: 0.151771415 | AA62: 0.1878424773 | AB62: =IF(K62=0,"",IF(W62>target1,1,"")) -> 1 | AG62: 1 | AR62: 1 | AS62: 1 | AU62: 12236638.47 | AV62: 2194187.252 | AX62: 0.1878424773 | AZ62: 1 | BA62: 1
K63: 61 | L63: 16975465.88 | M63: 1500000 | N63: 7545669.456 | O63: 3119328.149 | R63: 6429750.968 | T63: 4669560.937 | W63: 33959887.31 | X63: 5990289.723 | Z63: 0.1524623322 | AA63: 0.1886827615 | AB63: =IF(K63=0,"",IF(W63>target1,1,"")) -> 1 | AG63: 1 | AR63: 1 | AS63: 1 | AU63: 12439189.97 | AV63: 2194187.252 | AX63: 0.1886827615 | AZ63: 1 | BA63: 1
K64: 62 | L64: 15609777.69 | M64: 1500000 | N64: 6995007.992 | O64: 3101471.682 | R64: 5705186.228 | T64: 4122112.023 | W64: 31328493.93 | X64: 5990289.723 | Z64: 0.1479639881 | AA64: 0.1845476219 | AB64: =IF(K64=0,"",IF(W64>target1,1,"")) -> 1 | AG64: 1 | AR64: 1 | AS64: 1 | AU64: 11475335.12 | AV64: 2194187.252 | AX64: 0.1845476219 | AZ64: 1 | BA64: 1
K65: 63 | L65: 15452114.53 | M65: 1500000 | N65: 6953743.033 | O65: 3091498.188 | R65: 4936332.805 | T65: 3911451.251 | W65: 31106064.1 | X65: 5990289.723 | Z65: 0.147417523 | AA65: 0.1841814254 | AB65: =IF(K65=0,"",IF(W65>target1,1,"")) -> 1 | AG65: 1 | AR65: 1 | AS65: 1 | AU65: 11393861.14 | AV65: 2194187.252 | AX65: 0.1841814254 | AZ65: 1 | BA65: 1
K66: 64 | L66: 16213847.55 | M66: 1500000 | N66: 7338527.805 | O66: 3075467.891 | R66: 4809991.563 | T66: 3954964.044 | W66: 32691073.3 | X66: 5990289.723 | Z66: 0.1500039691 | AA66: 0.1867326988 | AB66: =IF(K66=0,"",IF(W66>target1,1,"")) -> 1 | AG66: 1 | AR66: 1 | AS66: 1 | AU66: 11974435.23 | AV66: 2194187.252 | AX66: 0.1867326988 | AZ66: 1 | BA66: 1
K67: 65 | L67: 16074188.06 | M67: 1500000 | N67: 7327674.362 | O67: 3047006.134 | R67: 4688809.605 | S67: =IF(K67=0,"",IF(R67<lumpsum,1,"")) ->  | T67: 3780012.962 | U67: =IF(K67=0,"",IF(T67<lumpsum,1,"")) ->  | W67: 32444401.82 | X67: 5990289.723 | Z67: 0.1495396979 | AA67: 0.1863443328 | AB67: =IF(K67=0,"",IF(W67>target1,1,"")) -> 1 | AG67: 1 | AR67: =IF(K67=0,"",IF(L67>targetp,1,"")) -> 1 | AS67: =IF(K67=0,"",IF(N67>targetp,1,"")) -> 1 | AU67: 11884081.77 | AV67: 2194187.252 | AX67: 0.1863443328 | AZ67: =IF(K67=0,"",IF(AU67>target1,1,"")) -> 1 | BA67: 1
K68: 66 | L68: 15274516.67 | M68: 1500000 | N68: 6982447.204 | O68: 3032494.412 | P68: =IF(L68<M68,1,"") ->  | Q68: =IF(N68<O68,1,"") ->  | R68: 3776117.343 | T68: 3506504.396 | V68: =IF(K68=0,"",IF(T68>R68,1,"")) ->  | W68: 30861819.61 | X68: 5990289.723 | Y68: =IF(K68=0,"",IF(W68<X68,1,"")) ->  | Z68: 0.1467947097 | AA68: 0.1837761174 | AB68: =IF(K68=0,"",IF(W68>target1,1,"")) -> 1 | AG68: =IF(K68=0,"",IF(W68>L68,1,"")) -> 1 | AR68: 1 | AS68: 1 | AT68: =IF(K68=0,"",IF(N68>L68,1,"")) ->  | AU68: 11304396.67 | AV68: 2194187.252 | AW68: =IF(K68=0,"",IF(AU68<AV68,1,"")) ->  | AX68: 0.1837761174 | AY68: =IF(K68=0,"",IF(AU68>L68,1,"")) ->  | AZ68: 1 | BA68: =IF(K68=0,"",IF(W68>AU68,1,"")) -> 1
K69: 67 | L69: 15754482.07 | M69: 1500000 | N69: 7237203.62 | O69: 3005118.694 | R69: 3660414.583 | T69: 3581438.689 | W69: 31826940.63 | X69: 5990289.723 | Z69: 0.1484603222 | AA69: 0.1853583721 | AB69: =IF(K69=0,"",IF(W69>target1,1,"")) -> 1 | AG69: 1 | AR69: 1 | AS69: 1 | AU69: 11657911.49 | AV69: 2194187.252 | AX69: 0.1853583721 | AZ69: 1 | BA69: 1
K70: 68 | L70: 15732175.96 | M70: 1500000 | N70: 7292120.898 | O70: 2985103.007 | R70: 4067127.315 | T70: 3551879.91 | W70: 31770780.38 | X70: 5990289.723 | Z70: 0.1483841339 | AA70: 0.1852676965 | AB70: =IF(K70=0,"",IF(W70>target1,1,"")) -> 1 | AG70: 1 | AR70: 1 | AS70: 1 | AU70: 11637340.52 | AV70: 2194187.252 | AX70: 0.1852676965 | AZ70: 1 | BA70: 1
K71: 69 | L71: 15626992.51 | M71: 1500000 | N71: 7311599.341 | O71: 2967103.81 | R71: 4404230.44 | T71: 3480313.676 | W71: 31570392.79 | X71: 5990289.723 | Z71: 0.1480232942 | AA71: 0.1849427698 | AB71: =IF(K71=0,"",IF(W71>target1,1,"")) -> 1 | AG71: 1 | AR71: 1 | AS71: 1 | AU71: 11563940.41 | AV71: 2194187.252 | AX71: 0.1849427698 | AZ71: 1 | BA71: 1
K72: 70 | L72: 17198967.58 | M72: 1500000 | N72: 8090388.351 | O72: 2953073.755 | R72: 4488695.133 | T72: 3750856.475 | W72: 34776973.43 | X72: 5990289.723 | Z72: 0.1531612793 | AA72: 0.189898356 | AB72: =IF(K72=0,"",IF(W72>target1,1,"")) -> 1 | AG72: 1 | AR72: 1 | AS72: 1 | AU72: 12738480.99 | AV72: 2194187.252 | AX72: 0.189898356 | AZ72: 1 | BA72: 1
K73: 71 | L73: 16945583.76 | M73: 1500000 | N73: 8021380.175 | O73: 2924615.045 | R73: 4299153.304 | T73: 3684525.374 | W73: 34267637.6 | X73: 5990289.723 | Z73: 0.1523681338 | AA73: 0.1891441863 | AB73: =IF(K73=0,"",IF(W73>target1,1,"")) -> 1 | AG73: 1 | AR73: 1 | AS73: 1 | AU73: 12551916.03 | AV73: 2194187.252 | AX73: 0.1891441863 | AZ73: 1 | BA73: 1
K74: 72 | L74: 16300629.82 | M74: 1500000 | N74: 7759701.502 | O74: 2875741.283 | R74: 3942914.612 | T74: 3523228.471 | W74: 32957302.73 | X74: 5990289.723 | Z74: 0.1502902948 | AA74: 0.1871484065 | AB74: =IF(K74=0,"",IF(W74>target1,1,"")) -> 1 | AG74: 1 | AR74: 1 | AS74: 1 | AU74: 12071952.59 | AV74: 2194187.252 | AX74: 0.1871484065 | AZ74: 1 | BA74: 1
K75: 73 | L75: 16849244.36 | M75: 1500000 | N75: 8052083.393 | O75: 2814866.252 | R75: 3636938.875 | T75: 3650666.937 | V75: 1 | W75: 34053785.65 | X75: 5990289.723 | Z75: 0.152063219 | AA75: 0.188824013 | AB75: =IF(K75=0,"",IF(W75>target1,1,"")) -> 1 | AG75: 1 | AR75: 1 | AS75: 1 | AU75: 12473584.06 | AV75: 2194187.252 | AX75: 0.188824013 | AZ75: 1 | BA75: 1
K76: 74 | L76: 14905653.29 | M76: 1500000 | N76: 7152297.602 | O76: 2740321.219 | R76: 2958528.985 | T76: 3327669.285 | V76: 1 | W76: 30096110.68 | X76: 5990289.723 | Z76: 0.1454757817 | AA76: 0.1824831697 | AB76: =IF(K76=0,"",IF(W76>target1,1,"")) -> 1 | AG76: 1 | AR76: 1 | AS76: 1 | AU76: 11023924.63 | AV76: 2194187.252 | AX76: 0.1824831697 | AZ76: 1 | BA76: 1
K77: 75 | L77: 14349510.49 | M77: 1500000 | N77: 6944977.026 | O77: 2633714.966 | R77: 3290263.356 | T77: 3307478.577 | V77: 1 | W77: 28936538.64 | X77: 5990289.723 | Z77: 0.1434189868 | AA77: 0.1804574682 | AB77: =IF(K77=0,"",IF(W77>target1,1,"")) -> 1 | AG77: 1 | AR77: 1 | AS77: 1 | AU77: 10599184.2 | AV77: 2194187.252 | AX77: 0.1804574682 | AZ77: 1 | BA77: 1
K78: 76 | L78: 15480832.07 | M78: 1500000 | N78: 7534764.54 | O78: 2548971.219 | R78: 3441684.872 | T78: 3621994.593 | V78: 1 | W78: 31195441.55 | X78: 5990289.723 | Z78: 0.1475175058 | AA78: 0.1843289027 | AB78: =IF(K78=0,"",IF(W78>target1,1,"")) -> 1 | AG78: 1 | AR78: 1 | AS78: 1 | AU78: 11426599.27 | AV78: 2194187.252 | AX78: 0.1843289027 | AZ78: 1 | BA78: 1
K79: 77 | L79: 15068807.86 | M79: 1500000 | N79: 7374034.367 | O79: 2480540.057 | R79: 3240782.693 | T79: 3577826.221 | V79: 1 | W79: 30340877.24 | X79: 5990289.723 | Z79: 0.1460634662 | AA79: 0.1829002151 | AB79: =IF(K79=0,"",IF(W79>target1,1,"")) -> 1 | AG79: 1 | AR79: 1 | AS79: 1 | AU79: 11113580.34 | AV79: 2194187.252 | AX79: 0.1829002151 | AZ79: 1 | BA79: 1
K80: 78 | L80: 14434752.13 | M80: 1500000 | N80: 7112847.743 | O80: 2399385.145 | R80: 3240782.693 | T80: 3534692.444 | V80: 1 | W80: 29036954.04 | X80: 5990289.723 | Z80: 0.1437397786 | AA80: 0.1806362523 | AB80: =IF(K80=0,"",IF(W80>target1,1,"")) -> 1 | AG80: 1 | AR80: 1 | AS80: 1 | AU80: 10635965.43 | AV80: 2194187.252 | AX80: 0.1806362523 | AZ80: 1 | BA80: 1
K81: 79 | L81: 14520349.12 | M81: 1500000 | N81: 7204333.945 | O81: 2338452.924 | R81: 3346067.004 | T81: 3681801.554 | V81: 1 | W81: 29189754.81 | X81: 5990289.723 | Z81: 0.1440598513 | AA81: 0.1809070553 | AB81: =IF(K81=0,"",IF(W81>target1,1,"")) -> 1 | AG81: 1 | AR81: 1 | AS81: 1 | AU81: 10691934.93 | AV81: 2194187.252 | AX81: 0.1809070553 | AZ81: 1 | BA81: 1
K82: 80 | L82: 13870042.21 | M82: 1500000 | N82: 6942274.217 | O82: 2247454.196 | R82: 3517193.39 | T82: 3651295.008 | V82: 1 | W82: 27875500.24 | X82: 5990289.723 | Z82: 0.1415752645 | AA82: 0.1785272308 | AB82: =IF(K82=0,"",IF(W82>target1,1,"")) -> 1 | AG82: 1 | AR82: 1 | AS82: 1 | AU82: 10210535.74 | AV82: 2194187.252 | AX82: 0.1785272308 | AZ82: 1 | BA82: 1
K83: 81 | L83: 12548871.21 | M83: 1500000 | N83: 6316862.339 | O83: 2186412.042 | R83: 3002562.111 | T83: 3430079.873 | V83: 1 | W83: 25235427.12 | X83: 5990289.723 | Z83: 0.1361135678 | AA83: 0.1733652439 | AB83: =IF(K83=0,"",IF(W83>target1,1,"")) -> 1 | AG83: 1 | AR83: 1 | AU83: 9243501.576 | AV83: 2194187.252 | AX83: 0.1733652439 | AZ83: 1 | BA83: 1
K84: 82 | L84: 12242559.44 | M84: 1500000 | N84: 6209428.053 | O84: 2121333.686 | R84: 3030193.051 | T84: 3446162.458 | V84: 1 | W84: 24626648.45 | X84: 5990289.723 | Z84: 0.13475783 | AA84: 0.1720935844 | AB84: =IF(K84=0,"",IF(W84>target1,1,"")) -> 1 | AG84: 1 | AR84: 1 | AU84: 9020511.627 | AV84: 2194187.252 | AX84: 0.1720935844 | AZ84: 1 | BA84: 1
K85: 83 | L85: 13014969.57 | M85: 1500000 | N85: 6674607.435 | O85: 2060800.745 | R85: 3756322.261 | T85: 3771242.414 | V85: 1 | W85: 26183949.13 | X85: 5990289.723 | Z85: 0.1381089003 | AA85: 0.1752830871 | AB85: =IF(K85=0,"",IF(W85>target1,1,"")) -> 1 | AG85: 1 | AR85: 1 | AS85: 1 | AU85: 9590936.342 | AV85: 2194187.252 | AX85: 0.1752830871 | AZ85: 1 | BA85: 1
K86: 84 | L86: 11690536.8 | M86: 1500000 | N86: 6039265.977 | O86: 2036183.911 | R86: 3262163.565 | T86: 3474259.924 | V86: 1 | W86: 23550250.85 | X86: 5990289.723 | Z86: 0.1322185218 | AA86: 0.1697611793 | AB86: =IF(K86=0,"",IF(W86>target1,1,"")) -> 1 | AG86: 1 | AR86: 1 | AU86: 8626237.227 | AV86: 2194187.252 | AX86: 0.1697611793 | AZ86: 1 | BA86: 1
K87: 85 | L87: 11059804.05 | M87: 1500000 | N87: 5753035.884 | O87: 1990917.419 | R87: 2962514.071 | T87: 3383488.573 | V87: 1 | W87: 22308905.51 | X87: 5990289.723 | Z87: 0.1291517091 | AA87: 0.1669262668 | AB87: =IF(K87=0,"",IF(W87>target1,1,"")) -> 1 | AG87: 1 | AR87: 1 | AU87: 8171544.006 | AV87: 2194187.252 | AX87: 0.1669262668 | AZ87: 1 | BA87: 1
K88: 86 | L88: 12138786.32 | M88: 1500000 | N88: 6359209.524 | O88: 1932383.963 | R88: 3167611.199 | T88: 3857447.988 | V88: 1 | W88: 24503100.05 | X88: 5990289.723 | Z88: 0.1342901294 | AA88: 0.171831434 | AB88: =IF(K88=0,"",IF(W88>target1,1,"")) -> 1 | AG88: 1 | AR88: 1 | AU88: 8975256.999 | AV88: 2194187.252 | AX88: 0.171831434 | AZ88: 1 | BA88: 1
K89: 87 | L89: 12380759.15 | M89: 1500000 | N89: 6558426.043 | O89: 1871520.51 | R89: 3693162.944 | T89: 4084034.193 | V89: 1 | W89: 25006573.14 | X89: 5990289.723 | Z89: 0.135374025 | AA89: 0.1728910575 | AB89: =IF(K89=0,"",IF(W89>target1,1,"")) -> 1 | AG89: 1 | AR89: 1 | AU89: 9159674.497 | AV89: 2194187.252 | AX89: 0.1728910575 | AZ89: 1 | BA89: 1
K90: 88 | L90: 11957178.98 | M90: 1500000 | N90: 6403595.482 | O90: 1845669.376 | R90: 3850318.814 | T90: 4058398.106 | V90: 1 | W90: 24188914.19 | X90: 5990289.723 | Z90: 0.1334610452 | AA90: 0.1711584027 | AB90: =IF(K90=0,"",IF(W90>target1,1,"")) -> 1 | AG90: 1 | AR90: 1 | AU90: 8860173.65 | AV90: 2194187.252 | AX90: 0.1711584027 | AZ90: 1 | BA90: 1
K91: 89 | L91: 11710839.73 | M91: 1500000 | N91: 6341621.619 | O91: 1810473.513 | R91: 3978262.95 | T91: 4103151.001 | V91: 1 | W91: 23745729.97 | X91: 5990289.723 | Z91: 0.1323142144 | AA91: 0.1701930717 | AB91: =IF(K91=0,"",IF(W91>target1,1,"")) -> 1 | AG91: 1 | AR91: 1 | AU91: 8697839.406 | AV91: 2194187.252 | AX91: 0.1701930717 | AZ91: 1 | BA91: 1
K92: 90 | L92: 10780163.28 | M92: 1500000 | N92: 5911552.23 | O92: 1754996.122 | R92: 3965552.844 | T92: 3899737.326 | W92: 21923113.65 | X92: 5990289.723 | Z92: 0.1277301832 | AA92: 0.166010878 | AB92: =IF(K92=0,"",IF(W92>target1,1,"")) -> 1 | AG92: 1 | AR92: 1 | AU92: 8030232.045 | AV92: 2194187.252 | AX92: 0.166010878 | AZ92: 1 | BA92: 1
K93: 91 | L93: 11380527.06 | M93: 1500000 | N93: 6085368.412 | O93: 1865356.81 | R93: 3782581.462 | T93: 4157744.939 | V93: 1 | W93: 23229572.24 | X93: 5990289.723 | Z93: 0.1307343954 | AA93: 0.1690443442 | AB93: =IF(K93=0,"",IF(W93>target1,1,"")) -> 1 | AG93: 1 | AR93: 1 | AU93: 8508775.642 | AV93: 2194187.252 | AX93: 0.1690443442 | AZ93: 1 | BA93: 1
K94: 92 | L94: 11073292.61 | M94: 1500000 | N94: 5984472.289 | O94: 1845404.931 | R94: 3790246.267 | T94: 4052964.615 | V94: 1 | W94: 22668980.26 | X94: 5990289.723 | Z94: 0.1292192785 | AA94: 0.167765544 | AB94: =IF(K94=0,"",IF(W94>target1,1,"")) -> 1 | AG94: 1 | AR94: 1 | AU94: 8303436.031 | AV94: 2194187.252 | AX94: 0.167765544 | AZ94: 1 | BA94: 1
K95: 93 | L95: 11008501.88 | M95: 1500000 | N95: 6027193.083 | O95: 1830000 | R95: 4115938.75 | T95: 4030971.371 | W95: 22611500.72 | X95: 5990289.723 | Z95: 0.1288938902 | AA95: 0.1676325248 | AB95: =IF(K95=0,"",IF(W95>target1,1,"")) -> 1 | AG95: 1 | AR95: 1 | AU95: 8282381.81 | AV95: 2194187.252 | AX95: 0.1676325248 | AZ95: 1 | BA95: 1
K96: 94 | L96: 11628710.52 | M96: 1500000 | N96: 6204475.465 | O96: 1957968.348 | R96: 4419910.274 | T96: 4223928.922 | W96: 23984593.03 | X96: 5990289.723 | Z96: 0.1319259974 | AA96: 0.1707157128 | AB96: =IF(K96=0,"",IF(W96>target1,1,"")) -> 1 | AG96: 1 | AR96: 1 | AU96: 8785332.714 | AV96: 2194187.252 | AX96: 0.1707157128 | AZ96: 1 | BA96: 1
K97: 95 | L97: 11253006.99 | M97: 1500000 | N97: 5718261.205 | O97: 2258987.23 | R97: 4563383.802 | T97: 4059139.174 | W97: 23305118.78 | X97: 5990289.723 | Z97: 0.1301110331 | AA97: 0.1692141625 | AB97: =IF(K97=0,"",IF(W97>target1,1,"")) -> 1 | AG97: 1 | AR97: 1 | AU97: 8536447.636 | AV97: 2194187.252 | AX97: 0.1692141625 | AZ97: 1 | BA97: 1
K98: 96 | L98: 11525955.5 | M98: 1500000 | N98: 5254823.161 | O98: 2971254.423 | R98: 4638848.32 | T98: 4074071.173 | W98: 23983418.29 | X98: 5990289.723 | Z98: 0.1314360441 | AA98: 0.170713156 | AB98: =IF(K98=0,"",IF(W98>target1,1,"")) -> 1 | AG98: 1 | AR98: 1 | AU98: 8784902.419 | AV98: 2194187.252 | AX98: 0.170713156 | AZ98: 1 | BA98: 1
K99: 97 | L99: 11344189.14 | M99: 1500000 | N99: 4578235.896 | O99: 3512607.171 | R99: 4657403.713 | T99: 3939096.105 | W99: 23719048.85 | X99: 5990289.723 | Z99: 0.1305575445 | AA99: 0.1701343456 | AB99: =IF(K99=0,"",IF(W99>target1,1,"")) -> 1 | AG99: 1 | AR99: 1 | AU99: 8688066.361 | AV99: 2194187.252 | AX99: 0.1701343456 | AZ99: 1 | BA99: 1
AB100: =IF(K100=0,"",IF(W100>target1,1,"")) -> 
AB101: =IF(K101=0,"",IF(W101>target1,1,"")) -> 
AB102: =IF(K102=0,"",IF(W102>target1,1,"")) -> 
AB103: =IF(K103=0,"",IF(W103>target1,1,"")) -> 
AB104: =IF(K104=0,"",IF(W104>target1,1,"")) -> 
AB105: =IF(K105=0,"",IF(W105>target1,1,"")) -> 
AB106: =IF(K106=0,"",IF(W106>target1,1,"")) -> 
AB107: =IF(K107=0,"",IF(W107>target1,1,"")) -> 
AB108: =IF(K108=0,"",IF(W108>target1,1,"")) -> 
AB109: =IF(K109=0,"",IF(W109>target1,1,"")) -> 
AB110: =IF(K110=0,"",IF(W110>target1,1,"")) -> 
AB111: =IF(K111=0,"",IF(W111>target1,1,"")) -> 
AB112: =IF(K112=0,"",IF(W112>target1,1,"")) -> 
AB113: =IF(K113=0,"",IF(W113>target1,1,"")) -> 
AB114: =IF(K114=0,"",IF(W114>target1,1,"")) -> 
AB115: =IF(K115=0,"",IF(W115>target1,1,"")) -> 
AB116: =IF(K116=0,"",IF(W116>target1,1,"")) -> 
AB117: =IF(K117=0,"",IF(W117>target1,1,"")) -> 
AB118: =IF(K118=0,"",IF(W118>target1,1,"")) -> 
AB119: =IF(K119=0,"",IF(W119>target1,1,"")) -> 
AB120: =IF(K120=0,"",IF(W120>target1,1,"")) -> 
AB121: =IF(K121=0,"",IF(W121>target1,1,"")) -> 
AB122: =IF(K122=0,"",IF(W122>target1,1,"")) -> 
AB123: =IF(K123=0,"",IF(W123>target1,1,"")) -> 
AB124: =IF(K124=0,"",IF(W124>target1,1,"")) -> 
AB125: =IF(K125=0,"",IF(W125>target1,1,"")) -> 
AB126: =IF(K126=0,"",IF(W126>target1,1,"")) -> 
AB127: =IF(K127=0,"",IF(W127>target1,1,"")) -> 
AB128: =IF(K128=0,"",IF(W128>target1,1,"")) -> 
AB129: =IF(K129=0,"",IF(W129>target1,1,"")) -> 
AB130: =IF(K130=0,"",IF(W130>target1,1,"")) -> 
S131: =IF(K131=0,"",IF(R131<lumpsum,1,"")) ->  | U131: =IF(K131=0,"",IF(T131<lumpsum,1,"")) ->  | AB131: =IF(K131=0,"",IF(W131>target1,1,"")) ->  | AR131: =IF(K131=0,"",IF(L131>targetp,1,"")) ->  | AS131: =IF(K131=0,"",IF(N131>targetp,1,"")) ->  | AZ131: =IF(K131=0,"",IF(AU131>target1,1,"")) -> 
P132: =IF(L132<M132,1,"") ->  | Q132: =IF(N132<O132,1,"") ->  | V132: =IF(K132=0,"",IF(T132>R132,1,"")) ->  | Y132: =IF(K132=0,"",IF(W132<X132,1,"")) ->  | AB132: =IF(K132=0,"",IF(W132>target1,1,"")) ->  | AG132: =IF(K132=0,"",IF(W132>L132,1,"")) ->  | AT132: =IF(K132=0,"",IF(N132>L132,1,"")) ->  | AW132: =IF(K132=0,"",IF(AU132<AV132,1,"")) ->  | AY132: =IF(K132=0,"",IF(AU132>L132,1,"")) ->  | BA132: =IF(K132=0,"",IF(W132>AU132,1,"")) -> 
AB133: =IF(K133=0,"",IF(W133>target1,1,"")) -> 
AB134: =IF(K134=0,"",IF(W134>target1,1,"")) -> 
AB135: =IF(K135=0,"",IF(W135>target1,1,"")) -> 
AB136: =IF(K136=0,"",IF(W136>target1,1,"")) -> 
AB137: =IF(K137=0,"",IF(W137>target1,1,"")) -> 
AB138: =IF(K138=0,"",IF(W138>target1,1,"")) -> 
AB139: =IF(K139=0,"",IF(W139>target1,1,"")) -> 
AB140: =IF(K140=0,"",IF(W140>target1,1,"")) -> 
AB141: =IF(K141=0,"",IF(W141>target1,1,"")) -> 
AB142: =IF(K142=0,"",IF(W142>target1,1,"")) -> 
AB143: =IF(K143=0,"",IF(W143>target1,1,"")) -> 
AB144: =IF(K144=0,"",IF(W144>target1,1,"")) -> 
AB145: =IF(K145=0,"",IF(W145>target1,1,"")) -> 
AB146: =IF(K146=0,"",IF(W146>target1,1,"")) -> 
AB147: =IF(K147=0,"",IF(W147>target1,1,"")) -> 
AB148: =IF(K148=0,"",IF(W148>target1,1,"")) -> 
AB149: =IF(K149=0,"",IF(W149>target1,1,"")) -> 
AB150: =IF(K150=0,"",IF(W150>target1,1,"")) -> 
AB151: =IF(K151=0,"",IF(W151>target1,1,"")) -> 
AB152: =IF(K152=0,"",IF(W152>target1,1,"")) -> 
AB153: =IF(K153=0,"",IF(W153>target1,1,"")) -> 
AB154: =IF(K154=0,"",IF(W154>target1,1,"")) -> 
AB155: =IF(K155=0,"",IF(W155>target1,1,"")) -> 
AB156: =IF(K156=0,"",IF(W156>target1,1,"")) -> 
AB157: =IF(K157=0,"",IF(W157>target1,1,"")) -> 
AB158: =IF(K158=0,"",IF(W158>target1,1,"")) -> 
AB159: =IF(K159=0,"",IF(W159>target1,1,"")) -> 
AB160: =IF(K160=0,"",IF(W160>target1,1,"")) -> 
AB161: =IF(K161=0,"",IF(W161>target1,1,"")) -> 
AB162: =IF(K162=0,"",IF(W162>target1,1,"")) -> 
AB163: =IF(K163=0,"",IF(W163>target1,1,"")) -> 
AB164: =IF(K164=0,"",IF(W164>target1,1,"")) -> 
AB165: =IF(K165=0,"",IF(W165>target1,1,"")) -> 
AB166: =IF(K166=0,"",IF(W166>target1,1,"")) -> 
AB167: =IF(K167=0,"",IF(W167>target1,1,"")) -> 
AB168: =IF(K168=0,"",IF(W168>target1,1,"")) -> 
AB169: =IF(K169=0,"",IF(W169>target1,1,"")) -> 
AB170: =IF(K170=0,"",IF(W170>target1,1,"")) -> 
AB171: =IF(K171=0,"",IF(W171>target1,1,"")) -> 
AB172: =IF(K172=0,"",IF(W172>target1,1,"")) -> 
AB173: =IF(K173=0,"",IF(W173>target1,1,"")) -> 
AB174: =IF(K174=0,"",IF(W174>target1,1,"")) -> 
AB175: =IF(K175=0,"",IF(W175>target1,1,"")) -> 
AB176: =IF(K176=0,"",IF(W176>target1,1,"")) -> 
AB177: =IF(K177=0,"",IF(W177>target1,1,"")) -> 
AB178: =IF(K178=0,"",IF(W178>target1,1,"")) -> 
AB179: =IF(K179=0,"",IF(W179>target1,1,"")) -> 
AB180: =IF(K180=0,"",IF(W180>target1,1,"")) -> 
AB181: =IF(K181=0,"",IF(W181>target1,1,"")) -> 
AB182: =IF(K182=0,"",IF(W182>target1,1,"")) -> 
AB183: =IF(K183=0,"",IF(W183>target1,1,"")) -> 
AB184: =IF(K184=0,"",IF(W184>target1,1,"")) -> 
AB185: =IF(K185=0,"",IF(W185>target1,1,"")) -> 
AB186: =IF(K186=0,"",IF(W186>target1,1,"")) -> 
AB187: =IF(K187=0,"",IF(W187>target1,1,"")) -> 
AB188: =IF(K188=0,"",IF(W188>target1,1,"")) -> 
AB189: =IF(K189=0,"",IF(W189>target1,1,"")) -> 
AB190: =IF(K190=0,"",IF(W190>target1,1,"")) -> 
AB191: =IF(K191=0,"",IF(W191>target1,1,"")) -> 
AB192: =IF(K192=0,"",IF(W192>target1,1,"")) -> 
AB193: =IF(K193=0,"",IF(W193>target1,1,"")) -> 
AB194: =IF(K194=0,"",IF(W194>target1,1,"")) -> 
S195: =IF(K195=0,"",IF(R195<lumpsum,1,"")) ->  | U195: =IF(K195=0,"",IF(T195<lumpsum,1,"")) ->  | AB195: =IF(K195=0,"",IF(W195>target1,1,"")) ->  | AR195: =IF(K195=0,"",IF(L195>targetp,1,"")) ->  | AS195: =IF(K195=0,"",IF(N195>targetp,1,"")) ->  | AZ195: =IF(K195=0,"",IF(AU195>target1,1,"")) -> 
P196: =IF(L196<M196,1,"") ->  | Q196: =IF(N196<O196,1,"") ->  | V196: =IF(K196=0,"",IF(T196>R196,1,"")) ->  | Y196: =IF(K196=0,"",IF(W196<X196,1,"")) ->  | AB196: =IF(K196=0,"",IF(W196>target1,1,"")) ->  | AG196: =IF(K196=0,"",IF(W196>L196,1,"")) ->  | AT196: =IF(K196=0,"",IF(N196>L196,1,"")) ->  | AW196: =IF(K196=0,"",IF(AU196<AV196,1,"")) ->  | AY196: =IF(K196=0,"",IF(AU196>L196,1,"")) ->  | BA196: =IF(K196=0,"",IF(W196>AU196,1,"")) -> 
AB197: =IF(K197=0,"",IF(W197>target1,1,"")) -> 
AB198: =IF(K198=0,"",IF(W198>target1,1,"")) -> 
AB199: =IF(K199=0,"",IF(W199>target1,1,"")) -> 
AB200: =IF(K200=0,"",IF(W200>target1,1,"")) -> 
... 215 more rows

Sheet Results
A1: Results
A2: Number of trial periods | B2: =Input!AF5 -> 97 | C2: Represents all possible durations of | G2: =Input!B3 -> 25 | H2: years | I2: between | J2: =start -> 1980 | K2: and | L2: =end -> 2012
A3: SIP: Probability of loss | B3: =SUM(Input!P3:P400)/Input!AF5 -> 0 | C3: Probability of loss refers to number of times portfolio was lower than total investment
A4: VIP: Probability of loss | B4: =SUM(Input!Q3:Q400)/Input!AF5 -> 0 | C4: divided by number of trial periods
A5: Lumpsum Probability of loss | B5: =SUM(Input!S3:S400)/Input!AF5 -> 0
A6: STP Probability of loss | B6: =SUM(Input!U3:U400)/Input!AF5 -> 0
A7: Growth SIP-I Probability of loss | B7: =SUM(Input!Y3:Y400)/Input!AF5 -> 0
A8: Growth SIP-II Probability of loss | B8: =SUM(Input!AW3:AW400)/Input!AF5 -> 0
A10: Prob. of SIP outperforming target | B10: =SUM(Input!AR3:AR400)/Input!AF5 -> 1 | C10: Number of times portfolio outperformed target value divided by no of trial periods
A11: Prob. of VIP outperforming target | B11: =SUM(Input!AS3:AS400)/Input!AF5 -> 0.8041237113
A12: Prob. of GSIP-I outperforming target | B12: =SUM(Input!AB3:AB400)/Input!AF5 -> 1
A13: Prob. of GSIP-II outperforming target | B13: =SUM(Input!AZ3:AZ400)/Input!AF5 -> 1
A15: Prob. of STP doing better than LS | B15: =SUM(Input!V3:V400)/Input!AF5 -> 0.2783505155 | C15: No of times STP portfolio did better than lump sum (LS) portfolio divided by no of trial periods
A16: Prob. of GSIP-I doing better than SIP | B16: =SUM(Input!AG3:AG400)/Input!AF5 -> 1 | C16: No of times growth-SIP portfolio did better than SIP portfolio divided by no of trial periods
A17: Prob. of GSIP-II doing better than SIP | B17: =SUM(Input!AY3:AY400)/Input!AF5 -> 0
A18: Prob. of GSIP-I doing better than GSIP-II | B18: =SUM(Input!BA3:BA400)/Input!AF5 -> 1
A19: Note: The other sheets show the calculations for each investment mode. They are only for reference and do not represent final results

Sheet Sensex Target Growth SIP
AI2: Return expected each year | AL2: =Input!B2 -> 0.1
AI3: Minimum investment | AL3: =Input!B7 -> 1000
AI4: Typical SIP amt | AL4: =Input!B14 -> 1831.453364
B5: Note: If you see cells showing "NA". Please scroll down/up until you see the values corresponding to the input investment year | AI5: Maximum investment | AL5: =Input!B9 -> 15000
L6: Growing Systematic investment plan
B7: Full | D7: NAV | E7: Portfolio | F7: Portfolio | G7: G-SIP | H7: Total | I7: Units | J7: Total | L7: Growth-SIP | M7: Total | N7: Units | O7: Total | P7: Portfolio | R7: Enter | S7: NAV | T7: Portfolio | U7: Portfolio | V7: VIP | W7: Total | X7: Units | Y7: Total | AA7: SIP | AB7: Total | AG7: Total Units | AI7: Portfolio | AL7: Total investment
A8: S.no | B8: NAV | C8: Month | D8: % change | E8: Target | F8: Actual | G8: investment | H8: investment | I8: purchased | J8: no of units | L8: investment | M8: investment | N8: purchased | O8: no of units | P8: Actual | Q8: Month | R8: NAV | S8: % change | T8: Target | U8: Actual | V8: investment | W8: investment | X8: purchased | Y8: no of units | AA8: investment | AB8: investment | AD8: Target | AE8: GSIP | AF8: VIP | AG8: GSIP | AI8: Target | AJ8: GSIP | AL8: GSIP
A10: 1 | B10: 9.715125456 | C10: =IF(AND(A10>=startm,A10<=endm),A10-startm,"NA") -> NA | D10: =IF(C10="NA","NA",IF(C10=0,0,(B10-B8)/B8)) -> NA | E10: =IF(C10="NA","NA",IF(C10=0,typical,(1+return/12)*typical*((1+return/12)^C10-1)/(return/12))) -> NA | L10: =IF(C10="NA","NA",IF(C10=0,typical,IF(L9="NA",typical,IF(INT(C10/12)-(C10/12)=0,L9*(1+gsip1),L9)))) -> NA | M10: =IF(C10="NA","NA",IF(M9="NA",L10,M9+L10)) -> NA | N10: =IF(C10="NA","NA",L10/B10) -> NA | O10: =IF(C10="NA","NA",IF(O9="NA",N10,O9+N10)) -> NA | P10: =IF(C10="NA","NA",O10*B10) -> NA | Q10: 0 | R10: 9.715125456 | S10: 0 | T10: =typical -> 1831.453364 | U10: =typical -> 1831.453364 | V10: =typical -> 1831.453364 | W10: =V10 -> 1831.453364 | X10: =V10/R10 -> 188.5156679 | Y10: =X10 -> 188.5156679 | AA10: =typical -> 1831.453364 | AB10: =AA10 -> 1831.453364 | AD10: =IF(A10=endm,E10,IF(C10="NA","NA",-typical)) -> NA | AE10: =IF(A10=endm,P10,IF(C10="NA","NA",-typical)) -> NA | AF10: =IF(A10=endm,F10,IF(C10="NA","NA",-G10)) -> NA | AG10: =IF(A10=endm,O10,0) -> 0 | AH10: =IF(A10=endm,J10,0) -> 0 | AI10: =IF(A10=endm,E10,0) -> 0 | AJ10: =IF(A10=endm,P10,0) -> 0 | AK10: =IF(A10=endm,F10,0) -> 0 | AL10: =IF(A10=endm,M10,0) -> 0 | AM10: =IF(A10=endm,H10,0) -> 0 | AO10: =IF(C10="NA","NA",INT(C10/12)-(C10/12)) -> NA
A11: =A10+1 -> 2 | B11: 10.08430022 | C11: NA | D11: =IF(C11="NA","NA",IF(C11=0,0,(B11-B10)/B10)) -> NA | E11: NA | L11: NA | M11: NA | N11: =IF(C11="NA","NA",L11/B11) -> NA | O11: NA | P11: =IF(C11="NA","NA",O11*B11) -> NA | Q11: =Q10+1 -> 1 | R11: 10.08430022 | S11: =(R11-R10)/R10 -> 0.038 | T11: =(1+return/12)*typical*((1+return/12)^Q11-1)/(return/12) -> 1846.715475 | U11: =U10*(1+S11) -> 1901.048591 | V11: =IF((U11-T11)>0,IF(typical-(U11-T11)<min,min,typical-(U11-T11)),IF((U11-T11)<0,IF(typical-(U11-T11)>max,max,typical-(U11-T11)),IF((T11-U11)=0,min,))) -> 1777.120247 | W11: =W10+V11 -> 3608.573611 | X11: 176.226432 | Y11: =Y10+X11 -> 364.7420998 | AA11: 1831.453364 | AB11: =AB10+AA11 -> 3662.906727 | AD11: NA | AE11: NA | AF11: NA | AG11: 0 | AH11: 0 | AI11: 0 | AJ11: 0 | AK11: 0 | AL11: 0 | AM11: 0 | AO11: NA
A12: =A11+1 -> 3 | B12: 10.11455312 | C12: NA | D12: NA | E12: NA | L12: NA | M12: NA | N12: NA | O12: NA | P12: NA | Q12: =Q11+1 -> 2 | R12: 10.11455312 | S12: =(R12-R11)/R11 -> 0.003 | T12: 3708.820245 | U12: =(U11+V11)*(1+S12) -> 3689.203345 | V12: 1851.070264 | W12: 5459.643875 | X12: 183.010583 | Y12: =Y11+X12 -> 547.7526828 | AA12: 1831.453364 | AB12: =AB11+AA12 -> 5494.360091 | AD12: NA | AE12: NA | AF12: NA | AG12: 0 | AH12: 0 | AI12: 0 | AJ12: 0 | AK12: 0 | AL12: 0 | AM12: 0 | AO12: NA
A13: 4 | B13: 10.01340759 | C13: NA | D13: NA | E13: NA | L13: NA | M13: NA | N13: NA | O13: NA | P13: NA | Q13: 3 | R13: 10.01340759 | S13: =(R13-R12)/R12 -> -0.01 | T13: 5586.442556 | U13: =(U12+V12)*(1+S13) -> 5484.870873 | V13: 1933.025046 | W13: 7392.668921 | X13: 193.0436795 | Y13: 740.7963624 | AA13: 1831.453364 | AB13: 7325.813454 | AD13: NA | AE13: NA | AF13: NA | AG13: 0 | AH13: 0 | AI13: 0 | AJ13: 0 | AK13: 0 | AL13: 0 | AM13: 0 | AO13: NA
A14: 5 | B14: 9.913273516 | C14: NA | D14: NA | E14: NA | L14: NA | M14: NA | N14: NA | O14: NA | P14: NA | Q14: 4 | R14: 9.913273516 | S14: =(R14-R13)/R13 -> -0.01 | T14: 7479.711719 | U14: =(U13+V13)*(1+S14) -> 7343.71696 | V14: 1967.448122 | W14: 9360.117043 | X14: 198.4660384 | Y14: 939.2624007 | AA14: 1831.453364 | AB14: 9157.266818 | AD14: NA | AE14: NA | AF14: NA | AG14: 0 | AH14: 0 | AI14: 0 | AJ14: 0 | AK14: 0 | AL14: 0 | AM14: 0 | AO14: NA
A15: 6 | B15: 9.615875311 | C15: NA | D15: NA | E15: NA | L15: NA | M15: NA | N15: NA | O15: NA | P15: NA | Q15: 5 | R15: 9.615875311 | S15: -0.03 | T15: 9388.758124 | U15: 9031.83013 | V15: 2188.381358 | W15: 11548.4984 | X15: 227.5800473 | Y15: 1166.842448 | AA15: 1831.453364 | AB15: 10988.72018 | AD15: NA | AE15: NA | AF15: NA | AG15: 0 | AH15: 0 | AI15: 0 | AJ15: 0 | AK15: 0 | AL15: 0 | AM15: 0 | AO15: NA
A16: 7 | B16: 10.1255167 | C16: NA | D16: NA | E16: NA | L16: NA | M16: NA | N16: NA | O16: NA | P16: NA | Q16: 6 | R16: 10.1255167 | S16: 0.053 | T16: 11313.71325 | U16: 11814.8827 | V16: 1330.283917 | W16: 12878.78232 | X16: 131.3793613 | Y16: 1298.221809 | AA16: 1831.453364 | AB16: 12820.17354 | AD16: NA | AE16: NA | AF16: NA | AG16: 0 | AH16: 0 | AI16: 0 | AJ16: 0 | AK16: 0 | AL16: 0 | AM16: 0 | AO16: NA
A17: 8 | B17: 11.07731527 | C17: NA | D17: NA | E17: NA | L17: NA | M17: NA | N17: NA | O17: NA | P17: NA | Q17: 7 | R17: 11.07731527 | S17: 0.094 | T17: 13254.70967 | U17: 14380.81228 | V17: 1000 | W17: 13878.78232 | X17: 90.27458147 | Y17: 1388.496391 | AA17: 1831.453364 | AB17: 14651.62691 | AD17: NA | AE17: NA | AF17: NA | AG17: 0 | AH17: 0 | AI17: 0 | AJ17: 0 | AK17: 0 | AL17: 0 | AM17: 0 | AO17: NA
A18: 9 | B18: 10.57883609 | C18: NA | D18: NA | E18: NA | L18: NA | M18: NA | N18: NA | O18: NA | P18: NA | Q18: 8 | R18: 10.57883609 | S18: -0.045 | T18: 15211.88106 | U18: 14688.67572 | V18: 2354.658698 | W18: 16233.44102 | X18: 222.5820193 | Y18: 1611.07841 | AA18: 1831.453364 | AB18: 16483.08027 | AD18: NA | AE18: NA | AF18: NA | AG18: 0 | AH18: 0 | AI18: 0 | AJ18: 0 | AK18: 0 | AL18: 0 | AM18: 0 | AO18: NA
A19: 10 | B19: 10.30378635 | C19: NA | D19: NA | E19: NA | L19: NA | M19: NA | N19: NA | O19: NA | P19: NA | Q19: 9 | R19: 10.30378635 | S19: -0.026 | T19: 17185.36221 | U19: 16600.20773 | V19: 2416.607845 | W19: 18650.04886 | X19: 234.535904 | Y19: 1845.614314 | AA19: 1831.453364 | AB19: 18314.53364 | AD19: NA | AE19: NA | AF19: NA | AG19: 0 | AH19: 0 | AI19: 0 | AJ19: 0 | AK19: 0 | AL19: 0 | AM19: 0 | AO19: NA
A20: 11 | B20: 11.02505139 | C20: NA | D20: NA | E20: NA | L20: NA | M20: NA | N20: NA | O20: NA | P20: NA | Q20: 10 | R20: 11.02505139 | S20: 0.07 | T20: 19175.28903 | U20: 20347.99266 | V20: 1000 | W20: 19650.04886 | X20: 90.70252505 | Y20: 1936.316839 | AA20: 1831.453364 | AB20: 20145.987 | AD20: NA | AE20: NA | AF20: NA | AG20: 0 | AH20: 0 | AI20: 0 | AJ20: 0 | AK20: 0 | AL20: 0 | AM20: 0 | AO20: NA
A21: 12 | B21: 11.66450437 | C21: NA | D21: NA | E21: NA | L21: NA | M21: NA | N21: NA | O21: NA | P21: NA | Q21: 11 | R21: 11.66450437 | S21: 0.058 | T21: 21181.79859 | U21: 22586.17624 | V21: 1000 | W21: 20650.04886 | X21: 85.73017491 | Y21: 2022.047014 | AA21: 1831.453364 | AB21: 21977.44036 | AD21: NA | AE21: NA | AF21: NA | AG21: 0 | AH21: 0 | AI21: 0 | AJ21: 0 | AK21: 0 | AL21: 0 | AM21: 0 | AO21: NA
A22: 13 | B22: 11.53619482 | C22: NA | D22: NA | E22: NA | L22: NA | M22: =IF(C22="NA","NA",IF(M21="NA",L22,M21+L22)) -> NA | N22: NA | O22: =IF(C22="NA","NA",IF(O21="NA",N22,O21+N22)) -> NA | P22: NA | Q22: 12 | R22: 11.53619482 | S22: -0.011 | T22: 23205.02905 | U22: 23326.7283 | V22: 1709.754114 | W22: 22359.80298 | X22: 148.2078051 | Y22: 2170.254819 | AA22: 1831.453364 | AB22: 23808.89373 | AD22: NA | AE22: NA | AF22: NA | AG22: 0 | AH22: 0 | AI22: 0 | AJ22: 0 | AK22: 0 | AL22: 0 | AM22: 0 | AO22: NA
A23: 14 | B23: 12.4706266 | C23: NA | D23: NA | E23: NA | L23: NA | M23: =IF(C23="NA","NA",IF(M22="NA",L23,M22+L23)) -> NA | N23: NA | O23: =IF(C23="NA","NA",IF(O22="NA",N23,O22+N23)) -> NA | P23: NA | Q23: 13 | R23: 12.4706266 | S23: 0.081 | T23: 25245.11977 | U23: 27064.43749 | V23: 1000 | W23: 23359.80298 | X23: 80.18843252 | Y23: 2250.443252 | AA23: 1831.453364 | AB23: 25640.34709 | AD23: NA | AE23: NA | AF23: NA | AG23: 0 | AH23: 0 | AI23: 0 | AJ23: 0 | AK23: 0 | AL23: 0 | AM23: 0 | AO23: NA
A24: 15 | B24: 13.64286551 | C24: NA | D24: NA | E24: NA | L24: NA | M24: NA | N24: NA | O24: NA | P24: NA | Q24: 14 | R24: 13.64286551 | S24: 0.094 | T24: 27302.21124 | U24: 30702.49461 | V24: 1000 | W24: 24359.80298 | X24: 73.29838439 | Y24: 2323.741636 | AA24: 1831.453364 | AB24: 27471.80045 | AD24: NA | AE24: NA | AF24: NA | AG24: 0 | AH24: 0 | AI24: 0 | AJ24: 0 | AK24: 0 | AL24: 0 | AM24: 0 | AO24: NA
A25: 16 | B25: 14.65243755 | C25: NA | D25: NA | E25: NA | L25: NA | M25: NA | N25: NA | O25: NA | P25: NA | Q25: 15 | R25: 14.65243755 | S25: 0.074 | T25: 29376.44514 | U25: 34048.47921 | V25: 1000 | W25: 25359.80298 | X25: 68.24803016 | Y25: 2391.989666 | AA25: 1831.453364 | AB25: 29303.25382 | AD25: NA | AE25: NA | AF25: NA | AG25: 0 | AH25: 0 | AI25: 0 | AJ25: 0 | AK25: 0 | AL25: 0 | AM25: 0 | AO25: NA
A26: 17 | B26: 13.91981568 | C26: NA | D26: NA | E26: NA | L26: NA | M26: NA | N26: NA | O26: NA | P26: NA | Q26: 16 | R26: 13.91981568 | S26: -0.05 | T26: 31467.96432 | U26: 33296.05525 | V26: 1000 | W26: 26359.80298 | X26: 71.84003175 | Y26: 2463.829698 | AA26: 1831.453364 | AB26: 31134.70718 | AD26: NA | AE26: NA | AF26: NA | AG26: 0 | AH26: 0 | AI26: 0 | AJ26: 0 | AK26: 0 | AL26: 0 | AM26: 0 | AO26: NA
A27: 18 | B27: 16.63417973 | C27: NA | D27: NA | E27: NA | L27: NA | M27: NA | N27: NA | O27: NA | P27: NA | Q27: 17 | R27: 16.63417973 | S27: 0.195 | T27: 33576.91284 | U27: 40983.78603 | V27: 1000 | W27: 27359.80298 | X27: 60.11718138 | Y27: 2523.946879 | AA27: 1831.453364 | AB27: 32966.16054 | AD27: NA | AE27: NA | AF27: NA | AG27: 0 | AH27: 0 | AI27: 0 | AJ27: 0 | AK27: 0 | AL27: 0 | AM27: 0 | AO27: NA
A28: 19 | B28: 16.35139868 | C28: NA | D28: NA | E28: NA | L28: NA | M28: NA | N28: NA | O28: NA | P28: NA | Q28: 18 | R28: 16.35139868 | S28: -0.017 | T28: 35703.43592 | U28: 41270.06166 | V28: 1000 | W28: 28359.80298 | X28: 61.15684779 | Y28: 2585.103727 | AA28: 1831.453364 | AB28: 34797.61391 | AD28: NA | AE28: NA | AF28: NA | AG28: 0 | AH28: 0 | AI28: 0 | AJ28: 0 | AK28: 0 | AL28: 0 | AM28: 0 | AO28: NA
A29: 20 | B29: 15.20680077 | C29: NA | D29: NA | E29: NA | L29: NA | M29: NA | N29: NA | O29: NA | P29: NA | Q29: 19 | R29: 15.20680077 | S29: -0.07 | T29: 37847.68002 | U29: 39311.15735 | V29: 1000 | W29: 29359.80298 | X29: 65.76005139 | Y29: 2650.863779 | AA29: 1831.453364 | AB29: 36629.06727 | AD29: NA | AE29: NA | AF29: NA | AG29: 0 | AH29: 0 | AI29: 0 | AJ29: 0 | AK29: 0 | AL29: 0 | AM29: 0 | AO29: NA
A30: 21 | B30: 16.14962242 | C30: NA | D30: NA | E30: NA | L30: NA | M30: NA | N30: NA | O30: NA | P30: NA | Q30: 20 | R30: 16.14962242 | S30: 0.062 | T30: 40009.79283 | U30: 42810.4491 | V30: 1000 | W30: 30359.80298 | X30: 61.92095234 | Y30: 2712.784731 | AA30: 1831.453364 | AB30: 38460.52063 | AD30: NA | AE30: NA | AF30: NA | AG30: 0 | AH30: 0 | AI30: 0 | AJ30: 0 | AK30: 0 | AL30: 0 | AM30: 0 | AO30: NA
A31: 22 | B31: 16.39186675 | C31: NA | D31: NA | E31: NA | L31: NA | M31: NA | N31: NA | O31: NA | P31: NA | Q31: 21 | R31: 16.39186675 | S31: 0.015 | T31: 42189.92325 | U31: 44467.60584 | V31: 1000 | W31: 31359.80298 | X31: 61.00586438 | Y31: 2773.790595 | AA31: 1831.453364 | AB31: 40291.974 | AD31: NA | AE31: NA | AF31: NA | AG31: 0 | AH31: 0 | AI31: 0 | AJ31: 0 | AK31: 0 | AL31: 0 | AM31: 0 | AO31: NA
A32: 23 | B32: 16.88362276 | C32: NA | D32: NA | E32: NA | L32: NA | M32: NA | N32: NA | O32: NA | P32: NA | Q32: 22 | R32: 16.88362276 | S32: 0.03 | T32: 44388.22142 | U32: 46831.63401 | V32: 1000 | W32: 32359.80298 | X32: 59.22899454 | Y32: 2833.01959 | AA32: 1831.453364 | AB32: 42123.42736 | AD32: NA | AE32: NA | AF32: NA | AG32: 0 | AH32: 0 | AI32: 0 | AJ32: 0 | AK32: 0 | AL32: 0 | AM32: 0 | AO32: NA
A33: 24 | B33: 17.91352374 | C33: NA | D33: NA | E33: NA | L33: NA | M33: NA | N33: NA | O33: NA | P33: NA | Q33: 23 | R33: 17.91352374 | S33: 0.061 | T33: 46604.83874 | U33: 50749.36369 | V33: 1000 | W33: 33359.80298 | X33: 55.82374603 | Y33: 2888.843336 | AA33: 1831.453364 | AB33: 43954.88072 | AD33: NA | AE33: NA | AF33: NA | AG33: 0 | AH33: 0 | AI33: 0 | AJ33: 0 | AK33: 0 | AL33: 0 | AM33: 0 | AO33: NA
A34: 25 | B34: 17.30446394 | C34: NA | D34: NA | E34: NA | L34: NA | M34: NA | N34: NA | O34: NA | P34: NA | Q34: 24 | R34: 17.30446394 | S34: -0.034 | T34: 48839.92787 | U34: 49989.88532 | V34: 1000 | W34: 34359.80298 | X34: 57.78855697 | Y34: 2946.631893 | AA34: 1831.453364 | AB34: 45786.33409 | AD34: NA | AE34: NA | AF34: NA | AG34: 0 | AH34: 0 | AI34: 0 | AJ34: 0 | AK34: 0 | AL34: 0 | AM34: 0 | AO34: NA
A35: 26 | B35: 17.9447291 | C35: NA | D35: NA | E35: NA | L35: NA | M35: NA | N35: NA | O35: NA | P35: NA | Q35: 25 | R35: 17.9447291 | S35: 0.037 | T35: 51093.64274 | U35: 52876.51108 | V35: 1000 | W35: 35359.80298 | X35: 55.72667017 | Y35: 3002.358563 | AA35: 1831.453364 | AB35: 47617.78745 | AD35: NA | AE35: NA | AF35: NA | AG35: 0 | AH35: 0 | AI35: 0 | AJ35: 0 | AK35: 0 | AL35: 0 | AM35: 0 | AO35: =IF(C35="NA","NA",INT(C35/12)-(C35/12)) -> NA
A36: 27 | B36: 17.13721629 | C36: NA | D36: NA | E36: NA | L36: NA | M36: NA | N36: NA | O36: NA | P36: NA | Q36: 26 | R36: 17.13721629 | S36: -0.045 | T36: 53366.13857 | U36: 51452.06808 | V36: 3745.523855 | W36: 39105.32683 | X36: 218.5608089 | Y36: 3220.919372 | AA36: 1831.453364 | AB36: 49449.24082 | AD36: NA | AE36: NA | AF36: NA | AG36: 0 | AH36: 0 | AI36: 0 | AJ36: 0 | AK36: 0 | AL36: 0 | AM36: 0 | AO36: =IF(C36="NA","NA",INT(C36/12)-(C36/12)) -> NA
A37: 28 | B37: 17.78843051 | C37: NA | D37: NA | E37: NA | L37: NA | M37: NA | N37: NA | O37: NA | P37: NA | Q37: 27 | R37: 17.78843051 | S37: 0.038 | T37: 55657.57187 | U37: 57295.10043 | V37: 1000 | W37: 40105.32683 | X37: 56.21631427 | Y37: 3277.135686 | AA37: 1831.453364 | AB37: 51280.69418 | AD37: NA | AE37: NA | AF37: NA | AG37: 0 | AH37: 0 | AI37: 0 | AJ37: 0 | AK37: 0 | AL37: 0 | AM37: 0 | AO37: NA
A38: 29 | B38: 18.01968011 | C38: NA | D38: NA | E38: NA | L38: NA | M38: NA | N38: NA | O38: NA | P38: NA | Q38: 28 | R38: 18.01968011 | S38: 0.013 | T38: 57968.10044 | U38: 59052.93674 | V38: 1000 | W38: 41105.32683 | X38: 55.49488082 | Y38: 3332.630567 | AA38: 1831.453364 | AB38: 53112.14754 | AD38: NA | AE38: NA | AF38: NA | AG38: 0 | AH38: 0 | AI38: 0 | AJ38: 0 | AK38: 0 | AL38: 0 | AM38: 0 | AO38: NA
A39: 30 | B39: 16.7583025 | C39: NA | D39: NA | E39: NA | L39: NA | M39: NA | N39: NA | O39: NA | P39: NA | Q39: 29 | R39: 16.7583025 | S39: -0.07 | T39: 60297.88342 | U39: 55849.23116 | V39: 6280.105621 | W39: 47385.43245 | X39: 374.7459279 | Y39: 3707.376495 | AA39: 1831.453364 | AB39: 54943.60091 | AD39: NA | AE39: NA | AF39: NA | AG39: 0 | AH39: 0 | AI39: 0 | AJ39: 0 | AK39: 0 | AL39: 0 | AM39: 0 | AO39: NA
A40: 31 | B40: 17.02643534 | C40: NA | D40: NA | E40: NA | L40: NA | M40: NA | N40: NA | O40: NA | P40: NA | Q40: 30 | R40: 17.02643534 | S40: 0.016 | T40: 62647.08126 | U40: 63123.40617 | V40: 1355.128448 | W40: 48740.5609 | X40: 79.58967459 | Y40: 3786.966169 | AA40: 1831.453364 | AB40: 56775.05427 | AD40: NA | AE40: NA | AF40: NA | AG40: 0 | AH40: 0 | AI40: 0 | AJ40: 0 | AK40: 0 | AL40: 0 | AM40: 0 | AO40: NA
A41: 32 | B41: 16.85617099 | C41: NA | D41: NA | E41: NA | L41: NA | M41: NA | N41: NA | O41: NA | P41: NA | Q41: 31 | R41: 16.85617099 | S41: -0.01 | T41: 65015.85574 | U41: 63833.74928 | V41: 3013.559832 | W41: 51754.12073 | X41: 178.7808058 | Y41: 3965.746975 | AA41: 1831.453364 | AB41: 58606.50763 | AD41: NA | AE41: NA | AF41: NA | AG41: 0 | AH41: 0 | AI41: 0 | AJ41: 0 | AK41: 0 | AL41: 0 | AM41: 0 | AO41: NA
A42: 33 | B42: 17.96867827 | C42: NA | D42: NA | E42: NA | L42: NA | M42: NA | N42: NA | O42: NA | P42: NA | Q42: 32 | R42: 17.96867827 | S42: 0.066 | T42: 67404.37002 | U42: 71259.23151 | V42: 1000 | W42: 52754.12073 | X42: 55.65239607 | Y42: 4021.399371 | AA42: 1831.453364 | AB42: 60437.961 | AD42: NA | AE42: NA | AF42: NA | AG42: 0 | AH42: 0 | AI42: 0 | AJ42: 0 | AK42: 0 | AL42: 0 | AM42: 0 | AO42: NA
A43: 34 | B43: 17.48352396 | C43: NA | D43: NA | E43: NA | L43: NA | M43: NA | N43: NA | O43: NA | P43: NA | Q43: 33 | R43: 17.48352396 | S43: -0.027 | T43: 69812.78857 | U43: 70308.23226 | V43: 1336.009681 | W43: 54090.13041 | X43: 76.41535447 | Y43: 4097.814726 | AA43: 1831.453364 | AB43: 62269.41436 | AD43: NA | AE43: NA | AF43: NA | AG43: 0 | AH43: 0 | AI43: 0 | AJ43: 0 | AK43: 0 | AL43: 0 | AM43: 0 | AO43: NA
A44: 35 | B44: 17.93809558 | C44: NA | D44: NA | E44: NA | L44: NA | M44: NA | N44: NA | O44: NA | P44: NA | Q44: 34 | R44: 17.93809558 | S44: 0.026 | T44: 72241.27729 | U44: 73506.99223 | V44: 1000 | W44: 55090.13041 | X44: 55.74727793 | Y44: 4153.562004 | AA44: 1831.453364 | AB44: 64100.86772 | AD44: NA | AE44: NA | AF44: NA | AG44: 0 | AH44: 0 | AI44: 0 | AJ44: 0 | AK44: 0 | AL44: 0 | AM44: 0 | AO44: NA
A45: 36 | B45: 18.54799083 | C45: NA | D45: NA | E45: NA | L45: NA | M45: NA | N45: NA | O45: NA | P45: NA | Q45: 35 | R45: 18.54799083 | S45: 0.034 | T45: 74690.00341 | U45: 77040.22996 | V45: 1000 | W45: 56090.13041 | X45: 53.91419529 | Y45: 4207.476199 | AA45: 1831.453364 | AB45: 65932.32109 | AD45: NA | AE45: NA | AF45: NA | AG45: 0 | AH45: 0 | AI45: 0 | AJ45: 0 | AK45: 0 | AL45: 0 | AM45: 0 | AO45: NA
A46: 37 | B46: 17.43511138 | C46: NA | D46: NA | E46: NA | L46: NA | M46: NA | N46: NA | O46: NA | P46: NA | Q46: 36 | R46: 17.43511138 | S46: -0.06 | T46: 77159.13558 | U46: 73357.81617 | V46: 5632.772774 | W46: 61722.90319 | X46: 323.0706504 | Y46: 4530.546849 | AA46: 1831.453364 | AB46: 67763.77445 | AD46: NA | AE46: NA | AF46: NA | AG46: 0 | AH46: 0 | AI46: 0 | AJ46: 0 | AK46: 0 | AL46: 0 | AM46: 0 | AO46: NA
A47: 38 | B47: 17.20845493 | C47: NA | D47: NA | E47: NA | L47: NA | M47: NA | N47: NA | O47: NA | P47: NA | Q47: 37 | R47: 17.20845493 | S47: -0.013 | T47: 79648.84385 | U47: 77963.71128 | V47: 3516.585928 | W47: 65239.48911 | X47: 204.3522176 | Y47: 4734.899067 | AA47: 1831.453364 | AB47: 69595.22781 | AD47: NA | AE47: NA | AF47: NA | AG47: 0 | AH47: 0 | AI47: 0 | AJ47: 0 | AK47: 0 | AL47: 0 | AM47: 0 | AO47: NA
A48: 39 | B48: 16.64057592 | C48: NA | D48: NA | E48: NA | L48: NA | M48: NA | N48: NA | O48: NA | P48: NA | Q48: 38 | R48: 16.64057592 | S48: -0.033 | T48: 82159.29969 | U48: 78791.4474 | V48: 5199.305648 | W48: 70438.79476 | X48: 312.4474581 | Y48: 5047.346525 | AA48: 1831.453364 | AB48: 71426.68118 | AD48: NA | AE48: NA | AF48: NA | AG48: 0 | AH48: 0 | AI48: 0 | AJ48: 0 | AK48: 0 | AL48: 0 | AM48: 0 | AO48: NA
A49: 40 | B49: 16.85690341 | C49: NA | D49: NA | E49: NA | L49: NA | M49: NA | N49: NA | O49: NA | P49: NA | Q49: 39 | R49: 16.85690341 | S49: 0.013 | T49: 84690.67599 | U49: 85082.63284 | V49: 1439.496516 | W49: 71878.29128 | X49: 85.39507412 | Y49: 5132.741599 | AA49: 1831.453364 | AB49: 73258.13454 | AD49: NA | AE49: NA | AF49: NA | AG49: 0 | AH49: 0 | AI49: 0 | AJ49: 0 | AK49: 0 | AL49: 0 | AM49: 0 | AO49: NA
A50: 41 | B50: 18.69430588 | C50: NA | D50: NA | E50: NA | L50: NA | M50: NA | N50: NA | O50: NA | P50: NA | Q50: 40 | R50: 18.69430588 | S50: 0.109 | T50: 87243.1471 | U50: 95953.04146 | V50: 1000 | W50: 72878.29128 | X50: 53.49222413 | Y50: 5186.233823 | AA50: 1831.453364 | AB50: 75089.5879 | AD50: NA | AE50: NA | AF50: NA | AG50: 0 | AH50: 0 | AI50: 0 | AJ50: 0 | AK50: 0 | AL50: 0 | AM50: 0 | AO50: NA
A51: 42 | B51: 18.69430588 | C51: NA | D51: NA | E51: NA | L51: NA | M51: NA | N51: NA | O51: NA | P51: NA | Q51: 41 | R51: 18.69430588 | S51: 0 | T51: 89816.8888 | U51: 96953.04146 | V51: 1000 | W51: 73878.29128 | X51: 53.49222413 | Y51: 5239.726048 | AA51: 1831.453364 | AB51: 76921.04127 | AD51: NA | AE51: NA | AF51: NA | AG51: 0 | AH51: 0 | AI51: 0 | AJ51: 0 | AK51: 0 | AL51: 0 | AM51: 0 | AO51: NA
A52: 43 | B52: 18.54475143 | C52: NA | D52: NA | E52: NA | L52: NA | M52: NA | N52: NA | O52: NA | P52: NA | Q52: 42 | R52: 18.54475143 | S52: -0.008 | T52: 92412.07835 | U52: 97169.41713 | V52: 1000 | W52: 74878.29128 | X52: 53.92361303 | Y52: 5293.649661 | AA52: 1831.453364 | AB52: 78752.49463 | AD52: NA | AE52: NA | AF52: NA | AG52: 0 | AH52: 0 | AI52: 0 | AJ52: 0 | AK52: 0 | AL52: 0 | AM52: 0 | AO52: NA
A53: 44 | B53: 18.7858332 | C53: NA | D53: NA | E53: NA | L53: NA | M53: NA | N53: NA | O53: NA | P53: NA | Q53: 43 | R53: 18.7858332 | S53: 0.013 | T53: 95028.89448 | U53: 99445.61955 | V53: 1000 | W53: 75878.29128 | X53: 53.2316022 | Y53: 5346.881263 | AA53: 1831.453364 | AB53: 80583.948 | AD53: NA | AE53: NA | AF53: NA | AG53: 0 | AH53: 0 | AI53: 0 | AJ53: 0 | AK53: 0 | AL53: 0 | AM53: 0 | AO53: NA
A54: 45 | B54: 18.59797487 | C54: NA | D54: NA | E54: NA | L54: NA | M54: NA | N54: NA | O54: NA | P54: NA | Q54: 44 | R54: 18.59797487 | S54: -0.01 | T54: 97667.51741 | U54: 99441.16335 | V54: 1000 | W54: 76878.29128 | X54: 53.76929515 | Y54: 5400.650558 | AA54: 1831.453364 | AB54: 82415.40136 | AD54: NA | AE54: NA | AF54: NA | AG54: 0 | AH54: 0 | AI54: 0 | AJ54: 0 | AK54: 0 | AL54: 0 | AM54: 0 | AO54: NA
A55: 46 | B55: 18.65376879 | C55: NA | D55: NA | E55: NA | L55: NA | M55: NA | N55: NA | O55: NA | P55: NA | Q55: 45 | R55: 18.65376879 | S55: 0.003 | T55: 100328.1289 | U55: 100742.4868 | V55: 1417.095382 | W55: 78295.38666 | X55: 75.96831489 | Y55: 5476.618873 | AA55: 1831.453364 | AB55: 84246.85472 | AD55: NA | AE55: NA | AF55: NA | AG55: 0 | AH55: 0 | AI55: 0 | AJ55: 0 | AK55: 0 | AL55: 0 | AM55: 0 | AO55: NA
A56: 47 | B56: 18.91492156 | C56: NA | D56: NA | E56: NA | L56: NA | M56: NA | N56: NA | O56: NA | P56: NA | Q56: 46 | R56: 18.91492156 | S56: 0.014 | T56: 103010.9121 | U56: 103589.8164 | V56: 1252.549064 | W56: 79547.93572 | X56: 66.22015643 | Y56: 5542.839029 | AA56: 1831.453364 | AB56: 86078.30809 | AD56: NA | AE56: NA | AF56: NA | AG56: 0 | AH56: 0 | AI56: 0 | AJ56: 0 | AK56: 0 | AL56: 0 | AM56: 0 | AO56: NA
A57: 48 | B57: 19.9174124 | C57: NA | D57: NA | E57: NA | L57: NA | M57: NA | N57: NA | O57: NA | P57: NA | Q57: 47 | R57: 19.9174124 | S57: 0.053 | T57: 105716.0518 | U57: 110399.0108 | V57: 1000 | W57: 80547.93572 | X57: 50.20732513 | Y57: 5593.046354 | AA57: 1831.453364 | AB57: 87909.76145 | AD57: NA | AE57: NA | AF57: NA | AG57: 0 | AH57: 0 | AI57: 0 | AJ57: 0 | AK57: 0 | AL57: 0 | AM57: 0 | AO57: NA
A58: 49 | B58: 19.55889898 | C58: NA | D58: NA | E58: NA | L58: NA | M58: NA | N58: NA | O58: NA | P58: NA | Q58: 48 | R58: 19.55889898 | S58: -0.018 | T58: 108443.7344 | U58: 109393.8286 | V58: 1000 | W58: 81547.93572 | X58: 51.12762233 | Y58: 5644.173977 | AA58: 1831.453364 | AB58: 89741.21481 | AD58: NA | AE58: NA | AF58: NA | AG58: 0 | AH58: 0 | AI58: 0 | AJ58: 0 | AK58: 0 | AL58: 0 | AM58: 0 | AO58: NA
A59: 50 | B59: 19.71537017 | C59: NA | D59: NA | E59: NA | L59: NA | M59: NA | N59: NA | O59: NA | P59: NA | Q59: 49 | R59: 19.71537017 | S59: 0.008 | T59: 111194.1477 | U59: 111276.9792 | V59: 1748.621774 | W59: 83296.5575 | X59: 88.69332706 | Y59: 5732.867304 | AA59: 1831.453364 | AB59: 91572.66818 | AD59: NA | AE59: NA | AF59: NA | AG59: 0 | AH59: 0 | AI59: 0 | AJ59: 0 | AK59: 0 | AL59: 0 | AM59: 0 | AO59: NA
A60: 51 | B60: 19.30134739 | C60: NA | D60: NA | E60: NA | L60: NA | M60: NA | N60: NA | O60: NA | P60: NA | Q60: 50 | R60: 19.30134739 | S60: -0.021 | T60: 113967.481 | U60: 110652.0634 | V60: 5146.870993 | W60: 88443.42849 | X60: 266.6586373 | Y60: 5999.525941 | AA60: 1831.453364 | AB60: 93404.12154 | AD60: NA | AE60: NA | AF60: NA | AG60: 0 | AH60: 0 | AI60: 0 | AJ60: 0 | AK60: 0 | AL60: 0 | AM60: 0 | AO60: NA
A61: 52 | B61: 18.50999215 | C61: NA | D61: NA | E61: NA | L61: NA | M61: NA | N61: NA | O61: NA | P61: NA | Q61: 51 | R61: 18.50999215 | S61: -0.041 | T61: 116763.9255 | U61: 111051.1781 | V61: 7544.200793 | W61: 95987.62929 | X61: 407.5744999 | Y61: 6407.100441 | AA61: 1831.453364 | AB61: 95235.5749 | AD61: NA | AE61: NA | AF61: NA | AG61: 0 | AH61: 0 | AI61: 0 | AJ61: 0 | AK61: 0 | AL61: 0 | AM61: 0 | AO61: NA
A62: 53 | B62: 18.93572197 | C62: NA | D62: NA | E62: NA | L62: NA | M62: NA | N62: NA | O62: NA | P62: NA | Q62: 52 | R62: 18.93572197 | S62: 0.023 | T62: 119583.6737 | U62: 121323.0726 | V62: 1000 | W62: 96987.62929 | X62: 52.81023885 | Y62: 6459.91068 | AA62: 1831.453364 | AB62: 97067.02827 | AD62: NA | AE62: NA | AF62: NA | AG62: 0 | AH62: 0 | AI62: 0 | AJ62: 0 | AK62: 0 | AL62: 0 | AM62: 0 | AO62: NA
A63: 54 | B63: 19.61740796 | C63: NA | D63: NA | E63: NA | L63: NA | M63: NA | N63: NA | O63: NA | P63: NA | Q63: 53 | R63: 19.61740796 | S63: 0.036 | T63: 122426.9198 | U63: 126726.7032 | V63: 1000 | W63: 97987.62929 | X63: 50.97513402 | Y63: 6510.885814 | AA63: 1831.453364 | AB63: 98898.48163 | AD63: NA | AE63: NA | AF63: NA | AG63: 0 | AH63: 0 | AI63: 0 | AJ63: 0 | AK63: 0 | AL63: 0 | AM63: 0 | AO63: NA
A64: 55 | B64: 19.9509039 | C64: NA | D64: NA | E64: NA | L64: NA | M64: NA | N64: NA | O64: NA | P64: NA | Q64: 54 | R64: 19.9509039 | S64: 0.017 | T64: 125293.8596 | U64: 129898.0572 | V64: 1000 | W64: 98987.62929 | X64: 50.1230423 | Y64: 6561.008856 | AA64: 1831.453364 | AB64: 100729.935 | AD64: NA | AE64: NA | AF64: NA | AG64: 0 | AH64: 0 | AI64: 0 | AJ64: 0 | AK64: 0 | AL64: 0 | AM64: 0 | AO64: NA
A65: 56 | B65: 19.59178763 | C65: NA | D65: NA | E65: NA | L65: NA | M65: NA | N65: NA | O65: NA | P65: NA | Q65: 55 | R65: 19.59178763 | S65: -0.018 | T65: 128184.6906 | U65: 128541.8921 | V65: 1474.251802 | W65: 100461.8811 | X65: 75.24845766 | Y65: 6636.257314 | AA65: 1831.453364 | AB65: 102561.3884 | AD65: NA | AE65: NA | AF65: NA | AG65: 0 | AH65: 0 | AI65: 0 | AJ65: 0 | AK65: 0 | AL65: 0 | AM65: 0 | AO65: NA
A66: 57 | B66: 20.88484561 | C66: NA | D66: NA | E66: NA | L66: NA | M66: NA | N66: NA | O66: NA | P66: NA | Q66: 56 | R66: 20.88484561 | S66: 0.066 | T66: 131099.6118 | U66: 138597.2094 | V66: 1000 | W66: 101461.8811 | X66: 47.88160845 | Y66: 6684.138922 | AA66: 1831.453364 | AB66: 104392.8417 | AD66: NA | AE66: NA | AF66: NA | AG66: 0 | AH66: 0 | AI66: 0 | AJ66: 0 | AK66: 0 | AL66: 0 | AM66: 0 | AO66: NA
A67: 58 | B67: 21.05192438 | C67: NA | D67: NA | E67: NA | L67: NA | M67: NA | N67: NA | O67: NA | P67: NA | Q67: 57 | R67: 21.05192438 | S67: 0.008 | T67: 134038.824 | U67: 140713.9871 | V67: 1000 | W67: 102461.8811 | X67: 47.50159568 | Y67: 6731.640518 | AA67: 1831.453364 | AB67: 106224.2951 | AD67: NA | AE67: NA | AF67: NA | AG67: 0 | AH67: 0 | AI67: 0 | AJ67: 0 | AK67: 0 | AL67: 0 | AM67: 0 | AO67: NA
A68: 59 | B68: 20.39931472 | C68: NA | D68: NA | E68: NA | L68: NA | M68: NA | N68: NA | O68: NA | P68: NA | Q68: 58 | R68: 20.39931472 | S68: -0.031 | T68: 137002.5297 | U68: 137320.8535 | V68: 1513.12957 | W68: 103975.0107 | X68: 74.17550986 | Y68: 6805.816028 | AA68: 1831.453364 | AB68: 108055.7484 | AD68: NA | AE68: NA | AF68: NA | AG68: 0 | AH68: 0 | AI68: 0 | AJ68: 0 | AK68: 0 | AL68: 0 | AM68: 0 | AO68: NA
A69: 60 | B69: 21.37848183 | C69: NA | D69: NA | E69: NA | L69: NA | M69: NA | N69: NA | O69: NA | P69: NA | Q69: 59 | R69: 21.37848183 | S69: 0.048 | T69: 139990.9329 | U69: 145498.0143 | V69: 1000 | W69: 104975.0107 | X69: 46.77600627 | Y69: 6852.592034 | AA69: 1831.453364 | AB69: 109887.2018 | AD69: NA | AE69: NA | AF69: NA | AG69: 0 | AH69: 0 | AI69: 0 | AJ69: 0 | AK69: 0 | AL69: 0 | AM69: 0 | AO69: NA
A70: 61 | B70: 22.61843377 | C70: NA | D70: NA | E70: NA | L70: NA | M70: NA | N70: NA | O70: NA | P70: NA | Q70: 60 | R70: 22.61843377 | S70: 0.058 | T70: 143004.2395 | U70: 154994.8991 | V70: 1000 | W70: 105975.0107 | X70: 44.21172616 | Y70: 6896.80376 | AA70: 1831.453364 | AB70: 111718.6552 | AD70: NA | AE70: NA | AF70: NA | AG70: 0 | AH70: 0 | AI70: 0 | AJ70: 0 | AK70: 0 | AL70: 0 | AM70: 0 | AO70: NA
A71: 62 | B71: 23.88506606 | C71: NA | D71: NA | E71: NA | L71: NA | M71: NA | N71: NA | O71: NA | P71: NA | Q71: 61 | R71: 23.88506606 | S71: 0.056 | T71: 146042.657 | U71: 164730.6134 | V71: 1000 | W71: 106975.0107 | X71: 41.86716492 | Y71: 6938.670925 | AA71: 1831.453364 | AB71: 113550.1085 | AD71: NA | AE71: NA | AF71: NA | AG71: 0 | AH71: 0 | AI71: 0 | AJ71: 0 | AK71: 0 | AL71: 0 | AM71: 0 | AO71: NA
A72: 63 | B72: 27.82610196 | C72: NA | D72: NA | E72: NA | L72: NA | M72: NA | N72: NA | O72: NA | P72: NA | Q72: 62 | R72: 27.82610196 | S72: 0.165 | T72: 149106.3946 | U72: 193076.1647 | V72: 1000 | W72: 107975.0107 | X72: 35.93748062 | Y72: 6974.608406 | AA72: 1831.453364 | AB72: 115381.5619 | AD72: NA | AE72: NA | AF72: NA | AG72: 0 | AH72: 0 | AI72: 0 | AJ72: 0 | AK72: 0 | AL72: 0 | AM72: 0 | AO72: NA
A73: 64 | B73: 30.44175555 | C73: NA | D73: NA | E73: NA | L73: NA | M73: NA | N73: NA | O73: NA | P73: NA | Q73: 63 | R73: 30.44175555 | S73: 0.094 | T73: 152195.6634 | U73: 212319.3241 | V73: 1000 | W73: 108975.0107 | X73: 32.84961665 | Y73: 7007.458022 | AA73: 1831.453364 | AB73: 117213.0153 | AD73: NA | AE73: NA | AF73: NA | AG73: 0 | AH73: 0 | AI73: 0 | AJ73: 0 | AK73: 0 | AL73: 0 | AM73: 0 | AO73: NA
A74: 65 | B74: 31.41589173 | C74: =IF(AND(A74>=startm,A74<=endm),A74-startm,"NA") -> NA | D74: NA | E74: =IF(C74="NA","NA",IF(C74=0,typical,(1+return/12)*typical*((1+return/12)^C74-1)/(return/12))) -> NA | L74: =IF(C74="NA","NA",IF(C74=0,typical,IF(L73="NA",typical,IF(INT(C74/12)-(C74/12)=0,L73*(1+gsip1),L73)))) -> NA | M74: NA | N74: NA | O74: NA | P74: NA | Q74: 64 | R74: 31.41589173 | S74: 0.032 | T74: 155310.676 | U74: 220145.5425 | V74: 1000 | W74: 109975.0107 | X74: =V74/R74 -> 31.83102389 | Y74: 7039.289046 | AA74: =typical -> 1831.453364 | AB74: 119044.4686 | AD74: =IF(A74=endm,E74,IF(C74="NA","NA",-typical)) -> NA | AE74: =IF(A74=endm,P74,IF(C74="NA","NA",-typical)) -> NA | AF74: =IF(A74=endm,F74,IF(C74="NA","NA",-G74)) -> NA | AG74: =IF(A74=endm,O74,0) -> 0 | AH74: =IF(A74=endm,J74,0) -> 0 | AI74: =IF(A74=endm,E74,0) -> 0 | AJ74: =IF(A74=endm,P74,0) -> 0 | AK74: =IF(A74=endm,F74,0) -> 0 | AL74: =IF(A74=endm,M74,0) -> 0 | AM74: =IF(A74=endm,H74,0) -> 0 | AO74: NA
A75: 66 | B75: 37.6048224 | C75: NA | D75: =IF(C75="NA","NA",IF(C75=0,0,(B75-B74)/B74)) -> NA | E75: NA | L75: NA | M75: NA | N75: =IF(C75="NA","NA",L75/B75) -> NA | O75: NA | P75: =IF(C75="NA","NA",O75*B75) -> NA | Q75: 65 | R75: 37.6048224 | S75: 0.197 | T75: =(1+return/12)*typical*((1+return/12)^Q75-1)/(return/12) -> 158451.6471 | U75: 264711.2144 | V75: =IF((U75-T75)>0,IF(typical-(U75-T75)<min,min,typical-(U75-T75)),IF((U75-T75)<0,IF(typical-(U75-T75)>max,max,typical-(U75-T75)),IF((T75-U75)=0,min,))) -> 1000 | W75: =W74+V75 -> 110975.0107 | X75: 26.59233408 | Y75: 7065.88138 | AA75: 1831.453364 | AB75: 120875.922 | AD75: NA | AE75: NA | AF75: NA | AG75: 0 | AH75: 0 | AI75: 0 | AJ75: 0 | AK75: 0 | AL75: 0 | AM75: 0 | AO75: NA
A76: =A75+1 -> 67 | B76: 40.50039372 | C76: NA | D76: NA | E76: NA | L76: NA | M76: NA | N76: NA | O76: NA | P76: NA | Q76: =Q75+1 -> 66 | R76: 40.50039372 | S76: 0.077 | T76: 161618.793 | U76: 286170.9779 | V76: 1000 | W76: 111975.0107 | X76: 24.69111799 | Y76: =Y75+X76 -> 7090.572498 | AA76: 1831.453364 | AB76: =AB75+AA76 -> 122707.3754 | AD76: NA | AE76: NA | AF76: NA | AG76: 0 | AH76: 0 | AI76: 0 | AJ76: 0 | AK76: 0 | AL76: 0 | AM76: 0 | AO76: NA
A77: 68 | B77: 36.81485789 | C77: NA | D77: NA | E77: NA | L77: NA | M77: NA | N77: NA | O77: NA | P77: NA | Q77: 67 | R77: 36.81485789 | S77: -0.091 | T77: 164812.3318 | U77: 261038.4189 | V77: 1000 | W77: 112975.0107 | X77: 27.16294608 | Y77: 7117.735444 | AA77: 1831.453364 | AB77: 124538.8287 | AD77: NA | AE77: NA | AF77: NA | AG77: 0 | AH77: 0 | AI77: 0 | AJ77: 0 | AK77: 0 | AL77: 0 | AM77: 0 | AO77: NA
A78: 69 | B78: 34.20100298 | C78: NA | D78: NA | E78: NA | L78: NA | M78: NA | N78: NA | O78: NA | P78: NA | Q78: 68 | R78: 34.20100298 | S78: =(R78-R77)/R77 -> -0.071 | T78: 168032.4833 | U78: =(U77+V77)*(1+S78) -> 243433.6912 | V78: 1000 | W78: 113975.0107 | X78: 29.23890859 | Y78: 7146.974353 | AA78: 1831.453364 | AB78: 126370.2821 | AD78: NA | AE78: NA | AF78: NA | AG78: 0 | AH78: 0 | AI78: 0 | AJ78: 0 | AK78: 0 | AL78: 0 | AM78: 0 | AO78: NA
A79: 70 | B79: 37.45009826 | C79: NA | D79: NA | E79: NA | L79: NA | M79: NA | N79: NA | O79: NA | P79: NA | Q79: 69 | R79: 37.45009826 | S79: 0.095 | T79: 171279.4695 | U79: 267654.8918 | V79: 1000 | W79: 114975.0107 | X79: 26.70219963 | Y79: 7173.676553 | AA79: 1831.453364 | AB79: 128201.7354 | AD79: NA | AE79: NA | AF79: NA | AG79: 0 | AH79: 0 | AI79: 0 | AJ79: 0 | AK79: 0 | AL79: 0 | AM79: 0 | AO79: NA
A80: 71 | B80: 39.02300239 | C80: NA | D80: NA | E80: NA | L80: NA | M80: NA | N80: NA | O80: NA | P80: NA | Q80: 70 | R80: 39.02300239 | S80: 0.042 | T80: 174553.5139 | U80: 279938.3973 | V80: 1000 | W80: 115975.0107 | X80: 25.62591135 | Y80: 7199.302464 | AA80: 1831.453364 | AB80: 130033.1888 | AD80: NA | AE80: NA | AF80: NA | AG80: 0 | AH80: 0 | AI80: 0 | AJ80: 0 | AK80: 0 | AL80: 0 | AM80: 0 | AO80: NA
A81: 72 | B81: 41.44242854 | C81: NA | D81: NA | E81: NA | L81: NA | M81: NA | N81: NA | O81: NA | P81: NA | Q81: 71 | R81: 41.44242854 | S81: 0.062 | T81: 177854.842 | U81: 298356.5779 | V81: 1000 | W81: 116975.0107 | X81: 24.12986003 | Y81: 7223.432324 | AA81: 1831.453364 | AB81: 131864.6422 | AD81: NA | AE81: NA | AF81: NA | AG81: 0 | AH81: 0 | AI81: 0 | AJ81: 0 | AK81: 0 | AL81: 0 | AM81: 0 | AO81: NA
A82: 73 | B82: 46.99571396 | C82: NA | D82: NA | E82: NA | L82: NA | M82: NA | N82: NA | O82: NA | P82: NA | Q82: 72 | R82: 46.99571396 | S82: 0.134 | T82: 181183.6811 | U82: 339470.3593 | V82: 1000 | W82: 117975.0107 | X82: 21.27853618 | Y82: 7244.71086 | AA82: 1831.453364 | AB82: 133696.0955 | AD82: NA | AE82: NA | AF82: NA | AG82: 0 | AH82: 0 | AI82: 0 | AJ82: 0 | AK82: 0 | AL82: 0 | AM82: 0 | AO82: NA
A83: 74 | B83: 51.64828965 | C83: NA | D83: NA | E83: NA | L83: NA | M83: NA | N83: NA | O83: NA | P83: NA | Q83: 73 | R83: 51.64828965 | S83: 0.099 | T83: 184540.2606 | U83: 374176.9249 | V83: 1000 | W83: 118975.0107 | X83: 19.36172537 | Y83: 7264.072586 | AA83: 1831.453364 | AB83: 135527.5489 | AD83: NA | AE83: NA | AF83: NA | AG83: 0 | AH83: 0 | AI83: 0 | AJ83: 0 | AK83: 0 | AL83: 0 | AM83: 0 | AO83: NA
A84: 75 | B84: 45.14060515 | C84: NA | D84: NA | E84: NA | L84: NA | M84: NA | N84: NA | O84: NA | P84: NA | Q84: 74 | R84: 45.14060515 | S84: -0.126 | T84: 187924.8116 | U84: 327904.6324 | V84: 1000 | W84: 119975.0107 | X84: 22.15300386 | Y84: 7286.225589 | AA84: 1831.453364 | AB84: 137359.0023 | AD84: NA | AE84: NA | AF84: NA | AG84: 0 | AH84: 0 | AI84: 0 | AJ84: 0 | AK84: 0 | AL84: 0 | AM84: 0 | AO84: NA
A85: 76 | B85: 47.08165117 | C85: NA | D85: NA | E85: NA | L85: NA | M85: NA | N85: NA | O85: NA | P85: NA | Q85: 75 | R85: 47.08165117 | S85: 0.043 | T85: 191337.5672 | U85: 343047.5316 | V85: 1000 | W85: 120975.0107 | X85: 21.23969689 | Y85: 7307.465286 | AA85: 1831.453364 | AB85: 139190.4556 | AD85: NA | AE85: NA | AF85: NA | AG85: 0 | AH85: 0 | AI85: 0 | AJ85: 0 | AK85: 0 | AL85: 0 | AM85: 0 | AO85: NA
A86: 77 | B86: 49.20032548 | C86: NA | D86: NA | E86: NA | L86: NA | M86: NA | N86: NA | O86: NA | P86: NA | Q86: 76 | R86: 49.20032548 | S86: 0.045 | T86: 194778.7624 | U86: 359529.6705 | V86: 1000 | W86: 121975.0107 | X86: 20.32506879 | Y86: 7327.790355 | AA86: 1831.453364 | AB86: 141021.909 | AD86: NA | AE86: NA | AF86: NA | AG86: 0 | AH86: 0 | AI86: 0 | AJ86: 0 | AK86: 0 | AL86: 0 | AM86: 0 | AO86: NA
A87: 78 | B87: 47.62591506 | C87: NA | D87: NA | E87: NA | L87: NA | M87: =IF(C87="NA","NA",IF(M86="NA",L87,M86+L87)) -> NA | N87: NA | O87: =IF(C87="NA","NA",IF(O86="NA",N87,O86+N87)) -> NA | P87: NA | Q87: 77 | R87: 47.62591506 | S87: -0.032 | T87: 198248.6342 | U87: 348992.721 | V87: 1000 | W87: 122975.0107 | X87: 20.9969719 | Y87: 7348.787327 | AA87: 1831.453364 | AB87: 142853.3624 | AD87: NA | AE87: NA | AF87: NA | AG87: 0 | AH87: 0 | AI87: 0 | AJ87: 0 | AK87: 0 | AL87: 0 | AM87: 0 | AO87: NA
A88: 79 | B88: 46.91152633 | C88: NA | D88: NA | E88: NA | L88: NA | M88: NA | N88: NA | O88: NA | P88: NA | Q88: 78 | R88: 46.91152633 | S88: -0.015 | T88: 201747.4216 | U88: 344742.8302 | V88: 1000 | W88: 123975.0107 | X88: 21.31672274 | Y88: 7370.10405 | AA88: 1831.453364 | AB88: 144684.8157 | AD88: NA | AE88: NA | AF88: NA | AG88: 0 | AH88: 0 | AI88: 0 | AJ88: 0 | AK88: 0 | AL88: 0 | AM88: 0 | AO88: NA
A89: 80 | B89: 43.1116927 | C89: NA | D89: NA | E89: NA | L89: NA | M89: NA | N89: NA | O89: NA | P89: NA | Q89: 79 | R89: 43.1116927 | S89: -0.081 | T89: 205275.3656 | U89: 317737.661 | V89: 1000 | W89: 124975.0107 | X89: 23.19556337 | Y89: 7393.299613 | AA89: 1831.453364 | AB89: 146516.2691 | AD89: NA | AE89: NA | AF89: NA | AG89: 0 | AH89: 0 | AI89: 0 | AJ89: 0 | AK89: 0 | AL89: 0 | AM89: 0 | AO89: NA
A90: 81 | B90: 46.25884627 | C90: NA | D90: NA | E90: NA | L90: NA | M90: NA | N90: NA | O90: NA | P90: NA | Q90: 80 | R90: 46.25884627 | S90: 0.073 | T90: 208832.7091 | U90: 342005.5102 | V90: 1000 | W90: 125975.0107 | X90: 21.61748683 | Y90: 7414.9171 | AA90: 1831.453364 | AB90: 148347.7224 | AD90: NA | AE90: NA | AF90: NA | AG90: 0 | AH90: 0 | AI90: 0 | AJ90: 0 | AK90: 0 | AL90: 0 | AM90: 0 | AO90: NA
A91: 82 | B91: 45.24115165 | C91: NA | D91: NA | E91: NA | L91: NA | M91: NA | N91: NA | O91: NA | P91: NA | Q91: 81 | R91: 45.24115165 | S91: -0.022 | T91: 212419.6972 | U91: 335459.389 | V91: 1000 | W91: 126975.0107 | X91: 22.10376977 | Y91: 7437.02087 | AA91: 1831.453364 | AB91: 150179.1758 | AD91: NA | AE91: NA | AF91: NA | AG91: 0 | AH91: 0 | AI91: 0 | AJ91: 0 | AK91: 0 | AL91: 0 | AM91: 0 | AO91: NA
A92: 83 | B92: 39.26931963 | C92: NA | D92: NA | E92: NA | L92: NA | M92: NA | N92: NA | O92: NA | P92: NA | Q92: 82 | R92: 39.26931963 | S92: -0.132 | T92: 216036.5768 | U92: 292046.7496 | V92: 1000 | W92: 127975.0107 | X92: 25.46517254 | Y92: 7462.486042 | AA92: 1831.453364 | AB92: 152010.6292 | AD92: NA | AE92: NA | AF92: NA | AG92: 0 | AH92: 0 | AI92: 0 | AJ92: 0 | AK92: 0 | AL92: 0 | AM92: 0 | AO92: NA
A93: 84 | B93: 41.19351629 | C93: NA | D93: NA | E93: NA | L93: NA | M93: NA | N93: NA | O93: NA | P93: NA | Q93: 83 | R93: 41.19351629 | S93: 0.049 | T93: 219683.5971 | U93: 307406.0404 | V93: 1000 | W93: 128975.0107 | X93: 24.27566496 | Y93: 7486.761707 | AA93: 1831.453364 | AB93: 153842.0825 | AD93: NA | AE93: NA | AF93: NA | AG93: 0 | AH93: 0 | AI93: 0 | AJ93: 0 | AK93: 0 | AL93: 0 | AM93: 0 | AO93: NA
A94: 85 | B94: 43.50035321 | C94: NA | D94: NA | E94: NA | L94: NA | M94: NA | N94: NA | O94: NA | P94: NA | Q94: 84 | R94: 43.50035321 | S94: 0.056 | T94: 223361.0092 | U94: 325676.7786 | V94: 1000 | W94: 129975.0107 | X94: 22.98831909 | Y94: 7509.750026 | AA94: 1831.453364 | AB94: 155673.5359 | AD94: NA | AE94: NA | AF94: NA | AG94: 0 | AH94: 0 | AI94: 0 | AJ94: 0 | AK94: 0 | AL94: 0 | AM94: 0 | AO94: NA
A95: 86 | B95: 45.24036734 | C95: NA | D95: NA | E95: NA | L95: NA | M95: NA | N95: NA | O95: NA | P95: NA | Q95: 85 | R95: 45.24036734 | S95: 0.04 | T95: 227069.0664 | U95: 339743.8498 | V95: 1000 | W95: 130975.0107 | X95: 22.10415297 | Y95: 7531.854179 | AA95: 1831.453364 | AB95: 157504.9893 | AD95: NA | AE95: NA | AF95: NA | AG95: 0 | AH95: 0 | AI95: 0 | AJ95: 0 | AK95: 0 | AL95: 0 | AM95: 0 | AO95: NA
A96: 87 | B96: 40.08296546 | C96: NA | D96: NA | E96: NA | L96: NA | M96: NA | N96: NA | O96: NA | P96: NA | Q96: 86 | R96: 40.08296546 | S96: -0.114 | T96: 230808.0241 | U96: 301899.0509 | V96: 1000 | W96: 131975.0107 | X96: 24.94825392 | Y96: 7556.802433 | AA96: 1831.453364 | AB96: 159336.4426 | AD96: NA | AE96: NA | AF96: NA | AG96: 0 | AH96: 0 | AI96: 0 | AJ96: 0 | AK96: 0 | AL96: 0 | AM96: 0 | AO96: NA
A97: 88 | B97: 37.67798753 | C97: NA | D97: NA | E97: NA | L97: NA | M97: NA | N97: NA | O97: NA | P97: NA | Q97: 87 | R97: 37.67798753 | S97: -0.06 | T97: 234578.1398 | U97: 284725.1079 | V97: 1000 | W97: 132975.0107 | X97: 26.54069566 | Y97: 7583.343129 | AA97: 1831.453364 | AB97: 161167.896 | AD97: NA | AE97: NA | AF97: NA | AG97: 0 | AH97: 0 | AI97: 0 | AJ97: 0 | AK97: 0 | AL97: 0 | AM97: 0 | AO97: NA
A98: 89 | B98: 36.28390199 | C98: NA | D98: NA | E98: NA | L98: NA | M98: NA | N98: NA | O98: NA | P98: NA | Q98: 88 | R98: 36.28390199 | S98: -0.037 | T98: 238379.6731 | U98: 275153.2789 | V98: 1000 | W98: 133975.0107 | X98: 27.56043163 | Y98: 7610.90356 | AA98: 1831.453364 | AB98: 162999.3494 | AD98: NA | AE98: NA | AF98: NA | AG98: 0 | AH98: 0 | AI98: 0 | AJ98: 0 | AK98: 0 | AL98: 0 | AM98: 0 | AO98: NA
A99: 90 | B99: 34.07058397 | C99: NA | D99: NA | E99: NA | L99: NA | M99: NA | N99: NA | O99: NA | P99: NA | Q99: 89 | R99: 34.07058397 | S99: -0.061 | T99: 242212.8859 | U99: 259307.9289 | V99: 1000 | W99: 134975.0107 | X99: 29.3508324 | Y99: 7640.254393 | AA99: 1831.453364 | AB99: 164830.8027 | AD99: NA | AE99: NA | AF99: NA | AG99: 0 | AH99: 0 | AI99: 0 | AJ99: 0 | AK99: 0 | AL99: 0 | AM99: 0 | AO99: NA
A100: 91 | B100: 38.39754814 | C100: NA | D100: NA | E100: NA | L100: NA | M100: NA | N100: NA | O100: NA | P100: NA | Q100: 90 | R100: 38.39754814 | S100: 0.127 | T100: 246078.042 | U100: 293367.0358 | V100: 1000 | W100: 135975.0107 | X100: 26.04332955 | Y100: 7666.297722 | AA100: 1831.453364 | AB100: 166662.2561 | AD100: NA | AE100: NA | AF100: NA | AG100: 0 | AH100: 0 | AI100: 0 | AJ100: 0 | AK100: 0 | AL100: 0 | AM100: 0 | AO100: =IF(C100="NA","NA",INT(C100/12)-(C100/12)) -> NA
A101: 92 | B101: 37.89838001 | C101: NA | D101: NA | E101: NA | L101: NA | M101: NA | N101: NA | O101: NA | P101: NA | Q101: 91 | R101: 37.89838001 | S101: -0.013 | T101: 249975.4079 | U101: 290540.2644 | V101: 1000 | W101: 136975.0107 | X101: 26.38635213 | Y101: 7692.684075 | AA101: 1831.453364 | AB101: 168493.7094 | AD101: NA | AE101: NA | AF101: NA | AG101: 0 | AH101: 0 | AI101: 0 | AJ101: 0 | AK101: 0 | AL101: 0 | AM101: 0 | AO101: NA
A102: 93 | B102: 35.28339179 | C102: NA | D102: NA | E102: NA | L102: NA | M102: NA | N102: NA | O102: NA | P102: NA | Q102: 92 | R102: 35.28339179 | S102: -0.069 | T102: 253905.2517 | U102: 271423.9861 | V102: 1000 | W102: 137975.0107 | X102: 28.34194643 | Y102: 7721.026021 | AA102: 1831.453364 | AB102: 170325.1628 | AD102: NA | AE102: NA | AF102: NA | AG102: 0 | AH102: 0 | AI102: 0 | AJ102: 0 | AK102: 0 | AL102: 0 | AM102: 0 | AO102: NA
A103: 94 | B103: 35.35395857 | C103: NA | D103: NA | E103: NA | L103: NA | M103: NA | N103: NA | O103: NA | P103: NA | Q103: 93 | R103: 35.35395857 | S103: 0.002 | T103: 257867.8443 | U103: 272968.8341 | V103: 1000 | W103: 138975.0107 | X103: 28.28537568 | Y103: 7749.311397 | AA103: 1831.453364 | AB103: 172156.6162 | AD103: NA | AE103: NA | AF103: NA | AG103: 0 | AH103: 0 | AI103: 0 | AJ103: 0 | AK103: 0 | AL103: 0 | AM103: 0 | AO103: NA
A104: 95 | B104: 33.76303044 | C104: NA | D104: NA | E104: NA | L104: NA | M104: NA | N104: NA | O104: NA | P104: NA | Q104: 94 | R104: 33.76303044 | S104: -0.045 | T104: 261863.4585 | U104: 261640.2366 | V104: 2054.675308 | W104: 141029.686 | X104: 60.85577277 | Y104: 7810.167169 | AA104: 1831.453364 | AB104: 173988.0695 | AD104: NA | AE104: NA | AF104: NA | AG104: 0 | AH104: 0 | AI104: 0 | AJ104: 0 | AK104: 0 | AL104: 0 | AM104: 0 | AO104: NA
A105: 96 | B105: 34.70839529 | C105: NA | D105: NA | E105: NA | L105: NA | M105: NA | N105: NA | O105: NA | P105: NA | Q105: 95 | R105: 34.70839529 | S105: 0.028 | T105: 265892.3695 | U105: 271078.3694 | V105: 1000 | W105: 142029.686 | X105: 28.81147318 | Y105: 7838.978643 | AA105: 1831.453364 | AB105: 175819.5229 | AD105: NA | AE105: NA | AF105: NA | AG105: 0 | AH105: 0 | AI105: 0 | AJ105: 0 | AK105: 0 | AL105: 0 | AM105: 0 | AO105: NA
A106: 97 | B106: 34.70839529 | C106: 0 | D106: 0 | E106: 1831.453364 | L106: 1831.453364 | M106: 1831.453364 | N106: 52.76686946 | O106: 52.76686946 | P106: 1831.453364 | Q106: 96 | R106: 34.70839529 | S106: 0 | T106: 269954.8547 | U106: 272078.3694 | V106: 1000 | W106: 143029.686 | X106: 28.81147318 | Y106: 7867.790116 | AA106: 1831.453364 | AB106: 177650.9763 | AD106: -1831.453364 | AE106: -1831.453364 | AF106: 0 | AG106: 0 | AH106: 0 | AI106: 0 | AJ106: 0 | AK106: 0 | AL106: 0 | AM106: 0 | AO106: 0
A107: 98 | B107: 32.20939083 | C107: 1 | D107: -0.072 | E107: 1846.715475 | L107: 1831.453364 | M107: 3662.906727 | N107: 56.86085072 | O107: 109.6277202 | P107: 3531.042085 | Q107: 97 | R107: 32.20939083 | S107: -0.072 | T107: 274051.1939 | U107: 253416.7268 | V107: 15000 | W107: 158029.686 | X107: 465.7026915 | Y107: 8333.492807 | AA107: 1831.453364 | AB107: 179482.4296 | AD107: -1831.453364 | AE107: -1831.453364 | AF107: 0 | AG107: 0 | AH107: 0 | AI107: 0 | AJ107: 0 | AK107: 0 | AL107: 0 | AM107: 0 | AO107: -0.08333333333
A108: 99 | B108: 31.30752789 | C108: 2 | D108: -0.028 | E108: 3708.820245 | L108: 1831.453364 | M108: 5494.360091 | N108: 58.49881761 | O108: 168.1265378 | P108: 5263.62627 | Q108: 98 | R108: 31.30752789 | S108: -0.028 | T108: 278181.6694 | U108: 260901.0584 | V108: 15000 | W108: 173029.686 | X108: 479.1179954 | Y108: 8812.610803 | AA108: 1831.453364 | AB108: 181313.883 | AD108: -1831.453364 | AE108: -1831.453364 | AF108: 0 | AG108: 0 | AH108: 0 | AI108: 0 | AJ108: 0 | AK108: 0 | AL108: 0 | AM108: 0 | AO108: -0.1666666667
A109: 100 | B109: 37.06811302 | C109: 3 | D109: 0.184 | E109: 5586.442556 | L109: 1831.453364 | M109: 7325.813454 | N109: 49.40778514 | O109: 217.5343229 | P109: 8063.586867 | Q109: 99 | R109: 37.06811302 | S109: 0.184 | T109: 282346.5654 | U109: 326666.8532 | V109: 1000 | W109: 174029.686 | X109: 26.9773646 | Y109: 8839.588167 | AA109: 1831.453364 | AB109: 183145.3364 | AD109: -1831.453364 | AE109: -1831.453364 | AF109: 0 | AG109: 0 | AH109: 0 | AI109: 0 | AJ109: 0 | AK109: 0 | AL109: 0 | AM109: 0 | AO109: -0.25
A110: 101 | B110: 45.59377901 | C110: 4 | D110: 0.23 | E110: 7479.711719 | L110: 1831.453364 | M110: 9157.266818 | N110: 40.16893101 | O110: 257.7032539 | P110: 11749.66521 | Q110: 100 | R110: 45.59377901 | S110: 0.23 | T110: 286546.1689 | U110: 403030.2294 | V110: 1000 | W110: 175029.686 | X110: 21.93281675 | Y110: 8861.520984 | AA110: 1831.453364 | AB110: 184976.7897 | AD110: -1831.453364 | AE110: -1831.453364 | AF110: 0 | AG110: 0 | AH110: 0 | AI110: 0 | AJ110: 0 | AK110: 0 | AL110: 0 | AM110: 0 | AO110: -0.3333333333
A111: 102 | B111: 45.86734168 | C111: 5 | D111: 0.006 | E111: 9388.758124 | L111: 1831.453364 | M111: 10988.72018 | N111: 39.92935488 | O111: 297.6326088 | P111: 13651.61657 | Q111: 101 | R111: 45.86734168 | S111: 0.006 | T111: 290780.7692 | U111: 406454.4108 | V111: 1000 | W111: 176029.686 | X111: 21.80200472 | Y111: 8883.322989 | AA111: 1831.453364 | AB111: 186808.2431 | AD111: -1831.453364 | AE111: -1831.453364 | AF111: 0 | AG111: 0 | AH111: 0 | AI111: 0 | AJ111: 0 | AK111: 0 | AL111: 0 | AM111: 0 | AO111: -0.4166666667
A112: 103 | B112: 47.4268313 | C112: 6 | D112: 0.034 | E112: 11313.71325 | L112: 1831.453364 | M112: 12820.17354 | N112: 38.61639737 | O112: 336.2490062 | P112: 15947.22489 | Q112: 102 | R112: 47.4268313 | S112: 0.034 | T112: 295050.6577 | U112: 421307.8608 | V112: 1000 | W112: 177029.686 | X112: 21.08511095 | Y112: 8904.4081 | AA112: 1831.453364 | AB112: 188639.6964 | AD112: -1831.453364 | AE112: -1831.453364 | AF112: 0 | AG112: 0 | AH112: 0 | AI112: 0 | AJ112: 0 | AK112: 0 | AL112: 0 | AM112: 0 | AO112: -0.5
A113: 104 | B113: 46.668002 | C113: 7 | D113: -0.016 | E113: 13254.70967 | L113: 1831.453364 | M113: 14651.62691 | N113: 39.24430627 | O113: 375.4933125 | P113: 17523.52266 | Q113: 103 | R113: 46.668002 | S113: -0.016 | T113: 299356.1287 | U113: 415550.935 | V113: 1000 | W113: 178029.686 | X113: 21.42795828 | Y113: 8925.836058 | AA113: 1831.453364 | AB113: 190471.1498 | AD113: -1831.453364 | AE113: -1831.453364 | AF113: 0 | AG113: 0 | AH113: 0 | AI113: 0 | AJ113: 0 | AK113: 0 | AL113: 0 | AM113: 0 | AO113: -0.5833333333
A114: 105 | B114: 52.08149023 | C114: 8 | D114: 0.116 | E114: 15211.88106 | L114: 1831.453364 | M114: 16483.08027 | N114: 35.16514899 | O114: 410.6584614 | P114: 21387.70465 | Q114: 104 | R114: 52.08149023 | S114: 0.116 | T114: 303697.4785 | U114: 464870.8435 | V114: 1000 | W114: 179029.686 | X114: 19.20067946 | Y114: 8945.036737 | AA114: 1831.453364 | AB114: 192302.6032 | AD114: -1831.453364 | AE114: -1831.453364 | AF114: 0 | AG114: 0 | AH114: 0 | AI114: 0 | AJ114: 0 | AK114: 0 | AL114: 0 | AM114: 0 | AO114: -0.6666666667
A115: 106 | B115: 51.40443086 | C115: 9 | D115: -0.013 | E115: 17185.36221 | L115: 1831.453364 | M115: 18314.53364 | N115: 35.62831711 | O115: 446.2867786 | P115: 22941.11785 | Q115: 105 | R115: 51.40443086 | S115: -0.013 | T115: 308075.0063 | U115: 459814.5225 | V115: 1000 | W115: 180029.686 | X115: 19.45357595 | Y115: 8964.490313 | AA115: 1831.453364 | AB115: 194134.0565 | AD115: -1831.453364 | AE115: -1831.453364 | AF115: 0 | AG115: 0 | AH115: 0 | AI115: 0 | AJ115: 0 | AK115: 0 | AL115: 0 | AM115: 0 | AO115: -0.75
A116: 107 | B116: 55.56818976 | C116: 10 | D116: 0.081 | E116: 19175.28903 | L116: 1831.453364 | M116: 20145.987 | N116: 32.95866523 | O116: 479.2454438 | P116: 26630.80176 | Q116: 106 | R116: 55.56818976 | S116: 0.081 | T116: 312489.0135 | U116: 498140.4988 | V116: 1000 | W116: 181029.686 | X116: 17.99590745 | Y116: 8982.486221 | AA116: 1831.453364 | AB116: 195965.5099 | AD116: -1831.453364 | AE116: -1831.453364 | AF116: 0 | AG116: 0 | AH116: 0 | AI116: 0 | AJ116: 0 | AK116: 0 | AL116: 0 | AM116: 0 | AO116: -0.8333333333
A117: 108 | B117: 52.34523475 | C117: 11 | D117: -0.058 | E117: 21181.79859 | L117: 1831.453364 | M117: 21977.44036 | N117: 34.98796733 | O117: 514.2334111 | P117: 26917.66862 | Q117: 107 | R117: 52.34523475 | S117: -0.058 | T117: 316939.8041 | U117: 470190.3499 | V117: 1000 | W117: 182029.686 | X117: 19.10393572 | Y117: 9001.590156 | AA117: 1831.453364 | AB117: 197796.9633 | AD117: -1831.453364 | AE117: -1831.453364 | AF117: 0 | AG117: 0 | AH117: 0 | AI117: 0 | AJ117: 0 | AK117: 0 | AL117: 0 | AM117: 0 | AO117: -0.9166666667
A118: 109 | B118: 53.33979421 | C118: 12 | D118: 0.019 | E118: 23205.02905 | L118: 2016.430153 | M118: 23993.87052 | N118: 37.8034858 | O118: 552.0368969 | P118: 29445.53448 | Q118: 108 | R118: 53.33979421 | S118: 0.019 | T118: 321427.6846 | U118: 480142.9665 | V118: 1000 | W118: 183029.686 | X118: 18.74772887 | Y118: 9020.337885 | AA118: 1831.453364 | AB118: 199628.4166 | AD118: -1831.453364 | AE118: -1831.453364 | AF118: 0 | AG118: 0 | AH118: 0 | AI118: 0 | AJ118: 0 | AK118: 0 | AL118: 0 | AM118: 0 | AO118: 0
A119: 110 | B119: 52.16631874 | C119: 13 | D119: -0.022 | E119: 25245.11977 | L119: 2016.430153 | M119: 26010.30067 | N119: 38.65387096 | O119: 590.6907679 | P119: 30814.16287 | Q119: 109 | R119: 52.16631874 | S119: -0.022 | T119: 325952.9641 | U119: 470557.8213 | V119: 1000 | W119: 184029.686 | X119: 19.16945692 | Y119: 9039.507342 | AA119: 1831.453364 | AB119: 201459.87 | AD119: -1831.453364 | AE119: -1831.453364 | AF119: 0 | AG119: 0 | AH119: 0 | AI119: 0 | AJ119: 0 | AK119: 0 | AL119: 0 | AM119: 0 | AO119: -0.08333333333
A120: 111 | B120: 56.07879265 | C120: 14 | D120: 0.075 | E120: 27302.21124 | L120: 2016.430153 | M120: 28026.73082 | N120: 35.95708927 | O120: 626.6478572 | P120: 35141.65524 | Q120: 110 | R120: 56.07879265 | S120: 0.075 | T120: 330515.9543 | U120: 506924.6579 | V120: 1000 | W120: 185029.686 | X120: 17.83205295 | Y120: 9057.339395 | AA120: 1831.453364 | AB120: 203291.3234 | AD120: -1831.453364 | AE120: -1831.453364 | AF120: 0 | AG120: 0 | AH120: 0 | AI120: 0 | AJ120: 0 | AK120: 0 | AL120: 0 | AM120: 0 | AO120: -0.1666666667
A121: 112 | B121: 61.35019915 | C121: 15 | D121: 0.094 | E121: 29376.44514 | L121: 2016.430153 | M121: 30043.16098 | N121: 32.86754046 | O121: 659.5153976 | P121: 40461.40099 | Q121: 111 | R121: 61.35019915 | S121: 0.094 | T121: 335116.9694 | U121: 555669.5757 | V121: 1000 | W121: 186029.686 | X121: 16.29986559 | Y121: 9073.639261 | AA121: 1831.453364 | AB121: 205122.7767 | AD121: -1831.453364 | AE121: -1831.453364 | AF121: 0 | AG121: 0 | AH121: 0 | AI121: 0 | AJ121: 0 | AK121: 0 | AL121: 0 | AM121: 0 | AO121: -0.25
A122: 113 | B122: 54.35627645 | C122: 16 | D122: -0.114 | E122: 31467.96432 | L122: 2016.430153 | M122: 32059.59113 | N122: 37.0965468 | O122: 696.6119444 | P122: 37865.23143 | Q122: 112 | R122: 54.35627645 | S122: -0.114 | T122: 339756.3263 | U122: 493209.2441 | V122: 1000 | W122: 187029.686 | X122: 18.39713949 | Y122: 9092.0364 | AA122: 1831.453364 | AB122: 206954.2301 | AD122: -1831.453364 | AE122: -1831.453364 | AF122: 0 | AG122: 0 | AH122: 0 | AI122: 0 | AJ122: 0 | AK122: 0 | AL122: 0 | AM122: 0 | AO122: -0.3333333333
A123: 114 | B123: 62.29229281 | C123: 17 | D123: 0.146 | E123: 33576.91284 | L123: 2016.430153 | M123: 34076.02128 | N123: 32.37045969 | O123: 728.9824041 | P123: 45409.98537 | Q123: 113 | R123: 62.29229281 | S123: 0.146 | T123: 344434.3445 | U123: 566363.7937 | V123: 1000 | W123: 188029.686 | X123: 16.05335034 | Y123: 9108.089751 | AA123: 1831.453364 | AB123: 208785.6834 | AD123: -1831.453364 | AE123: -1831.453364 | AF123: 0 | AG123: 0 | AH123: 0 | AI123: 0 | AJ123: 0 | AK123: 0 | AL123: 0 | AM123: 0 | AO123: -0.4166666667
A124: 115 | B124: 56.3122327 | C124: 18 | D124: -0.096 | E124: 35703.43592 | L124: 2016.430153 | M124: 36092.45144 | N124: 35.80803063 | O124: 764.7904347 | P124: 43067.05693 | Q124: 114 | R124: 56.3122327 | S124: -0.096 | T124: 349151.3462 | U124: 512896.8695 | V124: 1000 | W124: 189029.686 | X124: 17.75813091 | Y124: 9125.847882 | AA124: 1831.453364 | AB124: 210617.1368 | AD124: -1831.453364 | AE124: -1831.453364 | AF124: 0 | AG124: 0 | AH124: 0 | AI124: 0 | AJ124: 0 | AK124: 0 | AL124: 0 | AM124: 0 | AO124: -0.5
A125: 116 | B125: 57.66372629 | C125: 19 | D125: 0.024 | E125: 37847.68002 | L125: 2016.430153 | M125: 38108.88159 | N125: 34.96877991 | O125: 799.7592146 | P125: 46117.09645 | Q125: 115 | R125: 57.66372629 | S125: 0.024 | T125: 353907.6562 | U125: 526230.3944 | V125: 1000 | W125: 190029.686 | X125: 17.34192471 | Y125: 9143.189806 | AA125: 1831.453364 | AB125: 212448.5902 | AD125: -1831.453364 | AE125: -1831.453364 | AF125: 0 | AG125: 0 | AH125: 0 | AI125: 0 | AJ125: 0 | AK125: 0 | AL125: 0 | AM125: 0 | AO125: -0.5833333333
A126: 117 | B126: 58.81700081 | C126: 20 | D126: 0.02 | E126: 40009.79283 | L126: 2016.430153 | M126: 40125.31174 | N126: 34.28311756 | O126: 834.0423322 | P126: 49055.86853 | Q126: 116 | R126: 58.81700081 | S126: 0.02 | T126: 358703.6021 | U126: 537775.0023 | V126: 1000 | W126: 191029.686 | X126: 17.00188697 | Y126: 9160.191693 | AA126: 1831.453364 | AB126: 214280.0435 | AD126: -1831.453364 | AE126: -1831.453364 | AF126: 0 | AG126: 0 | AH126: 0 | AI126: 0 | AJ126: 0 | AK126: 0 | AL126: 0 | AM126: 0 | AO126: -0.6666666667
A127: 118 | B127: 58.69936681 | C127: 21 | D127: -0.002 | E127: 42189.92325 | L127: 2016.430153 | M127: 42141.74189 | N127: 34.3518212 | O127: 868.3941534 | P127: 50974.18695 | Q127: 117 | R127: 58.69936681 | S127: -0.002 | T127: 363539.5143 | U127: 537697.4523 | V127: 1000 | W127: 192029.686 | X127: 17.03595889 | Y127: 9177.227652 | AA127: 1831.453364 | AB127: 216111.4969 | AD127: -1831.453364 | AE127: -1831.453364 | AF127: 0 | AG127: 0 | AH127: 0 | AI127: 0 | AJ127: 0 | AK127: 0 | AL127: 0 | AM127: 0 | AO127: -0.75
A128: 119 | B128: 54.23821493 | C128: 22 | D128: -0.076 | E128: 44388.22142 | L128: 2016.430153 | M128: 44158.17205 | N128: 37.17729567 | O128: 905.5714491 | P128: 49116.57889 | Q128: 118 | R128: 54.23821493 | S128: -0.076 | T128: 368415.7257 | U128: 497756.4459 | V128: 1000 | W128: 193029.686 | X128: 18.43718495 | Y128: 9195.664837 | AA128: 1831.453364 | AB128: 217942.9503 | AD128: -1831.453364 | AE128: -1831.453364 | AF128: 0 | AG128: 0 | AH128: 0 | AI128: 0 | AJ128: 0 | AK128: 0 | AL128: 0 | AM128: 0 | AO128: -0.8333333333
A129: 120 | B129: 61.23494466 | C129: 23 | D129: 0.129 | E129: 46604.83874 | L129: 2016.430153 | M129: 46174.6022 | N129: 32.92940272 | O129: 938.5008518 | P129: 57469.04772 | Q129: 119 | R129: 61.23494466 | S129: 0.129 | T129: 373332.5723 | U129: 563096.0274 | V129: 1000 | W129: 194029.686 | X129: 16.33054468 | Y129: 9211.995382 | AA129: 1831.453364 | AB129: 219774.4036 | AD129: -1831.453364 | AE129: -1831.453364 | AF129: 0 | AG129: 0 | AH129: 0 | AI129: 0 | AJ129: 0 | AK129: 0 | AL129: 0 | AM129: 0 | AO129: -0.9166666667
A130: 121 | B130: 53.76428141 | C130: 24 | D130: -0.122 | E130: 48839.92787 | L130: 2220.089599 | M130: 48394.6918 | N130: 41.29302095 | O130: 979.7938727 | P130: 52677.9135 | Q130: 120 | R130: 53.76428141 | S130: -0.122 | T130: 378290.3925 | U130: 495276.3121 | V130: 1000 | W130: 195029.686 | X130: 18.59970921 | Y130: 9230.595091 | AA130: 1831.453364 | AB130: 221605.857 | AD130: -1831.453364 | AE130: -1831.453364 | AF130: 0 | AG130: 0 | AH130: 0 | AI130: 0 | AJ130: 0 | AK130: 0 | AL130: 0 | AM130: 0 | AO130: 0
A131: 122 | B131: 53.2266386 | C131: 25 | D131: -0.01 | E131: 51093.64274 | L131: 2220.089599 | M131: 50614.7814 | N131: 41.71012217 | O131: 1021.503995 | P131: 54371.22396 | Q131: 121 | R131: 53.2266386 | S131: -0.01 | T131: 383289.5279 | U131: 491313.549 | V131: 1000 | W131: 196029.686 | X131: 18.78758506 | Y131: 9249.382676 | AA131: 1831.453364 | AB131: 223437.3104 | AD131: -1831.453364 | AE131: -1831.453364 | AF131: 0 | AG131: 0 | AH131: 0 | AI131: 0 | AJ131: 0 | AK131: 0 | AL131: 0 | AM131: 0 | AO131: -0.08333333333
A132: 123 | B132: 61.47676758 | C132: 26 | D132: 0.155 | E132: 53366.13857 | L132: 2220.089599 | M132: 52834.871 | N132: 36.11265989 | O132: 1057.616655 | P132: 65018.85328 | Q132: 122 | R132: 61.47676758 | S132: 0.155 | T132: 388330.3228 | U132: 568622.149 | V132: 1000 | W132: 197029.686 | X132: 16.26630741 | Y132: 9265.648983 | AA132: 1831.453364 | AB132: 225268.7637 | AD132: -1831.453364 | AE132: -1831.453364 | AF132: 0 | AG132: 0 | AH132: 0 | AI132: 0 | AJ132: 0 | AK132: 0 | AL132: 0 | AM132: 0 | AO132: -0.1666666667
A133: 124 | B133: 62.5833494 | C133: 27 | D133: 0.018 | E133: 55657.57187 | L133: 2220.089599 | M133: 55054.9606 | N133: 35.47412563 | O133: 1093.09078 | P133: 68409.28223 | Q133: 123 | R133: 62.5833494 | S133: 0.018 | T133: 393413.1243 | U133: 579875.3477 | V133: 1000 | W133: 198029.686 | X133: 15.97869097 | Y133: 9281.627674 | AA133: 1831.453364 | AB133: 227100.2171 | AD133: -1831.453364 | AE133: -1831.453364 | AF133: 0 | AG133: 0 | AH133: 0 | AI133: 0 | AJ133: 0 | AK133: 0 | AL133: 0 | AM133: 0 | AO133: -0.25
A134: 125 | B134: 63.02143284 | C134: 28 | D134: 0.007 | E134: 57968.10044 | L134: 2220.089599 | M134: 57275.0502 | N134: 35.2275329 | O134: 1128.318313 | P134: 71108.23681 | Q134: 124 | R134: 63.02143284 | S134: 0.007 | T134: 398538.2825 | U134: 584941.4752 | V134: 1000 | W134: 199029.686 | X134: 15.86761765 | Y134: 9297.495292 | AA134: 1831.453364 | AB134: 228931.6704 | AD134: -1831.453364 | AE134: -1831.453364 | AF134: 0 | AG134: 0 | AH134: 0 | AI134: 0 | AJ134: 0 | AK134: 0 | AL134: 0 | AM134: 0 | AO134: -0.3333333333
A135: 126 | B135: 66.92876168 | C135: 29 | D135: 0.062 | E135: 60297.88342 | L135: 2220.089599 | M135: 59495.13979 | N135: 33.17093493 | O135: 1161.489248 | P135: 77737.03709 | Q135: 125 | R135: 66.92876168 | S135: 0.062 | T135: 403706.1503 | U135: 622269.8466 | V135: 1000 | W135: 200029.686 | X135: 14.94125956 | Y135: 9312.436552 | AA135: 1831.453364 | AB135: 230763.1238 | AD135: -1831.453364 | AE135: -1831.453364 | AF135: 0 | AG135: 0 | AH135: 0 | AI135: 0 | AJ135: 0 | AK135: 0 | AL135: 0 | AM135: 0 | AO135: -0.4166666667
A136: 127 | B136: 86.47196009 | C136: 30 | D136: 0.292 | E136: 62647.08126 | L136: 2220.089599 | M136: 61715.22939 | N136: 25.67409824 | O136: 1187.163346 | P136: 102656.3415 | Q136: 126 | R136: 86.47196009 | S136: 0.292 | T136: 408917.0837 | U136: 805264.6418 | V136: 1000 | W136: 201029.686 | X136: 11.56444238 | Y136: 9324.000994 | AA136: 1831.453364 | AB136: 232594.5772 | AD136: -1831.453364 | AE136: -1831.453364 | AF136: 0 | AG136: 0 | AH136: 0 | AI136: 0 | AJ136: 0 | AK136: 0 | AL136: 0 | AM136: 0 | AO136: -0.5
A137: 128 | B137: 98.1456747 | C137: 31 | D137: 0.135 | E137: 65015.85574 | L137: 2220.089599 | M137: 63935.31899 | N137: 22.62035088 | O137: 1209.783697 | P137: 118735.0372 | Q137: 127 | R137: 98.1456747 | S137: 0.135 | T137: 414171.4415 | U137: 915110.3685 | V137: 1000 | W137: 202029.686 | X137: 10.18893602 | Y137: 9334.18993 | AA137: 1831.453364 | AB137: 234426.0305 | AD137: -1831.453364 | AE137: -1831.453364 | AF137: 0 | AG137: 0 | AH137: 0 | AI137: 0 | AJ137: 0 | AK137: 0 | AL137: 0 | AM137: 0 | AO137: -0.5833333333
A138: 129 | B138: 111.6897778 | C138: =IF(AND(A138>=startm,A138<=endm),A138-startm,"NA") -> 32 | D138: 0.138 | E138: =IF(C138="NA","NA",IF(C138=0,typical,(1+return/12)*typical*((1+return/12)^C138-1)/(return/12))) -> 67404.37002 | L138: =IF(C138="NA","NA",IF(C138=0,typical,IF(L137="NA",typical,IF(INT(C138/12)-(C138/12)=0,L137*(1+gsip1),L137)))) -> 2220.089599 | M138: 66155.40859 | N138: 19.87728548 | O138: 1229.660983 | P138: 137340.562 | Q138: 128 | R138: 111.6897778 | S138: 0.138 | T138: 419469.5857 | U138: 1042533.599 | V138: 1000 | W138: 203029.686 | X138: =V138/R138 -> 8.953370842 | Y138: 9343.143301 | AA138: =typical -> 1831.453364 | AB138: 236257.4839 | AD138: =IF(A138=endm,E138,IF(C138="NA","NA",-typical)) -> -1831.453364 | AE138: =IF(A138=endm,P138,IF(C138="NA","NA",-typical)) -> -1831.453364 | AF138: =IF(A138=endm,F138,IF(C138="NA","NA",-G138)) -> 0 | AG138: =IF(A138=endm,O138,0) -> 0 | AH138: =IF(A138=endm,J138,0) -> 0 | AI138: =IF(A138=endm,E138,0) -> 0 | AJ138: =IF(A138=endm,P138,0) -> 0 | AK138: =IF(A138=endm,F138,0) -> 0 | AL138: =IF(A138=endm,M138,0) -> 0 | AM138: =IF(A138=endm,H138,0) -> 0 | AO138: -0.6666666667
A139: 130 | B139: 101.8610774 | C139: 33 | D139: =IF(C139="NA","NA",IF(C139=0,0,(B139-B138)/B138)) -> -0.088 | E139: 69812.78857 | L139: 2220.089599 | M139: 68375.49819 | N139: =IF(C139="NA","NA",L139/B139) -> 21.79526917 | O139: 1251.456252 | P139: =IF(C139="NA","NA",O139*B139) -> 127474.6821 | Q139: 129 | R139: 101.8610774 | S139: -0.088 | T139: =(1+return/12)*typical*((1+return/12)^Q139-1)/(return/12) -> 424811.881 | U139: 951702.6426 | V139: =IF((U139-T139)>0,IF(typical-(U139-T139)<min,min,typical-(U139-T139)),IF((U139-T139)<0,IF(typical-(U139-T139)>max,max,typical-(U139-T139)),IF((T139-U139)=0,min,))) -> 1000 | W139: =W138+V139 -> 204029.686 | X139: 9.81729259 | Y139: 9352.960593 | AA139: 1831.453364 | AB139: 238088.9373 | AD139: -1831.453364 | AE139: -1831.453364 | AF139: 0 | AG139: 0 | AH139: 0 | AI139: 0 | AJ139: 0 | AK139: 0 | AL139: 0 | AM139: 0 | AO139: -0.75
A140: =A139+1 -> 131 | B140: 94.11963548 | C140: 34 | D140: -0.076 | E140: 72241.27729 | L140: 2220.089599 | M140: 70595.58779 | N140: 23.58795364 | O140: 1275.044206 | P140: 120006.6959 | Q140: =Q139+1 -> 130 | R140: 94.11963548 | S140: -0.076 | T140: 430198.6955 | U140: 880297.2417 | V140: 1000 | W140: 205029.686 | X140: 10.62477553 | Y140: =Y139+X140 -> 9363.585369 | AA140: 1831.453364 | AB140: =AB139+AA140 -> 239920.3906 | AD140: -1831.453364 | AE140: -1831.453364 | AF140: 0 | AG140: 0 | AH140: 0 | AI140: 0 | AJ140: 0 | AK140: 0 | AL140: 0 | AM140: 0 | AO140: -0.8333333333
A141: 132 | B141: 82.44880068 | C141: 35 | D141: -0.124 | E141: 74690.00341 | L141: 2220.089599 | M141: 72815.67739 | N141: 26.92688772 | O141: 1301.971093 | P141: 107345.9552 | Q141: 131 | R141: 82.44880068 | S141: -0.124 | T141: 435630.4001 | U141: 772016.3838 | V141: 1000 | W141: 206029.686 | X141: 12.12873919 | Y141: 9375.714108 | AA141: 1831.453364 | AB141: 241751.844 | AD141: -1831.453364 | AE141: -1831.453364 | AF141: 0 | AG141: 0 | AH141: 0 | AI141: 0 | AJ141: 0 | AK141: 0 | AL141: 0 | AM141: 0 | AO141: -0.9166666667
A142: 133 | B142: 77.25452624 | C142: 36 | D142: -0.063 | E142: 77159.13558 | L142: 2444.318648 | M142: 75259.99603 | N142: 31.63981151 | O142: 1333.610905 | P142: 103027.4786 | Q142: 132 | R142: 77.25452624 | S142: =(R142-R141)/R141 -> -0.063 | T142: 441107.3689 | U142: =(U141+V141)*(1+S142) -> 724316.3516 | V142: 1000 | W142: 207029.686 | X142: 12.94422539 | Y142: 9388.658334 | AA142: 1831.453364 | AB142: 243583.2973 | AD142: -1831.453364 | AE142: -1831.453364 | AF142: 0 | AG142: 0 | AH142: 0 | AI142: 0 | AJ142: 0 | AK142: 0 | AL142: 0 | AM142: 0 | AO142: 0
A143: 134 | B143: 95.95012159 | C143: 37 | D143: 0.242 | E143: 79648.84385 | L143: 2444.318648 | M143: 77704.31468 | N143: 25.47488849 | O143: 1359.085793 | P143: 130404.4471 | Q143: 133 | R143: 95.95012159 | S143: 0.242 | T143: 446629.9791 | U143: 900842.9087 | V143: 1000 | W143: 208029.686 | X143: 10.42208163 | Y143: 9399.080415 | AA143: 1831.453364 | AB143: 245414.7507 | AD143: -1831.453364 | AE143: -1831.453364 | AF143: 0 | AG143: 0 | AH143: 0 | AI143: 0 | AJ143: 0 | AK143: 0 | AL143: 0 | AM143: 0 | AO143: -0.08333333333
A144: 135 | B144: 91.82426636 | C144: 38 | D144: -0.043 | E144: 82159.29969 | L144: 2444.318648 | M144: 80148.63333 | N144: 26.6195282 | O144: 1385.705322 | P144: 127241.3745 | Q144: 134 | R144: 91.82426636 | S144: -0.043 | T144: 452198.6111 | U144: 863063.6636 | V144: 1000 | W144: 209029.686 | X144: 10.89036743 | Y144: 9409.970783 | AA144: 1831.453364 | AB144: 247246.2041 | AD144: -1831.453364 | AE144: -1831.453364 | AF144: 0 | AG144: 0 | AH144: 0 | AI144: 0 | AJ144: 0 | AK144: 0 | AL144: 0 | AM144: 0 | AO144: -0.1666666667
A145: 136 | B145: 97.05824954 | C145: 39 | D145: 0.057 | E145: 84690.67599 | L145: 2444.318648 | M145: 82592.95198 | N145: 25.18403804 | O145: 1410.88936 | P145: 136938.4515 | Q145: 135 | R145: 97.05824954 | S145: 0.057 | T145: 457813.6483 | U145: 913315.2924 | V145: 1000 | W145: 210029.686 | X145: 10.30309123 | Y145: 9420.273874 | AA145: 1831.453364 | AB145: 249077.6574 | AD145: -1831.453364 | AE145: -1831.453364 | AF145: 0 | AG145: 0 | AH145: 0 | AI145: 0 | AJ145: 0 | AK145: 0 | AL145: 0 | AM145: 0 | AO145: -0.25
A146: 137 | B146: 102.687628 | C146: 40 | D146: 0.058 | E146: 87243.1471 | L146: 2444.318648 | M146: 85037.27063 | N146: 23.8034386 | O146: 1434.692798 | P146: 147325.2004 | Q146: 136 | R146: 102.687628 | S146: 0.058 | T146: 463475.4776 | U146: 967345.5794 | V146: 1000 | W146: 211029.686 | X146: 9.738271487 | Y146: 9430.012145 | AA146: 1831.453364 | AB146: 250909.1108 | AD146: -1831.453364 | AE146: -1831.453364 | AF146: 0 | AG146: 0 | AH146: 0 | AI146: 0 | AJ146: 0 | AK146: 0 | AL146: 0 | AM146: 0 | AO146: -0.3333333333
A147: 138 | B147: 99.70968681 | C147: 41 | D147: -0.029 | E147: 89816.8888 | L147: 2444.318648 | M147: 87481.58928 | N147: 24.51435489 | O147: 1459.207153 | P147: 145497.0882 | Q147: 137 | R147: 99.70968681 | S147: -0.029 | T147: 469184.4887 | U147: 940263.5576 | V147: 1000 | W147: 212029.686 | X147: 10.02911585 | Y147: 9440.041261 | AA147: 1831.453364 | AB147: 252740.5642 | AD147: -1831.453364 | AE147: -1831.453364 | AF147: 0 | AG147: 0 | AH147: 0 | AI147: 0 | AJ147: 0 | AK147: 0 | AL147: 0 | AM147: 0 | AO147: -0.4166666667
A148: 139 | B148: 128.2266572 | C148: 42 | D148: 0.286 | E148: 92412.07835 | L148: 2444.318648 | M148: 89925.90792 | N148: 19.06248436 | O148: 1478.269637 | P148: 189553.5741 | Q148: 138 | R148: 128.2266572 | S148: 0.286 | T148: 474941.0749 | U148: 1210464.935 | V148: 1000 | W148: 213029.686 | X148: 7.798690394 | Y148: 9447.839952 | AA148: 1831.453364 | AB148: 254572.0175 | AD148: -1831.453364 | AE148: -1831.453364 | AF148: 0 | AG148: 0 | AH148: 0 | AI148: 0 | AJ148: 0 | AK148: 0 | AL148: 0 | AM148: 0 | AO148: -0.5
A149: 140 | B149: 141.049323 | C149: 43 | D149: 0.1 | E149: 95028.89448 | L149: 2444.318648 | M149: 92370.22657 | N149: 17.32953124 | O149: 1495.599169 | P149: 210953.2502 | Q149: 139 | R149: 141.049323 | S149: 0.1 | T149: 480745.6327 | U149: 1332611.429 | V149: 1000 | W149: 214029.686 | X149: 7.08971854 | Y149: 9454.92967 | AA149: 1831.453364 | AB149: 256403.4709 | AD149: -1831.453364 | AE149: -1831.453364 | AF149: 0 | AG149: 0 | AH149: 0 | AI149: 0 | AJ149: 0 | AK149: 0 | AL149: 0 | AM149: 0 | AO149: -0.5833333333
A150: 141 | B150: 148.1017891 | C150: 44 | D150: 0.05 | E150: 97667.51741 | L150: 2444.318648 | M150: 94814.54522 | N150: 16.50431546 | O150: 1512.103484 | P150: 223945.2313 | Q150: 140 | R150: 148.1017891 | S150: 0.05 | T150: 486598.5617 | U150: 1400292 | V150: 1000 | W150: 215029.686 | X150: 6.752112895 | Y150: 9461.681783 | AA150: 1831.453364 | AB150: 258234.9243 | AD150: -1831.453364 | AE150: -1831.453364 | AF150: 0 | AG150: 0 | AH150: 0 | AI150: 0 | AJ150: 0 | AK150: 0 | AL150: 0 | AM150: 0 | AO150: -0.6666666667
A151: 142 | B151: 148.3979927 | C151: 45 | D151: 0.002 | E151: 100328.1289 | L151: 2444.318648 | M151: =IF(C151="NA","NA",IF(M150="NA",L151,M150+L151)) -> 97258.86387 | N151: 16.47137272 | O151: =IF(C151="NA","NA",IF(O150="NA",N151,O150+N151)) -> 1528.574857 | P151: 226837.4404 | Q151: 141 | R151: 148.3979927 | S151: 0.002 | T151: 492500.2652 | U151: 1404094.584 | V151: 1000 | W151: 216029.686 | X151: 6.738635624 | Y151: 9468.420419 | AA151: 1831.453364 | AB151: 260066.3776 | AD151: -1831.453364 | AE151: -1831.453364 | AF151: 0 | AG151: 0 | AH151: 0 | AI151: 0 | AJ151: 0 | AK151: 0 | AL151: 0 | AM151: 0 | AO151: -0.75
A152: 143 | B152: 149.4367786 | C152: 46 | D152: 0.007 | E152: 103010.9121 | L152: 2444.318648 | M152: 99703.18252 | N152: 16.3568746 | O152: 1544.931731 | P152: 230869.6212 | Q152: 142 | R152: 149.4367786 | S152: 0.007 | T152: 498451.1496 | U152: 1414930.246 | V152: 1000 | W152: 217029.686 | X152: 6.691793072 | Y152: 9475.112212 | AA152: 1831.453364 | AB152: 261897.831 | AD152: -1831.453364 | AE152: -1831.453364 | AF152: 0 | AG152: 0 | AH152: 0 | AI152: 0 | AJ152: 0 | AK152: 0 | AL152: 0 | AM152: 0 | AO152: -0.8333333333
A153: 144 | B153: 149.885089 | C153: 47 | D153: 0.003 | E153: 105716.0518 | L153: 2444.318648 | M153: 102147.5012 | N153: 16.30795074 | O153: 1561.239682 | P153: 234006.5487 | Q153: 143 | R153: 149.885089 | S153: 0.003 | T153: 504451.6246 | U153: 1420178.037 | V153: 1000 | W153: 218029.686 | X153: 6.671777739 | Y153: 9481.783989 | AA153: 1831.453364 | AB153: 263729.2843 | AD153: -1831.453364 | AE153: -1831.453364 | AF153: 0 | AG153: 0 | AH153: 0 | AI153: 0 | AJ153: 0 | AK153: 0 | AL153: 0 | AM153: 0 | AO153: -0.9166666667
A154: 145 | B154: 180.7614173 | C154: 48 | D154: 0.206 | E154: 108443.7344 | L154: 2691.194832 | M154: 104838.696 | N154: 14.88810429 | O154: 1576.127787 | P154: 284903.0925 | Q154: 144 | R154: 180.7614173 | S154: 0.206 | T154: 510502.1036 | U154: 1713940.712 | V154: 1000 | W154: 219029.686 | X154: 5.532154013 | Y154: 9487.316143 | AA154: 1831.453364 | AB154: 265560.7377 | AD154: -1831.453364 | AE154: -1831.453364 | AF154: 0 | AG154: 0 | AH154: 0 | AI154: 0 | AJ154: 0 | AK154: 0 | AL154: 0 | AM154: 0 | AO154: 0
A155: 146 | B155: 236.9782181 | C155: 49 | D155: 0.311 | E155: 111194.1477 | L155: 2691.194832 | M155: 107529.8908 | N155: 11.35629618 | O155: 1587.484083 | P155: 376199.1491 | Q155: 145 | R155: 236.9782181 | S155: 0.311 | T155: 516603.0033 | U155: 2248287.274 | V155: 1000 | W155: 220029.686 | X155: 4.219797111 | Y155: 9491.535941 | AA155: 1831.453364 | AB155: 267392.1911 | AD155: -1831.453364 | AE155: -1831.453364 | AF155: 0 | AG155: 0 | AH155: 0 | AI155: 0 | AJ155: 0 | AK155: 0 | AL155: 0 | AM155: 0 | AO155: -0.08333333333
A156: 147 | B156: 336.5090697 | C156: 50 | D156: 0.42 | E156: 113967.481 | L156: 2691.194832 | M156: 110221.0857 | N156: 7.997391673 | O156: 1595.481474 | P156: 536893.9866 | Q156: 146 | R156: 336.5090697 | S156: 0.42 | T156: 522754.7438 | U156: 3193987.929 | V156: 1000 | W156: 221029.686 | X156: 2.971688106 | Y156: 9494.507629 | AA156: 1831.453364 | AB156: 269223.6444 | AD156: -1831.453364 | AE156: -1831.453364 | AF156: 0 | AG156: 0 | AH156: 0 | AI156: 0 | AJ156: 0 | AK156: 0 | AL156: 0 | AM156: 0 | AO156: -0.1666666667
A157: 148 | B157: 305.2137262 | C157: 51 | D157: -0.093 | E157: 116763.9255 | L157: 2691.194832 | M157: 112912.2805 | N157: 8.817410886 | O157: 1604.298885 | P157: 489654.0407 | Q157: 147 | R157: 305.2137262 | S157: -0.093 | T157: 528957.7488 | U157: 2897854.052 | V157: 1000 | W157: 222029.686 | X157: 3.27639262 | Y157: 9497.784021 | AA157: 1831.453364 | AB157: 271055.0978 | AD157: -1831.453364 | AE157: -1831.453364 | AF157: 0 | AG157: 0 | AH157: 0 | AI157: 0 | AJ157: 0 | AK157: 0 | AL157: 0 | AM157: 0 | AO157: -0.25
A158: 149 | B158: 235.9302103 | C158: 52 | D158: -0.227 | E158: 119583.6737 | L158: 2691.194832 | M158: 115603.4753 | N158: 11.40674112 | O158: 1615.705626 | P158: 381193.7683 | Q158: 148 | R158: 235.9302103 | S158: -0.227 | T158: 535212.4455 | U158: 2240814.182 | V158: 1000 | W158: 223029.686 | X158: 4.238541552 | Y158: 9502.022563 | AA158: 1831.453364 | AB158: 272886.5512 | AD158: -1831.453364 | AE158: -1831.453364 | AF158: 0 | AG158: 0 | AH158: 0 | AI158: 0 | AJ158: 0 | AK158: 0 | AL158: 0 | AM158: 0 | AO158: -0.3333333333
A159: 150 | B159: 241.8284656 | C159: 53 | D159: 0.025 | E159: 122426.9198 | L159: 2691.194832 | M159: 118294.6702 | N159: 11.12852792 | O159: 1626.834154 | P159: 393414.8073 | Q159: 149 | R159: 241.8284656 | S159: 0.025 | T159: 541519.2647 | U159: 2297859.536 | V159: 1000 | W159: 224029.686 | X159: 4.13516249 | Y159: 9506.157725 | AA159: 1831.453364 | AB159: 274718.0045 | AD159: -1831.453364 | AE159: -1831.453364 | AF159: 0 | AG159: 0 | AH159: 0 | AI159: 0 | AJ159: 0 | AK159: 0 | AL159: 0 | AM159: 0 | AO159: -0.4166666667
A160: 151 | B160: 214.0181921 | C160: 54 | D160: -0.115 | E160: 125293.8596 | L160: 2691.194832 | M160: 120985.865 | N160: 12.57460782 | O160: 1639.408762 | P160: 350863.2993 | Q160: 150 | R160: 214.0181921 | S160: -0.115 | T160: 547878.6407 | U160: 2034490.69 | V160: 1000 | W160: 225029.686 | X160: 4.672499989 | Y160: 9510.830225 | AA160: 1831.453364 | AB160: 276549.4579 | AD160: -1831.453364 | AE160: -1831.453364 | AF160: 0 | AG160: 0 | AH160: 0 | AI160: 0 | AJ160: 0 | AK160: 0 | AL160: 0 | AM160: 0 | AO160: -0.5
A161: 152 | B161: 237.9882296 | C161: 55 | D161: 0.112 | E161: 128184.6906 | L161: 2691.194832 | M161: 123677.0598 | N161: 11.30810056 | O161: 1650.716863 | P161: 392851.1837 | Q161: 151 | R161: 237.9882296 | S161: 0.112 | T161: 554291.0116 | U161: 2263465.647 | V161: 1000 | W161: 226029.686 | X161: 4.201888479 | Y161: 9515.032114 | AA161: 1831.453364 | AB161: 278380.9113 | AD161: -1831.453364 | AE161: -1831.453364 | AF161: 0 | AG161: 0 | AH161: 0 | AI161: 0 | AJ161: 0 | AK161: 0 | AL161: 0 | AM161: 0 | AO161: -0.5833333333
A162: 153 | B162: 258.6932055 | C162: 56 | D162: 0.087 | E162: 131099.6118 | L162: 2691.194832 | M162: 126368.2546 | N162: 10.40303639 | O162: 1661.119899 | P162: 429720.4315 | Q162: 152 | R162: 258.6932055 | S162: 0.087 | T162: 560756.8188 | U162: 2461474.158 | V162: 1000 | W162: 227029.686 | X162: 3.865582778 | Y162: 9518.897697 | AA162: 1831.453364 | AB162: 280212.3646 | AD162: -1831.453364 | AE162: -1831.453364 | AF162: 0 | AG162: 0 | AH162: 0 | AI162: 0 | AJ162: 0 | AK162: 0 | AL162: 0 | AM162: 0 | AO162: -0.6666666667
A163: 154 | B163: 222.4761568 | C163: 57 | D163: -0.14 | E163: 134038.824 | L163: 2691.194832 | M163: 129059.4495 | N163: 12.09655394 | O163: 1673.216453 | P163: 372250.7659 | Q163: 153 | R163: 222.4761568 | S163: -0.14 | T163: 567276.5078 | U163: 2117727.776 | V163: 1000 | W163: 228029.686 | X163: 4.494863695 | Y163: 9523.39256 | AA163: 1831.453364 | AB163: 282043.818 | AD163: -1831.453364 | AE163: -1831.453364 | AF163: 0 | AG163: 0 | AH163: 0 | AI163: 0 | AJ163: 0 | AK163: 0 | AL163: 0 | AM163: 0 | AO163: -0.75
A164: 155 | B164: 197.7813034 | C164: 58 | D164: -0.111 | E164: 137002.5297 | L164: 2691.194832 | M164: 131750.6443 | N164: 13.60692232 | O164: 1686.823375 | P164: 333622.1257 | Q164: 154 | R164: 197.7813034 | S164: -0.111 | T164: 573850.5275 | U164: 1883548.993 | V164: 1000 | W164: 229029.686 | X164: 5.056089646 | Y164: 9528.44865 | AA164: 1831.453364 | AB164: 283875.2713 | AD164: -1831.453364 | AE164: -1831.453364 | AF164: 0 | AG164: 0 | AH164: 0 | AI164: 0 | AJ164: 0 | AK164: 0 | AL164: 0 | AM164: 0 | AO164: =IF(C164="NA","NA",INT(C164/12)-(C164/12)) -> -0.8333333333
A165: 156 | B165: 205.4947742 | C165: 59 | D165: 0.039 | E165: 139990.9329 | L165: 2691.194832 | M165: 134441.8391 | N165: 13.09617163 | O165: 1699.919547 | P165: 349324.5834 | Q165: 155 | R165: 205.4947742 | S165: 0.039 | T165: 580479.3307 | U165: 1958046.404 | V165: 1000 | W165: 230029.686 | X165: 4.866303797 | Y165: 9533.314954 | AA165: 1831.453364 | AB165: 285706.7247 | AD165: -1831.453364 | AE165: -1831.453364 | AF165: 0 | AG165: 0 | AH165: 0 | AI165: 0 | AJ165: 0 | AK165: 0 | AL165: 0 | AM165: 0 | AO165: -0.9166666667
A166: 157 | B166: 210.6321435 | C166: 60 | D166: 0.025 | E166: 143004.2395 | L166: 2963.00551 | M166: 137404.8447 | N166: 14.06720484 | O166: 1713.986752 | P166: 361020.7035 | Q166: 156 | R166: 210.6321435 | S166: 0.025 | T166: 587163.3739 | U166: 2008022.564 | V166: 1000 | W166: 231029.686 | X166: 4.747613461 | Y166: 9538.062567 | AA166: 1831.453364 | AB166: 287538.1781 | AD166: -1831.453364 | AE166: -1831.453364 | AF166: 0 | AG166: 0 | AH166: 0 | AI166: 0 | AJ166: 0 | AK166: 0 | AL166: 0 | AM166: 0 | AO166: 0
A167: 158 | B167: 208.31519 | C167: 61 | D167: -0.011 | E167: 146042.657 | L167: 2963.00551 | M167: 140367.8502 | N167: 14.22366516 | O167: 1728.210417 | P167: 360012.4813 | Q167: 157 | R167: 208.31519 | S167: -0.011 | T167: 593903.1175 | U167: 1986923.316 | V167: 1000 | W167: 232029.686 | X167: 4.80041806 | Y167: 9542.862985 | AA167: 1831.453364 | AB167: 289369.6314 | AD167: -1831.453364 | AE167: -1831.453364 | AF167: 0 | AG167: 0 | AH167: 0 | AI167: 0 | AJ167: 0 | AK167: 0 | AL167: 0 | AM167: 0 | AO167: -0.08333333333
A168: 159 | B168: 179.1510634 | C168: 62 | D168: -0.14 | E168: 149106.3946 | L168: 2963.00551 | M168: 143330.8557 | N168: 16.53914553 | O168: 1744.749562 | P168: 312573.7394 | Q168: 158 | R168: 179.1510634 | S168: -0.14 | T168: 600699.0256 | U168: 1709614.051 | V168: 1000 | W168: 233029.686 | X168: 5.581881465 | Y168: 9548.444867 | AA168: 1831.453364 | AB168: 291201.0848 | AD168: -1831.453364 | AE168: -1831.453364 | AF168: 0 | AG168: 0 | AH168: 0 | AI168: 0 | AJ168: 0 | AK168: 0 | AL168: 0 | AM168: 0 | AO168: -0.1666666667
A169: 160 | B169: 166.78964 | C169: 63 | D169: -0.069 | E169: 152195.6634 | L169: 2963.00551 | M169: 146293.8612 | N169: 17.76492539 | O169: 1762.514488 | P169: 293969.1569 | Q169: 159 | R169: 166.78964 | S169: -0.069 | T169: 607551.5663 | U169: 1592581.682 | V169: 1000 | W169: 234029.686 | X169: 5.995576224 | Y169: 9554.440443 | AA169: 1831.453364 | AB169: 293032.5382 | AD169: -1831.453364 | AE169: -1831.453364 | AF169: 0 | AG169: 0 | AH169: 0 | AI169: 0 | AJ169: 0 | AK169: 0 | AL169: 0 | AM169: 0 | AO169: -0.25
A170: 161 | B170: 172.2936981 | C170: 64 | D170: 0.033 | E170: 155310.676 | L170: 2963.00551 | M170: 149256.8667 | N170: 17.19741083 | O170: 1779.711899 | P170: 306633.1446 | Q170: 160 | R170: 172.2936981 | S170: 0.033 | T170: 614461.2115 | U170: 1646169.877 | V170: 1000 | W170: 235029.686 | X170: 5.804042811 | Y170: 9560.244486 | AA170: 1831.453364 | AB170: 294863.9915 | AD170: -1831.453364 | AE170: -1831.453364 | AF170: 0 | AG170: 0 | AH170: 0 | AI170: 0 | AJ170: 0 | AK170: 0 | AL170: 0 | AM170: 0 | AO170: -0.3333333333
A171: 162 | B171: 175.0503973 | C171: 65 | D171: 0.016 | E171: 158451.6471 | L171: 2963.00551 | M171: 152219.8722 | N171: 16.92658546 | O171: 1796.638484 | P171: 314502.2804 | Q171: 161 | R171: 175.0503973 | S171: 0.016 | T171: 621428.4371 | U171: 1673524.595 | V171: 1000 | W171: 236029.686 | X171: 5.712640562 | Y171: 9565.957126 | AA171: 1831.453364 | AB171: 296695.4449 | AD171: -1831.453364 | AE171: -1831.453364 | AF171: 0 | AG171: 0 | AH171: 0 | AI171: 0 | AJ171: 0 | AK171: 0 | AL171: 0 | AM171: 0 | AO171: -0.4166666667
A172: 163 | B172: 182.9276652 | C172: 66 | D172: 0.045 | E172: 161618.793 | L172: 2963.00551 | M172: 155182.8777 | N172: 16.19768944 | O172: 1812.836174 | P172: 331617.8886 | Q172: 162 | R172: 182.9276652 | S172: 0.045 | T172: 628453.7228 | U172: 1749878.202 | V172: 1000 | W172: 237029.686 | X172: 5.466641686 | Y172: 9571.423768 | AA172: 1831.453364 | AB172: 298526.8983 | AD172: -1831.453364 | AE172: -1831.453364 | AF172: 0 | AG172: 0 | AH172: 0 | AI172: 0 | AJ172: 0 | AK172: 0 | AL172: 0 | AM172: 0 | AO172: -0.5
A173: 164 | B173: 206.8911893 | C173: 67 | D173: 0.131 | E173: 164812.3318 | L173: 2963.00551 | M173: 158145.8832 | N173: 14.32156449 | O173: 1827.157738 | P173: 378022.8375 | Q173: 163 | R173: 206.8911893 | S173: 0.131 | T173: 635537.5527 | U173: 1980243.247 | V173: 1000 | W173: 238029.686 | X173: 4.833458609 | Y173: 9576.257227 | AA173: 1831.453364 | AB173: 300358.3516 | AD173: -1831.453364 | AE173: -1831.453364 | AF173: 0 | AG173: 0 | AH173: 0 | AI173: 0 | AJ173: 0 | AK173: 0 | AL173: 0 | AM173: 0 | AO173: -0.5833333333
A174: 165 | B174: 212.8910338 | C174: 68 | D174: 0.029 | E174: 168032.4833 | L174: 2963.00551 | M174: 161108.8887 | N174: 13.91794411 | O174: 1841.075682 | P174: 391948.5053 | Q174: 164 | R174: 212.8910338 | S174: 0.029 | T174: 642680.4144 | U174: 2038699.301 | V174: 1000 | W174: 239029.686 | X174: 4.697238687 | Y174: 9580.954465 | AA174: 1831.453364 | AB174: 302189.805 | AD174: -1831.453364 | AE174: -1831.453364 | AF174: 0 | AG174: 0 | AH174: 0 | AI174: 0 | AJ174: 0 | AK174: 0 | AL174: 0 | AM174: 0 | AO174: -0.6666666667
A175: 166 | B175: 210.1234504 | C175: 69 | D175: -0.013 | E175: 171279.4695 | L175: 2963.00551 | M175: 164071.8942 | N175: 14.1012605 | O175: 1855.176943 | P175: 389816.1802 | Q175: 165 | R175: 210.1234504 | S175: -0.013 | T175: 649882.8 | U175: 2013183.21 | V175: 1000 | W175: 240029.686 | X175: 4.759107079 | Y175: 9585.713572 | AA175: 1831.453364 | AB175: 304021.2583 | AD175: -1831.453364 | AE175: -1831.453364 | AF175: 0 | AG175: 0 | AH175: 0 | AI175: 0 | AJ175: 0 | AK175: 0 | AL175: 0 | AM175: 0 | AO175: -0.75
A176: 167 | B176: 254.0392515 | C176: 70 | D176: 0.209 | E176: 174553.5139 | L176: 2963.00551 | M176: 167034.8998 | N176: 11.66357361 | O176: 1866.840516 | P176: 474250.7674 | Q176: 166 | R176: 254.0392515 | S176: 0.209 | T176: 657145.2055 | U176: 2435147.501 | V176: 1000 | W176: 241029.686 | X176: 3.936399569 | Y176: 9589.649972 | AA176: 1831.453364 | AB176: 305852.7117 | AD176: -1831.453364 | AE176: -1831.453364 | AF176: 0 | AG176: 0 | AH176: 0 | AI176: 0 | AJ176: 0 | AK176: 0 | AL176: 0 | AM176: 0 | AO176: -0.8333333333
A177: 168 | B177: 262.9306253 | C177: 71 | D177: 0.035 | E177: 177854.842 | L177: 2963.00551 | M177: 169997.9053 | N177: 11.26915325 | O177: 1878.10967 | P177: 493812.5498 | Q177: 167 | R177: 262.9306253 | S177: 0.035 | T177: 664468.131 | U177: 2521412.663 | V177: 1000 | W177: 242029.686 | X177: 3.803284608 | Y177: 9593.453257 | AA177: 1831.453364 | AB177: 307684.1651 | AD177: -1831.453364 | AE177: -1831.453364 | AF177: 0 | AG177: 0 | AH177: 0 | AI177: 0 | AJ177: 0 | AK177: 0 | AL177: 0 | AM177: 0 | AO177: -0.9166666667
A178: 169 | B178: 313.9391666 | C178: 72 | D178: 0.194 | E178: 181183.6811 | L178: 3262.269066 | M178: 173260.1743 | N178: 10.39140513 | O178: 1888.501075 | P178: 592874.4535 | Q178: 168 | R178: 313.9391666 | S178: 0.194 | T178: 671852.0809 | U178: 3011760.72 | V178: 1000 | W178: 243029.686 | X178: 3.185330492 | Y178: 9596.638587 | AA178: 1831.453364 | AB178: 309515.6184 | AD178: -1831.453364 | AE178: -1831.453364 | AF178: 0 | AG178: 0 | AH178: 0 | AI178: 0 | AJ178: 0 | AK178: 0 | AL178: 0 | AM178: 0 | AO178: 0
A179: 170 | B179: 339.9961174 | C179: 73 | D179: 0.083 | E179: 184540.2606 | L179: 3262.269066 | M179: 176522.4434 | N179: 9.595018587 | O179: 1898.096093 | P179: 645345.3022 | Q179: 169 | R179: 339.9961174 | S179: 0.083 | T179: 679297.5637 | U179: 3262819.86 | V179: 1000 | W179: 244029.686 | X179: 2.941210057 | Y179: 9599.579797 | AA179: 1831.453364 | AB179: 311347.0718 | AD179: -1831.453364 | AE179: -1831.453364 | AF179: 0 | AG179: 0 | AH179: 0 | AI179: 0 | AJ179: 0 | AK179: 0 | AL179: 0 | AM179: 0 | AO179: -0.08333333333
A180: 171 | B180: 296.4766144 | C180: 74 | D180: -0.128 | E180: 187924.8116 | L180: 3262.269066 | M180: 179784.7125 | N180: 11.00346168 | O180: 1909.099555 | P180: 566003.3726 | Q180: 170 | R180: 296.4766144 | S180: -0.128 | T180: 686805.0922 | U180: 2846050.918 | V180: 1000 | W180: 245029.686 | X180: 3.372947313 | Y180: 9602.952744 | AA180: 1831.453364 | AB180: 313178.5252 | AD180: -1831.453364 | AE180: -1831.453364 | AF180: 0 | AG180: 0 | AH180: 0 | AI180: 0 | AJ180: 0 | AK180: 0 | AL180: 0 | AM180: 0 | AO180: -0.1666666667
A181: 172 | B181: 289.9541289 | C181: 75 | D181: -0.022 | E181: 191337.5672 | L181: 3262.269066 | M181: 183046.9815 | N181: 11.25098332 | O181: 1920.350538 | P181: 556813.5674 | Q181: 171 | R181: 289.9541289 | S181: -0.022 | T181: 694375.1835 | U181: 2784415.798 | V181: 1000 | W181: 246029.686 | X181: 3.448821384 | Y181: 9606.401566 | AA181: 1831.453364 | AB181: 315009.9785 | AD181: -1831.453364 | AE181: -1831.453364 | AF181: 0 | AG181: 0 | AH181: 0 | AI181: 0 | AJ181: 0 | AK181: 0 | AL181: 0 | AM181: 0 | AO181: -0.25
A182: 173 | B182: 299.232661 | C182: 76 | D182: 0.032 | E182: 194778.7624 | L182: 3262.269066 | M182: 186309.2506 | N182: 10.90211562 | O182: 1931.252654 | P182: 577893.8707 | Q182: 172 | R182: 299.232661 | S182: 0.032 | T182: 702008.3588 | U182: 2874549.103 | V182: 1000 | W182: 247029.686 | X182: 3.341881186 | Y182: 9609.743447 | AA182: 1831.453364 | AB182: 316841.4319 | AD182: -1831.453364 | AE182: -1831.453364 | AF182: 0 | AG182: 0 | AH182: 0 | AI182: 0 | AJ182: 0 | AK182: 0 | AL182: 0 | AM182: 0 | AO182: -0.3333333333
A183: 174 | B183: 314.7927594 | C183: 77 | D183: 0.052 | E183: 198248.6342 | L183: 3262.269066 | M183: 189571.5197 | N183: 10.36322777 | O183: 1941.615882 | P183: 611206.621 | Q183: 173 | R183: 314.7927594 | S183: 0.052 | T183: 709705.144 | U183: 3025077.656 | V183: 1000 | W183: 248029.686 | X183: 3.176693143 | Y183: 9612.92014 | AA183: 1831.453364 | AB183: 318672.8853 | AD183: -1831.453364 | AE183: -1831.453364 | AF183: 0 | AG183: 0 | AH183: 0 | AI183: 0 | AJ183: 0 | AK183: 0 | AL183: 0 | AM183: 0 | AO183: -0.4166666667
A184: 175 | B184: 322.0329928 | C184: 78 | D184: 0.023 | E184: 201747.4216 | L184: 3262.269066 | M184: 192833.7887 | N184: 10.13023243 | O184: 1951.746114 | P184: 628526.6424 | Q184: 174 | R184: 322.0329928 | S184: 0.023 | T184: 717466.069 | U184: 3095677.443 | V184: 1000 | W184: 249029.686 | X184: 3.105271889 | Y184: 9616.025412 | AA184: 1831.453364 | AB184: 320504.3386 | AD184: -1831.453364 | AE184: -1831.453364 | AF184: 0 | AG184: 0 | AH184: 0 | AI184: 0 | AJ184: 0 | AK184: 0 | AL184: 0 | AM184: 0 | AO184: -0.5
A185: 176 | B185: 345.8634343 | C185: 79 | D185: 0.074 | E185: 205275.3656 | L185: 3262.269066 | M185: 196096.0578 | N185: 9.432246207 | O185: 1961.17836 | P185: 678299.883 | Q185: 175 | R185: 345.8634343 | S185: 0.074 | T185: 725291.6683 | U185: 3325831.573 | V185: 1000 | W185: 250029.686 | X185: 2.891314608 | Y185: 9618.916727 | AA185: 1831.453364 | AB185: 322335.792 | AD185: -1831.453364 | AE185: -1831.453364 | AF185: 0 | AG185: 0 | AH185: 0 | AI185: 0 | AJ185: 0 | AK185: 0 | AL185: 0 | AM185: 0 | AO185: -0.5833333333
A186: 177 | B186: 325.1116282 | C186: 80 | D186: -0.06 | E186: 208832.7091 | L186: 3262.269066 | M186: 199358.3269 | N186: 10.03430448 | O186: 1971.212665 | P186: 640864.159 | Q186: 176 | R186: 325.1116282 | S186: -0.06 | T186: 733182.4811 | U186: 3127221.679 | V186: 1000 | W186: 251029.686 | X186: 3.075866604 | Y186: 9621.992593 | AA186: 1831.453364 | AB186: 324167.2453 | AD186: -1831.453364 | AE186: -1831.453364 | AF186: 0 | AG186: 0 | AH186: 0 | AI186: 0 | AJ186: 0 | AK186: 0 | AL186: 0 | AM186: 0 | AO186: -0.6666666667
A187: 178 | B187: 319.2596189 | C187: 81 | D187: -0.018 | E187: 212419.6972 | L187: 3262.269066 | M187: 202620.5959 | N187: 10.21823266 | O187: 1981.430897 | P187: 632590.8733 | Q187: 177 | R187: 319.2596189 | S187: -0.018 | T187: 741139.0505 | U187: 3071913.689 | V187: 1000 | W187: 252029.686 | X187: 3.132247051 | Y187: 9625.12484 | AA187: 1831.453364 | AB187: 325998.6987 | AD187: -1831.453364 | AE187: -1831.453364 | AF187: 0 | AG187: 0 | AH187: 0 | AI187: 0 | AJ187: 0 | AK187: 0 | AL187: 0 | AM187: 0 | AO187: -0.75
A188: 179 | B188: 313.8322054 | C188: 82 | D188: -0.017 | E188: 216036.5768 | L188: 3262.269066 | M188: 205882.865 | N188: 10.39494676 | O188: 1991.825844 | P188: 625099.0975 | Q188: 178 | R188: 313.8322054 | S188: -0.017 | T188: 749161.9248 | U188: 3020674.156 | V188: 1000 | W188: 253029.686 | X188: 3.186416125 | Y188: 9628.311256 | AA188: 1831.453364 | AB188: 327830.1521 | AD188: -1831.453364 | AE188: -1831.453364 | AF188: 0 | AG188: 0 | AH188: 0 | AI188: 0 | AJ188: 0 | AK188: 0 | AL188: 0 | AM188: 0 | AO188: -0.8333333333
A189: 180 | B189: 297.8267629 | C189: 83 | D189: -0.051 | E189: 219683.5971 | L189: 3262.269066 | M189: 209145.1341 | N189: 10.9535793 | O189: 2002.779423 | P189: 596481.3126 | Q189: 179 | R189: 297.8267629 | S189: -0.051 | T189: 757251.6563 | U189: 2867568.774 | V189: 1000 | W189: 254029.686 | X189: 3.357656613 | Y189: 9631.668913 | AA189: 1831.453364 | AB189: 329661.6054 | AD189: -1831.453364 | AE189: -1831.453364 | AF189: 0 | AG189: 0 | AH189: 0 | AI189: 0 | AJ189: 0 | AK189: 0 | AL189: 0 | AM189: 0 | AO189: -0.9166666667
A190: 181 | B190: 274.2984487 | C190: 84 | D190: -0.079 | E190: 223361.0092 | L190: 3591.758242 | M190: 212736.8923 | N190: 13.09434399 | O190: 2015.873767 | P190: 552951.0471 | Q190: 180 | R190: 274.2984487 | S190: -0.079 | T190: 765408.8022 | U190: 2641951.841 | V190: 1000 | W190: 255029.686 | X190: 3.645664075 | Y190: 9635.314577 | AA190: 1831.453364 | AB190: 331493.0588 | AD190: -1831.453364 | AE190: -1831.453364 | AF190: 0 | AG190: 0 | AH190: 0 | AI190: 0 | AJ190: 0 | AK190: 0 | AL190: 0 | AM190: 0 | AO190: 0
A191: 182 | B191: 259.7606309 | C191: 85 | D191: -0.053 | E191: 227069.0664 | L191: 3591.758242 | M191: 216328.6505 | N191: 13.82718478 | O191: 2029.700952 | P191: 527236.3999 | Q191: 181 | R191: 259.7606309 | S191: -0.053 | T191: 773633.9244 | U191: 2502875.393 | V191: 1000 | W191: 256029.686 | X191: 3.849698072 | Y191: 9639.164275 | AA191: 1831.453364 | AB191: 333324.5122 | AD191: -1831.453364 | AE191: -1831.453364 | AF191: 0 | AG191: 0 | AH191: 0 | AI191: 0 | AJ191: 0 | AK191: 0 | AL191: 0 | AM191: 0 | AO191: -0.08333333333
A192: 183 | B192: 253.5263757 | C192: 86 | D192: -0.024 | E192: 230808.0241 | L192: 3591.758242 | M192: 219920.4088 | N192: 14.16719752 | O192: 2043.86815 | P192: 518174.4845 | Q192: 182 | R192: 253.5263757 | S192: -0.024 | T192: 781927.5892 | U192: 2443782.384 | V192: 1000 | W192: 257029.686 | X192: 3.944362779 | Y192: 9643.108638 | AA192: 1831.453364 | AB192: 335155.9655 | AD192: -1831.453364 | AE192: -1831.453364 | AF192: 0 | AG192: 0 | AH192: 0 | AI192: 0 | AJ192: 0 | AK192: 0 | AL192: 0 | AM192: 0 | AO192: -0.1666666667
A193: 184 | B193: 241.1035833 | C193: 87 | D193: -0.049 | E193: 234578.1398 | L193: 3591.758242 | M193: 223512.167 | N193: 14.89715828 | O193: 2058.765308 | P193: 496375.693 | Q193: 183 | R193: 241.1035833 | S193: -0.049 | T193: 790290.368 | U193: 2324988.047 | V193: 1000 | W193: 258029.686 | X193: 4.147594931 | Y193: 9647.256233 | AA193: 1831.453364 | AB193: 336987.4189 | AD193: -1831.453364 | AE193: -1831.453364 | AF193: 0 | AG193: 0 | AH193: 0 | AI193: 0 | AJ193: 0 | AK193: 0 | AL193: 0 | AM193: 0 | AO193: -0.25
A194: 185 | B194: 255.3286947 | C194: 88 | D194: 0.059 | E194: 238379.6731 | L194: 3591.758242 | M194: 227103.9253 | N194: 14.06719384 | O194: 2072.832502 | P194: 529253.6171 | Q194: 184 | R194: 255.3286947 | S194: 0.059 | T194: 798722.8365 | U194: 2463221.342 | V194: 1000 | W194: 259029.686 | X194: 3.916520237 | Y194: 9651.172753 | AA194: 1831.453364 | AB194: 338818.8723 | AD194: -1831.453364 | AE194: -1831.453364 | AF194: 0 | AG194: 0 | AH194: 0 | AI194: 0 | AJ194: 0 | AK194: 0 | AL194: 0 | AM194: 0 | AO194: -0.3333333333
A195: 186 | B195: 246.1368617 | C195: 89 | D195: -0.036 | E195: 242212.8859 | L195: 3591.758242 | M195: 230695.6835 | N195: 14.59252473 | O195: 2087.425027 | P195: 513792.2452 | Q195: 185 | R195: 246.1368617 | S195: -0.036 | T195: 807225.5756 | U195: 2375509.374 | V195: 1000 | W195: 260029.686 | X195: 4.062780329 | Y195: 9655.235533 | AA195: 1831.453364 | AB195: 340650.3256 | AD195: -1831.453364 | AE195: -1831.453364 | AF195: 0 | AG195: 0 | AH195: 0 | AI195: 0 | AJ195: 0 | AK195: 0 | AL195: 0 | AM195: 0 | AO195: -0.4166666667
A196: 187 | B196: 254.505515 | C196: 90 | D196: 0.034 | E196: 246078.042 | L196: 3591.758242 | M196: 234287.4417 | N196: 14.11269316 | O196: 2101.53772 | P196: 534852.9397 | Q196: 186 | R196: 254.505515 | S196: 0.034 | T196: 815799.1709 | U196: 2457310.692 | V196: 1000 | W196: 261029.686 | X196: 3.929187939 | Y196: 9659.164721 | AA196: 1831.453364 | AB196: 342481.779 | AD196: -1831.453364 | AE196: -1831.453364 | AF196: 0 | AG196: 0 | AH196: 0 | AI196: 0 | AJ196: 0 | AK196: 0 | AL196: 0 | AM196: 0 | AO196: -0.5
A197: 188 | B197: 248.6518882 | C197: 91 | D197: -0.023 | E197: 249975.4079 | L197: 3591.758242 | M197: 237879.2 | N197: 14.44492647 | O197: 2115.982646 | P197: 526143.0804 | Q197: 187 | R197: 248.6518882 | S197: -0.023 | T197: 824444.2128 | U197: 2401769.546 | V197: 1000 | W197: 262029.686 | X197: 4.021686734 | Y197: 9663.186408 | AA197: 1831.453364 | AB197: 344313.2323 | AD197: -1831.453364 | AE197: -1831.453364 | AF197: 0 | AG197: 0 | AH197: 0 | AI197: 0 | AJ197: 0 | AK197: 0 | AL197: 0 | AM197: 0 | AO197: -0.5833333333
A198: 189 | B198: 258.8466156 | C198: 92 | D198: 0.041 | E198: 253905.2517 | L198: 3591.758242 | M198: 241470.9582 | N198: 13.87601006 | O198: 2129.858656 | P198: 551306.7049 | Q198: 188 | R198: 258.8466156 | S198: 0.041 | T198: 833161.2967 | U198: 2501283.098 | V198: 1000 | W198: 263029.686 | X198: 3.863291771 | Y198: 9667.0497 | AA198: 1831.453364 | AB198: 346144.6857 | AD198: -1831.453364 | AE198: -1831.453364 | AF198: 0 | AG198: 0 | AH198: 0 | AI198: 0 | AJ198: 0 | AK198: 0 | AL198: 0 | AM198: 0 | AO198: -0.6666666667
A199: 190 | B199: 258.8466156 | C199: 93 | D199: 0 | E199: 257867.8443 | L199: 3591.758242 | M199: 245062.7165 | N199: 13.87601006 | O199: 2143.734666 | P199: 554898.4631 | Q199: 189 | R199: 258.8466156 | S199: 0 | T199: 841951.023 | U199: 2502283.098 | V199: 1000 | W199: 264029.686 | X199: 3.863291771 | Y199: 9670.912992 | AA199: 1831.453364 | AB199: 347976.1391 | AD199: -1831.453364 | AE199: -1831.453364 | AF199: 0 | AG199: 0 | AH199: 0 | AI199: 0 | AJ199: 0 | AK199: 0 | AL199: 0 | AM199: 0 | AO199: -0.75
A200: 191 | B200: 225.7142488 | C200: 94 | D200: -0.128 | E200: 261863.4585 | L200: 3591.758242 | M200: 248654.4747 | N200: 15.91285557 | O200: 2159.647522 | P200: 487463.2181 | Q200: 190 | R200: 225.7142488 | S200: -0.128 | T200: 850813.997 | U200: 2182862.861 | V200: 1000 | W200: 265029.686 | X200: 4.430380471 | Y200: 9675.343372 | AA200: 1831.453364 | AB200: 349807.5924 | AD200: -1831.453364 | AE200: -1831.453364 | AF200: 0 | AG200: 0 | AH200: 0 | AI200: 0 | AJ200: 0 | AK200: 0 | AL200: 0 | AM200: 0 | AO200: -0.8333333333
A201: 192 | B201: 237.9028182 | C201: 95 | D201: 0.054 | E201: 265892.3695 | L201: 3591.758242 | M201: 252246.233 | N201: 15.09758593 | O201: 2174.745108 | P201: 517377.9901 | Q201: 191 | R201: 237.9028182 | S201: 0.054 | T201: 859750.8291 | U201: 2301791.456 | V201: 1000 | W201: 266029.686 | X201: 4.203397032 | Y201: 9679.546769 | AA201: 1831.453364 | AB201: 351639.0458 | AD201: -1831.453364 | AE201: -1831.453364 | AF201: 0 | AG201: 0 | AH201: 0 | AI201: 0 | AJ201: 0 | AK201: 0 | AL201: 0 | AM201: 0 | AO201: -0.9166666667
A202: 193 | B202: 224.3423576 | C202: =IF(AND(A202>=startm,A202<=endm),A202-startm,"NA") -> 96 | D202: -0.057 | E202: =IF(C202="NA","NA",IF(C202=0,typical,(1+return/12)*typical*((1+return/12)^C202-1)/(return/12))) -> 269954.8547 | L202: =IF(C202="NA","NA",IF(C202=0,typical,IF(L201="NA",typical,IF(INT(C202/12)-(C202/12)=0,L201*(1+gsip1),L201)))) -> 3954.525824 | M202: 256200.7588 | N202: 17.62719206 | O202: 2192.3723 | P202: 491841.9705 | Q202: 192 | R202: 224.3423576 | S202: -0.057 | T202: 868762.1348 | U202: 2171532.343 | V202: 1000 | W202: 267029.686 | X202: =V202/R202 -> 4.457472992 | Y202: 9684.004242 | AA202: =typical -> 1831.453364 | AB202: 353470.4992 | AD202: =IF(A202=endm,E202,IF(C202="NA","NA",-typical)) -> -1831.453364 | AE202: =IF(A202=endm,P202,IF(C202="NA","NA",-typical)) -> -1831.453364 | AF202: =IF(A202=endm,F202,IF(C202="NA","NA",-G202)) -> 0 | AG202: =IF(A202=endm,O202,0) -> 0 | AH202: =IF(A202=endm,J202,0) -> 0 | AI202: =IF(A202=endm,E202,0) -> 0 | AJ202: =IF(A202=endm,P202,0) -> 0 | AK202: =IF(A202=endm,F202,0) -> 0 | AL202: =IF(A202=endm,M202,0) -> 0 | AM202: =IF(A202=endm,H202,0) -> 0 | AO202: 0
... 203 more rows

Sheet Sensex Growth SIP
AI2: Return expected each year | AL2: =Input!B2 -> 0.1
AI3: Minimum investment | AL3: =Input!B7 -> 1000
AI4: Typical SIP amt | AL4: =Input!B8 -> 5000
B5: Note: If you see cells showing "NA". Please scroll down/up until you see the values corresponding to the input investment year | AI5: Maximum investment | AL5: =Input!B9 -> 15000
L6: Growing Systematic investment plan
B7: Full | D7: NAV | E7: Portfolio | F7: Portfolio | G7: G-SIP | H7: Total | I7: Units | J7: Total | L7: Growth-SIP | M7: Total | N7: Units | O7: Total | P7: Portfolio | R7: Enter | S7: NAV | T7: Portfolio | U7: Portfolio | V7: VIP | W7: Total | X7: Units | Y7: Total | AA7: SIP | AB7: Total | AG7: Total Units | AI7: Portfolio | AL7: Total investment
A8: S.no | B8: NAV | C8: Month | D8: % change | E8: Target | F8: Actual | G8: investment | H8: investment | I8: purchased | J8: no of units | L8: investment | M8: investment | N8: purchased | O8: no of units | P8: Actual | Q8: Month | R8: NAV | S8: % change | T8: Target | U8: Actual | V8: investment | W8: investment | X8: purchased | Y8: no of units | AA8: investment | AB8: investment | AD8: Target | AE8: GSIP | AF8: VIP | AG8: GSIP | AI8: Target | AJ8: GSIP | AL8: GSIP
A10: 1 | B10: 9.715125456 | C10: =IF(AND(A10>=startm,A10<=endm),A10-startm,"NA") -> NA | D10: =IF(C10="NA","NA",IF(C10=0,0,(B10-B8)/B8)) -> NA | E10: =IF(C10="NA","NA",IF(C10=0,typical,(1+return/12)*typical*((1+return/12)^C10-1)/(return/12))) -> NA | L10: =IF(C10="NA","NA",IF(C10=0,typical,IF(L9="NA",typical,IF(INT(C10/12)-(C10/12)=0,L9*(1+gsip1),L9)))) -> NA | M10: =IF(C10="NA","NA",IF(M9="NA",L10,M9+L10)) -> NA | N10: =IF(C10="NA","NA",L10/B10) -> NA | O10: =IF(C10="NA","NA",IF(O9="NA",N10,O9+N10)) -> NA | P10: =IF(C10="NA","NA",O10*B10) -> NA | Q10: 0 | R10: 9.715125456 | S10: 0 | T10: =typical -> 5000 | U10: =typical -> 5000 | V10: =typical -> 5000 | W10: =V10 -> 5000 | X10: =V10/R10 -> 514.661393 | Y10: =X10 -> 514.661393 | AA10: =typical -> 5000 | AB10: =AA10 -> 5000 | AD10: =IF(A10=endm,E10,IF(C10="NA","NA",-typical)) -> NA | AE10: =IF(A10=endm,P10,IF(C10="NA","NA",-typical)) -> NA | AF10: =IF(A10=endm,F10,IF(C10="NA","NA",-G10)) -> NA | AG10: =IF(A10=endm,O10,0) -> 0 | AH10: =IF(A10=endm,J10,0) -> 0 | AI10: =IF(A10=endm,E10,0) -> 0 | AJ10: =IF(A10=endm,P10,0) -> 0 | AK10: =IF(A10=endm,F10,0) -> 0 | AL10: =IF(A10=endm,M10,0) -> 0 | AM10: =IF(A10=endm,H10,0) -> 0 | AO10: =IF(C10="NA","NA",INT(C10/12)-(C10/12)) -> NA
A11: =A10+1 -> 2 | B11: 10.08430022 | C11: NA | D11: =IF(C11="NA","NA",IF(C11=0,0,(B11-B10)/B10)) -> NA | E11: NA | L11: NA | M11: NA | N11: =IF(C11="NA","NA",L11/B11) -> NA | O11: NA | P11: =IF(C11="NA","NA",O11*B11) -> NA | Q11: =Q10+1 -> 1 | R11: 10.08430022 | S11: =(R11-R10)/R10 -> 0.038 | T11: =(1+return/12)*typical*((1+return/12)^Q11-1)/(return/12) -> 5041.666667 | U11: =U10*(1+S11) -> 5190 | V11: =IF((U11-T11)>0,IF(typical-(U11-T11)<min,min,typical-(U11-T11)),IF((U11-T11)<0,IF(typical-(U11-T11)>max,max,typical-(U11-T11)),IF((T11-U11)=0,min,))) -> 4851.666667 | W11: =W10+V11 -> 9851.666667 | X11: 481.1108911 | Y11: =Y10+X11 -> 995.7722841 | AA11: 5000 | AB11: =AB10+AA11 -> 10000 | AD11: NA | AE11: NA | AF11: NA | AG11: 0 | AH11: 0 | AI11: 0 | AJ11: 0 | AK11: 0 | AL11: 0 | AM11: 0 | AO11: NA
A12: =A11+1 -> 3 | B12: 10.11455312 | C12: NA | D12: NA | E12: NA | L12: NA | M12: NA | N12: NA | O12: NA | P12: NA | Q12: =Q11+1 -> 2 | R12: 10.11455312 | S12: =(R12-R11)/R11 -> 0.003 | T12: 10125.34722 | U12: =(U11+V11)*(1+S12) -> 10071.79167 | V12: 5053.555556 | W12: 14905.22222 | X12: 499.6321136 | Y12: =Y11+X12 -> 1495.404398 | AA12: 5000 | AB12: =AB11+AA12 -> 15000 | AD12: NA | AE12: NA | AF12: NA | AG12: 0 | AH12: 0 | AI12: 0 | AJ12: 0 | AK12: 0 | AL12: 0 | AM12: 0 | AO12: NA
A13: 4 | B13: 10.01340759 | C13: NA | D13: NA | E13: NA | L13: NA | M13: NA | N13: NA | O13: NA | P13: NA | Q13: 3 | R13: 10.01340759 | S13: =(R13-R12)/R12 -> -0.01 | T13: 15251.39178 | U13: =(U12+V12)*(1+S13) -> 14974.09375 | V13: 5277.298032 | W13: 20182.52025 | X13: 527.023192 | Y13: 2022.42759 | AA13: 5000 | AB13: 20000 | AD13: NA | AE13: NA | AF13: NA | AG13: 0 | AH13: 0 | AI13: 0 | AJ13: 0 | AK13: 0 | AL13: 0 | AM13: 0 | AO13: NA
A14: 5 | B14: 9.913273516 | C14: NA | D14: NA | E14: NA | L14: NA | M14: NA | N14: NA | O14: NA | P14: NA | Q14: 4 | R14: 9.913273516 | S14: =(R14-R13)/R13 -> -0.01 | T14: 20420.15338 | U14: =(U13+V13)*(1+S14) -> 20048.87786 | V14: 5371.275516 | W14: 25553.79577 | X14: 541.8266234 | Y14: 2564.254213 | AA14: 5000 | AB14: 25000 | AD14: NA | AE14: NA | AF14: NA | AG14: 0 | AH14: 0 | AI14: 0 | AJ14: 0 | AK14: 0 | AL14: 0 | AM14: 0 | AO14: NA
A15: 6 | B15: 9.615875311 | C15: NA | D15: NA | E15: NA | L15: NA | M15: NA | N15: NA | O15: NA | P15: NA | Q15: 5 | R15: 9.615875311 | S15: -0.03 | T15: 25631.98799 | U15: 24657.54878 | V15: 5974.439213 | W15: 31528.23498 | X15: 621.3099712 | Y15: 3185.564184 | AA15: 5000 | AB15: 30000 | AD15: NA | AE15: NA | AF15: NA | AG15: 0 | AH15: 0 | AI15: 0 | AJ15: 0 | AK15: 0 | AL15: 0 | AM15: 0 | AO15: NA
A16: 7 | B16: 10.1255167 | C16: NA | D16: NA | E16: NA | L16: NA | M16: NA | N16: NA | O16: NA | P16: NA | Q16: 6 | R16: 10.1255167 | S16: 0.053 | T16: 30887.25456 | U16: 32255.48336 | V16: 3631.771203 | W16: 35160.00619 | X16: 358.6751481 | Y16: 3544.239333 | AA16: 5000 | AB16: 35000 | AD16: NA | AE16: NA | AF16: NA | AG16: 0 | AH16: 0 | AI16: 0 | AJ16: 0 | AK16: 0 | AL16: 0 | AM16: 0 | AO16: NA
A17: 8 | B17: 11.07731527 | C17: NA | D17: NA | E17: NA | L17: NA | M17: NA | N17: NA | O17: NA | P17: NA | Q17: 7 | R17: 11.07731527 | S17: 0.094 | T17: 36186.31501 | U17: 39260.65649 | V17: 1925.658526 | W17: 37085.66471 | X17: 173.8380175 | Y17: 3718.07735 | AA17: 5000 | AB17: 40000 | AD17: NA | AE17: NA | AF17: NA | AG17: 0 | AH17: 0 | AI17: 0 | AJ17: 0 | AK17: 0 | AL17: 0 | AM17: 0 | AO17: NA
A18: 9 | B18: 10.57883609 | C18: NA | D18: NA | E18: NA | L18: NA | M18: NA | N18: NA | O18: NA | P18: NA | Q18: 8 | R18: 10.57883609 | S18: -0.045 | T18: 41529.53431 | U18: 39332.93084 | V18: 7196.603467 | W18: 44282.26818 | X18: 680.2831058 | Y18: 4398.360456 | AA18: 5000 | AB18: 45000 | AD18: NA | AE18: NA | AF18: NA | AG18: 0 | AH18: 0 | AI18: 0 | AJ18: 0 | AK18: 0 | AL18: 0 | AM18: 0 | AO18: NA
A19: 10 | B19: 10.30378635 | C19: NA | D19: NA | E19: NA | L19: NA | M19: NA | N19: NA | O19: NA | P19: NA | Q19: 9 | R19: 10.30378635 | S19: -0.026 | T19: 46917.28042 | U19: 45319.76641 | V19: 6597.514011 | W19: 50879.78219 | X19: 640.2999625 | Y19: 5038.660418 | AA19: 5000 | AB19: 50000 | AD19: NA | AE19: NA | AF19: NA | AG19: 0 | AH19: 0 | AI19: 0 | AJ19: 0 | AK19: 0 | AL19: 0 | AM19: 0 | AO19: NA
A20: 11 | B20: 11.02505139 | C20: NA | D20: NA | E20: NA | L20: NA | M20: NA | N20: NA | O20: NA | P20: NA | Q20: 10 | R20: 11.02505139 | S20: 0.07 | T20: 52349.92443 | U20: 55551.49005 | V20: 1798.434374 | W20: 52678.21657 | X20: 163.1225388 | Y20: 5201.782957 | AA20: 5000 | AB20: 55000 | AD20: NA | AE20: NA | AF20: NA | AG20: 0 | AH20: 0 | AI20: 0 | AJ20: 0 | AK20: 0 | AL20: 0 | AM20: 0 | AO20: NA
A21: 12 | B21: 11.66450437 | C21: NA | D21: NA | E21: NA | L21: NA | M21: NA | N21: NA | O21: NA | P21: NA | Q21: 11 | R21: 11.66450437 | S21: 0.058 | T21: 57827.84046 | U21: 60676.22004 | V21: 2151.62042 | W21: 54829.83699 | X21: 184.4587949 | Y21: 5386.241752 | AA21: 5000 | AB21: 60000 | AD21: NA | AE21: NA | AF21: NA | AG21: 0 | AH21: 0 | AI21: 0 | AJ21: 0 | AK21: 0 | AL21: 0 | AM21: 0 | AO21: NA
A22: 13 | B22: 11.53619482 | C22: NA | D22: NA | E22: NA | L22: NA | M22: =IF(C22="NA","NA",IF(M21="NA",L22,M21+L22)) -> NA | N22: NA | O22: =IF(C22="NA","NA",IF(O21="NA",N22,O21+N22)) -> NA | P22: NA | Q22: 12 | R22: 11.53619482 | S22: -0.011 | T22: 63351.4058 | U22: 62136.73422 | V22: 6214.671582 | W22: 61044.50857 | X22: 538.7106994 | Y22: 5924.952451 | AA22: 5000 | AB22: 65000 | AD22: NA | AE22: NA | AF22: NA | AG22: 0 | AH22: 0 | AI22: 0 | AJ22: 0 | AK22: 0 | AL22: 0 | AM22: 0 | AO22: NA
A23: 14 | B23: 12.4706266 | C23: NA | D23: NA | E23: NA | L23: NA | M23: =IF(C23="NA","NA",IF(M22="NA",L23,M22+L23)) -> NA | N23: NA | O23: =IF(C23="NA","NA",IF(O22="NA",N23,O22+N23)) -> NA | P23: NA | Q23: 13 | R23: 12.4706266 | S23: 0.081 | T23: 68921.00085 | U23: 73887.86967 | V23: 1000 | W23: 62044.50857 | X23: 80.18843252 | Y23: 6005.140884 | AA23: 5000 | AB23: 70000 | AD23: NA | AE23: NA | AF23: NA | AG23: 0 | AH23: 0 | AI23: 0 | AJ23: 0 | AK23: 0 | AL23: 0 | AM23: 0 | AO23: NA
A24: 15 | B24: 13.64286551 | C24: NA | D24: NA | E24: NA | L24: NA | M24: NA | N24: NA | O24: NA | P24: NA | Q24: 14 | R24: 13.64286551 | S24: 0.094 | T24: 74537.00919 | U24: 81927.32942 | V24: 1000 | W24: 63044.50857 | X24: 73.29838439 | Y24: 6078.439268 | AA24: 5000 | AB24: 75000 | AD24: NA | AE24: NA | AF24: NA | AG24: 0 | AH24: 0 | AI24: 0 | AJ24: 0 | AK24: 0 | AL24: 0 | AM24: 0 | AO24: NA
A25: 16 | B25: 14.65243755 | C25: NA | D25: NA | E25: NA | L25: NA | M25: NA | N25: NA | O25: NA | P25: NA | Q25: 15 | R25: 14.65243755 | S25: 0.074 | T25: 80199.8176 | U25: 89063.9518 | V25: 1000 | W25: 64044.50857 | X25: 68.24803016 | Y25: 6146.687299 | AA25: 5000 | AB25: 80000 | AD25: NA | AE25: NA | AF25: NA | AG25: 0 | AH25: 0 | AI25: 0 | AJ25: 0 | AK25: 0 | AL25: 0 | AM25: 0 | AO25: NA
A26: 17 | B26: 13.91981568 | C26: NA | D26: NA | E26: NA | L26: NA | M26: NA | N26: NA | O26: NA | P26: NA | Q26: 16 | R26: 13.91981568 | S26: -0.05 | T26: 85909.81608 | U26: 85560.75421 | V26: 5349.061872 | W26: 69393.57044 | X26: 384.2767747 | Y26: 6530.964073 | AA26: 5000 | AB26: 85000 | AD26: NA | AE26: NA | AF26: NA | AG26: 0 | AH26: 0 | AI26: 0 | AJ26: 0 | AK26: 0 | AL26: 0 | AM26: 0 | AO26: NA
A27: 18 | B27: 16.63417973 | C27: NA | D27: NA | E27: NA | L27: NA | M27: NA | N27: NA | O27: NA | P27: NA | Q27: 17 | R27: 16.63417973 | S27: 0.195 | T27: 91667.39788 | U27: 108637.2302 | V27: 1000 | W27: 70393.57044 | X27: 60.11718138 | Y27: 6591.081255 | AA27: 5000 | AB27: 90000 | AD27: NA | AE27: NA | AF27: NA | AG27: 0 | AH27: 0 | AI27: 0 | AJ27: 0 | AK27: 0 | AL27: 0 | AM27: 0 | AO27: NA
A28: 19 | B28: 16.35139868 | C28: NA | D28: NA | E28: NA | L28: NA | M28: NA | N28: NA | O28: NA | P28: NA | Q28: 18 | R28: 16.35139868 | S28: -0.017 | T28: 97472.95953 | U28: 107773.3973 | V28: 1000 | W28: 71393.57044 | X28: 61.15684779 | Y28: 6652.238102 | AA28: 5000 | AB28: 95000 | AD28: NA | AE28: NA | AF28: NA | AG28: 0 | AH28: 0 | AI28: 0 | AJ28: 0 | AK28: 0 | AL28: 0 | AM28: 0 | AO28: NA
A29: 20 | B29: 15.20680077 | C29: NA | D29: NA | E29: NA | L29: NA | M29: NA | N29: NA | O29: NA | P29: NA | Q29: 19 | R29: 15.20680077 | S29: -0.07 | T29: 103326.9009 | U29: 101159.2595 | V29: 7167.641368 | W29: 78561.21181 | X29: 471.3444647 | Y29: 7123.582567 | AA29: 5000 | AB29: 100000 | AD29: NA | AE29: NA | AF29: NA | AG29: 0 | AH29: 0 | AI29: 0 | AJ29: 0 | AK29: 0 | AL29: 0 | AM29: 0 | AO29: NA
A30: 21 | B30: 16.14962242 | C30: NA | D30: NA | E30: NA | L30: NA | M30: NA | N30: NA | O30: NA | P30: NA | Q30: 20 | R30: 16.14962242 | S30: 0.062 | T30: 109229.625 | U30: 115043.1687 | V30: 1000 | W30: 79561.21181 | X30: 61.92095234 | Y30: 7185.503519 | AA30: 5000 | AB30: 105000 | AD30: NA | AE30: NA | AF30: NA | AG30: 0 | AH30: 0 | AI30: 0 | AJ30: 0 | AK30: 0 | AL30: 0 | AM30: 0 | AO30: NA
A31: 22 | B31: 16.39186675 | C31: NA | D31: NA | E31: NA | L31: NA | M31: NA | N31: NA | O31: NA | P31: NA | Q31: 21 | R31: 16.39186675 | S31: 0.015 | T31: 115181.5386 | U31: 117783.8162 | V31: 2397.722332 | W31: 81958.93414 | X31: 146.2751234 | Y31: 7331.778643 | AA31: 5000 | AB31: 110000 | AD31: NA | AE31: NA | AF31: NA | AG31: 0 | AH31: 0 | AI31: 0 | AJ31: 0 | AK31: 0 | AL31: 0 | AM31: 0 | AO31: NA
A32: 23 | B32: 16.88362276 | C32: NA | D32: NA | E32: NA | L32: NA | M32: NA | N32: NA | O32: NA | P32: NA | Q32: 22 | R32: 16.88362276 | S32: 0.03 | T32: 121183.0514 | U32: 123786.9847 | V32: 2396.066664 | W32: 84355.0008 | X32: 141.9166194 | Y32: 7473.695262 | AA32: 5000 | AB32: 115000 | AD32: NA | AE32: NA | AF32: NA | AG32: 0 | AH32: 0 | AI32: 0 | AJ32: 0 | AK32: 0 | AL32: 0 | AM32: 0 | AO32: NA
A33: 24 | B33: 17.91352374 | C33: NA | D33: NA | E33: NA | L33: NA | M33: NA | N33: NA | O33: NA | P33: NA | Q33: 23 | R33: 17.91352374 | S33: 0.061 | T33: 127234.5768 | U33: 133880.2175 | V33: 1000 | W33: 85355.0008 | X33: 55.82374603 | Y33: 7529.519008 | AA33: 5000 | AB33: 120000 | AD33: NA | AE33: NA | AF33: NA | AG33: 0 | AH33: 0 | AI33: 0 | AJ33: 0 | AK33: 0 | AL33: 0 | AM33: 0 | AO33: NA
A34: 25 | B34: 17.30446394 | C34: NA | D34: NA | E34: NA | L34: NA | M34: NA | N34: NA | O34: NA | P34: NA | Q34: 24 | R34: 17.30446394 | S34: -0.034 | T34: 133336.5316 | U34: 130294.2901 | V34: 8042.241496 | W34: 93397.2423 | X34: 464.7495309 | Y34: 7994.268539 | AA34: 5000 | AB34: 125000 | AD34: NA | AE34: NA | AF34: NA | AG34: 0 | AH34: 0 | AI34: 0 | AJ34: 0 | AK34: 0 | AL34: 0 | AM34: 0 | AO34: NA
A35: 26 | B35: 17.9447291 | C35: NA | D35: NA | E35: NA | L35: NA | M35: NA | N35: NA | O35: NA | P35: NA | Q35: 25 | R35: 17.9447291 | S35: 0.037 | T35: 139489.3361 | U35: 143454.9833 | V35: 1034.35276 | W35: 94431.59506 | X35: 57.64103509 | Y35: 8051.909574 | AA35: 5000 | AB35: 130000 | AD35: NA | AE35: NA | AF35: NA | AG35: 0 | AH35: 0 | AI35: 0 | AJ35: 0 | AK35: 0 | AL35: 0 | AM35: 0 | AO35: =IF(C35="NA","NA",INT(C35/12)-(C35/12)) -> NA
A36: 27 | B36: 17.13721629 | C36: NA | D36: NA | E36: NA | L36: NA | M36: NA | N36: NA | O36: NA | P36: NA | Q36: 26 | R36: 17.13721629 | S36: -0.045 | T36: 145693.4139 | U36: 137987.3159 | V36: 12706.09792 | W36: 107137.693 | X36: 741.4330138 | Y36: 8793.342588 | AA36: 5000 | AB36: 135000 | AD36: NA | AE36: NA | AF36: NA | AG36: 0 | AH36: 0 | AI36: 0 | AJ36: 0 | AK36: 0 | AL36: 0 | AM36: 0 | AO36: =IF(C36="NA","NA",INT(C36/12)-(C36/12)) -> NA
A37: 28 | B37: 17.78843051 | C37: NA | D37: NA | E37: NA | L37: NA | M37: NA | N37: NA | O37: NA | P37: NA | Q37: 27 | R37: 17.78843051 | S37: 0.038 | T37: 151949.1923 | U37: 156419.7636 | V37: 1000 | W37: 108137.693 | X37: 56.21631427 | Y37: 8849.558902 | AA37: 5000 | AB37: 140000 | AD37: NA | AE37: NA | AF37: NA | AG37: 0 | AH37: 0 | AI37: 0 | AJ37: 0 | AK37: 0 | AL37: 0 | AM37: 0 | AO37: NA
A38: 29 | B38: 18.01968011 | C38: NA | D38: NA | E38: NA | L38: NA | M38: NA | N38: NA | O38: NA | P38: NA | Q38: 28 | R38: 18.01968011 | S38: 0.013 | T38: 158257.1022 | U38: 159466.2205 | V38: 3790.881731 | W38: 111928.5747 | X38: 210.3745299 | Y38: 9059.933432 | AA38: 5000 | AB38: 145000 | AD38: NA | AE38: NA | AF38: NA | AG38: 0 | AH38: 0 | AI38: 0 | AJ38: 0 | AK38: 0 | AL38: 0 | AM38: 0 | AO38: NA
A39: 30 | B39: 16.7583025 | C39: NA | D39: NA | E39: NA | L39: NA | M39: NA | N39: NA | O39: NA | P39: NA | Q39: 29 | R39: 16.7583025 | S39: -0.07 | T39: 164617.5781 | U39: 151829.1051 | V39: 15000 | W39: 126928.5747 | X39: 895.0787229 | Y39: 9955.012155 | AA39: 5000 | AB39: 150000 | AD39: NA | AE39: NA | AF39: NA | AG39: 0 | AH39: 0 | AI39: 0 | AJ39: 0 | AK39: 0 | AL39: 0 | AM39: 0 | AO39: NA
A40: 31 | B40: 17.02643534 | C40: NA | D40: NA | E40: NA | L40: NA | M40: NA | N40: NA | O40: NA | P40: NA | Q40: 30 | R40: 17.02643534 | S40: 0.016 | T40: 171031.0579 | U40: 169498.3708 | V40: 6532.687145 | W40: 133461.2619 | X40: 383.6790858 | Y40: 10338.69124 | AA40: 5000 | AB40: 155000 | AD40: NA | AE40: NA | AF40: NA | AG40: 0 | AH40: 0 | AI40: 0 | AJ40: 0 | AK40: 0 | AL40: 0 | AM40: 0 | AO40: NA
A41: 32 | B41: 16.85617099 | C41: NA | D41: NA | E41: NA | L41: NA | M41: NA | N41: NA | O41: NA | P41: NA | Q41: 31 | R41: 16.85617099 | S41: -0.01 | T41: 177497.9834 | U41: 174270.7473 | V41: 8227.236062 | W41: 141688.4979 | X41: 488.0845162 | Y41: 10826.77576 | AA41: 5000 | AB41: 160000 | AD41: NA | AE41: NA | AF41: NA | AG41: 0 | AH41: 0 | AI41: 0 | AJ41: 0 | AK41: 0 | AL41: 0 | AM41: 0 | AO41: NA
A42: 33 | B42: 17.96867827 | C42: NA | D42: NA | E42: NA | L42: NA | M42: NA | N42: NA | O42: NA | P42: NA | Q42: 32 | R42: 17.96867827 | S42: 0.066 | T42: 184018.7999 | U42: 194542.8503 | V42: 1000 | W42: 142688.4979 | X42: 55.65239607 | Y42: 10882.42815 | AA42: 5000 | AB42: 165000 | AD42: NA | AE42: NA | AF42: NA | AG42: 0 | AH42: 0 | AI42: 0 | AJ42: 0 | AK42: 0 | AL42: 0 | AM42: 0 | AO42: NA
A43: 34 | B43: 17.48352396 | C43: NA | D43: NA | E43: NA | L43: NA | M43: NA | N43: NA | O43: NA | P43: NA | Q43: 33 | R43: 17.48352396 | S43: -0.027 | T43: 190593.9566 | U43: 190263.1933 | V43: 5330.763248 | W43: 148019.2612 | X43: 304.9021044 | Y43: 11187.33026 | AA43: 5000 | AB43: 170000 | AD43: NA | AE43: NA | AF43: NA | AG43: 0 | AH43: 0 | AI43: 0 | AJ43: 0 | AK43: 0 | AL43: 0 | AM43: 0 | AO43: NA
A44: 35 | B44: 17.93809558 | C44: NA | D44: NA | E44: NA | L44: NA | M44: NA | N44: NA | O44: NA | P44: NA | Q44: 34 | R44: 17.93809558 | S44: 0.026 | T44: 197223.9062 | U44: 200679.3995 | V44: 1544.506767 | W44: 149563.7679 | X44: 86.102048 | Y44: 11273.43231 | AA44: 5000 | AB44: 175000 | AD44: NA | AE44: NA | AF44: NA | AG44: 0 | AH44: 0 | AI44: 0 | AJ44: 0 | AK44: 0 | AL44: 0 | AM44: 0 | AO44: NA
A45: 36 | B45: 18.54799083 | C45: NA | D45: NA | E45: NA | L45: NA | M45: NA | N45: NA | O45: NA | P45: NA | Q45: 35 | R45: 18.54799083 | S45: 0.034 | T45: 203909.1055 | U45: 209099.519 | V45: 1000 | W45: 150563.7679 | X45: 53.91419529 | Y45: 11327.3465 | AA45: 5000 | AB45: 180000 | AD45: NA | AE45: NA | AF45: NA | AG45: 0 | AH45: 0 | AI45: 0 | AJ45: 0 | AK45: 0 | AL45: 0 | AM45: 0 | AO45: NA
A46: 37 | B46: 17.43511138 | C46: NA | D46: NA | E46: NA | L46: NA | M46: NA | N46: NA | O46: NA | P46: NA | Q46: 36 | R46: 17.43511138 | S46: -0.06 | T46: 210650.0147 | U46: 197493.5479 | V46: 15000 | W46: 165563.7679 | X46: 860.3329036 | Y46: 12187.6794 | AA46: 5000 | AB46: 185000 | AD46: NA | AE46: NA | AF46: NA | AG46: 0 | AH46: 0 | AI46: 0 | AJ46: 0 | AK46: 0 | AL46: 0 | AM46: 0 | AO46: NA
A47: 38 | B47: 17.20845493 | C47: NA | D47: NA | E47: NA | L47: NA | M47: NA | N47: NA | O47: NA | P47: NA | Q47: 37 | R47: 17.20845493 | S47: -0.013 | T47: 217447.0981 | U47: 209731.1318 | V47: 12715.96634 | W47: 178279.7343 | X47: 738.9371323 | Y47: 12926.61654 | AA47: 5000 | AB47: 190000 | AD47: NA | AE47: NA | AF47: NA | AG47: 0 | AH47: 0 | AI47: 0 | AJ47: 0 | AK47: 0 | AL47: 0 | AM47: 0 | AO47: NA
A48: 39 | B48: 16.64057592 | C48: NA | D48: NA | E48: NA | L48: NA | M48: NA | N48: NA | O48: NA | P48: NA | Q48: 38 | R48: 16.64057592 | S48: -0.033 | T48: 224300.8239 | U48: 215106.3439 | V48: 14194.48006 | W48: 192474.2143 | X48: 853.0041342 | Y48: 13779.62067 | AA48: 5000 | AB48: 195000 | AD48: NA | AE48: NA | AF48: NA | AG48: 0 | AH48: 0 | AI48: 0 | AJ48: 0 | AK48: 0 | AL48: 0 | AM48: 0 | AO48: NA
A49: 40 | B49: 16.85690341 | C49: NA | D49: NA | E49: NA | L49: NA | M49: NA | N49: NA | O49: NA | P49: NA | Q49: 39 | R49: 16.85690341 | S49: 0.013 | T49: 231211.6641 | U49: 232281.7346 | V49: 3929.929488 | W49: 196404.1438 | X49: 233.1347219 | Y49: 14012.75539 | AA49: 5000 | AB49: 200000 | AD49: NA | AE49: NA | AF49: NA | AG49: 0 | AH49: 0 | AI49: 0 | AJ49: 0 | AK49: 0 | AL49: 0 | AM49: 0 | AO49: NA
A50: 41 | B50: 18.69430588 | C50: NA | D50: NA | E50: NA | L50: NA | M50: NA | N50: NA | O50: NA | P50: NA | Q50: 40 | R50: 18.69430588 | S50: 0.109 | T50: 238180.0947 | U50: 261958.7355 | V50: 1000 | W50: 197404.1438 | X50: 53.49222413 | Y50: 14066.24762 | AA50: 5000 | AB50: 205000 | AD50: NA | AE50: NA | AF50: NA | AG50: 0 | AH50: 0 | AI50: 0 | AJ50: 0 | AK50: 0 | AL50: 0 | AM50: 0 | AO50: NA
A51: 42 | B51: 18.69430588 | C51: NA | D51: NA | E51: NA | L51: NA | M51: NA | N51: NA | O51: NA | P51: NA | Q51: 41 | R51: 18.69430588 | S51: 0 | T51: 245206.5955 | U51: 262958.7355 | V51: 1000 | W51: 198404.1438 | X51: 53.49222413 | Y51: 14119.73984 | AA51: 5000 | AB51: 210000 | AD51: NA | AE51: NA | AF51: NA | AG51: 0 | AH51: 0 | AI51: 0 | AJ51: 0 | AK51: 0 | AL51: 0 | AM51: 0 | AO51: NA
A52: 43 | B52: 18.54475143 | C52: NA | D52: NA | E52: NA | L52: NA | M52: NA | N52: NA | O52: NA | P52: NA | Q52: 42 | R52: 18.54475143 | S52: -0.008 | T52: 252291.6504 | U52: 261847.0656 | V52: 1000 | W52: 199404.1438 | X52: 53.92361303 | Y52: 14173.66345 | AA52: 5000 | AB52: 215000 | AD52: NA | AE52: NA | AF52: NA | AG52: 0 | AH52: 0 | AI52: 0 | AJ52: 0 | AK52: 0 | AL52: 0 | AM52: 0 | AO52: NA
A53: 44 | B53: 18.7858332 | C53: NA | D53: NA | E53: NA | L53: NA | M53: NA | N53: NA | O53: NA | P53: NA | Q53: 43 | R53: 18.7858332 | S53: 0.013 | T53: 259435.7475 | U53: 266264.0775 | V53: 1000 | W53: 200404.1438 | X53: 53.2316022 | Y53: 14226.89506 | AA53: 5000 | AB53: 220000 | AD53: NA | AE53: NA | AF53: NA | AG53: 0 | AH53: 0 | AI53: 0 | AJ53: 0 | AK53: 0 | AL53: 0 | AM53: 0 | AO53: NA
A54: 45 | B54: 18.59797487 | C54: NA | D54: NA | E54: NA | L54: NA | M54: NA | N54: NA | O54: NA | P54: NA | Q54: 44 | R54: 18.59797487 | S54: -0.01 | T54: 266639.3787 | U54: 264591.4367 | V54: 7047.942017 | W54: 207452.0858 | X54: 378.9628745 | Y54: 14605.85793 | AA54: 5000 | AB54: 225000 | AD54: NA | AE54: NA | AF54: NA | AG54: 0 | AH54: 0 | AI54: 0 | AJ54: 0 | AK54: 0 | AL54: 0 | AM54: 0 | AO54: NA
A55: 46 | B55: 18.65376879 | C55: NA | D55: NA | E55: NA | L55: NA | M55: NA | N55: NA | O55: NA | P55: NA | Q55: 45 | R55: 18.65376879 | S55: 0.003 | T55: 273903.0402 | U55: 272454.2969 | V55: 6448.743353 | W55: 213900.8292 | X55: 345.7072629 | Y55: 14951.56519 | AA55: 5000 | AB55: 230000 | AD55: NA | AE55: NA | AF55: NA | AG55: 0 | AH55: 0 | AI55: 0 | AJ55: 0 | AK55: 0 | AL55: 0 | AM55: 0 | AO55: NA
A56: 47 | B56: 18.91492156 | C56: NA | D56: NA | E56: NA | L56: NA | M56: NA | N56: NA | O56: NA | P56: NA | Q56: 46 | R56: 18.91492156 | S56: 0.014 | T56: 281227.2322 | U56: 282807.6828 | V56: 3419.549439 | W56: 217320.3786 | X56: 180.7858113 | Y56: 15132.35101 | AA56: 5000 | AB56: 235000 | AD56: NA | AE56: NA | AF56: NA | AG56: 0 | AH56: 0 | AI56: 0 | AJ56: 0 | AK56: 0 | AL56: 0 | AM56: 0 | AO56: NA
A57: 48 | B57: 19.9174124 | C57: NA | D57: NA | E57: NA | L57: NA | M57: NA | N57: NA | O57: NA | P57: NA | Q57: 47 | R57: 19.9174124 | S57: 0.053 | T57: 288612.4592 | U57: 301397.2755 | V57: 1000 | W57: 218320.3786 | X57: 50.20732513 | Y57: 15182.55833 | AA57: 5000 | AB57: 240000 | AD57: NA | AE57: NA | AF57: NA | AG57: 0 | AH57: 0 | AI57: 0 | AJ57: 0 | AK57: 0 | AL57: 0 | AM57: 0 | AO57: NA
A58: 49 | B58: 19.55889898 | C58: NA | D58: NA | E58: NA | L58: NA | M58: NA | N58: NA | O58: NA | P58: NA | Q58: 48 | R58: 19.55889898 | S58: -0.018 | T58: 296059.2297 | U58: 296954.1246 | V58: 4105.10508 | W58: 222425.4837 | X58: 209.8842621 | Y58: 15392.44259 | AA58: 5000 | AB58: 245000 | AD58: NA | AE58: NA | AF58: NA | AG58: 0 | AH58: 0 | AI58: 0 | AJ58: 0 | AK58: 0 | AL58: 0 | AM58: 0 | AO58: NA
A59: 50 | B59: 19.71537017 | C59: NA | D59: NA | E59: NA | L59: NA | M59: NA | N59: NA | O59: NA | P59: NA | Q59: 49 | R59: 19.71537017 | S59: 0.008 | T59: 303568.0566 | U59: 303467.7035 | V59: 5100.353077 | W59: 227525.8368 | X59: 258.6993312 | Y59: 15651.14192 | AA59: 5000 | AB59: 250000 | AD59: NA | AE59: NA | AF59: NA | AG59: 0 | AH59: 0 | AI59: 0 | AJ59: 0 | AK59: 0 | AL59: 0 | AM59: 0 | AO59: NA
A60: 51 | B60: 19.30134739 | C60: NA | D60: NA | E60: NA | L60: NA | M60: NA | N60: NA | O60: NA | P60: NA | Q60: 50 | R60: 19.30134739 | S60: -0.021 | T60: 311139.457 | U60: 302088.1274 | V60: 14051.32966 | W60: 241577.1664 | X60: 727.9973451 | Y60: 16379.13927 | AA60: 5000 | AB60: 255000 | AD60: NA | AE60: NA | AF60: NA | AG60: 0 | AH60: 0 | AI60: 0 | AJ60: 0 | AK60: 0 | AL60: 0 | AM60: 0 | AO60: NA
A61: 52 | B61: 18.50999215 | C61: NA | D61: NA | E61: NA | L61: NA | M61: NA | N61: NA | O61: NA | P61: NA | Q61: 51 | R61: 18.50999215 | S61: -0.041 | T61: 318773.9525 | U61: 303177.7393 | V61: 15000 | W61: 256577.1664 | X61: 810.3731151 | Y61: 17189.51238 | AA61: 5000 | AB61: 260000 | AD61: NA | AE61: NA | AF61: NA | AG61: 0 | AH61: 0 | AI61: 0 | AJ61: 0 | AK61: 0 | AL61: 0 | AM61: 0 | AO61: NA
A62: 53 | B62: 18.93572197 | C62: NA | D62: NA | E62: NA | L62: NA | M62: NA | N62: NA | O62: NA | P62: NA | Q62: 52 | R62: 18.93572197 | S62: 0.023 | T62: 326472.0688 | U62: 325495.8273 | V62: 5976.241481 | W62: 262553.4079 | X62: 315.60674 | Y62: 17505.11912 | AA62: 5000 | AB62: 265000 | AD62: NA | AE62: NA | AF62: NA | AG62: 0 | AH62: 0 | AI62: 0 | AJ62: 0 | AK62: 0 | AL62: 0 | AM62: 0 | AO62: NA
A63: 54 | B63: 19.61740796 | C63: NA | D63: NA | E63: NA | L63: NA | M63: NA | N63: NA | O63: NA | P63: NA | Q63: 53 | R63: 19.61740796 | S63: 0.036 | T63: 334234.336 | U63: 343405.0633 | V63: 1000 | W63: 263553.4079 | X63: 50.97513402 | Y63: 17556.09426 | AA63: 5000 | AB63: 270000 | AD63: NA | AE63: NA | AF63: NA | AG63: 0 | AH63: 0 | AI63: 0 | AJ63: 0 | AK63: 0 | AL63: 0 | AM63: 0 | AO63: NA
A64: 55 | B64: 19.9509039 | C64: NA | D64: NA | E64: NA | L64: NA | M64: NA | N64: NA | O64: NA | P64: NA | Q64: 54 | R64: 19.9509039 | S64: 0.017 | T64: 342061.2888 | U64: 350259.9493 | V64: 1000 | W64: 264553.4079 | X64: 50.1230423 | Y64: 17606.2173 | AA64: 5000 | AB64: 275000 | AD64: NA | AE64: NA | AF64: NA | AG64: 0 | AH64: 0 | AI64: 0 | AJ64: 0 | AK64: 0 | AL64: 0 | AM64: 0 | AO64: NA
A65: 56 | B65: 19.59178763 | C65: NA | D65: NA | E65: NA | L65: NA | M65: NA | N65: NA | O65: NA | P65: NA | Q65: 55 | R65: 19.59178763 | S65: -0.018 | T65: 349953.4662 | U65: 344937.2703 | V65: 10016.19598 | W65: 274569.6039 | X65: 511.2446181 | Y65: 18117.46192 | AA65: 5000 | AB65: 280000 | AD65: NA | AE65: NA | AF65: NA | AG65: 0 | AH65: 0 | AI65: 0 | AJ65: 0 | AK65: 0 | AL65: 0 | AM65: 0 | AO65: NA
A66: 57 | B66: 20.88484561 | C66: NA | D66: NA | E66: NA | L66: NA | M66: NA | N66: NA | O66: NA | P66: NA | Q66: 56 | R66: 20.88484561 | S66: 0.066 | T66: 357911.4118 | U66: 378380.395 | V66: 1000 | W66: 275569.6039 | X66: 47.88160845 | Y66: 18165.34353 | AA66: 5000 | AB66: 285000 | AD66: NA | AE66: NA | AF66: NA | AG66: 0 | AH66: 0 | AI66: 0 | AJ66: 0 | AK66: 0 | AL66: 0 | AM66: 0 | AO66: NA
A67: 58 | B67: 21.05192438 | C67: NA | D67: NA | E67: NA | L67: NA | M67: NA | N67: NA | O67: NA | P67: NA | Q67: 57 | R67: 21.05192438 | S67: 0.008 | T67: 365935.6736 | U67: 382415.4382 | V67: 1000 | W67: 276569.6039 | X67: 47.50159568 | Y67: 18212.84512 | AA67: 5000 | AB67: 290000 | AD67: NA | AE67: NA | AF67: NA | AG67: 0 | AH67: 0 | AI67: 0 | AJ67: 0 | AK67: 0 | AL67: 0 | AM67: 0 | AO67: NA
A68: 59 | B68: 20.39931472 | C68: NA | D68: NA | E68: NA | L68: NA | M68: NA | N68: NA | O68: NA | P68: NA | Q68: 58 | R68: 20.39931472 | S68: -0.031 | T68: 374026.8042 | U68: 371529.5596 | V68: 7497.244581 | W68: 284066.8485 | X68: 367.5243352 | Y68: 18580.36946 | AA68: 5000 | AB68: 295000 | AD68: NA | AE68: NA | AF68: NA | AG68: 0 | AH68: 0 | AI68: 0 | AJ68: 0 | AK68: 0 | AL68: 0 | AM68: 0 | AO68: NA
A69: 60 | B69: 21.37848183 | C69: NA | D69: NA | E69: NA | L69: NA | M69: NA | N69: NA | O69: NA | P69: NA | Q69: 59 | R69: 21.37848183 | S69: 0.048 | T69: 382185.3609 | U69: 397220.0908 | V69: 1000 | W69: 285066.8485 | X69: 46.77600627 | Y69: 18627.14546 | AA69: 5000 | AB69: 300000 | AD69: NA | AE69: NA | AF69: NA | AG69: 0 | AH69: 0 | AI69: 0 | AJ69: 0 | AK69: 0 | AL69: 0 | AM69: 0 | AO69: NA
A70: 61 | B70: 22.61843377 | C70: NA | D70: NA | E70: NA | L70: NA | M70: NA | N70: NA | O70: NA | P70: NA | Q70: 60 | R70: 22.61843377 | S70: 0.058 | T70: 390411.9055 | U70: 421316.856 | V70: 1000 | W70: 286066.8485 | X70: 44.21172616 | Y70: 18671.35719 | AA70: 5000 | AB70: 305000 | AD70: NA | AE70: NA | AF70: NA | AG70: 0 | AH70: 0 | AI70: 0 | AJ70: 0 | AK70: 0 | AL70: 0 | AM70: 0 | AO70: NA
A71: 62 | B71: 23.88506606 | C71: NA | D71: NA | E71: NA | L71: NA | M71: NA | N71: NA | O71: NA | P71: NA | Q71: 61 | R71: 23.88506606 | S71: 0.056 | T71: 398707.0048 | U71: 445966.6 | V71: 1000 | W71: 287066.8485 | X71: 41.86716492 | Y71: 18713.22435 | AA71: 5000 | AB71: 310000 | AD71: NA | AE71: NA | AF71: NA | AG71: 0 | AH71: 0 | AI71: 0 | AJ71: 0 | AK71: 0 | AL71: 0 | AM71: 0 | AO71: NA
A72: 63 | B72: 27.82610196 | C72: NA | D72: NA | E72: NA | L72: NA | M72: NA | N72: NA | O72: NA | P72: NA | Q72: 62 | R72: 27.82610196 | S72: 0.165 | T72: 407071.2298 | U72: 520716.089 | V72: 1000 | W72: 288066.8485 | X72: 35.93748062 | Y72: 18749.16184 | AA72: 5000 | AB72: 315000 | AD72: NA | AE72: NA | AF72: NA | AG72: 0 | AH72: 0 | AI72: 0 | AJ72: 0 | AK72: 0 | AL72: 0 | AM72: 0 | AO72: NA
A73: 64 | B73: 30.44175555 | C73: NA | D73: NA | E73: NA | L73: NA | M73: NA | N73: NA | O73: NA | P73: NA | Q73: 63 | R73: 30.44175555 | S73: 0.094 | T73: 415505.1567 | U73: 570757.4013 | V73: 1000 | W73: 289066.8485 | X73: 32.84961665 | Y73: 18782.01145 | AA73: 5000 | AB73: 320000 | AD73: NA | AE73: NA | AF73: NA | AG73: 0 | AH73: 0 | AI73: 0 | AJ73: 0 | AK73: 0 | AL73: 0 | AM73: 0 | AO73: NA
A74: 65 | B74: 31.41589173 | C74: =IF(AND(A74>=startm,A74<=endm),A74-startm,"NA") -> NA | D74: NA | E74: =IF(C74="NA","NA",IF(C74=0,typical,(1+return/12)*typical*((1+return/12)^C74-1)/(return/12))) -> NA | L74: =IF(C74="NA","NA",IF(C74=0,typical,IF(L73="NA",typical,IF(INT(C74/12)-(C74/12)=0,L73*(1+gsip1),L73)))) -> NA | M74: NA | N74: NA | O74: NA | P74: NA | Q74: 64 | R74: 31.41589173 | S74: 0.032 | T74: 424009.3663 | U74: 590053.6382 | V74: 1000 | W74: 290066.8485 | X74: =V74/R74 -> 31.83102389 | Y74: 18813.84248 | AA74: =typical -> 5000 | AB74: 325000 | AD74: =IF(A74=endm,E74,IF(C74="NA","NA",-typical)) -> NA | AE74: =IF(A74=endm,P74,IF(C74="NA","NA",-typical)) -> NA | AF74: =IF(A74=endm,F74,IF(C74="NA","NA",-G74)) -> NA | AG74: =IF(A74=endm,O74,0) -> 0 | AH74: =IF(A74=endm,J74,0) -> 0 | AI74: =IF(A74=endm,E74,0) -> 0 | AJ74: =IF(A74=endm,P74,0) -> 0 | AK74: =IF(A74=endm,F74,0) -> 0 | AL74: =IF(A74=endm,M74,0) -> 0 | AM74: =IF(A74=endm,H74,0) -> 0 | AO74: NA
A75: 66 | B75: 37.6048224 | C75: NA | D75: =IF(C75="NA","NA",IF(C75=0,0,(B75-B74)/B74)) -> NA | E75: NA | L75: NA | M75: NA | N75: =IF(C75="NA","NA",L75/B75) -> NA | O75: NA | P75: =IF(C75="NA","NA",O75*B75) -> NA | Q75: 65 | R75: 37.6048224 | S75: 0.197 | T75: =(1+return/12)*typical*((1+return/12)^Q75-1)/(return/12) -> 432584.4444 | U75: 707491.2049 | V75: =IF((U75-T75)>0,IF(typical-(U75-T75)<min,min,typical-(U75-T75)),IF((U75-T75)<0,IF(typical-(U75-T75)>max,max,typical-(U75-T75)),IF((T75-U75)=0,min,))) -> 1000 | W75: =W74+V75 -> 291066.8485 | X75: 26.59233408 | Y75: 18840.43481 | AA75: 5000 | AB75: 330000 | AD75: NA | AE75: NA | AF75: NA | AG75: 0 | AH75: 0 | AI75: 0 | AJ75: 0 | AK75: 0 | AL75: 0 | AM75: 0 | AO75: NA
A76: =A75+1 -> 67 | B76: 40.50039372 | C76: NA | D76: NA | E76: NA | L76: NA | M76: NA | N76: NA | O76: NA | P76: NA | Q76: =Q75+1 -> 66 | R76: 40.50039372 | S76: 0.077 | T76: 441230.9814 | U76: 763045.0277 | V76: 1000 | W76: 292066.8485 | X76: 24.69111799 | Y76: =Y75+X76 -> 18865.12593 | AA76: 5000 | AB76: =AB75+AA76 -> 335000 | AD76: NA | AE76: NA | AF76: NA | AG76: 0 | AH76: 0 | AI76: 0 | AJ76: 0 | AK76: 0 | AL76: 0 | AM76: 0 | AO76: NA
A77: 68 | B77: 36.81485789 | C77: NA | D77: NA | E77: NA | L77: NA | M77: NA | N77: NA | O77: NA | P77: NA | Q77: 67 | R77: 36.81485789 | S77: -0.091 | T77: 449949.5729 | U77: 694516.9301 | V77: 1000 | W77: 293066.8485 | X77: 27.16294608 | Y77: 18892.28887 | AA77: 5000 | AB77: 340000 | AD77: NA | AE77: NA | AF77: NA | AG77: 0 | AH77: 0 | AI77: 0 | AJ77: 0 | AK77: 0 | AL77: 0 | AM77: 0 | AO77: NA
A78: 69 | B78: 34.20100298 | C78: NA | D78: NA | E78: NA | L78: NA | M78: NA | N78: NA | O78: NA | P78: NA | Q78: 68 | R78: 34.20100298 | S78: =(R78-R77)/R77 -> -0.071 | T78: 458740.8194 | U78: =(U77+V77)*(1+S78) -> 646135.2281 | V78: 1000 | W78: 294066.8485 | X78: 29.23890859 | Y78: 18921.52778 | AA78: 5000 | AB78: 345000 | AD78: NA | AE78: NA | AF78: NA | AG78: 0 | AH78: 0 | AI78: 0 | AJ78: 0 | AK78: 0 | AL78: 0 | AM78: 0 | AO78: NA
A79: 70 | B79: 37.45009826 | C79: NA | D79: NA | E79: NA | L79: NA | M79: NA | N79: NA | O79: NA | P79: NA | Q79: 69 | R79: 37.45009826 | S79: 0.095 | T79: 467605.3262 | U79: 708613.0748 | V79: 1000 | W79: 295066.8485 | X79: 26.70219963 | Y79: 18948.22998 | AA79: 5000 | AB79: 350000 | AD79: NA | AE79: NA | AF79: NA | AG79: 0 | AH79: 0 | AI79: 0 | AJ79: 0 | AK79: 0 | AL79: 0 | AM79: 0 | AO79: NA
A80: 71 | B80: 39.02300239 | C80: NA | D80: NA | E80: NA | L80: NA | M80: NA | N80: NA | O80: NA | P80: NA | Q80: 70 | R80: 39.02300239 | S80: 0.042 | T80: 476543.7039 | U80: 739416.8239 | V80: 1000 | W80: 296066.8485 | X80: 25.62591135 | Y80: 18973.85589 | AA80: 5000 | AB80: 355000 | AD80: NA | AE80: NA | AF80: NA | AG80: 0 | AH80: 0 | AI80: 0 | AJ80: 0 | AK80: 0 | AL80: 0 | AM80: 0 | AO80: NA
A81: 72 | B81: 41.44242854 | C81: NA | D81: NA | E81: NA | L81: NA | M81: NA | N81: NA | O81: NA | P81: NA | Q81: 71 | R81: 41.44242854 | S81: 0.062 | T81: 485556.5681 | U81: 786322.667 | V81: 1000 | W81: 297066.8485 | X81: 24.12986003 | Y81: 18997.98575 | AA81: 5000 | AB81: 360000 | AD81: NA | AE81: NA | AF81: NA | AG81: 0 | AH81: 0 | AI81: 0 | AJ81: 0 | AK81: 0 | AL81: 0 | AM81: 0 | AO81: NA
A82: 73 | B82: 46.99571396 | C82: NA | D82: NA | E82: NA | L82: NA | M82: NA | N82: NA | O82: NA | P82: NA | Q82: 72 | R82: 46.99571396 | S82: 0.134 | T82: 494644.5395 | U82: 892823.9044 | V82: 1000 | W82: 298066.8485 | X82: 21.27853618 | Y82: 19019.26429 | AA82: 5000 | AB82: 365000 | AD82: NA | AE82: NA | AF82: NA | AG82: 0 | AH82: 0 | AI82: 0 | AJ82: 0 | AK82: 0 | AL82: 0 | AM82: 0 | AO82: NA
A83: 74 | B83: 51.64828965 | C83: NA | D83: NA | E83: NA | L83: NA | M83: NA | N83: NA | O83: NA | P83: NA | Q83: 73 | R83: 51.64828965 | S83: 0.099 | T83: 503808.244 | U83: 982312.4709 | V83: 1000 | W83: 299066.8485 | X83: 19.36172537 | Y83: 19038.62602 | AA83: 5000 | AB83: 370000 | AD83: NA | AE83: NA | AF83: NA | AG83: 0 | AH83: 0 | AI83: 0 | AJ83: 0 | AK83: 0 | AL83: 0 | AM83: 0 | AO83: NA
A84: 75 | B84: 45.14060515 | C84: NA | D84: NA | E84: NA | L84: NA | M84: NA | N84: NA | O84: NA | P84: NA | Q84: 74 | R84: 45.14060515 | S84: -0.126 | T84: 513048.3127 | U84: 859415.0996 | V84: 1000 | W84: 300066.8485 | X84: 22.15300386 | Y84: 19060.77902 | AA84: 5000 | AB84: 375000 | AD84: NA | AE84: NA | AF84: NA | AG84: 0 | AH84: 0 | AI84: 0 | AJ84: 0 | AK84: 0 | AL84: 0 | AM84: 0 | AO84: NA
A85: 76 | B85: 47.08165117 | C85: NA | D85: NA | E85: NA | L85: NA | M85: NA | N85: NA | O85: NA | P85: NA | Q85: 75 | R85: 47.08165117 | S85: 0.043 | T85: 522365.382 | U85: 897412.9489 | V85: 1000 | W85: 301066.8485 | X85: 21.23969689 | Y85: 19082.01872 | AA85: 5000 | AB85: 380000 | AD85: NA | AE85: NA | AF85: NA | AG85: 0 | AH85: 0 | AI85: 0 | AJ85: 0 | AK85: 0 | AL85: 0 | AM85: 0 | AO85: NA
A86: 77 | B86: 49.20032548 | C86: NA | D86: NA | E86: NA | L86: NA | M86: NA | N86: NA | O86: NA | P86: NA | Q86: 76 | R86: 49.20032548 | S86: 0.045 | T86: 531760.0935 | U86: 938841.5316 | V86: 1000 | W86: 302066.8485 | X86: 20.32506879 | Y86: 19102.34378 | AA86: 5000 | AB86: 385000 | AD86: NA | AE86: NA | AF86: NA | AG86: 0 | AH86: 0 | AI86: 0 | AJ86: 0 | AK86: 0 | AL86: 0 | AM86: 0 | AO86: NA
A87: 78 | B87: 47.62591506 | C87: NA | D87: NA | E87: NA | L87: NA | M87: =IF(C87="NA","NA",IF(M86="NA",L87,M86+L87)) -> NA | N87: NA | O87: =IF(C87="NA","NA",IF(O86="NA",N87,O86+N87)) -> NA | P87: NA | Q87: 77 | R87: 47.62591506 | S87: -0.032 | T87: 541233.0943 | U87: 909766.6025 | V87: 1000 | W87: 303066.8485 | X87: 20.9969719 | Y87: 19123.34076 | AA87: 5000 | AB87: 390000 | AD87: NA | AE87: NA | AF87: NA | AG87: 0 | AH87: 0 | AI87: 0 | AJ87: 0 | AK87: 0 | AL87: 0 | AM87: 0 | AO87: NA
A88: 79 | B88: 46.91152633 | C88: NA | D88: NA | E88: NA | L88: NA | M88: NA | N88: NA | O88: NA | P88: NA | Q88: 78 | R88: 46.91152633 | S88: -0.015 | T88: 550785.0368 | U88: 897105.1035 | V88: 1000 | W88: 304066.8485 | X88: 21.31672274 | Y88: 19144.65748 | AA88: 5000 | AB88: 395000 | AD88: NA | AE88: NA | AF88: NA | AG88: 0 | AH88: 0 | AI88: 0 | AJ88: 0 | AK88: 0 | AL88: 0 | AM88: 0 | AO88: NA
A89: 80 | B89: 43.1116927 | C89: NA | D89: NA | E89: NA | L89: NA | M89: NA | N89: NA | O89: NA | P89: NA | Q89: 79 | R89: 43.1116927 | S89: -0.081 | T89: 560416.5787 | U89: 825358.5901 | V89: 1000 | W89: 305066.8485 | X89: 23.19556337 | Y89: 19167.85304 | AA89: 5000 | AB89: 400000 | AD89: NA | AE89: NA | AF89: NA | AG89: 0 | AH89: 0 | AI89: 0 | AJ89: 0 | AK89: 0 | AL89: 0 | AM89: 0 | AO89: NA
A90: 81 | B90: 46.25884627 | C90: NA | D90: NA | E90: NA | L90: NA | M90: NA | N90: NA | O90: NA | P90: NA | Q90: 80 | R90: 46.25884627 | S90: 0.073 | T90: 570128.3836 | U90: 886682.7672 | V90: 1000 | W90: 306066.8485 | X90: 21.61748683 | Y90: 19189.47053 | AA90: 5000 | AB90: 405000 | AD90: NA | AE90: NA | AF90: NA | AG90: 0 | AH90: 0 | AI90: 0 | AJ90: 0 | AK90: 0 | AL90: 0 | AM90: 0 | AO90: NA
A91: 82 | B91: 45.24115165 | C91: NA | D91: NA | E91: NA | L91: NA | M91: NA | N91: NA | O91: NA | P91: NA | Q91: 81 | R91: 45.24115165 | S91: -0.022 | T91: 579921.1201 | U91: 868153.7463 | V91: 1000 | W91: 307066.8485 | X91: 22.10376977 | Y91: 19211.5743 | AA91: 5000 | AB91: 410000 | AD91: NA | AE91: NA | AF91: NA | AG91: 0 | AH91: 0 | AI91: 0 | AJ91: 0 | AK91: 0 | AL91: 0 | AM91: 0 | AO91: NA
A92: 83 | B92: 39.26931963 | C92: NA | D92: NA | E92: NA | L92: NA | M92: NA | N92: NA | O92: NA | P92: NA | Q92: 82 | R92: 39.26931963 | S92: -0.132 | T92: 589795.4627 | U92: 754425.4518 | V92: 1000 | W92: 308066.8485 | X92: 25.46517254 | Y92: 19237.03947 | AA92: 5000 | AB92: 415000 | AD92: NA | AE92: NA | AF92: NA | AG92: 0 | AH92: 0 | AI92: 0 | AJ92: 0 | AK92: 0 | AL92: 0 | AM92: 0 | AO92: NA
A93: 84 | B93: 41.19351629 | C93: NA | D93: NA | E93: NA | L93: NA | M93: NA | N93: NA | O93: NA | P93: NA | Q93: 83 | R93: 41.19351629 | S93: 0.049 | T93: 599752.0916 | U93: 792441.2989 | V93: 1000 | W93: 309066.8485 | X93: 24.27566496 | Y93: 19261.31514 | AA93: 5000 | AB93: 420000 | AD93: NA | AE93: NA | AF93: NA | AG93: 0 | AH93: 0 | AI93: 0 | AJ93: 0 | AK93: 0 | AL93: 0 | AM93: 0 | AO93: NA
A94: 85 | B94: 43.50035321 | C94: NA | D94: NA | E94: NA | L94: NA | M94: NA | N94: NA | O94: NA | P94: NA | Q94: 84 | R94: 43.50035321 | S94: 0.056 | T94: 609791.6924 | U94: 837874.0117 | V94: 1000 | W94: 310066.8485 | X94: 22.98831909 | Y94: 19284.30346 | AA94: 5000 | AB94: 425000 | AD94: NA | AE94: NA | AF94: NA | AG94: 0 | AH94: 0 | AI94: 0 | AJ94: 0 | AK94: 0 | AL94: 0 | AM94: 0 | AO94: NA
A95: 86 | B95: 45.24036734 | C95: NA | D95: NA | E95: NA | L95: NA | M95: NA | N95: NA | O95: NA | P95: NA | Q95: 85 | R95: 45.24036734 | S95: 0.04 | T95: 619914.9565 | U95: 872428.9722 | V95: 1000 | W95: 311066.8485 | X95: 22.10415297 | Y95: 19306.40761 | AA95: 5000 | AB95: 430000 | AD95: NA | AE95: NA | AF95: NA | AG95: 0 | AH95: 0 | AI95: 0 | AJ95: 0 | AK95: 0 | AL95: 0 | AM95: 0 | AO95: NA
A96: 87 | B96: 40.08296546 | C96: NA | D96: NA | E96: NA | L96: NA | M96: NA | N96: NA | O96: NA | P96: NA | Q96: 86 | R96: 40.08296546 | S96: -0.114 | T96: 630122.5811 | U96: 773858.0693 | V96: 1000 | W96: 312066.8485 | X96: 24.94825392 | Y96: 19331.35586 | AA96: 5000 | AB96: 435000 | AD96: NA | AE96: NA | AF96: NA | AG96: 0 | AH96: 0 | AI96: 0 | AJ96: 0 | AK96: 0 | AL96: 0 | AM96: 0 | AO96: NA
A97: 88 | B97: 37.67798753 | C97: NA | D97: NA | E97: NA | L97: NA | M97: NA | N97: NA | O97: NA | P97: NA | Q97: 87 | R97: 37.67798753 | S97: -0.06 | T97: 640415.2693 | U97: 728366.5852 | V97: 1000 | W97: 313066.8485 | X97: 26.54069566 | Y97: 19357.89656 | AA97: 5000 | AB97: 440000 | AD97: NA | AE97: NA | AF97: NA | AG97: 0 | AH97: 0 | AI97: 0 | AJ97: 0 | AK97: 0 | AL97: 0 | AM97: 0 | AO97: NA
A98: 89 | B98: 36.28390199 | C98: NA | D98: NA | E98: NA | L98: NA | M98: NA | N98: NA | O98: NA | P98: NA | Q98: 88 | R98: 36.28390199 | S98: -0.037 | T98: 650793.7299 | U98: 702380.0215 | V98: 1000 | W98: 314066.8485 | X98: 27.56043163 | Y98: 19385.45699 | AA98: 5000 | AB98: 445000 | AD98: NA | AE98: NA | AF98: NA | AG98: 0 | AH98: 0 | AI98: 0 | AJ98: 0 | AK98: 0 | AL98: 0 | AM98: 0 | AO98: NA
A99: 90 | B99: 34.07058397 | C99: NA | D99: NA | E99: NA | L99: NA | M99: NA | N99: NA | O99: NA | P99: NA | Q99: 89 | R99: 34.07058397 | S99: -0.061 | T99: 661258.6776 | U99: 660473.8402 | V99: 5784.837404 | W99: 319851.6859 | X99: 169.7897931 | Y99: 19555.24678 | AA99: 5000 | AB99: 450000 | AD99: NA | AE99: NA | AF99: NA | AG99: 0 | AH99: 0 | AI99: 0 | AJ99: 0 | AK99: 0 | AL99: 0 | AM99: 0 | AO99: NA
A100: 91 | B100: 38.39754814 | C100: NA | D100: NA | E100: NA | L100: NA | M100: NA | N100: NA | O100: NA | P100: NA | Q100: 90 | R100: 38.39754814 | S100: 0.127 | T100: 671810.8333 | U100: 750873.5297 | V100: 1000 | W100: 320851.6859 | X100: 26.04332955 | Y100: 19581.29011 | AA100: 5000 | AB100: 455000 | AD100: NA | AE100: NA | AF100: NA | AG100: 0 | AH100: 0 | AI100: 0 | AJ100: 0 | AK100: 0 | AL100: 0 | AM100: 0 | AO100: =IF(C100="NA","NA",INT(C100/12)-(C100/12)) -> NA
A101: 92 | B101: 37.89838001 | C101: NA | D101: NA | E101: NA | L101: NA | M101: NA | N101: NA | O101: NA | P101: NA | Q101: 91 | R101: 37.89838001 | S101: -0.013 | T101: 682450.9235 | U101: 742099.1738 | V101: 1000 | W101: 321851.6859 | X101: 26.38635213 | Y101: 19607.67646 | AA101: 5000 | AB101: 460000 | AD101: NA | AE101: NA | AF101: NA | AG101: 0 | AH101: 0 | AI101: 0 | AJ101: 0 | AK101: 0 | AL101: 0 | AM101: 0 | AO101: NA
A102: 93 | B102: 35.28339179 | C102: NA | D102: NA | E102: NA | L102: NA | M102: NA | N102: NA | O102: NA | P102: NA | Q102: 92 | R102: 35.28339179 | S102: -0.069 | T102: 693179.6812 | U102: 691825.3308 | V102: 6354.35044 | W102: 328206.0363 | X102: 180.0946598 | Y102: 19787.77112 | AA102: 5000 | AB102: 465000 | AD102: NA | AE102: NA | AF102: NA | AG102: 0 | AH102: 0 | AI102: 0 | AJ102: 0 | AK102: 0 | AL102: 0 | AM102: 0 | AO102: NA
A103: 94 | B103: 35.35395857 | C103: NA | D103: NA | E103: NA | L103: NA | M103: NA | N103: NA | O103: NA | P103: NA | Q103: 93 | R103: 35.35395857 | S103: 0.002 | T103: 703997.8452 | U103: 699576.0406 | V103: 9421.804648 | W103: 337627.841 | X103: 266.499284 | Y103: 20054.27041 | AA103: 5000 | AB103: 470000 | AD103: NA | AE103: NA | AF103: NA | AG103: 0 | AH103: 0 | AI103: 0 | AJ103: 0 | AK103: 0 | AL103: 0 | AM103: 0 | AO103: NA
A104: 95 | B104: 33.76303044 | C104: NA | D104: NA | E104: NA | L104: NA | M104: NA | N104: NA | O104: NA | P104: NA | Q104: 94 | R104: 33.76303044 | S104: -0.045 | T104: 714906.1606 | U104: 677092.9422 | V104: 15000 | W104: 352627.841 | X104: 444.2729164 | Y104: 20498.54333 | AA104: 5000 | AB104: 475000 | AD104: NA | AE104: NA | AF104: NA | AG104: 0 | AH104: 0 | AI104: 0 | AJ104: 0 | AK104: 0 | AL104: 0 | AM104: 0 | AO104: NA
A105: 96 | B105: 34.70839529 | C105: NA | D105: NA | E105: NA | L105: NA | M105: NA | N105: NA | O105: NA | P105: NA | Q105: 95 | R105: 34.70839529 | S105: 0.028 | T105: 725905.3786 | U105: 711471.5446 | V105: 15000 | W105: 367627.841 | X105: 432.1720977 | Y105: 20930.71542 | AA105: 5000 | AB105: 480000 | AD105: NA | AE105: NA | AF105: NA | AG105: 0 | AH105: 0 | AI105: 0 | AJ105: 0 | AK105: 0 | AL105: 0 | AM105: 0 | AO105: NA
A106: 97 | B106: 34.70839529 | C106: 0 | D106: 0 | E106: 5000 | L106: 5000 | M106: 5000 | N106: 144.0573659 | O106: 144.0573659 | P106: 5000 | Q106: 96 | R106: 34.70839529 | S106: 0 | T106: 736996.2568 | U106: 726471.5446 | V106: 15000 | W106: 382627.841 | X106: 432.1720977 | Y106: 21362.88752 | AA106: 5000 | AB106: 485000 | AD106: -5000 | AE106: -5000 | AF106: 0 | AG106: 0 | AH106: 0 | AI106: 0 | AJ106: 0 | AK106: 0 | AL106: 0 | AM106: 0 | AO106: 0
A107: 98 | B107: 32.20939083 | C107: 1 | D107: -0.072 | E107: 5041.666667 | L107: 5000 | M107: 10000 | N107: 155.2342305 | O107: 299.2915964 | P107: 9640 | Q107: 97 | R107: 32.20939083 | S107: -0.072 | T107: 748179.5589 | U107: 688085.5934 | V107: 15000 | W107: 397627.841 | X107: 465.7026915 | Y107: 21828.59021 | AA107: 5000 | AB107: 490000 | AD107: -5000 | AE107: -5000 | AF107: 0 | AG107: 0 | AH107: 0 | AI107: 0 | AJ107: 0 | AK107: 0 | AL107: 0 | AM107: 0 | AO107: -0.08333333333
A108: 99 | B108: 31.30752789 | C108: 2 | D108: -0.028 | E108: 10125.34722 | L108: 5000 | M108: 15000 | N108: 159.7059985 | O108: 458.9975948 | P108: 14370.08 | Q108: 98 | R108: 31.30752789 | S108: -0.028 | T108: 759456.0552 | U108: 683399.1968 | V108: 15000 | W108: 412627.841 | X108: 479.1179954 | Y108: 22307.70821 | AA108: 5000 | AB108: 495000 | AD108: -5000 | AE108: -5000 | AF108: 0 | AG108: 0 | AH108: 0 | AI108: 0 | AJ108: 0 | AK108: 0 | AL108: 0 | AM108: 0 | AO108: -0.1666666667
A109: 100 | B109: 37.06811302 | C109: 3 | D109: 0.184 | E109: 15251.39178 | L109: 5000 | M109: 20000 | N109: 134.886823 | O109: 593.8844179 | P109: 22014.17472 | Q109: 99 | R109: 37.06811302 | S109: 0.184 | T109: 770826.5224 | U109: 826904.649 | V109: 1000 | W109: 413627.841 | X109: 26.9773646 | Y109: 22334.68557 | AA109: 5000 | AB109: 500000 | AD109: -5000 | AE109: -5000 | AF109: 0 | AG109: 0 | AH109: 0 | AI109: 0 | AJ109: 0 | AK109: 0 | AL109: 0 | AM109: 0 | AO109: -0.25
A110: 101 | B110: 45.59377901 | C110: 4 | D110: 0.23 | E110: 20420.15338 | L110: 5000 | M110: 25000 | N110: 109.6640838 | O110: 703.5485016 | P110: 32077.43491 | Q110: 100 | R110: 45.59377901 | S110: 0.23 | T110: 782291.7434 | U110: 1018322.718 | V110: 1000 | W110: 414627.841 | X110: 21.93281675 | Y110: 22356.61839 | AA110: 5000 | AB110: 505000 | AD110: -5000 | AE110: -5000 | AF110: 0 | AG110: 0 | AH110: 0 | AI110: 0 | AJ110: 0 | AK110: 0 | AL110: 0 | AM110: 0 | AO110: -0.3333333333
A111: 102 | B111: 45.86734168 | C111: 5 | D111: 0.006 | E111: 25631.98799 | L111: 5000 | M111: 30000 | N111: 109.0100236 | O111: 812.5585252 | P111: 37269.89952 | Q111: 101 | R111: 45.86734168 | S111: 0.006 | T111: 793852.5079 | U111: 1025438.655 | V111: 1000 | W111: 415627.841 | X111: 21.80200472 | Y111: 22378.42039 | AA111: 5000 | AB111: 510000 | AD111: -5000 | AE111: -5000 | AF111: 0 | AG111: 0 | AH111: 0 | AI111: 0 | AJ111: 0 | AK111: 0 | AL111: 0 | AM111: 0 | AO111: -0.4166666667
A112: 103 | B112: 47.4268313 | C112: 6 | D112: 0.034 | E112: 30887.25456 | L112: 5000 | M112: 35000 | N112: 105.4255548 | O112: 917.98408 | P112: 43537.0761 | Q112: 102 | R112: 47.4268313 | S112: 0.034 | T112: 805509.6121 | U112: 1061337.569 | V112: 1000 | W112: 416627.841 | X112: 21.08511095 | Y112: 22399.5055 | AA112: 5000 | AB112: 515000 | AD112: -5000 | AE112: -5000 | AF112: 0 | AG112: 0 | AH112: 0 | AI112: 0 | AJ112: 0 | AK112: 0 | AL112: 0 | AM112: 0 | AO112: -0.5
A113: 104 | B113: 46.668002 | C113: 7 | D113: -0.016 | E113: 36186.31501 | L113: 5000 | M113: 40000 | N113: 107.1397914 | O113: 1025.123871 | P113: 47840.48288 | Q113: 103 | R113: 46.668002 | S113: -0.016 | T113: 817263.8589 | U113: 1045340.168 | V113: 1000 | W113: 417627.841 | X113: 21.42795828 | Y113: 22420.93346 | AA113: 5000 | AB113: 520000 | AD113: -5000 | AE113: -5000 | AF113: 0 | AG113: 0 | AH113: 0 | AI113: 0 | AJ113: 0 | AK113: 0 | AL113: 0 | AM113: 0 | AO113: -0.5833333333
A114: 105 | B114: 52.08149023 | C114: 8 | D114: 0.116 | E114: 41529.53431 | L114: 5000 | M114: 45000 | N114: 96.00339732 | O114: 1121.127269 | P114: 58389.9789 | Q114: 104 | R114: 52.08149023 | S114: 0.116 | T114: 829116.0577 | U114: 1167715.627 | V114: 1000 | W114: 418627.841 | X114: 19.20067946 | Y114: 22440.13414 | AA114: 5000 | AB114: 525000 | AD114: -5000 | AE114: -5000 | AF114: 0 | AG114: 0 | AH114: 0 | AI114: 0 | AJ114: 0 | AK114: 0 | AL114: 0 | AM114: 0 | AO114: -0.6666666667
A115: 106 | B115: 51.40443086 | C115: 9 | D115: -0.013 | E115: 46917.28042 | L115: 5000 | M115: 50000 | N115: 97.26787976 | O115: 1218.395148 | P115: 62630.90917 | Q115: 105 | R115: 51.40443086 | S115: -0.013 | T115: 841067.0249 | U115: 1153522.324 | V115: 1000 | W115: 419627.841 | X115: 19.45357595 | Y115: 22459.58772 | AA115: 5000 | AB115: 530000 | AD115: -5000 | AE115: -5000 | AF115: 0 | AG115: 0 | AH115: 0 | AI115: 0 | AJ115: 0 | AK115: 0 | AL115: 0 | AM115: 0 | AO115: -0.75
A116: 107 | B116: 55.56818976 | C116: 10 | D116: 0.081 | E116: 52349.92443 | L116: 5000 | M116: 55000 | N116: 89.97953724 | O116: 1308.374686 | P116: 72704.01281 | Q116: 106 | R116: 55.56818976 | S116: 0.081 | T116: 853117.5834 | U116: 1248038.632 | V116: 1000 | W116: 420627.841 | X116: 17.99590745 | Y116: 22477.58363 | AA116: 5000 | AB116: 535000 | AD116: -5000 | AE116: -5000 | AF116: 0 | AG116: 0 | AH116: 0 | AI116: 0 | AJ116: 0 | AK116: 0 | AL116: 0 | AM116: 0 | AO116: -0.8333333333
A117: 108 | B117: 52.34523475 | C117: 11 | D117: -0.058 | E117: 57827.84046 | L117: 5000 | M117: 60000 | N117: 95.5196786 | O117: 1403.894364 | P117: 73487.18007 | Q117: 107 | R117: 52.34523475 | S117: -0.058 | T117: 865268.5633 | U117: 1176594.392 | V117: 1000 | W117: 421627.841 | X117: 19.10393572 | Y117: 22496.68756 | AA117: 5000 | AB117: 540000 | AD117: -5000 | AE117: -5000 | AF117: 0 | AG117: 0 | AH117: 0 | AI117: 0 | AJ117: 0 | AK117: 0 | AL117: 0 | AM117: 0 | AO117: -0.9166666667
A118: 109 | B118: 53.33979421 | C118: 12 | D118: 0.019 | E118: 63351.4058 | L118: 5505 | M118: 65505 | N118: 103.2062474 | O118: 1507.100612 | P118: 80388.43649 | Q118: 108 | R118: 53.33979421 | S118: 0.019 | T118: 877520.8013 | U118: 1199968.685 | V118: 1000 | W118: 422627.841 | X118: 18.74772887 | Y118: 22515.43529 | AA118: 5000 | AB118: 545000 | AD118: -5000 | AE118: -5000 | AF118: 0 | AG118: 0 | AH118: 0 | AI118: 0 | AJ118: 0 | AK118: 0 | AL118: 0 | AM118: 0 | AO118: 0
A119: 110 | B119: 52.16631874 | C119: 13 | D119: -0.022 | E119: 68921.00085 | L119: 5505 | M119: 71010 | N119: 105.5278604 | O119: 1612.628472 | P119: 84124.89089 | Q119: 109 | R119: 52.16631874 | S119: -0.022 | T119: 889875.1413 | U119: 1174547.374 | V119: 1000 | W119: 423627.841 | X119: 19.16945692 | Y119: 22534.60475 | AA119: 5000 | AB119: 550000 | AD119: -5000 | AE119: -5000 | AF119: 0 | AG119: 0 | AH119: 0 | AI119: 0 | AJ119: 0 | AK119: 0 | AL119: 0 | AM119: 0 | AO119: -0.08333333333
A120: 111 | B120: 56.07879265 | C120: 14 | D120: 0.075 | E120: 74537.00919 | L120: 5505 | M120: 76515 | N120: 98.16545151 | O120: 1710.793924 | P120: 95939.2577 | Q120: 110 | R120: 56.07879265 | S120: 0.075 | T120: 902332.4342 | U120: 1263713.427 | V120: 1000 | W120: 424627.841 | X120: 17.83205295 | Y120: 22552.4368 | AA120: 5000 | AB120: 555000 | AD120: -5000 | AE120: -5000 | AF120: 0 | AG120: 0 | AH120: 0 | AI120: 0 | AJ120: 0 | AK120: 0 | AL120: 0 | AM120: 0 | AO120: -0.1666666667
A121: 112 | B121: 61.35019915 | C121: 15 | D121: 0.094 | E121: 80199.8176 | L121: 5505 | M121: 82020 | N121: 89.73076006 | O121: 1800.524684 | P121: 110462.5479 | Q121: 111 | R121: 61.35019915 | S121: 0.094 | T121: 914893.5378 | U121: 1383596.489 | V121: 1000 | W121: 425627.841 | X121: 16.29986559 | Y121: 22568.73667 | AA121: 5000 | AB121: 560000 | AD121: -5000 | AE121: -5000 | AF121: 0 | AG121: 0 | AH121: 0 | AI121: 0 | AJ121: 0 | AK121: 0 | AL121: 0 | AM121: 0 | AO121: -0.25
A122: 113 | B122: 54.35627645 | C122: 16 | D122: -0.114 | E122: 85909.81608 | L122: 5505 | M122: 87525 | N122: 101.2762529 | O122: 1901.800937 | P122: 103374.8175 | Q122: 112 | R122: 54.35627645 | S122: -0.114 | T122: 927559.3173 | U122: 1226752.489 | V122: 1000 | W122: 426627.841 | X122: 18.39713949 | Y122: 22587.13381 | AA122: 5000 | AB122: 565000 | AD122: -5000 | AE122: -5000 | AF122: 0 | AG122: 0 | AH122: 0 | AI122: 0 | AJ122: 0 | AK122: 0 | AL122: 0 | AM122: 0 | AO122: -0.3333333333
A123: 114 | B123: 62.29229281 | C123: 17 | D123: 0.146 | E123: 91667.39788 | L123: 5505 | M123: 93030 | N123: 88.37369362 | O123: 1990.17463 | P123: 123972.5408 | Q123: 113 | R123: 62.29229281 | S123: 0.146 | T123: 940330.6449 | U123: 1407004.353 | V123: 1000 | W123: 427627.841 | X123: 16.05335034 | Y123: 22603.18716 | AA123: 5000 | AB123: 570000 | AD123: -5000 | AE123: -5000 | AF123: 0 | AG123: 0 | AH123: 0 | AI123: 0 | AJ123: 0 | AK123: 0 | AL123: 0 | AM123: 0 | AO123: -0.4166666667
A124: 115 | B124: 56.3122327 | C124: 18 | D124: -0.096 | E124: 97472.95953 | L124: 5505 | M124: 98535 | N124: 97.75851064 | O124: 2087.933141 | P124: 117576.1769 | Q124: 114 | R124: 56.3122327 | S124: -0.096 | T124: 953208.4003 | U124: 1272835.935 | V124: 1000 | W124: 428627.841 | X124: 17.75813091 | Y124: 22620.94529 | AA124: 5000 | AB124: 575000 | AD124: -5000 | AE124: -5000 | AF124: 0 | AG124: 0 | AH124: 0 | AI124: 0 | AJ124: 0 | AK124: 0 | AL124: 0 | AM124: 0 | AO124: -0.5
A125: 116 | B125: 57.66372629 | C125: 19 | D125: 0.024 | E125: 103326.9009 | L125: 5505 | M125: 104040 | N125: 95.46729555 | O125: 2183.400436 | P125: 125903.0051 | Q125: 115 | R125: 57.66372629 | S125: 0.024 | T125: 966193.4703 | U125: 1304407.997 | V125: 1000 | W125: 429627.841 | X125: 17.34192471 | Y125: 22638.28721 | AA125: 5000 | AB125: 580000 | AD125: -5000 | AE125: -5000 | AF125: 0 | AG125: 0 | AH125: 0 | AI125: 0 | AJ125: 0 | AK125: 0 | AL125: 0 | AM125: 0 | AO125: -0.5833333333
A126: 117 | B126: 58.81700081 | C126: 20 | D126: 0.02 | E126: 109229.625 | L126: 5505 | M126: 109545 | N126: 93.59538779 | O126: 2276.995824 | P126: 133926.0652 | Q126: 116 | R126: 58.81700081 | S126: 0.02 | T126: 979286.7492 | U126: 1331516.157 | V126: 1000 | W126: 430627.841 | X126: 17.00188697 | Y126: 22655.2891 | AA126: 5000 | AB126: 585000 | AD126: -5000 | AE126: -5000 | AF126: 0 | AG126: 0 | AH126: 0 | AI126: 0 | AJ126: 0 | AK126: 0 | AL126: 0 | AM126: 0 | AO126: -0.6666666667
A127: 118 | B127: 58.69936681 | C127: 21 | D127: -0.002 | E127: 115181.5386 | L127: 5505 | M127: 115050 | N127: 93.7829537 | O127: 2370.778778 | P127: 139163.2131 | Q127: 117 | R127: 58.69936681 | S127: -0.002 | T127: 992489.1388 | U127: 1329851.125 | V127: 1000 | W127: 431627.841 | X127: 17.03595889 | Y127: 22672.32506 | AA127: 5000 | AB127: 590000 | AD127: -5000 | AE127: -5000 | AF127: 0 | AG127: 0 | AH127: 0 | AI127: 0 | AJ127: 0 | AK127: 0 | AL127: 0 | AM127: 0 | AO127: -0.75
A128: 119 | B128: 54.23821493 | C128: 22 | D128: -0.076 | E128: 121183.0514 | L128: 5505 | M128: 120555 | N128: 101.4967031 | O128: 2472.275481 | P128: 134091.8089 | Q128: 118 | R128: 54.23821493 | S128: -0.076 | T128: 1005801.548 | U128: 1229706.44 | V128: 1000 | W128: 432627.841 | X128: 18.43718495 | Y128: 22690.76224 | AA128: 5000 | AB128: 595000 | AD128: -5000 | AE128: -5000 | AF128: 0 | AG128: 0 | AH128: 0 | AI128: 0 | AJ128: 0 | AK128: 0 | AL128: 0 | AM128: 0 | AO128: -0.8333333333
A129: 120 | B129: 61.23494466 | C129: 23 | D129: 0.129 | E129: 127234.5768 | L129: 5505 | M129: 126060 | N129: 89.89964848 | O129: 2562.17513 | P129: 156894.6523 | Q129: 119 | R129: 61.23494466 | S129: 0.129 | T129: 1019224.895 | U129: 1389467.57 | V129: 1000 | W129: 433627.841 | X129: 16.33054468 | Y129: 22707.09279 | AA129: 5000 | AB129: 600000 | AD129: -5000 | AE129: -5000 | AF129: 0 | AG129: 0 | AH129: 0 | AI129: 0 | AJ129: 0 | AK129: 0 | AL129: 0 | AM129: 0 | AO129: -0.9166666667
A130: 121 | B130: 53.76428141 | C130: 24 | D130: -0.122 | E130: 133336.5316 | L130: 6061.005 | M130: 132121.005 | N130: 112.7329305 | O130: 2674.90806 | P130: 143814.5097 | Q130: 120 | R130: 53.76428141 | S130: -0.122 | T130: 1032760.102 | U130: 1220830.527 | V130: 1000 | W130: 434627.841 | X130: 18.59970921 | Y130: 22725.6925 | AA130: 5000 | AB130: 605000 | AD130: -5000 | AE130: -5000 | AF130: 0 | AG130: 0 | AH130: 0 | AI130: 0 | AJ130: 0 | AK130: 0 | AL130: 0 | AM130: 0 | AO130: 0
A131: 122 | B131: 53.2266386 | C131: 25 | D131: -0.01 | E131: 139489.3361 | L131: 6061.005 | M131: 138182.01 | N131: 113.871647 | O131: 2788.779707 | P131: 148437.3696 | Q131: 121 | R131: 53.2266386 | S131: -0.01 | T131: 1046408.103 | U131: 1209612.221 | V131: 1000 | W131: 435627.841 | X131: 18.78758506 | Y131: 22744.48008 | AA131: 5000 | AB131: 610000 | AD131: -5000 | AE131: -5000 | AF131: 0 | AG131: 0 | AH131: 0 | AI131: 0 | AJ131: 0 | AK131: 0 | AL131: 0 | AM131: 0 | AO131: -0.08333333333
A132: 123 | B132: 61.47676758 | C132: 26 | D132: 0.155 | E132: 145693.4139 | L132: 6061.005 | M132: 144243.015 | N132: 98.59017054 | O132: 2887.369878 | P132: 177506.1669 | Q132: 122 | R132: 61.47676758 | S132: 0.155 | T132: 1060169.837 | U132: 1398257.116 | V132: 1000 | W132: 436627.841 | X132: 16.26630741 | Y132: 22760.74639 | AA132: 5000 | AB132: 615000 | AD132: -5000 | AE132: -5000 | AF132: 0 | AG132: 0 | AH132: 0 | AI132: 0 | AJ132: 0 | AK132: 0 | AL132: 0 | AM132: 0 | AO132: -0.1666666667
A133: 124 | B133: 62.5833494 | C133: 27 | D133: 0.018 | E133: 151949.1923 | L133: 6061.005 | M133: 150304.02 | N133: 96.84692587 | O133: 2984.216803 | P133: 186762.2829 | Q133: 123 | R133: 62.5833494 | S133: 0.018 | T133: 1074046.252 | U133: 1424443.744 | V133: 1000 | W133: 437627.841 | X133: 15.97869097 | Y133: 22776.72508 | AA133: 5000 | AB133: 620000 | AD133: -5000 | AE133: -5000 | AF133: 0 | AG133: 0 | AH133: 0 | AI133: 0 | AJ133: 0 | AK133: 0 | AL133: 0 | AM133: 0 | AO133: -0.25
A134: 125 | B134: 63.02143284 | C134: 28 | D134: 0.007 | E134: 158257.1022 | L134: 6061.005 | M134: 156365.025 | N134: 96.1737099 | O134: 3080.390513 | P134: 194130.6239 | Q134: 124 | R134: 63.02143284 | S134: 0.007 | T134: 1088038.304 | U134: 1435421.85 | V134: 1000 | W134: 438627.841 | X134: 15.86761765 | Y134: 22792.5927 | AA134: 5000 | AB134: 625000 | AD134: -5000 | AE134: -5000 | AF134: 0 | AG134: 0 | AH134: 0 | AI134: 0 | AJ134: 0 | AK134: 0 | AL134: 0 | AM134: 0 | AO134: -0.3333333333
A135: 126 | B135: 66.92876168 | C135: 29 | D135: 0.062 | E135: 164617.5781 | L135: 6061.005 | M135: 162426.03 | N135: 90.55904887 | O135: 3170.949562 | P135: 212227.7275 | Q135: 125 | R135: 66.92876168 | S135: 0.062 | T135: 1102146.957 | U135: 1525480.005 | V135: 1000 | W135: 439627.841 | X135: 14.94125956 | Y135: 22807.53396 | AA135: 5000 | AB135: 630000 | AD135: -5000 | AE135: -5000 | AF135: 0 | AG135: 0 | AH135: 0 | AI135: 0 | AJ135: 0 | AK135: 0 | AL135: 0 | AM135: 0 | AO135: -0.4166666667
A136: 127 | B136: 86.47196009 | C136: 30 | D136: 0.292 | E136: 171031.0579 | L136: 6061.005 | M136: 168487.035 | N136: 70.09214309 | O136: 3241.041705 | P136: 280259.229 | Q136: 126 | R136: 86.47196009 | S136: 0.292 | T136: 1116373.182 | U136: 1972212.166 | V136: 1000 | W136: 440627.841 | X136: 11.56444238 | Y136: 22819.0984 | AA136: 5000 | AB136: 635000 | AD136: -5000 | AE136: -5000 | AF136: 0 | AG136: 0 | AH136: 0 | AI136: 0 | AJ136: 0 | AK136: 0 | AL136: 0 | AM136: 0 | AO136: -0.5
A137: 128 | B137: 98.1456747 | C137: 31 | D137: 0.135 | E137: 177497.9834 | L137: 6061.005 | M137: 174548.04 | N137: 61.75519215 | O137: 3302.796897 | P137: 324155.2299 | Q137: 127 | R137: 98.1456747 | S137: 0.135 | T137: 1130717.958 | U137: 2239595.808 | V137: 1000 | W137: 441627.841 | X137: 10.18893602 | Y137: 22829.28733 | AA137: 5000 | AB137: 640000 | AD137: -5000 | AE137: -5000 | AF137: 0 | AG137: 0 | AH137: 0 | AI137: 0 | AJ137: 0 | AK137: 0 | AL137: 0 | AM137: 0 | AO137: -0.5833333333
A138: 129 | B138: 111.6897778 | C138: =IF(AND(A138>=startm,A138<=endm),A138-startm,"NA") -> 32 | D138: 0.138 | E138: =IF(C138="NA","NA",IF(C138=0,typical,(1+return/12)*typical*((1+return/12)^C138-1)/(return/12))) -> 184018.7999 | L138: =IF(C138="NA","NA",IF(C138=0,typical,IF(L137="NA",typical,IF(INT(C138/12)-(C138/12)=0,L137*(1+gsip1),L137)))) -> 6061.005 | M138: 180609.045 | N138: 54.26642544 | O138: 3357.063323 | P138: 374949.6566 | Q138: 128 | R138: 111.6897778 | S138: 0.138 | T138: 1145182.274 | U138: 2549798.03 | V138: 1000 | W138: 442627.841 | X138: =V138/R138 -> 8.953370842 | Y138: 22838.24071 | AA138: =typical -> 5000 | AB138: 645000 | AD138: =IF(A138=endm,E138,IF(C138="NA","NA",-typical)) -> -5000 | AE138: =IF(A138=endm,P138,IF(C138="NA","NA",-typical)) -> -5000 | AF138: =IF(A138=endm,F138,IF(C138="NA","NA",-G138)) -> 0 | AG138: =IF(A138=endm,O138,0) -> 0 | AH138: =IF(A138=endm,J138,0) -> 0 | AI138: =IF(A138=endm,E138,0) -> 0 | AJ138: =IF(A138=endm,P138,0) -> 0 | AK138: =IF(A138=endm,F138,0) -> 0 | AL138: =IF(A138=endm,M138,0) -> 0 | AM138: =IF(A138=endm,H138,0) -> 0 | AO138: -0.6666666667
A139: 130 | B139: 101.8610774 | C139: 33 | D139: =IF(C139="NA","NA",IF(C139=0,0,(B139-B138)/B138)) -> -0.088 | E139: 190593.9566 | L139: 6061.005 | M139: 186670.05 | N139: =IF(C139="NA","NA",L139/B139) -> 59.50265947 | O139: 3416.565982 | P139: =IF(C139="NA","NA",O139*B139) -> 348015.0918 | Q139: 129 | R139: 101.8610774 | S139: -0.088 | T139: =(1+return/12)*typical*((1+return/12)^Q139-1)/(return/12) -> 1159767.127 | U139: 2326327.803 | V139: =IF((U139-T139)>0,IF(typical-(U139-T139)<min,min,typical-(U139-T139)),IF((U139-T139)<0,IF(typical-(U139-T139)>max,max,typical-(U139-T139)),IF((T139-U139)=0,min,))) -> 1000 | W139: =W138+V139 -> 443627.841 | X139: 9.81729259 | Y139: 22848.058 | AA139: 5000 | AB139: 650000 | AD139: -5000 | AE139: -5000 | AF139: 0 | AG139: 0 | AH139: 0 | AI139: 0 | AJ139: 0 | AK139: 0 | AL139: 0 | AM139: 0 | AO139: -0.75
A140: =A139+1 -> 131 | B140: 94.11963548 | C140: 34 | D140: -0.076 | E140: 197223.9062 | L140: 6061.005 | M140: 192731.055 | N140: 64.39681761 | O140: 3480.9628 | P140: 327626.9499 | Q140: =Q139+1 -> 130 | R140: 94.11963548 | S140: -0.076 | T140: 1174473.519 | U140: 2150450.89 | V140: 1000 | W140: 444627.841 | X140: 10.62477553 | Y140: =Y139+X140 -> 22858.68277 | AA140: 5000 | AB140: =AB139+AA140 -> 655000 | AD140: -5000 | AE140: -5000 | AF140: 0 | AG140: 0 | AH140: 0 | AI140: 0 | AJ140: 0 | AK140: 0 | AL140: 0 | AM140: 0 | AO140: -0.8333333333
A141: 132 | B141: 82.44880068 | C141: 35 | D141: -0.124 | E141: 203909.1055 | L141: 6061.005 | M141: 198792.06 | N141: 73.51234887 | O141: 3554.475149 | P141: 293062.2131 | Q141: 131 | R141: 82.44880068 | S141: -0.124 | T141: 1189302.465 | U141: 1884670.98 | V141: 1000 | W141: 445627.841 | X141: 12.12873919 | Y141: 22870.81151 | AA141: 5000 | AB141: 660000 | AD141: -5000 | AE141: -5000 | AF141: 0 | AG141: 0 | AH141: 0 | AI141: 0 | AJ141: 0 | AK141: 0 | AL141: 0 | AM141: 0 | AO141: -0.9166666667
A142: 133 | B142: 77.25452624 | C142: 36 | D142: -0.063 | E142: 210650.0147 | L142: 6673.166505 | M142: 205465.2265 | N142: 86.3789713 | O142: 3640.85412 | P142: 281272.4602 | Q142: 132 | R142: 77.25452624 | S142: =(R142-R141)/R141 -> -0.063 | T142: 1204254.986 | U142: =(U141+V141)*(1+S142) -> 1766873.708 | V142: 1000 | W142: 446627.841 | X142: 12.94422539 | Y142: 22883.75574 | AA142: 5000 | AB142: 665000 | AD142: -5000 | AE142: -5000 | AF142: 0 | AG142: 0 | AH142: 0 | AI142: 0 | AJ142: 0 | AK142: 0 | AL142: 0 | AM142: 0 | AO142: 0
A143: 134 | B143: 95.95012159 | C143: 37 | D143: 0.242 | E143: 217447.0981 | L143: 6673.166505 | M143: 212138.393 | N143: 69.54828607 | O143: 3710.402406 | P143: 356013.562 | Q143: 133 | R143: 95.95012159 | S143: 0.242 | T143: 1219332.111 | U143: 2195699.146 | V143: 1000 | W143: 447627.841 | X143: 10.42208163 | Y143: 22894.17782 | AA143: 5000 | AB143: 670000 | AD143: -5000 | AE143: -5000 | AF143: 0 | AG143: 0 | AH143: 0 | AI143: 0 | AJ143: 0 | AK143: 0 | AL143: 0 | AM143: 0 | AO143: -0.08333333333
A144: 135 | B144: 91.82426636 | C144: 38 | D144: -0.043 | E144: 224300.8239 | L144: 6673.166505 | M144: 218811.5595 | N144: 72.67323518 | O144: 3783.075641 | P144: 347378.1454 | Q144: 134 | R144: 91.82426636 | S144: -0.043 | T144: 1234534.878 | U144: 2102241.082 | V144: 1000 | W144: 448627.841 | X144: 10.89036743 | Y144: 22905.06819 | AA144: 5000 | AB144: 675000 | AD144: -5000 | AE144: -5000 | AF144: 0 | AG144: 0 | AH144: 0 | AI144: 0 | AJ144: 0 | AK144: 0 | AL144: 0 | AM144: 0 | AO144: -0.1666666667
A145: 136 | B145: 97.05824954 | C145: 39 | D145: 0.057 | E145: 231211.6641 | L145: 6673.166505 | M145: 225484.726 | N145: 68.75424332 | O145: 3851.829885 | P145: 373851.8662 | Q145: 135 | R145: 97.05824954 | S145: 0.057 | T145: 1249864.336 | U145: 2223125.824 | V145: 1000 | W145: 449627.841 | X145: 10.30309123 | Y145: 22915.37128 | AA145: 5000 | AB145: 680000 | AD145: -5000 | AE145: -5000 | AF145: 0 | AG145: 0 | AH145: 0 | AI145: 0 | AJ145: 0 | AK145: 0 | AL145: 0 | AM145: 0 | AO145: -0.25
A146: 137 | B146: 102.687628 | C146: 40 | D146: 0.058 | E146: 238180.0947 | L146: 6673.166505 | M146: 232157.8925 | N146: 64.9851071 | O146: 3916.814992 | P146: 402208.4409 | Q146: 136 | R146: 102.687628 | S146: 0.058 | T146: 1265321.539 | U146: 2353125.122 | V146: 1000 | W146: 450627.841 | X146: 9.738271487 | Y146: 22925.10955 | AA146: 5000 | AB146: 685000 | AD146: -5000 | AE146: -5000 | AF146: 0 | AG146: 0 | AH146: 0 | AI146: 0 | AJ146: 0 | AK146: 0 | AL146: 0 | AM146: 0 | AO146: -0.3333333333
A147: 138 | B147: 99.70968681 | C147: 41 | D147: -0.029 | E147: 245206.5955 | L147: 6673.166505 | M147: 238831.059 | N147: 66.92595994 | O147: 3983.740952 | P147: 397217.5626 | Q147: 137 | R147: 99.70968681 | S147: -0.029 | T147: 1280907.551 | U147: 2285855.493 | V147: 1000 | W147: 451627.841 | X147: 10.02911585 | Y147: 22935.13867 | AA147: 5000 | AB147: 690000 | AD147: -5000 | AE147: -5000 | AF147: 0 | AG147: 0 | AH147: 0 | AI147: 0 | AJ147: 0 | AK147: 0 | AL147: 0 | AM147: 0 | AO147: -0.4166666667
A148: 139 | B148: 128.2266572 | C148: 42 | D148: 0.286 | E148: 252291.6504 | L148: 6673.166505 | M148: 245504.2255 | N148: 52.04195952 | O148: 4035.782911 | P148: 517494.952 | Q148: 138 | R148: 128.2266572 | S148: 0.286 | T148: 1296623.448 | U148: 2940896.164 | V148: 1000 | W148: 452627.841 | X148: 7.798690394 | Y148: 22942.93736 | AA148: 5000 | AB148: 695000 | AD148: -5000 | AE148: -5000 | AF148: 0 | AG148: 0 | AH148: 0 | AI148: 0 | AJ148: 0 | AK148: 0 | AL148: 0 | AM148: 0 | AO148: -0.5
A149: 140 | B149: 141.049323 | C149: 43 | D149: 0.1 | E149: 259435.7475 | L149: 6673.166505 | M149: 252177.392 | N149: 47.31087229 | O149: 4083.093784 | P149: 575917.6137 | Q149: 139 | R149: 141.049323 | S149: 0.1 | T149: 1312470.31 | U149: 3236085.781 | V149: 1000 | W149: 453627.841 | X149: 7.08971854 | Y149: 22950.02708 | AA149: 5000 | AB149: 700000 | AD149: -5000 | AE149: -5000 | AF149: 0 | AG149: 0 | AH149: 0 | AI149: 0 | AJ149: 0 | AK149: 0 | AL149: 0 | AM149: 0 | AO149: -0.5833333333
A150: 141 | B150: 148.1017891 | C150: 44 | D150: 0.05 | E150: 266639.3787 | L150: 6673.166505 | M150: 258850.5585 | N150: 45.05797361 | O150: 4128.151757 | P150: 611386.6609 | Q150: 140 | R150: 148.1017891 | S150: 0.05 | T150: 1328449.229 | U150: 3398940.07 | V150: 1000 | W150: 454627.841 | X150: 6.752112895 | Y150: 22956.77919 | AA150: 5000 | AB150: 705000 | AD150: -5000 | AE150: -5000 | AF150: 0 | AG150: 0 | AH150: 0 | AI150: 0 | AJ150: 0 | AK150: 0 | AL150: 0 | AM150: 0 | AO150: -0.6666666667
A151: 142 | B151: 148.3979927 | C151: 45 | D151: 0.002 | E151: 273903.0402 | L151: 6673.166505 | M151: =IF(C151="NA","NA",IF(M150="NA",L151,M150+L151)) -> 265523.7251 | N151: 44.96803753 | O151: =IF(C151="NA","NA",IF(O150="NA",N151,O150+N151)) -> 4173.119795 | P151: 619282.6008 | Q151: 141 | R151: 148.3979927 | S151: 0.002 | T151: 1344561.306 | U151: 3406739.95 | V151: 1000 | W151: 455627.841 | X151: 6.738635624 | Y151: 22963.51782 | AA151: 5000 | AB151: 710000 | AD151: -5000 | AE151: -5000 | AF151: 0 | AG151: 0 | AH151: 0 | AI151: 0 | AJ151: 0 | AK151: 0 | AL151: 0 | AM151: 0 | AO151: -0.75
A152: 143 | B152: 149.4367786 | C152: 46 | D152: 0.007 | E152: 281227.2322 | L152: 6673.166505 | M152: 272196.8916 | N152: 44.65544939 | O152: 4217.775244 | P152: 630290.7455 | Q152: 142 | R152: 149.4367786 | S152: 0.007 | T152: 1360807.65 | U152: 3431594.13 | V152: 1000 | W152: 456627.841 | X152: 6.691793072 | Y152: 22970.20962 | AA152: 5000 | AB152: 715000 | AD152: -5000 | AE152: -5000 | AF152: 0 | AG152: 0 | AH152: 0 | AI152: 0 | AJ152: 0 | AK152: 0 | AL152: 0 | AM152: 0 | AO152: -0.8333333333
A153: 144 | B153: 149.885089 | C153: 47 | D153: 0.003 | E153: 288612.4592 | L153: 6673.166505 | M153: 278870.0581 | N153: 44.52188374 | O153: 4262.297128 | P153: 638854.7842 | Q153: 143 | R153: 149.885089 | S153: 0.003 | T153: 1377189.381 | U153: 3442891.912 | V153: 1000 | W153: 457627.841 | X153: 6.671777739 | Y153: 22976.88139 | AA153: 5000 | AB153: 720000 | AD153: -5000 | AE153: -5000 | AF153: 0 | AG153: 0 | AH153: 0 | AI153: 0 | AJ153: 0 | AK153: 0 | AL153: 0 | AM153: 0 | AO153: -0.9166666667
A154: 145 | B154: 180.7614173 | C154: 48 | D154: 0.206 | E154: 296059.2297 | L154: 7347.156322 | M154: 286217.2144 | N154: 40.64560033 | O154: 4302.942728 | P154: 777806.0261 | Q154: 144 | R154: 180.7614173 | S154: 0.206 | T154: 1393707.625 | U154: 4153333.646 | V154: 1000 | W154: 458627.841 | X154: 5.532154013 | Y154: 22982.41355 | AA154: 5000 | AB154: 725000 | AD154: -5000 | AE154: -5000 | AF154: 0 | AG154: 0 | AH154: 0 | AI154: 0 | AJ154: 0 | AK154: 0 | AL154: 0 | AM154: 0 | AO154: 0
A155: 146 | B155: 236.9782181 | C155: 49 | D155: 0.311 | E155: 303568.0566 | L155: 7347.156322 | M155: 293564.3707 | N155: 31.00350902 | O155: 4333.946237 | P155: 1027050.857 | Q155: 145 | R155: 236.9782181 | S155: 0.311 | T155: 1410363.522 | U155: 5446331.41 | V155: 1000 | W155: 459627.841 | X155: 4.219797111 | Y155: 22986.63335 | AA155: 5000 | AB155: 730000 | AD155: -5000 | AE155: -5000 | AF155: 0 | AG155: 0 | AH155: 0 | AI155: 0 | AJ155: 0 | AK155: 0 | AL155: 0 | AM155: 0 | AO155: -0.08333333333
A156: 147 | B156: 336.5090697 | C156: 50 | D156: 0.42 | E156: 311139.457 | L156: 7347.156322 | M156: 300911.527 | N156: 21.83345706 | O156: 4355.779694 | P156: 1465759.373 | Q156: 146 | R156: 336.5090697 | S156: 0.42 | T156: 1427158.218 | U156: 7735210.602 | V156: 1000 | W156: 460627.841 | X156: 2.971688106 | Y156: 22989.60503 | AA156: 5000 | AB156: 735000 | AD156: -5000 | AE156: -5000 | AF156: 0 | AG156: 0 | AH156: 0 | AI156: 0 | AJ156: 0 | AK156: 0 | AL156: 0 | AM156: 0 | AO156: -0.1666666667
A157: 148 | B157: 305.2137262 | C157: 51 | D157: -0.093 | E157: 318773.9525 | L157: 7347.156322 | M157: 308258.6833 | N157: 24.07216875 | O157: 4379.851863 | P157: 1336790.907 | Q157: 147 | R157: 305.2137262 | S157: -0.093 | T157: 1444092.87 | U157: 7016743.016 | V157: 1000 | W157: 461627.841 | X157: 3.27639262 | Y157: 22992.88143 | AA157: 5000 | AB157: 740000 | AD157: -5000 | AE157: -5000 | AF157: 0 | AG157: 0 | AH157: 0 | AI157: 0 | AJ157: 0 | AK157: 0 | AL157: 0 | AM157: 0 | AO157: -0.25
A158: 149 | B158: 235.9302103 | C158: 52 | D158: -0.227 | E158: 326472.0688 | L158: 7347.156322 | M158: 315605.8397 | N158: 31.14122736 | O158: 4410.99309 | P158: 1040686.528 | Q158: 148 | R158: 235.9302103 | S158: -0.227 | T158: 1461168.644 | U158: 5424715.351 | V158: 1000 | W158: 462627.841 | X158: 4.238541552 | Y158: 22997.11997 | AA158: 5000 | AB158: 745000 | AD158: -5000 | AE158: -5000 | AF158: 0 | AG158: 0 | AH158: 0 | AI158: 0 | AJ158: 0 | AK158: 0 | AL158: 0 | AM158: 0 | AO158: -0.3333333333
A159: 150 | B159: 241.8284656 | C159: 53 | D159: 0.025 | E159: 334234.336 | L159: 7347.156322 | M159: 322952.996 | N159: 30.38168523 | O159: 4441.374776 | P159: 1074050.847 | Q159: 149 | R159: 241.8284656 | S159: 0.025 | T159: 1478386.716 | U159: 5561358.235 | V159: 1000 | W159: 463627.841 | X159: 4.13516249 | Y159: 23001.25513 | AA159: 5000 | AB159: 750000 | AD159: -5000 | AE159: -5000 | AF159: 0 | AG159: 0 | AH159: 0 | AI159: 0 | AJ159: 0 | AK159: 0 | AL159: 0 | AM159: 0 | AO159: -0.4166666667
A160: 151 | B160: 214.0181921 | C160: 54 | D160: -0.115 | E160: 342061.2888 | L160: 7347.156322 | M160: 330300.1523 | N160: 34.32958783 | O160: 4475.704363 | P160: 957882.156 | Q160: 150 | R160: 214.0181921 | S160: -0.115 | T160: 1495748.272 | U160: 4922687.038 | V160: 1000 | W160: 464627.841 | X160: 4.672499989 | Y160: 23005.92763 | AA160: 5000 | AB160: 755000 | AD160: -5000 | AE160: -5000 | AF160: 0 | AG160: 0 | AH160: 0 | AI160: 0 | AJ160: 0 | AK160: 0 | AL160: 0 | AM160: 0 | AO160: -0.5
A161: 152 | B161: 237.9882296 | C161: 55 | D161: 0.112 | E161: 349953.4662 | L161: 7347.156322 | M161: 337647.3086 | N161: 30.8719315 | O161: 4506.576295 | P161: 1072512.114 | Q161: 151 | R161: 237.9882296 | S161: 0.112 | T161: 1513254.508 | U161: 5475139.986 | V161: 1000 | W161: 465627.841 | X161: 4.201888479 | Y161: 23010.12952 | AA161: 5000 | AB161: 760000 | AD161: -5000 | AE161: -5000 | AF161: 0 | AG161: 0 | AH161: 0 | AI161: 0 | AJ161: 0 | AK161: 0 | AL161: 0 | AM161: 0 | AO161: -0.5833333333
A162: 153 | B162: 258.6932055 | C162: 56 | D162: 0.087 | E162: 357911.4118 | L162: 7347.156322 | M162: 344994.465 | N162: 28.40104094 | O162: 4534.977336 | P162: 1173167.824 | Q162: 152 | R162: 258.6932055 | S162: 0.087 | T162: 1530906.628 | U162: 5952564.165 | V162: 1000 | W162: 466627.841 | X162: 3.865582778 | Y162: 23013.9951 | AA162: 5000 | AB162: 765000 | AD162: -5000 | AE162: -5000 | AF162: 0 | AG162: 0 | AH162: 0 | AI162: 0 | AJ162: 0 | AK162: 0 | AL162: 0 | AM162: 0 | AO162: -0.6666666667
A163: 154 | B163: 222.4761568 | C163: 57 | D163: -0.14 | E163: 365935.6736 | L163: 7347.156322 | M163: 352341.6213 | N163: 33.02446621 | O163: 4568.001802 | P163: 1016271.485 | Q163: 153 | R163: 222.4761568 | S163: -0.14 | T163: 1548705.85 | U163: 5120065.182 | V163: 1000 | W163: 467627.841 | X163: 4.494863695 | Y163: 23018.48997 | AA163: 5000 | AB163: 770000 | AD163: -5000 | AE163: -5000 | AF163: 0 | AG163: 0 | AH163: 0 | AI163: 0 | AJ163: 0 | AK163: 0 | AL163: 0 | AM163: 0 | AO163: -0.75
A164: 155 | B164: 197.7813034 | C164: 58 | D164: -0.111 | E164: 374026.8042 | L164: 7347.156322 | M164: 359688.7776 | N164: 37.147881 | O164: 4605.149683 | P164: 910812.5065 | Q164: 154 | R164: 197.7813034 | S164: -0.111 | T164: 1566653.399 | U164: 4552626.947 | V164: 1000 | W164: 468627.841 | X164: 5.056089646 | Y164: 23023.54605 | AA164: 5000 | AB164: 775000 | AD164: -5000 | AE164: -5000 | AF164: 0 | AG164: 0 | AH164: 0 | AI164: 0 | AJ164: 0 | AK164: 0 | AL164: 0 | AM164: 0 | AO164: =IF(C164="NA","NA",INT(C164/12)-(C164/12)) -> -0.8333333333
A165: 156 | B165: 205.4947742 | C165: 59 | D165: 0.039 | E165: 382185.3609 | L165: 7347.156322 | M165: 367035.9339 | N165: 35.75349471 | O165: 4640.903178 | P165: 953681.3506 | Q165: 155 | R165: 205.4947742 | S165: 0.039 | T165: 1584750.511 | U165: 4731218.398 | V165: 1000 | W165: 469627.841 | X165: 4.866303797 | Y165: 23028.41236 | AA165: 5000 | AB165: 780000 | AD165: -5000 | AE165: -5000 | AF165: 0 | AG165: 0 | AH165: 0 | AI165: 0 | AJ165: 0 | AK165: 0 | AL165: 0 | AM165: 0 | AO165: -0.9166666667
A166: 157 | B166: 210.6321435 | C166: 60 | D166: 0.025 | E166: 390411.9055 | L166: 8089.219111 | M166: 375125.153 | N166: 38.40448554 | O166: 4679.307663 | P166: 985612.6034 | Q166: 156 | R166: 210.6321435 | S166: 0.025 | T166: 1602998.432 | U166: 4850523.858 | V166: 1000 | W166: 470627.841 | X166: 4.747613461 | Y166: 23033.15997 | AA166: 5000 | AB166: 785000 | AD166: -5000 | AE166: -5000 | AF166: 0 | AG166: 0 | AH166: 0 | AI166: 0 | AJ166: 0 | AK166: 0 | AL166: 0 | AM166: 0 | AO166: 0
A167: 158 | B167: 208.31519 | C167: 61 | D167: -0.011 | E167: 398707.0048 | L167: 8089.219111 | M167: 383214.3721 | N167: 38.83163351 | O167: 4718.139297 | P167: 982860.0839 | Q167: 157 | R167: 208.31519 | S167: -0.011 | T167: 1621398.419 | U167: 4798157.095 | V167: 1000 | W167: 471627.841 | X167: 4.80041806 | Y167: 23037.96039 | AA167: 5000 | AB167: 790000 | AD167: -5000 | AE167: -5000 | AF167: 0 | AG167: 0 | AH167: 0 | AI167: 0 | AJ167: 0 | AK167: 0 | AL167: 0 | AM167: 0 | AO167: -0.08333333333
A168: 159 | B168: 179.1510634 | C168: 62 | D168: -0.14 | E168: 407071.2298 | L168: 8089.219111 | M168: 391303.5913 | N168: 45.15306222 | O168: 4763.292359 | P168: 853348.8913 | Q168: 158 | R168: 179.1510634 | S168: -0.14 | T168: 1639951.739 | U168: 4127275.102 | V168: 1000 | W168: 472627.841 | X168: 5.581881465 | Y168: 23043.54227 | AA168: 5000 | AB168: 795000 | AD168: -5000 | AE168: -5000 | AF168: 0 | AG168: 0 | AH168: 0 | AI168: 0 | AJ168: 0 | AK168: 0 | AL168: 0 | AM168: 0 | AO168: -0.1666666667
A169: 160 | B169: 166.78964 | C169: 63 | D169: -0.069 | E169: 415505.1567 | L169: 8089.219111 | M169: 399392.8104 | N169: 48.49952977 | O169: 4811.791889 | P169: 802557.0369 | Q169: 159 | R169: 166.78964 | S169: -0.069 | T169: 1658659.67 | U169: 3843424.12 | V169: 1000 | W169: 473627.841 | X169: 5.995576224 | Y169: 23049.53785 | AA169: 5000 | AB169: 800000 | AD169: -5000 | AE169: -5000 | AF169: 0 | AG169: 0 | AH169: 0 | AI169: 0 | AJ169: 0 | AK169: 0 | AL169: 0 | AM169: 0 | AO169: -0.25
A170: 161 | B170: 172.2936981 | C170: 64 | D170: 0.033 | E170: 424009.3663 | L170: 8089.219111 | M170: 407482.0295 | N170: 46.95017403 | O170: 4858.742063 | P170: 837130.6382 | Q170: 160 | R170: 172.2936981 | S170: 0.033 | T170: 1677523.501 | U170: 3971290.116 | V170: 1000 | W170: 474627.841 | X170: 5.804042811 | Y170: 23055.34189 | AA170: 5000 | AB170: 805000 | AD170: -5000 | AE170: -5000 | AF170: 0 | AG170: 0 | AH170: 0 | AI170: 0 | AJ170: 0 | AK170: 0 | AL170: 0 | AM170: 0 | AO170: -0.3333333333
A171: 162 | B171: 175.0503973 | C171: 65 | D171: 0.016 | E171: 432584.4444 | L171: 8089.219111 | M171: 415571.2486 | N171: 46.21080121 | O171: 4904.952864 | P171: 858613.9475 | Q171: 161 | R171: 175.0503973 | S171: 0.016 | T171: 1696544.53 | U171: 4035846.758 | V171: 1000 | W171: 475627.841 | X171: 5.712640562 | Y171: 23061.05453 | AA171: 5000 | AB171: 810000 | AD171: -5000 | AE171: -5000 | AF171: 0 | AG171: 0 | AH171: 0 | AI171: 0 | AJ171: 0 | AK171: 0 | AL171: 0 | AM171: 0 | AO171: -0.4166666667
A172: 163 | B172: 182.9276652 | C172: 66 | D172: 0.045 | E172: 441230.9814 | L172: 8089.219111 | M172: 423660.4677 | N172: 44.2208624 | O172: 4949.173726 | P172: 905340.7943 | Q172: 162 | R172: 182.9276652 | S172: 0.045 | T172: 1715724.067 | U172: 4218504.862 | V172: 1000 | W172: 476627.841 | X172: 5.466641686 | Y172: 23066.52117 | AA172: 5000 | AB172: 815000 | AD172: -5000 | AE172: -5000 | AF172: 0 | AG172: 0 | AH172: 0 | AI172: 0 | AJ172: 0 | AK172: 0 | AL172: 0 | AM172: 0 | AO172: -0.5
A173: 164 | B173: 206.8911893 | C173: 67 | D173: 0.131 | E173: 449949.5729 | L173: 8089.219111 | M173: 431749.6868 | N173: 39.09890575 | O173: 4988.272632 | P173: 1032029.657 | Q173: 163 | R173: 206.8911893 | S173: 0.131 | T173: 1735063.435 | U173: 4772259.999 | V173: 1000 | W173: 477627.841 | X173: 4.833458609 | Y173: 23071.35463 | AA173: 5000 | AB173: 820000 | AD173: -5000 | AE173: -5000 | AF173: 0 | AG173: 0 | AH173: 0 | AI173: 0 | AJ173: 0 | AK173: 0 | AL173: 0 | AM173: 0 | AO173: -0.5833333333
A174: 165 | B174: 212.8910338 | C174: 68 | D174: 0.029 | E174: 458740.8194 | L174: 8089.219111 | M174: 439838.9059 | N174: 37.99699295 | O174: 5026.269625 | P174: 1070047.737 | Q174: 164 | R174: 212.8910338 | S174: 0.029 | T174: 1754563.963 | U174: 4911684.539 | V174: 1000 | W174: 478627.841 | X174: 4.697238687 | Y174: 23076.05187 | AA174: 5000 | AB174: 825000 | AD174: -5000 | AE174: -5000 | AF174: 0 | AG174: 0 | AH174: 0 | AI174: 0 | AJ174: 0 | AK174: 0 | AL174: 0 | AM174: 0 | AO174: -0.6666666667
A175: 166 | B175: 210.1234504 | C175: 69 | D175: -0.013 | E175: 467605.3262 | L175: 8089.219111 | M175: 447928.125 | N175: 38.49745993 | O175: 5064.767085 | P175: 1064226.335 | Q175: 165 | R175: 210.1234504 | S175: -0.013 | T175: 1774226.996 | U175: 4848819.64 | V175: 1000 | W175: 479627.841 | X175: 4.759107079 | Y175: 23080.81098 | AA175: 5000 | AB175: 830000 | AD175: -5000 | AE175: -5000 | AF175: 0 | AG175: 0 | AH175: 0 | AI175: 0 | AJ175: 0 | AK175: 0 | AL175: 0 | AM175: 0 | AO175: -0.75
A176: 167 | B176: 254.0392515 | C176: 70 | D176: 0.209 | E176: 476543.7039 | L176: 8089.219111 | M176: 456017.3441 | N176: 31.84239862 | O176: 5096.609484 | P176: 1294738.858 | Q176: 166 | R176: 254.0392515 | S176: 0.209 | T176: 1794053.888 | U176: 5863431.944 | V176: 1000 | W176: 480627.841 | X176: 3.936399569 | Y176: 23084.74738 | AA176: 5000 | AB176: 835000 | AD176: -5000 | AE176: -5000 | AF176: 0 | AG176: 0 | AH176: 0 | AI176: 0 | AJ176: 0 | AK176: 0 | AL176: 0 | AM176: 0 | AO176: -0.8333333333
A177: 168 | B177: 262.9306253 | C177: 71 | D177: 0.035 | E177: 485556.5681 | L177: 8089.219111 | M177: 464106.5633 | N177: 30.76560253 | O177: 5127.375086 | P177: 1348143.937 | Q177: 167 | R177: 262.9306253 | S177: 0.035 | T177: 1814046.004 | U177: 6069687.062 | V177: 1000 | W177: 481627.841 | X177: 3.803284608 | Y177: 23088.55066 | AA177: 5000 | AB177: 840000 | AD177: -5000 | AE177: -5000 | AF177: 0 | AG177: 0 | AH177: 0 | AI177: 0 | AJ177: 0 | AK177: 0 | AL177: 0 | AM177: 0 | AO177: -0.9166666667
A178: 169 | B178: 313.9391666 | C178: 72 | D178: 0.194 | E178: 494644.5395 | L178: 8906.230241 | M178: 473012.7935 | N178: 28.36928676 | O178: 5155.744373 | P178: 1618590.092 | Q178: 168 | R178: 313.9391666 | S178: 0.194 | T178: 1834204.72 | U178: 7248400.352 | V178: 1000 | W178: 482627.841 | X178: 3.185330492 | Y178: 23091.73599 | AA178: 5000 | AB178: 845000 | AD178: -5000 | AE178: -5000 | AF178: 0 | AG178: 0 | AH178: 0 | AI178: 0 | AJ178: 0 | AK178: 0 | AL178: 0 | AM178: 0 | AO178: 0
A179: 170 | B179: 339.9961174 | C179: 73 | D179: 0.083 | E179: 503808.244 | L179: 8906.230241 | M179: 481919.0237 | N179: 26.19509396 | O179: 5181.939467 | P179: 1761839.299 | Q179: 169 | R179: 339.9961174 | S179: 0.083 | T179: 1854531.426 | U179: 7851100.582 | V179: 1000 | W179: 483627.841 | X179: 2.941210057 | Y179: 23094.6772 | AA179: 5000 | AB179: 850000 | AD179: -5000 | AE179: -5000 | AF179: 0 | AG179: 0 | AH179: 0 | AI179: 0 | AJ179: 0 | AK179: 0 | AL179: 0 | AM179: 0 | AO179: -0.08333333333
A180: 171 | B180: 296.4766144 | C180: 74 | D180: -0.128 | E180: 513048.3127 | L180: 8906.230241 | M180: 490825.254 | N180: 30.04024536 | O180: 5211.979712 | P180: 1545230.099 | Q180: 170 | R180: 296.4766144 | S180: -0.128 | T180: 1875027.522 | U180: 6847031.707 | V180: 1000 | W180: 484627.841 | X180: 3.372947313 | Y180: 23098.05015 | AA180: 5000 | AB180: 855000 | AD180: -5000 | AE180: -5000 | AF180: 0 | AG180: 0 | AH180: 0 | AI180: 0 | AJ180: 0 | AK180: 0 | AL180: 0 | AM180: 0 | AO180: -0.1666666667
A181: 172 | B181: 289.9541289 | C181: 75 | D181: -0.022 | E181: 522365.382 | L181: 8906.230241 | M181: 499731.4842 | N181: 30.7159973 | O181: 5242.69571 | P181: 1520141.267 | Q181: 171 | R181: 289.9541289 | S181: -0.022 | T181: 1895694.418 | U181: 6697375.01 | V181: 1000 | W181: 485627.841 | X181: 3.448821384 | Y181: 23101.49897 | AA181: 5000 | AB181: 860000 | AD181: -5000 | AE181: -5000 | AF181: 0 | AG181: 0 | AH181: 0 | AI181: 0 | AJ181: 0 | AK181: 0 | AL181: 0 | AM181: 0 | AO181: -0.25
A182: 173 | B182: 299.232661 | C182: 76 | D182: 0.032 | E182: 531760.0935 | L182: 8906.230241 | M182: 508637.7145 | N182: 29.76356328 | O182: 5272.459273 | P182: 1577692.018 | Q182: 172 | R182: 299.232661 | S182: 0.032 | T182: 1916533.538 | U182: 6912723.01 | V182: 1000 | W182: 486627.841 | X182: 3.341881186 | Y182: 23104.84085 | AA182: 5000 | AB182: 865000 | AD182: -5000 | AE182: -5000 | AF182: 0 | AG182: 0 | AH182: 0 | AI182: 0 | AJ182: 0 | AK182: 0 | AL182: 0 | AM182: 0 | AO182: -0.3333333333
A183: 174 | B183: 314.7927594 | C183: 77 | D183: 0.052 | E183: 541233.0943 | L183: 8906.230241 | M183: 517543.9447 | N183: 28.29236053 | O183: 5300.751633 | P183: 1668638.233 | Q183: 173 | R183: 314.7927594 | S183: 0.052 | T183: 1937546.317 | U183: 7273236.606 | V183: 1000 | W183: 487627.841 | X183: 3.176693143 | Y183: 23108.01755 | AA183: 5000 | AB183: 870000 | AD183: -5000 | AE183: -5000 | AF183: 0 | AG183: 0 | AH183: 0 | AI183: 0 | AJ183: 0 | AK183: 0 | AL183: 0 | AM183: 0 | AO183: -0.4166666667
A184: 175 | B184: 322.0329928 | C184: 78 | D184: 0.023 | E184: 550785.0368 | L184: 8906.230241 | M184: 526450.1749 | N184: 27.6562664 | O184: 5328.4079 | P184: 1715923.143 | Q184: 174 | R184: 322.0329928 | S184: 0.023 | T184: 1958734.203 | U184: 7441544.048 | V184: 1000 | W184: 488627.841 | X184: 3.105271889 | Y184: 23111.12282 | AA184: 5000 | AB184: 875000 | AD184: -5000 | AE184: -5000 | AF184: 0 | AG184: 0 | AH184: 0 | AI184: 0 | AJ184: 0 | AK184: 0 | AL184: 0 | AM184: 0 | AO184: -0.5
A185: 176 | B185: 345.8634343 | C185: 79 | D185: 0.074 | E185: 560416.5787 | L185: 8906.230241 | M185: 535356.4052 | N185: 25.7507136 | O185: 5354.158613 | P185: 1851807.686 | Q185: 175 | R185: 345.8634343 | S185: 0.074 | T185: 1980098.655 | U185: 7993292.308 | V185: 1000 | W185: 489627.841 | X185: 2.891314608 | Y185: 23114.01413 | AA185: 5000 | AB185: 880000 | AD185: -5000 | AE185: -5000 | AF185: 0 | AG185: 0 | AH185: 0 | AI185: 0 | AJ185: 0 | AK185: 0 | AL185: 0 | AM185: 0 | AO185: -0.5833333333
A186: 177 | B186: 325.1116282 | C186: 80 | D186: -0.06 | E186: 570128.3836 | L186: 8906.230241 | M186: 544262.6354 | N186: 27.39437617 | O186: 5381.55299 | P186: 1749605.455 | Q186: 176 | R186: 325.1116282 | S186: -0.06 | T186: 2001641.144 | U186: 7514634.769 | V186: 1000 | W186: 490627.841 | X186: 3.075866604 | Y186: 23117.09 | AA186: 5000 | AB186: 885000 | AD186: -5000 | AE186: -5000 | AF186: 0 | AG186: 0 | AH186: 0 | AI186: 0 | AJ186: 0 | AK186: 0 | AL186: 0 | AM186: 0 | AO186: -0.6666666667
A187: 178 | B187: 319.2596189 | C187: 81 | D187: -0.018 | E187: 579921.1201 | L187: 8906.230241 | M187: 553168.8657 | N187: 27.89651341 | O187: 5409.449503 | P187: 1727018.787 | Q187: 177 | R187: 319.2596189 | S187: -0.018 | T187: 2023363.153 | U187: 7380353.344 | V187: 1000 | W187: 491627.841 | X187: 3.132247051 | Y187: 23120.22225 | AA187: 5000 | AB187: 890000 | AD187: -5000 | AE187: -5000 | AF187: 0 | AG187: 0 | AH187: 0 | AI187: 0 | AJ187: 0 | AK187: 0 | AL187: 0 | AM187: 0 | AO187: -0.75
A188: 179 | B188: 313.8322054 | C188: 82 | D188: -0.017 | E188: 589795.4627 | L188: 8906.230241 | M188: 562075.0959 | N188: 28.37895566 | O188: 5437.828459 | P188: 1706565.698 | Q188: 178 | R188: 313.8322054 | S188: -0.017 | T188: 2045266.18 | U188: 7255870.337 | V188: 1000 | W188: 492627.841 | X188: 3.186416125 | Y188: 23123.40866 | AA188: 5000 | AB188: 895000 | AD188: -5000 | AE188: -5000 | AF188: 0 | AG188: 0 | AH188: 0 | AI188: 0 | AJ188: 0 | AK188: 0 | AL188: 0 | AM188: 0 | AO188: -0.8333333333
A189: 180 | B189: 297.8267629 | C189: 83 | D189: -0.051 | E189: 599752.0916 | L189: 8906.230241 | M189: 570981.3261 | N189: 29.90406286 | O189: 5467.732522 | P189: 1628437.077 | Q189: 179 | R189: 297.8267629 | S189: -0.051 | T189: 2067351.731 | U189: 6886769.95 | V189: 1000 | W189: 493627.841 | X189: 3.357656613 | Y189: 23126.76632 | AA189: 5000 | AB189: 900000 | AD189: -5000 | AE189: -5000 | AF189: 0 | AG189: 0 | AH189: 0 | AI189: 0 | AJ189: 0 | AK189: 0 | AL189: 0 | AM189: 0 | AO189: -0.9166666667
A190: 181 | B190: 274.2984487 | C190: 84 | D190: -0.079 | E190: 609791.6924 | L190: 9805.759495 | M190: 580787.0856 | N190: 35.74850511 | O190: 5503.481027 | P190: 1509596.308 | Q190: 180 | R190: 274.2984487 | S190: -0.079 | T190: 2089621.329 | U190: 6343636.124 | V190: 1000 | W190: 494627.841 | X190: 3.645664075 | Y190: 23130.41198 | AA190: 5000 | AB190: 905000 | AD190: -5000 | AE190: -5000 | AF190: 0 | AG190: 0 | AH190: 0 | AI190: 0 | AJ190: 0 | AK190: 0 | AL190: 0 | AM190: 0 | AO190: 0
A191: 182 | B191: 259.7606309 | C191: 85 | D191: -0.053 | E191: 619914.9565 | L191: 9805.759495 | M191: 590592.8451 | N191: 37.74921343 | O191: 5541.23024 | P191: 1439393.463 | Q191: 181 | R191: 259.7606309 | S191: -0.053 | T191: 2112076.507 | U191: 6008370.409 | V191: 1000 | W191: 495627.841 | X191: 3.849698072 | Y191: 23134.26168 | AA191: 5000 | AB191: 910000 | AD191: -5000 | AE191: -5000 | AF191: 0 | AG191: 0 | AH191: 0 | AI191: 0 | AJ191: 0 | AK191: 0 | AL191: 0 | AM191: 0 | AO191: -0.08333333333
A192: 183 | B192: 253.5263757 | C192: 86 | D192: -0.024 | E192: 630122.5811 | L192: 9805.759495 | M192: 600398.6046 | N192: 38.67747277 | O192: 5579.907713 | P192: 1414653.779 | Q192: 182 | R192: 253.5263757 | S192: -0.024 | T192: 2134718.811 | U192: 5865145.519 | V192: 1000 | W192: 496627.841 | X192: 3.944362779 | Y192: 23138.20604 | AA192: 5000 | AB192: 915000 | AD192: -5000 | AE192: -5000 | AF192: 0 | AG192: 0 | AH192: 0 | AI192: 0 | AJ192: 0 | AK192: 0 | AL192: 0 | AM192: 0 | AO192: -0.1666666667
A193: 184 | B193: 241.1035833 | C193: 87 | D193: -0.049 | E193: 640415.2693 | L193: 9805.759495 | M193: 610204.3641 | N193: 40.67031837 | O193: 5620.578031 | P193: 1355141.504 | Q193: 183 | R193: 241.1035833 | S193: -0.049 | T193: 2157549.801 | U193: 5578704.389 | V193: 1000 | W193: 497627.841 | X193: 4.147594931 | Y193: 23142.35364 | AA193: 5000 | AB193: 920000 | AD193: -5000 | AE193: -5000 | AF193: 0 | AG193: 0 | AH193: 0 | AI193: 0 | AJ193: 0 | AK193: 0 | AL193: 0 | AM193: 0 | AO193: -0.25
A194: 185 | B194: 255.3286947 | C194: 88 | D194: 0.059 | E194: 650793.7299 | L194: 9805.759495 | M194: 620010.1236 | N194: 38.4044555 | O194: 5658.982487 | P194: 1444900.612 | Q194: 184 | R194: 255.3286947 | S194: 0.059 | T194: 2180571.049 | U194: 5908906.948 | V194: 1000 | W194: 498627.841 | X194: 3.916520237 | Y194: 23146.27016 | AA194: 5000 | AB194: 925000 | AD194: -5000 | AE194: -5000 | AF194: 0 | AG194: 0 | AH194: 0 | AI194: 0 | AJ194: 0 | AK194: 0 | AL194: 0 | AM194: 0 | AO194: -0.3333333333
A195: 186 | B195: 246.1368617 | C195: 89 | D195: -0.036 | E195: 661258.6776 | L195: 9805.759495 | M195: 629815.8831 | N195: 39.83864678 | O195: 5698.821134 | P195: 1402689.949 | Q195: 185 | R195: 246.1368617 | S195: -0.036 | T195: 2203784.141 | U195: 5697150.298 | V195: 1000 | W195: 499627.841 | X195: 4.062780329 | Y195: 23150.33294 | AA195: 5000 | AB195: 930000 | AD195: -5000 | AE195: -5000 | AF195: 0 | AG195: 0 | AH195: 0 | AI195: 0 | AJ195: 0 | AK195: 0 | AL195: 0 | AM195: 0 | AO195: -0.4166666667
A196: 187 | B196: 254.505515 | C196: 90 | D196: 0.034 | E196: 671810.8333 | L196: 9805.759495 | M196: 639621.6426 | N196: 38.52867194 | O196: 5737.349805 | P196: 1460187.167 | Q196: 186 | R196: 254.505515 | S196: 0.034 | T196: 2227190.676 | U196: 5891887.408 | V196: 1000 | W196: 500627.841 | X196: 3.929187939 | Y196: 23154.26213 | AA196: 5000 | AB196: 935000 | AD196: -5000 | AE196: -5000 | AF196: 0 | AG196: 0 | AH196: 0 | AI196: 0 | AJ196: 0 | AK196: 0 | AL196: 0 | AM196: 0 | AO196: -0.5
A197: 188 | B197: 248.6518882 | C197: 91 | D197: -0.023 | E197: 682450.9235 | L197: 9805.759495 | M197: 649427.4021 | N197: 39.43569287 | O197: 5776.785498 | P197: 1436408.622 | Q197: 187 | R197: 248.6518882 | S197: -0.023 | T197: 2250792.265 | U197: 5757350.997 | V197: 1000 | W197: 501627.841 | X197: 4.021686734 | Y197: 23158.28381 | AA197: 5000 | AB197: 940000 | AD197: -5000 | AE197: -5000 | AF197: 0 | AG197: 0 | AH197: 0 | AI197: 0 | AJ197: 0 | AK197: 0 | AL197: 0 | AM197: 0 | AO197: -0.5833333333
A198: 189 | B198: 258.8466156 | C198: 92 | D198: 0.041 | E198: 693179.6812 | L198: 9805.759495 | M198: 659233.1616 | N198: 37.88250996 | O198: 5814.668008 | P198: 1505107.135 | Q198: 188 | R198: 258.8466156 | S198: 0.041 | T198: 2274590.534 | U198: 5994443.388 | V198: 1000 | W198: 502627.841 | X198: 3.863291771 | Y198: 23162.1471 | AA198: 5000 | AB198: 945000 | AD198: -5000 | AE198: -5000 | AF198: 0 | AG198: 0 | AH198: 0 | AI198: 0 | AJ198: 0 | AK198: 0 | AL198: 0 | AM198: 0 | AO198: -0.6666666667
A199: 190 | B199: 258.8466156 | C199: 93 | D199: 0 | E199: 703997.8452 | L199: 9805.759495 | M199: 669038.9211 | N199: 37.88250996 | O199: 5852.550518 | P199: 1514912.894 | Q199: 189 | R199: 258.8466156 | S199: 0 | T199: 2298587.121 | U199: 5995443.388 | V199: 1000 | W199: 503627.841 | X199: 3.863291771 | Y199: 23166.0104 | AA199: 5000 | AB199: 950000 | AD199: -5000 | AE199: -5000 | AF199: 0 | AG199: 0 | AH199: 0 | AI199: 0 | AJ199: 0 | AK199: 0 | AL199: 0 | AM199: 0 | AO199: -0.75
A200: 191 | B200: 225.7142488 | C200: 94 | D200: -0.128 | E200: 714906.1606 | L200: 9805.759495 | M200: 678844.6806 | N200: 43.44324537 | O200: 5895.993764 | P200: 1330809.803 | Q200: 190 | R200: 225.7142488 | S200: -0.128 | T200: 2322783.681 | U200: 5228898.635 | V200: 1000 | W200: 504627.841 | X200: 4.430380471 | Y200: 23170.44078 | AA200: 5000 | AB200: 955000 | AD200: -5000 | AE200: -5000 | AF200: 0 | AG200: 0 | AH200: 0 | AI200: 0 | AJ200: 0 | AK200: 0 | AL200: 0 | AM200: 0 | AO200: -0.8333333333
A201: 192 | B201: 237.9028182 | C201: 95 | D201: 0.054 | E201: 725905.3786 | L201: 9805.759495 | M201: 688650.4401 | N201: 41.21750035 | O201: 5937.211264 | P201: 1412479.292 | Q201: 191 | R201: 237.9028182 | S201: 0.054 | T201: 2347181.878 | U201: 5512313.161 | V201: 1000 | W201: 505627.841 | X201: 4.203397032 | Y201: 23174.64417 | AA201: 5000 | AB201: 960000 | AD201: -5000 | AE201: -5000 | AF201: 0 | AG201: 0 | AH201: 0 | AI201: 0 | AJ201: 0 | AK201: 0 | AL201: 0 | AM201: 0 | AO201: -0.9166666667
A202: 193 | B202: 224.3423576 | C202: =IF(AND(A202>=startm,A202<=endm),A202-startm,"NA") -> 96 | D202: -0.057 | E202: =IF(C202="NA","NA",IF(C202=0,typical,(1+return/12)*typical*((1+return/12)^C202-1)/(return/12))) -> 736996.2568 | L202: =IF(C202="NA","NA",IF(C202=0,typical,IF(L201="NA",typical,IF(INT(C202/12)-(C202/12)=0,L201*(1+gsip1),L201)))) -> 10796.1412 | M202: 699446.5813 | N202: 48.12350784 | O202: 5985.334772 | P202: 1342764.114 | Q202: 192 | R202: 224.3423576 | S202: -0.057 | T202: 2371783.394 | U202: 5199054.311 | V202: 1000 | W202: 506627.841 | X202: =V202/R202 -> 4.457472992 | Y202: 23179.10165 | AA202: =typical -> 5000 | AB202: 965000 | AD202: =IF(A202=endm,E202,IF(C202="NA","NA",-typical)) -> -5000 | AE202: =IF(A202=endm,P202,IF(C202="NA","NA",-typical)) -> -5000 | AF202: =IF(A202=endm,F202,IF(C202="NA","NA",-G202)) -> 0 | AG202: =IF(A202=endm,O202,0) -> 0 | AH202: =IF(A202=endm,J202,0) -> 0 | AI202: =IF(A202=endm,E202,0) -> 0 | AJ202: =IF(A202=endm,P202,0) -> 0 | AK202: =IF(A202=endm,F202,0) -> 0 | AL202: =IF(A202=endm,M202,0) -> 0 | AM202: =IF(A202=endm,H202,0) -> 0 | AO202: 0
... 203 more rows

Sheet Sensex VIP & SIP
AI2: Return expected each year | AL2: =Input!B2 -> 0.1
AI3: Minimum investment | AL3: =Input!B7 -> 1000
AI4: Typical SIP amt | AL4: =Input!B8 -> 5000
B5: Note: If you see cells showing "NA". Please scroll down/up until you see the values corresponding to the input investment year | AI5: Maximum investment | AL5: =Input!B9 -> 15000
F6: Value-averaging investment plan | L6: Systematic investment plan
B7: Full | D7: NAV | E7: Portfolio | F7: Portfolio | G7: VIP | H7: Total | I7: Units | J7: Total | L7: SIP | M7: Total | N7: Units | O7: Total | P7: Portfolio | R7: Enter | S7: NAV | T7: Portfolio | U7: Portfolio | V7: VIP | W7: Total | X7: Units | Y7: Total | AA7: SIP | AB7: Total | AG7: Total Units | AI7: Portfolio | AL7: Total investment
A8: S.no | B8: NAV | C8: Month | D8: % change | E8: Target | F8: Actual | G8: investment | H8: investment | I8: purchased | J8: no of units | L8: investment | M8: investment | N8: purchased | O8: no of units | P8: Actual | Q8: Month | R8: NAV | S8: % change | T8: Target | U8: Actual | V8: investment | W8: investment | X8: purchased | Y8: no of units | AA8: investment | AB8: investment | AD8: Target | AE8: SIP | AF8: VIP | AG8: SIP | AH8: VIP | AI8: Target | AJ8: SIP | AK8: VIP | AL8: SIP | AM8: VIP
A10: 1 | B10: 9.715125456 | C10: =IF(AND(A10>=startm,A10<=endm),A10-startm,"NA") -> NA | D10: =IF(C10="NA","NA",IF(C10=0,0,(B10-B8)/B8)) -> NA | E10: =IF(C10="NA","NA",IF(C10=0,typical,(1+return/12)*typical*((1+return/12)^C10-1)/(return/12))) -> NA | F10: =IF(C10="NA","NA",IF(C10=0,typical,(F8+IF(V8=typical,0,V8)*(1+D10)))) -> NA | G10: =IF(C10="NA","NA",IF(C10=0,typical,IF((F10-E10)>0,IF(typical-(F10-E10)<min,min,typical-(F10-E10)),IF((F10-E10)<0,IF(typical-(F10-E10)>max,max,typical-(F10-E10)),IF((E10-F10)=0,min,))))) -> NA | H10: =IF(C10="NA","NA",IF(H9="NA",G10,H9+G10)) -> NA | I10: =IF(C10="NA","NA",G10/B10) -> NA | J10: =IF(C10="NA","NA",IF(J9="NA",I10,J9+I10)) -> NA | L10: =IF(C10="NA","NA",typical) -> NA | M10: =IF(C10="NA","NA",IF(M9="NA",L10,M9+L10)) -> NA | N10: =IF(C10="NA","NA",L10/B10) -> NA | O10: =IF(C10="NA","NA",IF(O9="NA",N10,O9+N10)) -> NA | P10: =IF(C10="NA","NA",O10*B10) -> NA | Q10: 0 | R10: 9.715125456 | S10: 0 | T10: =typical -> 5000 | U10: =typical -> 5000 | V10: =typical -> 5000 | W10: =V10 -> 5000 | X10: =V10/R10 -> 514.661393 | Y10: =X10 -> 514.661393 | AA10: =typical -> 5000 | AB10: =AA10 -> 5000 | AD10: =IF(A10=endm,E10,IF(C10="NA","NA",-typical)) -> NA | AE10: =IF(A10=endm,P10,IF(C10="NA","NA",-typical)) -> NA | AF10: =IF(A10=endm,F10,IF(C10="NA","NA",-G10)) -> NA | AG10: =IF(A10=endm,O10,0) -> 0 | AH10: =IF(A10=endm,J10,0) -> 0 | AI10: =IF(A10=endm,E10,0) -> 0 | AJ10: =IF(A10=endm,P10,0) -> 0 | AK10: =IF(A10=endm,F10,0) -> 0 | AL10: =IF(A10=endm,M10,0) -> 0 | AM10: =IF(A10=endm,H10,0) -> 0
A11: =A10+1 -> 2 | B11: 10.08430022 | C11: NA | D11: =IF(C11="NA","NA",IF(C11=0,0,(B11-B10)/B10)) -> NA | E11: NA | F11: =IF(C11="NA","NA",IF(C11=0,typical,(F10+IF(V10=typical,0,V10))*(1+D11))) -> NA | G11: NA | H11: NA | I11: =IF(C11="NA","NA",G11/B11) -> NA | J11: NA | L11: NA | M11: NA | N11: =IF(C11="NA","NA",L11/B11) -> NA | O11: NA | P11: =IF(C11="NA","NA",O11*B11) -> NA | Q11: =Q10+1 -> 1 | R11: 10.08430022 | S11: =(R11-R10)/R10 -> 0.038 | T11: =(1+return/12)*typical*((1+return/12)^Q11-1)/(return/12) -> 5041.666667 | U11: =U10*(1+S11) -> 5190 | V11: =IF((U11-T11)>0,IF(typical-(U11-T11)<min,min,typical-(U11-T11)),IF((U11-T11)<0,IF(typical-(U11-T11)>max,max,typical-(U11-T11)),IF((T11-U11)=0,min,))) -> 4851.666667 | W11: =W10+V11 -> 9851.666667 | X11: 481.1108911 | Y11: =Y10+X11 -> 995.7722841 | AA11: 5000 | AB11: =AB10+AA11 -> 10000 | AD11: NA | AE11: NA | AF11: NA | AG11: 0 | AH11: 0 | AI11: 0 | AJ11: 0 | AK11: 0 | AL11: 0 | AM11: 0
A12: =A11+1 -> 3 | B12: 10.11455312 | C12: NA | D12: NA | E12: NA | F12: NA | G12: NA | H12: NA | I12: NA | J12: NA | L12: NA | M12: NA | N12: NA | O12: NA | P12: NA | Q12: =Q11+1 -> 2 | R12: 10.11455312 | S12: =(R12-R11)/R11 -> 0.003 | T12: 10125.34722 | U12: =(U11+V11)*(1+S12) -> 10071.79167 | V12: 5053.555556 | W12: 14905.22222 | X12: 499.6321136 | Y12: =Y11+X12 -> 1495.404398 | AA12: 5000 | AB12: =AB11+AA12 -> 15000 | AD12: NA | AE12: NA | AF12: NA | AG12: 0 | AH12: 0 | AI12: 0 | AJ12: 0 | AK12: 0 | AL12: 0 | AM12: 0
A13: 4 | B13: 10.01340759 | C13: NA | D13: NA | E13: NA | F13: NA | G13: NA | H13: NA | I13: NA | J13: NA | L13: NA | M13: NA | N13: NA | O13: NA | P13: NA | Q13: 3 | R13: 10.01340759 | S13: =(R13-R12)/R12 -> -0.01 | T13: 15251.39178 | U13: =(U12+V12)*(1+S13) -> 14974.09375 | V13: 5277.298032 | W13: 20182.52025 | X13: 527.023192 | Y13: 2022.42759 | AA13: 5000 | AB13: 20000 | AD13: NA | AE13: NA | AF13: NA | AG13: 0 | AH13: 0 | AI13: 0 | AJ13: 0 | AK13: 0 | AL13: 0 | AM13: 0
A14: 5 | B14: 9.913273516 | C14: NA | D14: NA | E14: NA | F14: NA | G14: NA | H14: NA | I14: NA | J14: NA | L14: NA | M14: NA | N14: NA | O14: NA | P14: NA | Q14: 4 | R14: 9.913273516 | S14: =(R14-R13)/R13 -> -0.01 | T14: 20420.15338 | U14: =(U13+V13)*(1+S14) -> 20048.87786 | V14: 5371.275516 | W14: 25553.79577 | X14: 541.8266234 | Y14: 2564.254213 | AA14: 5000 | AB14: 25000 | AD14: NA | AE14: NA | AF14: NA | AG14: 0 | AH14: 0 | AI14: 0 | AJ14: 0 | AK14: 0 | AL14: 0 | AM14: 0
A15: 6 | B15: 9.615875311 | C15: NA | D15: NA | E15: NA | F15: NA | G15: NA | H15: NA | I15: NA | J15: NA | L15: NA | M15: NA | N15: NA | O15: NA | P15: NA | Q15: 5 | R15: 9.615875311 | S15: -0.03 | T15: 25631.98799 | U15: 24657.54878 | V15: 5974.439213 | W15: 31528.23498 | X15: 621.3099712 | Y15: 3185.564184 | AA15: 5000 | AB15: 30000 | AD15: NA | AE15: NA | AF15: NA | AG15: 0 | AH15: 0 | AI15: 0 | AJ15: 0 | AK15: 0 | AL15: 0 | AM15: 0
A16: 7 | B16: 10.1255167 | C16: NA | D16: NA | E16: NA | F16: NA | G16: NA | H16: NA | I16: NA | J16: NA | L16: NA | M16: NA | N16: NA | O16: NA | P16: NA | Q16: 6 | R16: 10.1255167 | S16: 0.053 | T16: 30887.25456 | U16: 32255.48336 | V16: 3631.771203 | W16: 35160.00619 | X16: 358.6751481 | Y16: 3544.239333 | AA16: 5000 | AB16: 35000 | AD16: NA | AE16: NA | AF16: NA | AG16: 0 | AH16: 0 | AI16: 0 | AJ16: 0 | AK16: 0 | AL16: 0 | AM16: 0
A17: 8 | B17: 11.07731527 | C17: NA | D17: NA | E17: NA | F17: NA | G17: NA | H17: NA | I17: NA | J17: NA | L17: NA | M17: NA | N17: NA | O17: NA | P17: NA | Q17: 7 | R17: 11.07731527 | S17: 0.094 | T17: 36186.31501 | U17: 39260.65649 | V17: 1925.658526 | W17: 37085.66471 | X17: 173.8380175 | Y17: 3718.07735 | AA17: 5000 | AB17: 40000 | AD17: NA | AE17: NA | AF17: NA | AG17: 0 | AH17: 0 | AI17: 0 | AJ17: 0 | AK17: 0 | AL17: 0 | AM17: 0
A18: 9 | B18: 10.57883609 | C18: NA | D18: NA | E18: NA | F18: NA | G18: NA | H18: NA | I18: NA | J18: NA | L18: NA | M18: NA | N18: NA | O18: NA | P18: NA | Q18: 8 | R18: 10.57883609 | S18: -0.045 | T18: 41529.53431 | U18: 39332.93084 | V18: 7196.603467 | W18: 44282.26818 | X18: 680.2831058 | Y18: 4398.360456 | AA18: 5000 | AB18: 45000 | AD18: NA | AE18: NA | AF18: NA | AG18: 0 | AH18: 0 | AI18: 0 | AJ18: 0 | AK18: 0 | AL18: 0 | AM18: 0
A19: 10 | B19: 10.30378635 | C19: NA | D19: NA | E19: NA | F19: NA | G19: NA | H19: NA | I19: NA | J19: NA | L19: NA | M19: NA | N19: NA | O19: NA | P19: NA | Q19: 9 | R19: 10.30378635 | S19: -0.026 | T19: 46917.28042 | U19: 45319.76641 | V19: 6597.514011 | W19: 50879.78219 | X19: 640.2999625 | Y19: 5038.660418 | AA19: 5000 | AB19: 50000 | AD19: NA | AE19: NA | AF19: NA | AG19: 0 | AH19: 0 | AI19: 0 | AJ19: 0 | AK19: 0 | AL19: 0 | AM19: 0
A20: 11 | B20: 11.02505139 | C20: NA | D20: NA | E20: NA | F20: NA | G20: NA | H20: NA | I20: NA | J20: NA | L20: NA | M20: NA | N20: NA | O20: NA | P20: NA | Q20: 10 | R20: 11.02505139 | S20: 0.07 | T20: 52349.92443 | U20: 55551.49005 | V20: 1798.434374 | W20: 52678.21657 | X20: 163.1225388 | Y20: 5201.782957 | AA20: 5000 | AB20: 55000 | AD20: NA | AE20: NA | AF20: NA | AG20: 0 | AH20: 0 | AI20: 0 | AJ20: 0 | AK20: 0 | AL20: 0 | AM20: 0
A21: 12 | B21: 11.66450437 | C21: NA | D21: NA | E21: NA | F21: NA | G21: NA | H21: NA | I21: NA | J21: NA | L21: NA | M21: NA | N21: NA | O21: NA | P21: NA | Q21: 11 | R21: 11.66450437 | S21: 0.058 | T21: 57827.84046 | U21: 60676.22004 | V21: 2151.62042 | W21: 54829.83699 | X21: 184.4587949 | Y21: 5386.241752 | AA21: 5000 | AB21: 60000 | AD21: NA | AE21: NA | AF21: NA | AG21: 0 | AH21: 0 | AI21: 0 | AJ21: 0 | AK21: 0 | AL21: 0 | AM21: 0
A22: 13 | B22: 11.53619482 | C22: NA | D22: NA | E22: NA | F22: NA | G22: NA | H22: =IF(C22="NA","NA",IF(H21="NA",G22,H21+G22)) -> NA | I22: NA | J22: =IF(C22="NA","NA",IF(J21="NA",I22,J21+I22)) -> NA | L22: NA | M22: =IF(C22="NA","NA",IF(M21="NA",L22,M21+L22)) -> NA | N22: NA | O22: =IF(C22="NA","NA",IF(O21="NA",N22,O21+N22)) -> NA | P22: NA | Q22: 12 | R22: 11.53619482 | S22: -0.011 | T22: 63351.4058 | U22: 62136.73422 | V22: 6214.671582 | W22: 61044.50857 | X22: 538.7106994 | Y22: 5924.952451 | AA22: 5000 | AB22: 65000 | AD22: NA | AE22: NA | AF22: NA | AG22: 0 | AH22: 0 | AI22: 0 | AJ22: 0 | AK22: 0 | AL22: 0 | AM22: 0
A23: 14 | B23: 12.4706266 | C23: NA | D23: NA | E23: NA | F23: NA | G23: NA | H23: =IF(C23="NA","NA",IF(H22="NA",G23,H22+G23)) -> NA | I23: NA | J23: =IF(C23="NA","NA",IF(J22="NA",I23,J22+I23)) -> NA | L23: NA | M23: =IF(C23="NA","NA",IF(M22="NA",L23,M22+L23)) -> NA | N23: NA | O23: =IF(C23="NA","NA",IF(O22="NA",N23,O22+N23)) -> NA | P23: NA | Q23: 13 | R23: 12.4706266 | S23: 0.081 | T23: 68921.00085 | U23: 73887.86967 | V23: 1000 | W23: 62044.50857 | X23: 80.18843252 | Y23: 6005.140884 | AA23: 5000 | AB23: 70000 | AD23: NA | AE23: NA | AF23: NA | AG23: 0 | AH23: 0 | AI23: 0 | AJ23: 0 | AK23: 0 | AL23: 0 | AM23: 0
A24: 15 | B24: 13.64286551 | C24: NA | D24: NA | E24: NA | F24: NA | G24: NA | H24: NA | I24: NA | J24: NA | L24: NA | M24: NA | N24: NA | O24: NA | P24: NA | Q24: 14 | R24: 13.64286551 | S24: 0.094 | T24: 74537.00919 | U24: 81927.32942 | V24: 1000 | W24: 63044.50857 | X24: 73.29838439 | Y24: 6078.439268 | AA24: 5000 | AB24: 75000 | AD24: NA | AE24: NA | AF24: NA | AG24: 0 | AH24: 0 | AI24: 0 | AJ24: 0 | AK24: 0 | AL24: 0 | AM24: 0
A25: 16 | B25: 14.65243755 | C25: NA | D25: NA | E25: NA | F25: NA | G25: NA | H25: NA | I25: NA | J25: NA | L25: NA | M25: NA | N25: NA | O25: NA | P25: NA | Q25: 15 | R25: 14.65243755 | S25: 0.074 | T25: 80199.8176 | U25: 89063.9518 | V25: 1000 | W25: 64044.50857 | X25: 68.24803016 | Y25: 6146.687299 | AA25: 5000 | AB25: 80000 | AD25: NA | AE25: NA | AF25: NA | AG25: 0 | AH25: 0 | AI25: 0 | AJ25: 0 | AK25: 0 | AL25: 0 | AM25: 0
A26: 17 | B26: 13.91981568 | C26: NA | D26: NA | E26: NA | F26: NA | G26: NA | H26: NA | I26: NA | J26: NA | L26: NA | M26: NA | N26: NA | O26: NA | P26: NA | Q26: 16 | R26: 13.91981568 | S26: -0.05 | T26: 85909.81608 | U26: 85560.75421 | V26: 5349.061872 | W26: 69393.57044 | X26: 384.2767747 | Y26: 6530.964073 | AA26: 5000 | AB26: 85000 | AD26: NA | AE26: NA | AF26: NA | AG26: 0 | AH26: 0 | AI26: 0 | AJ26: 0 | AK26: 0 | AL26: 0 | AM26: 0
A27: 18 | B27: 16.63417973 | C27: NA | D27: NA | E27: NA | F27: NA | G27: NA | H27: NA | I27: NA | J27: NA | L27: NA | M27: NA | N27: NA | O27: NA | P27: NA | Q27: 17 | R27: 16.63417973 | S27: 0.195 | T27: 91667.39788 | U27: 108637.2302 | V27: 1000 | W27: 70393.57044 | X27: 60.11718138 | Y27: 6591.081255 | AA27: 5000 | AB27: 90000 | AD27: NA | AE27: NA | AF27: NA | AG27: 0 | AH27: 0 | AI27: 0 | AJ27: 0 | AK27: 0 | AL27: 0 | AM27: 0
A28: 19 | B28: 16.35139868 | C28: NA | D28: NA | E28: NA | F28: NA | G28: NA | H28: NA | I28: NA | J28: NA | L28: NA | M28: NA | N28: NA | O28: NA | P28: NA | Q28: 18 | R28: 16.35139868 | S28: -0.017 | T28: 97472.95953 | U28: 107773.3973 | V28: 1000 | W28: 71393.57044 | X28: 61.15684779 | Y28: 6652.238102 | AA28: 5000 | AB28: 95000 | AD28: NA | AE28: NA | AF28: NA | AG28: 0 | AH28: 0 | AI28: 0 | AJ28: 0 | AK28: 0 | AL28: 0 | AM28: 0
A29: 20 | B29: 15.20680077 | C29: NA | D29: NA | E29: NA | F29: NA | G29: NA | H29: NA | I29: NA | J29: NA | L29: NA | M29: NA | N29: NA | O29: NA | P29: NA | Q29: 19 | R29: 15.20680077 | S29: -0.07 | T29: 103326.9009 | U29: 101159.2595 | V29: 7167.641368 | W29: 78561.21181 | X29: 471.3444647 | Y29: 7123.582567 | AA29: 5000 | AB29: 100000 | AD29: NA | AE29: NA | AF29: NA | AG29: 0 | AH29: 0 | AI29: 0 | AJ29: 0 | AK29: 0 | AL29: 0 | AM29: 0
A30: 21 | B30: 16.14962242 | C30: NA | D30: NA | E30: NA | F30: NA | G30: NA | H30: NA | I30: NA | J30: NA | L30: NA | M30: NA | N30: NA | O30: NA | P30: NA | Q30: 20 | R30: 16.14962242 | S30: 0.062 | T30: 109229.625 | U30: 115043.1687 | V30: 1000 | W30: 79561.21181 | X30: 61.92095234 | Y30: 7185.503519 | AA30: 5000 | AB30: 105000 | AD30: NA | AE30: NA | AF30: NA | AG30: 0 | AH30: 0 | AI30: 0 | AJ30: 0 | AK30: 0 | AL30: 0 | AM30: 0
A31: 22 | B31: 16.39186675 | C31: NA | D31: NA | E31: NA | F31: NA | G31: NA | H31: NA | I31: NA | J31: NA | L31: NA | M31: NA | N31: NA | O31: NA | P31: NA | Q31: 21 | R31: 16.39186675 | S31: 0.015 | T31: 115181.5386 | U31: 117783.8162 | V31: 2397.722332 | W31: 81958.93414 | X31: 146.2751234 | Y31: 7331.778643 | AA31: 5000 | AB31: 110000 | AD31: NA | AE31: NA | AF31: NA | AG31: 0 | AH31: 0 | AI31: 0 | AJ31: 0 | AK31: 0 | AL31: 0 | AM31: 0
A32: 23 | B32: 16.88362276 | C32: NA | D32: NA | E32: NA | F32: NA | G32: NA | H32: NA | I32: NA | J32: NA | L32: NA | M32: NA | N32: NA | O32: NA | P32: NA | Q32: 22 | R32: 16.88362276 | S32: 0.03 | T32: 121183.0514 | U32: 123786.9847 | V32: 2396.066664 | W32: 84355.0008 | X32: 141.9166194 | Y32: 7473.695262 | AA32: 5000 | AB32: 115000 | AD32: NA | AE32: NA | AF32: NA | AG32: 0 | AH32: 0 | AI32: 0 | AJ32: 0 | AK32: 0 | AL32: 0 | AM32: 0
A33: 24 | B33: 17.91352374 | C33: NA | D33: NA | E33: NA | F33: NA | G33: NA | H33: NA | I33: NA | J33: NA | L33: NA | M33: NA | N33: NA | O33: NA | P33: NA | Q33: 23 | R33: 17.91352374 | S33: 0.061 | T33: 127234.5768 | U33: 133880.2175 | V33: 1000 | W33: 85355.0008 | X33: 55.82374603 | Y33: 7529.519008 | AA33: 5000 | AB33: 120000 | AD33: NA | AE33: NA | AF33: NA | AG33: 0 | AH33: 0 | AI33: 0 | AJ33: 0 | AK33: 0 | AL33: 0 | AM33: 0
A34: 25 | B34: 17.30446394 | C34: NA | D34: NA | E34: NA | F34: NA | G34: NA | H34: NA | I34: NA | J34: NA | L34: NA | M34: NA | N34: NA | O34: NA | P34: NA | Q34: 24 | R34: 17.30446394 | S34: -0.034 | T34: 133336.5316 | U34: 130294.2901 | V34: 8042.241496 | W34: 93397.2423 | X34: 464.7495309 | Y34: 7994.268539 | AA34: 5000 | AB34: 125000 | AD34: NA | AE34: NA | AF34: NA | AG34: 0 | AH34: 0 | AI34: 0 | AJ34: 0 | AK34: 0 | AL34: 0 | AM34: 0
A35: 26 | B35: 17.9447291 | C35: NA | D35: NA | E35: NA | F35: NA | G35: NA | H35: NA | I35: NA | J35: NA | L35: NA | M35: NA | N35: NA | O35: NA | P35: NA | Q35: 25 | R35: 17.9447291 | S35: 0.037 | T35: 139489.3361 | U35: 143454.9833 | V35: 1034.35276 | W35: 94431.59506 | X35: 57.64103509 | Y35: 8051.909574 | AA35: 5000 | AB35: 130000 | AD35: NA | AE35: NA | AF35: NA | AG35: 0 | AH35: 0 | AI35: 0 | AJ35: 0 | AK35: 0 | AL35: 0 | AM35: 0
A36: 27 | B36: 17.13721629 | C36: NA | D36: NA | E36: NA | F36: NA | G36: NA | H36: NA | I36: NA | J36: NA | L36: NA | M36: NA | N36: NA | O36: NA | P36: NA | Q36: 26 | R36: 17.13721629 | S36: -0.045 | T36: 145693.4139 | U36: 137987.3159 | V36: 12706.09792 | W36: 107137.693 | X36: 741.4330138 | Y36: 8793.342588 | AA36: 5000 | AB36: 135000 | AD36: NA | AE36: NA | AF36: NA | AG36: 0 | AH36: 0 | AI36: 0 | AJ36: 0 | AK36: 0 | AL36: 0 | AM36: 0
A37: 28 | B37: 17.78843051 | C37: NA | D37: NA | E37: NA | F37: NA | G37: NA | H37: NA | I37: NA | J37: NA | L37: NA | M37: NA | N37: NA | O37: NA | P37: NA | Q37: 27 | R37: 17.78843051 | S37: 0.038 | T37: 151949.1923 | U37: 156419.7636 | V37: 1000 | W37: 108137.693 | X37: 56.21631427 | Y37: 8849.558902 | AA37: 5000 | AB37: 140000 | AD37: NA | AE37: NA | AF37: NA | AG37: 0 | AH37: 0 | AI37: 0 | AJ37: 0 | AK37: 0 | AL37: 0 | AM37: 0
A38: 29 | B38: 18.01968011 | C38: NA | D38: NA | E38: NA | F38: NA | G38: NA | H38: NA | I38: NA | J38: NA | L38: NA | M38: NA | N38: NA | O38: NA | P38: NA | Q38: 28 | R38: 18.01968011 | S38: 0.013 | T38: 158257.1022 | U38: 159466.2205 | V38: 3790.881731 | W38: 111928.5747 | X38: 210.3745299 | Y38: 9059.933432 | AA38: 5000 | AB38: 145000 | AD38: NA | AE38: NA | AF38: NA | AG38: 0 | AH38: 0 | AI38: 0 | AJ38: 0 | AK38: 0 | AL38: 0 | AM38: 0
A39: 30 | B39: 16.7583025 | C39: NA | D39: NA | E39: NA | F39: NA | G39: NA | H39: NA | I39: NA | J39: NA | L39: NA | M39: NA | N39: NA | O39: NA | P39: NA | Q39: 29 | R39: 16.7583025 | S39: -0.07 | T39: 164617.5781 | U39: 151829.1051 | V39: 15000 | W39: 126928.5747 | X39: 895.0787229 | Y39: 9955.012155 | AA39: 5000 | AB39: 150000 | AD39: NA | AE39: NA | AF39: NA | AG39: 0 | AH39: 0 | AI39: 0 | AJ39: 0 | AK39: 0 | AL39: 0 | AM39: 0
A40: 31 | B40: 17.02643534 | C40: NA | D40: NA | E40: NA | F40: NA | G40: NA | H40: NA | I40: NA | J40: NA | L40: NA | M40: NA | N40: NA | O40: NA | P40: NA | Q40: 30 | R40: 17.02643534 | S40: 0.016 | T40: 171031.0579 | U40: 169498.3708 | V40: 6532.687145 | W40: 133461.2619 | X40: 383.6790858 | Y40: 10338.69124 | AA40: 5000 | AB40: 155000 | AD40: NA | AE40: NA | AF40: NA | AG40: 0 | AH40: 0 | AI40: 0 | AJ40: 0 | AK40: 0 | AL40: 0 | AM40: 0
A41: 32 | B41: 16.85617099 | C41: NA | D41: NA | E41: NA | F41: NA | G41: NA | H41: NA | I41: NA | J41: NA | L41: NA | M41: NA | N41: NA | O41: NA | P41: NA | Q41: 31 | R41: 16.85617099 | S41: -0.01 | T41: 177497.9834 | U41: 174270.7473 | V41: 8227.236062 | W41: 141688.4979 | X41: 488.0845162 | Y41: 10826.77576 | AA41: 5000 | AB41: 160000 | AD41: NA | AE41: NA | AF41: NA | AG41: 0 | AH41: 0 | AI41: 0 | AJ41: 0 | AK41: 0 | AL41: 0 | AM41: 0
A42: 33 | B42: 17.96867827 | C42: NA | D42: NA | E42: NA | F42: NA | G42: NA | H42: NA | I42: NA | J42: NA | L42: NA | M42: NA | N42: NA | O42: NA | P42: NA | Q42: 32 | R42: 17.96867827 | S42: 0.066 | T42: 184018.7999 | U42: 194542.8503 | V42: 1000 | W42: 142688.4979 | X42: 55.65239607 | Y42: 10882.42815 | AA42: 5000 | AB42: 165000 | AD42: NA | AE42: NA | AF42: NA | AG42: 0 | AH42: 0 | AI42: 0 | AJ42: 0 | AK42: 0 | AL42: 0 | AM42: 0
A43: 34 | B43: 17.48352396 | C43: NA | D43: NA | E43: NA | F43: NA | G43: NA | H43: NA | I43: NA | J43: NA | L43: NA | M43: NA | N43: NA | O43: NA | P43: NA | Q43: 33 | R43: 17.48352396 | S43: -0.027 | T43: 190593.9566 | U43: 190263.1933 | V43: 5330.763248 | W43: 148019.2612 | X43: 304.9021044 | Y43: 11187.33026 | AA43: 5000 | AB43: 170000 | AD43: NA | AE43: NA | AF43: NA | AG43: 0 | AH43: 0 | AI43: 0 | AJ43: 0 | AK43: 0 | AL43: 0 | AM43: 0
A44: 35 | B44: 17.93809558 | C44: NA | D44: NA | E44: NA | F44: NA | G44: NA | H44: NA | I44: NA | J44: NA | L44: NA | M44: NA | N44: NA | O44: NA | P44: NA | Q44: 34 | R44: 17.93809558 | S44: 0.026 | T44: 197223.9062 | U44: 200679.3995 | V44: 1544.506767 | W44: 149563.7679 | X44: 86.102048 | Y44: 11273.43231 | AA44: 5000 | AB44: 175000 | AD44: NA | AE44: NA | AF44: NA | AG44: 0 | AH44: 0 | AI44: 0 | AJ44: 0 | AK44: 0 | AL44: 0 | AM44: 0
A45: 36 | B45: 18.54799083 | C45: NA | D45: NA | E45: NA | F45: NA | G45: NA | H45: NA | I45: NA | J45: NA | L45: NA | M45: NA | N45: NA | O45: NA | P45: NA | Q45: 35 | R45: 18.54799083 | S45: 0.034 | T45: 203909.1055 | U45: 209099.519 | V45: 1000 | W45: 150563.7679 | X45: 53.91419529 | Y45: 11327.3465 | AA45: 5000 | AB45: 180000 | AD45: NA | AE45: NA | AF45: NA | AG45: 0 | AH45: 0 | AI45: 0 | AJ45: 0 | AK45: 0 | AL45: 0 | AM45: 0
A46: 37 | B46: 17.43511138 | C46: NA | D46: NA | E46: NA | F46: NA | G46: NA | H46: NA | I46: NA | J46: NA | L46: NA | M46: NA | N46: NA | O46: NA | P46: NA | Q46: 36 | R46: 17.43511138 | S46: -0.06 | T46: 210650.0147 | U46: 197493.5479 | V46: 15000 | W46: 165563.7679 | X46: 860.3329036 | Y46: 12187.6794 | AA46: 5000 | AB46: 185000 | AD46: NA | AE46: NA | AF46: NA | AG46: 0 | AH46: 0 | AI46: 0 | AJ46: 0 | AK46: 0 | AL46: 0 | AM46: 0
A47: 38 | B47: 17.20845493 | C47: NA | D47: NA | E47: NA | F47: NA | G47: NA | H47: NA | I47: NA | J47: NA | L47: NA | M47: NA | N47: NA | O47: NA | P47: NA | Q47: 37 | R47: 17.20845493 | S47: -0.013 | T47: 217447.0981 | U47: =(U46+V46)*(1+S47) -> 209731.1318 | V47: 12715.96634 | W47: 178279.7343 | X47: 738.9371323 | Y47: =Y46+X47 -> 12926.61654 | AA47: 5000 | AB47: =AB46+AA47 -> 190000 | AD47: NA | AE47: NA | AF47: NA | AG47: 0 | AH47: 0 | AI47: 0 | AJ47: 0 | AK47: 0 | AL47: 0 | AM47: 0
A48: 39 | B48: 16.64057592 | C48: NA | D48: NA | E48: NA | F48: NA | G48: NA | H48: NA | I48: NA | J48: NA | L48: NA | M48: NA | N48: NA | O48: NA | P48: NA | Q48: 38 | R48: 16.64057592 | S48: -0.033 | T48: 224300.8239 | U48: 215106.3439 | V48: 14194.48006 | W48: 192474.2143 | X48: 853.0041342 | Y48: 13779.62067 | AA48: 5000 | AB48: 195000 | AD48: NA | AE48: NA | AF48: NA | AG48: 0 | AH48: 0 | AI48: 0 | AJ48: 0 | AK48: 0 | AL48: 0 | AM48: 0
A49: 40 | B49: 16.85690341 | C49: NA | D49: NA | E49: NA | F49: NA | G49: NA | H49: NA | I49: NA | J49: NA | L49: NA | M49: NA | N49: NA | O49: NA | P49: NA | Q49: 39 | R49: 16.85690341 | S49: 0.013 | T49: 231211.6641 | U49: 232281.7346 | V49: 3929.929488 | W49: 196404.1438 | X49: 233.1347219 | Y49: 14012.75539 | AA49: 5000 | AB49: 200000 | AD49: NA | AE49: NA | AF49: NA | AG49: 0 | AH49: 0 | AI49: 0 | AJ49: 0 | AK49: 0 | AL49: 0 | AM49: 0
A50: 41 | B50: 18.69430588 | C50: NA | D50: NA | E50: NA | F50: NA | G50: NA | H50: NA | I50: NA | J50: NA | L50: NA | M50: NA | N50: NA | O50: NA | P50: NA | Q50: 40 | R50: 18.69430588 | S50: 0.109 | T50: 238180.0947 | U50: 261958.7355 | V50: 1000 | W50: 197404.1438 | X50: 53.49222413 | Y50: 14066.24762 | AA50: 5000 | AB50: 205000 | AD50: NA | AE50: NA | AF50: NA | AG50: 0 | AH50: 0 | AI50: 0 | AJ50: 0 | AK50: 0 | AL50: 0 | AM50: 0
A51: 42 | B51: 18.69430588 | C51: NA | D51: NA | E51: NA | F51: NA | G51: NA | H51: NA | I51: NA | J51: NA | L51: NA | M51: NA | N51: NA | O51: NA | P51: NA | Q51: 41 | R51: 18.69430588 | S51: 0 | T51: 245206.5955 | U51: 262958.7355 | V51: 1000 | W51: 198404.1438 | X51: 53.49222413 | Y51: 14119.73984 | AA51: 5000 | AB51: 210000 | AD51: NA | AE51: NA | AF51: NA | AG51: 0 | AH51: 0 | AI51: 0 | AJ51: 0 | AK51: 0 | AL51: 0 | AM51: 0
A52: 43 | B52: 18.54475143 | C52: NA | D52: NA | E52: NA | F52: NA | G52: NA | H52: NA | I52: NA | J52: NA | L52: NA | M52: NA | N52: NA | O52: NA | P52: NA | Q52: 42 | R52: 18.54475143 | S52: -0.008 | T52: 252291.6504 | U52: 261847.0656 | V52: 1000 | W52: 199404.1438 | X52: 53.92361303 | Y52: 14173.66345 | AA52: 5000 | AB52: 215000 | AD52: NA | AE52: NA | AF52: NA | AG52: 0 | AH52: 0 | AI52: 0 | AJ52: 0 | AK52: 0 | AL52: 0 | AM52: 0
A53: 44 | B53: 18.7858332 | C53: NA | D53: NA | E53: NA | F53: NA | G53: NA | H53: NA | I53: NA | J53: NA | L53: NA | M53: NA | N53: NA | O53: NA | P53: NA | Q53: 43 | R53: 18.7858332 | S53: 0.013 | T53: 259435.7475 | U53: 266264.0775 | V53: 1000 | W53: 200404.1438 | X53: 53.2316022 | Y53: 14226.89506 | AA53: 5000 | AB53: 220000 | AD53: NA | AE53: NA | AF53: NA | AG53: 0 | AH53: 0 | AI53: 0 | AJ53: 0 | AK53: 0 | AL53: 0 | AM53: 0
A54: 45 | B54: 18.59797487 | C54: NA | D54: NA | E54: NA | F54: NA | G54: NA | H54: NA | I54: NA | J54: NA | L54: NA | M54: NA | N54: NA | O54: NA | P54: NA | Q54: 44 | R54: 18.59797487 | S54: -0.01 | T54: 266639.3787 | U54: 264591.4367 | V54: 7047.942017 | W54: 207452.0858 | X54: 378.9628745 | Y54: 14605.85793 | AA54: 5000 | AB54: 225000 | AD54: NA | AE54: NA | AF54: NA | AG54: 0 | AH54: 0 | AI54: 0 | AJ54: 0 | AK54: 0 | AL54: 0 | AM54: 0
A55: 46 | B55: 18.65376879 | C55: NA | D55: NA | E55: NA | F55: NA | G55: NA | H55: NA | I55: NA | J55: NA | L55: NA | M55: NA | N55: NA | O55: NA | P55: NA | Q55: 45 | R55: 18.65376879 | S55: 0.003 | T55: 273903.0402 | U55: 272454.2969 | V55: 6448.743353 | W55: 213900.8292 | X55: 345.7072629 | Y55: 14951.56519 | AA55: 5000 | AB55: 230000 | AD55: NA | AE55: NA | AF55: NA | AG55: 0 | AH55: 0 | AI55: 0 | AJ55: 0 | AK55: 0 | AL55: 0 | AM55: 0
A56: 47 | B56: 18.91492156 | C56: NA | D56: NA | E56: NA | F56: NA | G56: NA | H56: NA | I56: NA | J56: NA | L56: NA | M56: NA | N56: NA | O56: NA | P56: NA | Q56: 46 | R56: 18.91492156 | S56: 0.014 | T56: 281227.2322 | U56: 282807.6828 | V56: 3419.549439 | W56: 217320.3786 | X56: 180.7858113 | Y56: 15132.35101 | AA56: 5000 | AB56: 235000 | AD56: NA | AE56: NA | AF56: NA | AG56: 0 | AH56: 0 | AI56: 0 | AJ56: 0 | AK56: 0 | AL56: 0 | AM56: 0
A57: 48 | B57: 19.9174124 | C57: NA | D57: NA | E57: NA | F57: NA | G57: NA | H57: NA | I57: NA | J57: NA | L57: NA | M57: NA | N57: NA | O57: NA | P57: NA | Q57: 47 | R57: 19.9174124 | S57: 0.053 | T57: 288612.4592 | U57: 301397.2755 | V57: 1000 | W57: 218320.3786 | X57: 50.20732513 | Y57: 15182.55833 | AA57: 5000 | AB57: 240000 | AD57: NA | AE57: NA | AF57: NA | AG57: 0 | AH57: 0 | AI57: 0 | AJ57: 0 | AK57: 0 | AL57: 0 | AM57: 0
A58: 49 | B58: 19.55889898 | C58: NA | D58: NA | E58: NA | F58: NA | G58: NA | H58: NA | I58: NA | J58: NA | L58: NA | M58: NA | N58: NA | O58: NA | P58: NA | Q58: 48 | R58: 19.55889898 | S58: -0.018 | T58: 296059.2297 | U58: 296954.1246 | V58: 4105.10508 | W58: 222425.4837 | X58: 209.8842621 | Y58: 15392.44259 | AA58: 5000 | AB58: 245000 | AD58: NA | AE58: NA | AF58: NA | AG58: 0 | AH58: 0 | AI58: 0 | AJ58: 0 | AK58: 0 | AL58: 0 | AM58: 0
A59: 50 | B59: 19.71537017 | C59: NA | D59: NA | E59: NA | F59: NA | G59: NA | H59: NA | I59: NA | J59: NA | L59: NA | M59: NA | N59: NA | O59: NA | P59: NA | Q59: 49 | R59: 19.71537017 | S59: 0.008 | T59: 303568.0566 | U59: 303467.7035 | V59: 5100.353077 | W59: 227525.8368 | X59: 258.6993312 | Y59: 15651.14192 | AA59: 5000 | AB59: 250000 | AD59: NA | AE59: NA | AF59: NA | AG59: 0 | AH59: 0 | AI59: 0 | AJ59: 0 | AK59: 0 | AL59: 0 | AM59: 0
A60: 51 | B60: 19.30134739 | C60: NA | D60: NA | E60: NA | F60: NA | G60: NA | H60: NA | I60: NA | J60: NA | L60: NA | M60: NA | N60: NA | O60: NA | P60: NA | Q60: 50 | R60: 19.30134739 | S60: -0.021 | T60: 311139.457 | U60: 302088.1274 | V60: 14051.32966 | W60: 241577.1664 | X60: 727.9973451 | Y60: 16379.13927 | AA60: 5000 | AB60: 255000 | AD60: NA | AE60: NA | AF60: NA | AG60: 0 | AH60: 0 | AI60: 0 | AJ60: 0 | AK60: 0 | AL60: 0 | AM60: 0
A61: 52 | B61: 18.50999215 | C61: NA | D61: NA | E61: NA | F61: NA | G61: NA | H61: NA | I61: NA | J61: NA | L61: NA | M61: NA | N61: NA | O61: NA | P61: NA | Q61: 51 | R61: 18.50999215 | S61: -0.041 | T61: 318773.9525 | U61: 303177.7393 | V61: 15000 | W61: 256577.1664 | X61: 810.3731151 | Y61: 17189.51238 | AA61: 5000 | AB61: 260000 | AD61: NA | AE61: NA | AF61: NA | AG61: 0 | AH61: 0 | AI61: 0 | AJ61: 0 | AK61: 0 | AL61: 0 | AM61: 0
A62: 53 | B62: 18.93572197 | C62: NA | D62: NA | E62: NA | F62: NA | G62: NA | H62: NA | I62: NA | J62: NA | L62: NA | M62: NA | N62: NA | O62: NA | P62: NA | Q62: 52 | R62: 18.93572197 | S62: 0.023 | T62: 326472.0688 | U62: 325495.8273 | V62: 5976.241481 | W62: 262553.4079 | X62: 315.60674 | Y62: 17505.11912 | AA62: 5000 | AB62: 265000 | AD62: NA | AE62: NA | AF62: NA | AG62: 0 | AH62: 0 | AI62: 0 | AJ62: 0 | AK62: 0 | AL62: 0 | AM62: 0
A63: 54 | B63: 19.61740796 | C63: NA | D63: NA | E63: NA | F63: NA | G63: NA | H63: NA | I63: NA | J63: NA | L63: NA | M63: NA | N63: NA | O63: NA | P63: NA | Q63: 53 | R63: 19.61740796 | S63: 0.036 | T63: 334234.336 | U63: 343405.0633 | V63: 1000 | W63: 263553.4079 | X63: 50.97513402 | Y63: 17556.09426 | AA63: 5000 | AB63: 270000 | AD63: NA | AE63: NA | AF63: NA | AG63: 0 | AH63: 0 | AI63: 0 | AJ63: 0 | AK63: 0 | AL63: 0 | AM63: 0
A64: 55 | B64: 19.9509039 | C64: NA | D64: NA | E64: NA | F64: NA | G64: NA | H64: NA | I64: NA | J64: NA | L64: NA | M64: NA | N64: NA | O64: NA | P64: NA | Q64: 54 | R64: 19.9509039 | S64: 0.017 | T64: 342061.2888 | U64: 350259.9493 | V64: 1000 | W64: 264553.4079 | X64: 50.1230423 | Y64: 17606.2173 | AA64: 5000 | AB64: 275000 | AD64: NA | AE64: NA | AF64: NA | AG64: 0 | AH64: 0 | AI64: 0 | AJ64: 0 | AK64: 0 | AL64: 0 | AM64: 0
A65: 56 | B65: 19.59178763 | C65: NA | D65: NA | E65: NA | F65: NA | G65: NA | H65: NA | I65: NA | J65: NA | L65: NA | M65: NA | N65: NA | O65: NA | P65: NA | Q65: 55 | R65: 19.59178763 | S65: -0.018 | T65: 349953.4662 | U65: 344937.2703 | V65: 10016.19598 | W65: 274569.6039 | X65: 511.2446181 | Y65: 18117.46192 | AA65: 5000 | AB65: 280000 | AD65: NA | AE65: NA | AF65: NA | AG65: 0 | AH65: 0 | AI65: 0 | AJ65: 0 | AK65: 0 | AL65: 0 | AM65: 0
A66: 57 | B66: 20.88484561 | C66: NA | D66: NA | E66: NA | F66: NA | G66: NA | H66: NA | I66: NA | J66: NA | L66: NA | M66: NA | N66: NA | O66: NA | P66: NA | Q66: 56 | R66: 20.88484561 | S66: 0.066 | T66: 357911.4118 | U66: 378380.395 | V66: 1000 | W66: 275569.6039 | X66: 47.88160845 | Y66: 18165.34353 | AA66: 5000 | AB66: 285000 | AD66: NA | AE66: NA | AF66: NA | AG66: 0 | AH66: 0 | AI66: 0 | AJ66: 0 | AK66: 0 | AL66: 0 | AM66: 0
A67: 58 | B67: 21.05192438 | C67: NA | D67: NA | E67: NA | F67: NA | G67: NA | H67: NA | I67: NA | J67: NA | L67: NA | M67: NA | N67: NA | O67: NA | P67: NA | Q67: 57 | R67: 21.05192438 | S67: 0.008 | T67: 365935.6736 | U67: 382415.4382 | V67: 1000 | W67: 276569.6039 | X67: 47.50159568 | Y67: 18212.84512 | AA67: 5000 | AB67: 290000 | AD67: NA | AE67: NA | AF67: NA | AG67: 0 | AH67: 0 | AI67: 0 | AJ67: 0 | AK67: 0 | AL67: 0 | AM67: 0
A68: 59 | B68: 20.39931472 | C68: NA | D68: NA | E68: NA | F68: NA | G68: NA | H68: NA | I68: NA | J68: NA | L68: NA | M68: NA | N68: NA | O68: NA | P68: NA | Q68: 58 | R68: 20.39931472 | S68: -0.031 | T68: 374026.8042 | U68: 371529.5596 | V68: 7497.244581 | W68: 284066.8485 | X68: 367.5243352 | Y68: 18580.36946 | AA68: 5000 | AB68: 295000 | AD68: NA | AE68: NA | AF68: NA | AG68: 0 | AH68: 0 | AI68: 0 | AJ68: 0 | AK68: 0 | AL68: 0 | AM68: 0
A69: 60 | B69: 21.37848183 | C69: NA | D69: NA | E69: NA | F69: NA | G69: NA | H69: NA | I69: NA | J69: NA | L69: NA | M69: NA | N69: NA | O69: NA | P69: NA | Q69: 59 | R69: 21.37848183 | S69: 0.048 | T69: 382185.3609 | U69: 397220.0908 | V69: 1000 | W69: 285066.8485 | X69: 46.77600627 | Y69: 18627.14546 | AA69: 5000 | AB69: 300000 | AD69: NA | AE69: NA | AF69: NA | AG69: 0 | AH69: 0 | AI69: 0 | AJ69: 0 | AK69: 0 | AL69: 0 | AM69: 0
A70: 61 | B70: 22.61843377 | C70: NA | D70: NA | E70: NA | F70: NA | G70: NA | H70: NA | I70: NA | J70: NA | L70: NA | M70: NA | N70: NA | O70: NA | P70: NA | Q70: 60 | R70: 22.61843377 | S70: 0.058 | T70: 390411.9055 | U70: 421316.856 | V70: 1000 | W70: 286066.8485 | X70: 44.21172616 | Y70: 18671.35719 | AA70: 5000 | AB70: 305000 | AD70: NA | AE70: NA | AF70: NA | AG70: 0 | AH70: 0 | AI70: 0 | AJ70: 0 | AK70: 0 | AL70: 0 | AM70: 0
A71: 62 | B71: 23.88506606 | C71: NA | D71: NA | E71: NA | F71: NA | G71: NA | H71: NA | I71: NA | J71: NA | L71: NA | M71: NA | N71: NA | O71: NA | P71: NA | Q71: 61 | R71: 23.88506606 | S71: 0.056 | T71: 398707.0048 | U71: 445966.6 | V71: 1000 | W71: 287066.8485 | X71: 41.86716492 | Y71: 18713.22435 | AA71: 5000 | AB71: 310000 | AD71: NA | AE71: NA | AF71: NA | AG71: 0 | AH71: 0 | AI71: 0 | AJ71: 0 | AK71: 0 | AL71: 0 | AM71: 0
A72: 63 | B72: 27.82610196 | C72: NA | D72: NA | E72: NA | F72: NA | G72: NA | H72: NA | I72: NA | J72: NA | L72: NA | M72: NA | N72: NA | O72: NA | P72: NA | Q72: 62 | R72: 27.82610196 | S72: 0.165 | T72: 407071.2298 | U72: 520716.089 | V72: 1000 | W72: 288066.8485 | X72: 35.93748062 | Y72: 18749.16184 | AA72: 5000 | AB72: 315000 | AD72: NA | AE72: NA | AF72: NA | AG72: 0 | AH72: 0 | AI72: 0 | AJ72: 0 | AK72: 0 | AL72: 0 | AM72: 0
A73: 64 | B73: 30.44175555 | C73: NA | D73: NA | E73: NA | F73: NA | G73: NA | H73: NA | I73: NA | J73: NA | L73: NA | M73: NA | N73: NA | O73: NA | P73: NA | Q73: 63 | R73: 30.44175555 | S73: 0.094 | T73: 415505.1567 | U73: 570757.4013 | V73: 1000 | W73: 289066.8485 | X73: 32.84961665 | Y73: 18782.01145 | AA73: 5000 | AB73: 320000 | AD73: NA | AE73: NA | AF73: NA | AG73: 0 | AH73: 0 | AI73: 0 | AJ73: 0 | AK73: 0 | AL73: 0 | AM73: 0
A74: 65 | B74: 31.41589173 | C74: =IF(AND(A74>=startm,A74<=endm),A74-startm,"NA") -> NA | D74: NA | E74: =IF(C74="NA","NA",IF(C74=0,typical,(1+return/12)*typical*((1+return/12)^C74-1)/(return/12))) -> NA | F74: NA | G74: =IF(C74="NA","NA",IF(C74=0,typical,IF((F74-E74)>0,IF(typical-(F74-E74)<min,min,typical-(F74-E74)),IF((F74-E74)<0,IF(typical-(F74-E74)>max,max,typical-(F74-E74)),IF((E74-F74)=0,min,))))) -> NA | H74: NA | I74: NA | J74: NA | L74: =IF(C74="NA","NA",typical) -> NA | M74: NA | N74: NA | O74: NA | P74: NA | Q74: 64 | R74: 31.41589173 | S74: 0.032 | T74: 424009.3663 | U74: 590053.6382 | V74: 1000 | W74: 290066.8485 | X74: =V74/R74 -> 31.83102389 | Y74: 18813.84248 | AA74: =typical -> 5000 | AB74: 325000 | AD74: =IF(A74=endm,E74,IF(C74="NA","NA",-typical)) -> NA | AE74: =IF(A74=endm,P74,IF(C74="NA","NA",-typical)) -> NA | AF74: =IF(A74=endm,F74,IF(C74="NA","NA",-G74)) -> NA | AG74: =IF(A74=endm,O74,0) -> 0 | AH74: =IF(A74=endm,J74,0) -> 0 | AI74: =IF(A74=endm,E74,0) -> 0 | AJ74: =IF(A74=endm,P74,0) -> 0 | AK74: =IF(A74=endm,F74,0) -> 0 | AL74: =IF(A74=endm,M74,0) -> 0 | AM74: =IF(A74=endm,H74,0) -> 0
A75: 66 | B75: 37.6048224 | C75: NA | D75: =IF(C75="NA","NA",IF(C75=0,0,(B75-B74)/B74)) -> NA | E75: NA | F75: =IF(C75="NA","NA",IF(C75=0,typical,(F74+IF(V74=typical,0,V74))*(1+D75))) -> NA | G75: NA | H75: NA | I75: =IF(C75="NA","NA",G75/B75) -> NA | J75: NA | L75: NA | M75: NA | N75: =IF(C75="NA","NA",L75/B75) -> NA | O75: NA | P75: =IF(C75="NA","NA",O75*B75) -> NA | Q75: 65 | R75: 37.6048224 | S75: 0.197 | T75: =(1+return/12)*typical*((1+return/12)^Q75-1)/(return/12) -> 432584.4444 | U75: 707491.2049 | V75: =IF((U75-T75)>0,IF(typical-(U75-T75)<min,min,typical-(U75-T75)),IF((U75-T75)<0,IF(typical-(U75-T75)>max,max,typical-(U75-T75)),IF((T75-U75)=0,min,))) -> 1000 | W75: =W74+V75 -> 291066.8485 | X75: 26.59233408 | Y75: 18840.43481 | AA75: 5000 | AB75: 330000 | AD75: NA | AE75: NA | AF75: NA | AG75: 0 | AH75: 0 | AI75: 0 | AJ75: 0 | AK75: 0 | AL75: 0 | AM75: 0
A76: =A75+1 -> 67 | B76: 40.50039372 | C76: NA | D76: NA | E76: NA | F76: NA | G76: NA | H76: NA | I76: NA | J76: NA | L76: NA | M76: NA | N76: NA | O76: NA | P76: NA | Q76: =Q75+1 -> 66 | R76: 40.50039372 | S76: 0.077 | T76: 441230.9814 | U76: 763045.0277 | V76: 1000 | W76: 292066.8485 | X76: 24.69111799 | Y76: 18865.12593 | AA76: 5000 | AB76: 335000 | AD76: NA | AE76: NA | AF76: NA | AG76: 0 | AH76: 0 | AI76: 0 | AJ76: 0 | AK76: 0 | AL76: 0 | AM76: 0
A77: 68 | B77: 36.81485789 | C77: NA | D77: NA | E77: NA | F77: NA | G77: NA | H77: NA | I77: NA | J77: NA | L77: NA | M77: NA | N77: NA | O77: NA | P77: NA | Q77: 67 | R77: 36.81485789 | S77: -0.091 | T77: 449949.5729 | U77: 694516.9301 | V77: 1000 | W77: 293066.8485 | X77: 27.16294608 | Y77: 18892.28887 | AA77: 5000 | AB77: 340000 | AD77: NA | AE77: NA | AF77: NA | AG77: 0 | AH77: 0 | AI77: 0 | AJ77: 0 | AK77: 0 | AL77: 0 | AM77: 0
A78: 69 | B78: 34.20100298 | C78: NA | D78: NA | E78: NA | F78: NA | G78: NA | H78: NA | I78: NA | J78: NA | L78: NA | M78: NA | N78: NA | O78: NA | P78: NA | Q78: 68 | R78: 34.20100298 | S78: =(R78-R77)/R77 -> -0.071 | T78: 458740.8194 | U78: 646135.2281 | V78: 1000 | W78: 294066.8485 | X78: 29.23890859 | Y78: 18921.52778 | AA78: 5000 | AB78: 345000 | AD78: NA | AE78: NA | AF78: NA | AG78: 0 | AH78: 0 | AI78: 0 | AJ78: 0 | AK78: 0 | AL78: 0 | AM78: 0
A79: 70 | B79: 37.45009826 | C79: NA | D79: NA | E79: NA | F79: NA | G79: NA | H79: NA | I79: NA | J79: NA | L79: NA | M79: NA | N79: NA | O79: NA | P79: NA | Q79: 69 | R79: 37.45009826 | S79: 0.095 | T79: 467605.3262 | U79: 708613.0748 | V79: 1000 | W79: 295066.8485 | X79: 26.70219963 | Y79: 18948.22998 | AA79: 5000 | AB79: 350000 | AD79: NA | AE79: NA | AF79: NA | AG79: 0 | AH79: 0 | AI79: 0 | AJ79: 0 | AK79: 0 | AL79: 0 | AM79: 0
A80: 71 | B80: 39.02300239 | C80: NA | D80: NA | E80: NA | F80: NA | G80: NA | H80: NA | I80: NA | J80: NA | L80: NA | M80: NA | N80: NA | O80: NA | P80: NA | Q80: 70 | R80: 39.02300239 | S80: 0.042 | T80: 476543.7039 | U80: 739416.8239 | V80: 1000 | W80: 296066.8485 | X80: 25.62591135 | Y80: 18973.85589 | AA80: 5000 | AB80: 355000 | AD80: NA | AE80: NA | AF80: NA | AG80: 0 | AH80: 0 | AI80: 0 | AJ80: 0 | AK80: 0 | AL80: 0 | AM80: 0
A81: 72 | B81: 41.44242854 | C81: NA | D81: NA | E81: NA | F81: NA | G81: NA | H81: NA | I81: NA | J81: NA | L81: NA | M81: NA | N81: NA | O81: NA | P81: NA | Q81: 71 | R81: 41.44242854 | S81: 0.062 | T81: 485556.5681 | U81: 786322.667 | V81: 1000 | W81: 297066.8485 | X81: 24.12986003 | Y81: 18997.98575 | AA81: 5000 | AB81: 360000 | AD81: NA | AE81: NA | AF81: NA | AG81: 0 | AH81: 0 | AI81: 0 | AJ81: 0 | AK81: 0 | AL81: 0 | AM81: 0
A82: 73 | B82: 46.99571396 | C82: NA | D82: NA | E82: NA | F82: NA | G82: NA | H82: NA | I82: NA | J82: NA | L82: NA | M82: NA | N82: NA | O82: NA | P82: NA | Q82: 72 | R82: 46.99571396 | S82: 0.134 | T82: 494644.5395 | U82: 892823.9044 | V82: 1000 | W82: 298066.8485 | X82: 21.27853618 | Y82: 19019.26429 | AA82: 5000 | AB82: 365000 | AD82: NA | AE82: NA | AF82: NA | AG82: 0 | AH82: 0 | AI82: 0 | AJ82: 0 | AK82: 0 | AL82: 0 | AM82: 0
A83: 74 | B83: 51.64828965 | C83: NA | D83: NA | E83: NA | F83: NA | G83: NA | H83: NA | I83: NA | J83: NA | L83: NA | M83: NA | N83: NA | O83: NA | P83: NA | Q83: 73 | R83: 51.64828965 | S83: 0.099 | T83: 503808.244 | U83: 982312.4709 | V83: 1000 | W83: 299066.8485 | X83: 19.36172537 | Y83: 19038.62602 | AA83: 5000 | AB83: 370000 | AD83: NA | AE83: NA | AF83: NA | AG83: 0 | AH83: 0 | AI83: 0 | AJ83: 0 | AK83: 0 | AL83: 0 | AM83: 0
A84: 75 | B84: 45.14060515 | C84: NA | D84: NA | E84: NA | F84: NA | G84: NA | H84: NA | I84: NA | J84: NA | L84: NA | M84: NA | N84: NA | O84: NA | P84: NA | Q84: 74 | R84: 45.14060515 | S84: -0.126 | T84: 513048.3127 | U84: 859415.0996 | V84: 1000 | W84: 300066.8485 | X84: 22.15300386 | Y84: 19060.77902 | AA84: 5000 | AB84: 375000 | AD84: NA | AE84: NA | AF84: NA | AG84: 0 | AH84: 0 | AI84: 0 | AJ84: 0 | AK84: 0 | AL84: 0 | AM84: 0
A85: 76 | B85: 47.08165117 | C85: NA | D85: NA | E85: NA | F85: NA | G85: NA | H85: NA | I85: NA | J85: NA | L85: NA | M85: NA | N85: NA | O85: NA | P85: NA | Q85: 75 | R85: 47.08165117 | S85: 0.043 | T85: 522365.382 | U85: 897412.9489 | V85: 1000 | W85: 301066.8485 | X85: 21.23969689 | Y85: 19082.01872 | AA85: 5000 | AB85: 380000 | AD85: NA | AE85: NA | AF85: NA | AG85: 0 | AH85: 0 | AI85: 0 | AJ85: 0 | AK85: 0 | AL85: 0 | AM85: 0
A86: 77 | B86: 49.20032548 | C86: NA | D86: NA | E86: NA | F86: NA | G86: NA | H86: NA | I86: NA | J86: NA | L86: NA | M86: NA | N86: NA | O86: NA | P86: NA | Q86: 76 | R86: 49.20032548 | S86: 0.045 | T86: 531760.0935 | U86: 938841.5316 | V86: 1000 | W86: 302066.8485 | X86: 20.32506879 | Y86: 19102.34378 | AA86: 5000 | AB86: 385000 | AD86: NA | AE86: NA | AF86: NA | AG86: 0 | AH86: 0 | AI86: 0 | AJ86: 0 | AK86: 0 | AL86: 0 | AM86: 0
A87: 78 | B87: 47.62591506 | C87: NA | D87: NA | E87: NA | F87: NA | G87: NA | H87: =IF(C87="NA","NA",IF(H86="NA",G87,H86+G87)) -> NA | I87: NA | J87: =IF(C87="NA","NA",IF(J86="NA",I87,J86+I87)) -> NA | L87: NA | M87: =IF(C87="NA","NA",IF(M86="NA",L87,M86+L87)) -> NA | N87: NA | O87: =IF(C87="NA","NA",IF(O86="NA",N87,O86+N87)) -> NA | P87: NA | Q87: 77 | R87: 47.62591506 | S87: -0.032 | T87: 541233.0943 | U87: 909766.6025 | V87: 1000 | W87: 303066.8485 | X87: 20.9969719 | Y87: 19123.34076 | AA87: 5000 | AB87: 390000 | AD87: NA | AE87: NA | AF87: NA | AG87: 0 | AH87: 0 | AI87: 0 | AJ87: 0 | AK87: 0 | AL87: 0 | AM87: 0
A88: 79 | B88: 46.91152633 | C88: NA | D88: NA | E88: NA | F88: NA | G88: NA | H88: NA | I88: NA | J88: NA | L88: NA | M88: NA | N88: NA | O88: NA | P88: NA | Q88: 78 | R88: 46.91152633 | S88: -0.015 | T88: 550785.0368 | U88: 897105.1035 | V88: 1000 | W88: 304066.8485 | X88: 21.31672274 | Y88: 19144.65748 | AA88: 5000 | AB88: 395000 | AD88: NA | AE88: NA | AF88: NA | AG88: 0 | AH88: 0 | AI88: 0 | AJ88: 0 | AK88: 0 | AL88: 0 | AM88: 0
A89: 80 | B89: 43.1116927 | C89: NA | D89: NA | E89: NA | F89: NA | G89: NA | H89: NA | I89: NA | J89: NA | L89: NA | M89: NA | N89: NA | O89: NA | P89: NA | Q89: 79 | R89: 43.1116927 | S89: -0.081 | T89: 560416.5787 | U89: 825358.5901 | V89: 1000 | W89: 305066.8485 | X89: 23.19556337 | Y89: 19167.85304 | AA89: 5000 | AB89: 400000 | AD89: NA | AE89: NA | AF89: NA | AG89: 0 | AH89: 0 | AI89: 0 | AJ89: 0 | AK89: 0 | AL89: 0 | AM89: 0
A90: 81 | B90: 46.25884627 | C90: NA | D90: NA | E90: NA | F90: NA | G90: NA | H90: NA | I90: NA | J90: NA | L90: NA | M90: NA | N90: NA | O90: NA | P90: NA | Q90: 80 | R90: 46.25884627 | S90: 0.073 | T90: 570128.3836 | U90: 886682.7672 | V90: 1000 | W90: 306066.8485 | X90: 21.61748683 | Y90: 19189.47053 | AA90: 5000 | AB90: 405000 | AD90: NA | AE90: NA | AF90: NA | AG90: 0 | AH90: 0 | AI90: 0 | AJ90: 0 | AK90: 0 | AL90: 0 | AM90: 0
A91: 82 | B91: 45.24115165 | C91: NA | D91: NA | E91: NA | F91: NA | G91: NA | H91: NA | I91: NA | J91: NA | L91: NA | M91: NA | N91: NA | O91: NA | P91: NA | Q91: 81 | R91: 45.24115165 | S91: -0.022 | T91: 579921.1201 | U91: 868153.7463 | V91: 1000 | W91: 307066.8485 | X91: 22.10376977 | Y91: 19211.5743 | AA91: 5000 | AB91: 410000 | AD91: NA | AE91: NA | AF91: NA | AG91: 0 | AH91: 0 | AI91: 0 | AJ91: 0 | AK91: 0 | AL91: 0 | AM91: 0
A92: 83 | B92: 39.26931963 | C92: NA | D92: NA | E92: NA | F92: NA | G92: NA | H92: NA | I92: NA | J92: NA | L92: NA | M92: NA | N92: NA | O92: NA | P92: NA | Q92: 82 | R92: 39.26931963 | S92: -0.132 | T92: 589795.4627 | U92: 754425.4518 | V92: 1000 | W92: 308066.8485 | X92: 25.46517254 | Y92: 19237.03947 | AA92: 5000 | AB92: 415000 | AD92: NA | AE92: NA | AF92: NA | AG92: 0 | AH92: 0 | AI92: 0 | AJ92: 0 | AK92: 0 | AL92: 0 | AM92: 0
A93: 84 | B93: 41.19351629 | C93: NA | D93: NA | E93: NA | F93: NA | G93: NA | H93: NA | I93: NA | J93: NA | L93: NA | M93: NA | N93: NA | O93: NA | P93: NA | Q93: 83 | R93: 41.19351629 | S93: 0.049 | T93: 599752.0916 | U93: 792441.2989 | V93: 1000 | W93: 309066.8485 | X93: 24.27566496 | Y93: 19261.31514 | AA93: 5000 | AB93: 420000 | AD93: NA | AE93: NA | AF93: NA | AG93: 0 | AH93: 0 | AI93: 0 | AJ93: 0 | AK93: 0 | AL93: 0 | AM93: 0
A94: 85 | B94: 43.50035321 | C94: NA | D94: NA | E94: NA | F94: NA | G94: NA | H94: NA | I94: NA | J94: NA | L94: NA | M94: NA | N94: NA | O94: NA | P94: NA | Q94: 84 | R94: 43.50035321 | S94: 0.056 | T94: 609791.6924 | U94: 837874.0117 | V94: 1000 | W94: 310066.8485 | X94: 22.98831909 | Y94: 19284.30346 | AA94: 5000 | AB94: 425000 | AD94: NA | AE94: NA | AF94: NA | AG94: 0 | AH94: 0 | AI94: 0 | AJ94: 0 | AK94: 0 | AL94: 0 | AM94: 0
A95: 86 | B95: 45.24036734 | C95: NA | D95: NA | E95: NA | F95: NA | G95: NA | H95: NA | I95: NA | J95: NA | L95: NA | M95: NA | N95: NA | O95: NA | P95: NA | Q95: 85 | R95: 45.24036734 | S95: 0.04 | T95: 619914.9565 | U95: 872428.9722 | V95: 1000 | W95: 311066.8485 | X95: 22.10415297 | Y95: 19306.40761 | AA95: 5000 | AB95: 430000 | AD95: NA | AE95: NA | AF95: NA | AG95: 0 | AH95: 0 | AI95: 0 | AJ95: 0 | AK95: 0 | AL95: 0 | AM95: 0
A96: 87 | B96: 40.08296546 | C96: NA | D96: NA | E96: NA | F96: NA | G96: NA | H96: NA | I96: NA | J96: NA | L96: NA | M96: NA | N96: NA | O96: NA | P96: NA | Q96: 86 | R96: 40.08296546 | S96: -0.114 | T96: 630122.5811 | U96: 773858.0693 | V96: 1000 | W96: 312066.8485 | X96: 24.94825392 | Y96: 19331.35586 | AA96: 5000 | AB96: 435000 | AD96: NA | AE96: NA | AF96: NA | AG96: 0 | AH96: 0 | AI96: 0 | AJ96: 0 | AK96: 0 | AL96: 0 | AM96: 0
A97: 88 | B97: 37.67798753 | C97: NA | D97: NA | E97: NA | F97: NA | G97: NA | H97: NA | I97: NA | J97: NA | L97: NA | M97: NA | N97: NA | O97: NA | P97: NA | Q97: 87 | R97: 37.67798753 | S97: -0.06 | T97: 640415.2693 | U97: 728366.5852 | V97: 1000 | W97: 313066.8485 | X97: 26.54069566 | Y97: 19357.89656 | AA97: 5000 | AB97: 440000 | AD97: NA | AE97: NA | AF97: NA | AG97: 0 | AH97: 0 | AI97: 0 | AJ97: 0 | AK97: 0 | AL97: 0 | AM97: 0
A98: 89 | B98: 36.28390199 | C98: NA | D98: NA | E98: NA | F98: NA | G98: NA | H98: NA | I98: NA | J98: NA | L98: NA | M98: NA | N98: NA | O98: NA | P98: NA | Q98: 88 | R98: 36.28390199 | S98: -0.037 | T98: 650793.7299 | U98: 702380.0215 | V98: 1000 | W98: 314066.8485 | X98: 27.56043163 | Y98: 19385.45699 | AA98: 5000 | AB98: 445000 | AD98: NA | AE98: NA | AF98: NA | AG98: 0 | AH98: 0 | AI98: 0 | AJ98: 0 | AK98: 0 | AL98: 0 | AM98: 0
A99: 90 | B99: 34.07058397 | C99: NA | D99: NA | E99: NA | F99: NA | G99: NA | H99: NA | I99: NA | J99: NA | L99: NA | M99: NA | N99: NA | O99: NA | P99: NA | Q99: 89 | R99: 34.07058397 | S99: -0.061 | T99: 661258.6776 | U99: 660473.8402 | V99: 5784.837404 | W99: 319851.6859 | X99: 169.7897931 | Y99: 19555.24678 | AA99: 5000 | AB99: 450000 | AD99: NA | AE99: NA | AF99: NA | AG99: 0 | AH99: 0 | AI99: 0 | AJ99: 0 | AK99: 0 | AL99: 0 | AM99: 0
A100: 91 | B100: 38.39754814 | C100: NA | D100: NA | E100: NA | F100: NA | G100: NA | H100: NA | I100: NA | J100: NA | L100: NA | M100: NA | N100: NA | O100: NA | P100: NA | Q100: 90 | R100: 38.39754814 | S100: 0.127 | T100: 671810.8333 | U100: 750873.5297 | V100: 1000 | W100: 320851.6859 | X100: 26.04332955 | Y100: 19581.29011 | AA100: 5000 | AB100: 455000 | AD100: NA | AE100: NA | AF100: NA | AG100: 0 | AH100: 0 | AI100: 0 | AJ100: 0 | AK100: 0 | AL100: 0 | AM100: 0
A101: 92 | B101: 37.89838001 | C101: NA | D101: NA | E101: NA | F101: NA | G101: NA | H101: NA | I101: NA | J101: NA | L101: NA | M101: NA | N101: NA | O101: NA | P101: NA | Q101: 91 | R101: 37.89838001 | S101: -0.013 | T101: 682450.9235 | U101: 742099.1738 | V101: 1000 | W101: 321851.6859 | X101: 26.38635213 | Y101: 19607.67646 | AA101: 5000 | AB101: 460000 | AD101: NA | AE101: NA | AF101: NA | AG101: 0 | AH101: 0 | AI101: 0 | AJ101: 0 | AK101: 0 | AL101: 0 | AM101: 0
A102: 93 | B102: 35.28339179 | C102: NA | D102: NA | E102: NA | F102: NA | G102: NA | H102: NA | I102: NA | J102: NA | L102: NA | M102: NA | N102: NA | O102: NA | P102: NA | Q102: 92 | R102: 35.28339179 | S102: -0.069 | T102: 693179.6812 | U102: 691825.3308 | V102: 6354.35044 | W102: 328206.0363 | X102: 180.0946598 | Y102: 19787.77112 | AA102: 5000 | AB102: 465000 | AD102: NA | AE102: NA | AF102: NA | AG102: 0 | AH102: 0 | AI102: 0 | AJ102: 0 | AK102: 0 | AL102: 0 | AM102: 0
A103: 94 | B103: 35.35395857 | C103: NA | D103: NA | E103: NA | F103: NA | G103: NA | H103: NA | I103: NA | J103: NA | L103: NA | M103: NA | N103: NA | O103: NA | P103: NA | Q103: 93 | R103: 35.35395857 | S103: 0.002 | T103: 703997.8452 | U103: 699576.0406 | V103: 9421.804648 | W103: 337627.841 | X103: 266.499284 | Y103: 20054.27041 | AA103: 5000 | AB103: 470000 | AD103: NA | AE103: NA | AF103: NA | AG103: 0 | AH103: 0 | AI103: 0 | AJ103: 0 | AK103: 0 | AL103: 0 | AM103: 0
A104: 95 | B104: 33.76303044 | C104: NA | D104: NA | E104: NA | F104: NA | G104: NA | H104: NA | I104: NA | J104: NA | L104: NA | M104: NA | N104: NA | O104: NA | P104: NA | Q104: 94 | R104: 33.76303044 | S104: -0.045 | T104: 714906.1606 | U104: 677092.9422 | V104: 15000 | W104: 352627.841 | X104: 444.2729164 | Y104: 20498.54333 | AA104: 5000 | AB104: 475000 | AD104: NA | AE104: NA | AF104: NA | AG104: 0 | AH104: 0 | AI104: 0 | AJ104: 0 | AK104: 0 | AL104: 0 | AM104: 0
A105: 96 | B105: 34.70839529 | C105: NA | D105: NA | E105: NA | F105: NA | G105: NA | H105: NA | I105: NA | J105: NA | L105: NA | M105: NA | N105: NA | O105: NA | P105: NA | Q105: 95 | R105: 34.70839529 | S105: 0.028 | T105: 725905.3786 | U105: 711471.5446 | V105: 15000 | W105: 367627.841 | X105: 432.1720977 | Y105: 20930.71542 | AA105: 5000 | AB105: 480000 | AD105: NA | AE105: NA | AF105: NA | AG105: 0 | AH105: 0 | AI105: 0 | AJ105: 0 | AK105: 0 | AL105: 0 | AM105: 0
A106: 97 | B106: 34.70839529 | C106: 0 | D106: 0 | E106: 5000 | F106: 5000 | G106: 5000 | H106: 5000 | I106: 144.0573659 | J106: 144.0573659 | L106: 5000 | M106: 5000 | N106: 144.0573659 | O106: 144.0573659 | P106: 5000 | Q106: 96 | R106: 34.70839529 | S106: 0 | T106: 736996.2568 | U106: 726471.5446 | V106: 15000 | W106: 382627.841 | X106: 432.1720977 | Y106: 21362.88752 | AA106: 5000 | AB106: 485000 | AD106: -5000 | AE106: -5000 | AF106: -5000 | AG106: 0 | AH106: 0 | AI106: 0 | AJ106: 0 | AK106: 0 | AL106: 0 | AM106: 0
A107: 98 | B107: 32.20939083 | C107: 1 | D107: -0.072 | E107: 5041.666667 | F107: 18560 | G107: 1000 | H107: 6000 | I107: 31.0468461 | J107: 175.104212 | L107: 5000 | M107: 10000 | N107: 155.2342305 | O107: 299.2915964 | P107: 9640 | Q107: 97 | R107: 32.20939083 | S107: -0.072 | T107: 748179.5589 | U107: 688085.5934 | V107: 15000 | W107: 397627.841 | X107: 465.7026915 | Y107: 21828.59021 | AA107: 5000 | AB107: 490000 | AD107: -5000 | AE107: -5000 | AF107: -1000 | AG107: 0 | AH107: 0 | AI107: 0 | AJ107: 0 | AK107: 0 | AL107: 0 | AM107: 0
A108: 99 | B108: 31.30752789 | C108: 2 | D108: -0.028 | E108: 10125.34722 | F108: 32620.32 | G108: 1000 | H108: 7000 | I108: 31.94119969 | J108: 207.0454117 | L108: 5000 | M108: 15000 | N108: 159.7059985 | O108: 458.9975948 | P108: 14370.08 | Q108: 98 | R108: 31.30752789 | S108: -0.028 | T108: 759456.0552 | U108: 683399.1968 | V108: 15000 | W108: 412627.841 | X108: 479.1179954 | Y108: 22307.70821 | AA108: 5000 | AB108: 495000 | AD108: -5000 | AE108: -5000 | AF108: -1000 | AG108: 0 | AH108: 0 | AI108: 0 | AJ108: 0 | AK108: 0 | AL108: 0 | AM108: 0
A109: 100 | B109: 37.06811302 | C109: 3 | D109: 0.184 | E109: 15251.39178 | F109: 56382.45888 | G109: 1000 | H109: 8000 | I109: 26.9773646 | J109: 234.0227763 | L109: 5000 | M109: 20000 | N109: 134.886823 | O109: 593.8844179 | P109: 22014.17472 | Q109: 99 | R109: 37.06811302 | S109: 0.184 | T109: 770826.5224 | U109: 826904.649 | V109: 1000 | W109: 413627.841 | X109: 26.9773646 | Y109: 22334.68557 | AA109: 5000 | AB109: 500000 | AD109: -5000 | AE109: -5000 | AF109: -1000 | AG109: 0 | AH109: 0 | AI109: 0 | AJ109: 0 | AK109: 0 | AL109: 0 | AM109: 0
A110: 101 | B110: 45.59377901 | C110: 4 | D110: 0.23 | E110: 20420.15338 | F110: 70580.42442 | G110: 1000 | H110: 9000 | I110: 21.93281675 | J110: 255.955593 | L110: 5000 | M110: 25000 | N110: 109.6640838 | O110: 703.5485016 | P110: 32077.43491 | Q110: 100 | R110: 45.59377901 | S110: 0.23 | T110: 782291.7434 | U110: 1018322.718 | V110: 1000 | W110: 414627.841 | X110: 21.93281675 | Y110: 22356.61839 | AA110: 5000 | AB110: 505000 | AD110: -5000 | AE110: -5000 | AF110: -1000 | AG110: 0 | AH110: 0 | AI110: 0 | AJ110: 0 | AK110: 0 | AL110: 0 | AM110: 0
A111: 102 | B111: 45.86734168 | C111: 5 | D111: 0.006 | E111: 25631.98799 | F111: 72009.90697 | G111: 1000 | H111: 10000 | I111: 21.80200472 | J111: 277.7575978 | L111: 5000 | M111: 30000 | N111: 109.0100236 | O111: 812.5585252 | P111: 37269.89952 | Q111: 101 | R111: 45.86734168 | S111: 0.006 | T111: 793852.5079 | U111: =(U110+V110)*(1+S111) -> 1025438.655 | V111: 1000 | W111: 415627.841 | X111: 21.80200472 | Y111: =Y110+X111 -> 22378.42039 | AA111: 5000 | AB111: =AB110+AA111 -> 510000 | AD111: -5000 | AE111: -5000 | AF111: -1000 | AG111: 0 | AH111: 0 | AI111: 0 | AJ111: 0 | AK111: 0 | AL111: 0 | AM111: 0
A112: 103 | B112: 47.4268313 | C112: 6 | D112: 0.034 | E112: 30887.25456 | F112: 75492.24381 | G112: 1000 | H112: 11000 | I112: 21.08511095 | J112: 298.8427087 | L112: 5000 | M112: 35000 | N112: 105.4255548 | O112: 917.98408 | P112: 43537.0761 | Q112: 102 | R112: 47.4268313 | S112: 0.034 | T112: 805509.6121 | U112: 1061337.569 | V112: 1000 | W112: 416627.841 | X112: 21.08511095 | Y112: 22399.5055 | AA112: 5000 | AB112: 515000 | AD112: -5000 | AE112: -5000 | AF112: -1000 | AG112: 0 | AH112: 0 | AI112: 0 | AJ112: 0 | AK112: 0 | AL112: 0 | AM112: 0
A113: 104 | B113: 46.668002 | C113: 7 | D113: -0.016 | E113: 36186.31501 | F113: 75268.3679 | G113: 1000 | H113: 12000 | I113: 21.42795828 | J113: 320.270667 | L113: 5000 | M113: 40000 | N113: 107.1397914 | O113: 1025.123871 | P113: 47840.48288 | Q113: 103 | R113: 46.668002 | S113: -0.016 | T113: 817263.8589 | U113: 1045340.168 | V113: 1000 | W113: 417627.841 | X113: 21.42795828 | Y113: 22420.93346 | AA113: 5000 | AB113: 520000 | AD113: -5000 | AE113: -5000 | AF113: -1000 | AG113: 0 | AH113: 0 | AI113: 0 | AJ113: 0 | AK113: 0 | AL113: 0 | AM113: 0
A114: 105 | B114: 52.08149023 | C114: 8 | D114: 0.116 | E114: 41529.53431 | F114: 85115.49858 | G114: 1000 | H114: 13000 | I114: 19.20067946 | J114: 339.4713465 | L114: 5000 | M114: 45000 | N114: 96.00339732 | O114: 1121.127269 | P114: 58389.9789 | Q114: 104 | R114: 52.08149023 | S114: 0.116 | T114: 829116.0577 | U114: 1167715.627 | V114: 1000 | W114: 418627.841 | X114: 19.20067946 | Y114: 22440.13414 | AA114: 5000 | AB114: 525000 | AD114: -5000 | AE114: -5000 | AF114: -1000 | AG114: 0 | AH114: 0 | AI114: 0 | AJ114: 0 | AK114: 0 | AL114: 0 | AM114: 0
A115: 106 | B115: 51.40443086 | C115: 9 | D115: -0.013 | E115: 46917.28042 | F115: 84995.9971 | G115: 1000 | H115: 14000 | I115: 19.45357595 | J115: 358.9249224 | L115: 5000 | M115: 50000 | N115: 97.26787976 | O115: 1218.395148 | P115: 62630.90917 | Q115: 105 | R115: 51.40443086 | S115: -0.013 | T115: 841067.0249 | U115: 1153522.324 | V115: 1000 | W115: 419627.841 | X115: 19.45357595 | Y115: 22459.58772 | AA115: 5000 | AB115: 530000 | AD115: -5000 | AE115: -5000 | AF115: -1000 | AG115: 0 | AH115: 0 | AI115: 0 | AJ115: 0 | AK115: 0 | AL115: 0 | AM115: 0
A116: 107 | B116: 55.56818976 | C116: 10 | D116: 0.081 | E116: 52349.92443 | F116: 92961.67287 | G116: 1000 | H116: 15000 | I116: 17.99590745 | J116: 376.9208299 | L116: 5000 | M116: 55000 | N116: 89.97953724 | O116: 1308.374686 | P116: 72704.01281 | Q116: 106 | R116: 55.56818976 | S116: 0.081 | T116: 853117.5834 | U116: 1248038.632 | V116: 1000 | W116: 420627.841 | X116: 17.99590745 | Y116: 22477.58363 | AA116: 5000 | AB116: 535000 | AD116: -5000 | AE116: -5000 | AF116: -1000 | AG116: 0 | AH116: 0 | AI116: 0 | AJ116: 0 | AK116: 0 | AL116: 0 | AM116: 0
A117: 108 | B117: 52.34523475 | C117: 11 | D117: -0.058 | E117: 57827.84046 | F117: 88511.89584 | G117: 1000 | H117: 16000 | I117: 19.10393572 | J117: 396.0247656 | L117: 5000 | M117: 60000 | N117: 95.5196786 | O117: 1403.894364 | P117: 73487.18007 | Q117: 107 | R117: 52.34523475 | S117: -0.058 | T117: 865268.5633 | U117: 1176594.392 | V117: 1000 | W117: 421627.841 | X117: 19.10393572 | Y117: 22496.68756 | AA117: 5000 | AB117: 540000 | AD117: -5000 | AE117: -5000 | AF117: -1000 | AG117: 0 | AH117: 0 | AI117: 0 | AJ117: 0 | AK117: 0 | AL117: 0 | AM117: 0
A118: 109 | B118: 53.33979421 | C118: 12 | D118: 0.019 | E118: 63351.4058 | F118: 91212.62186 | G118: 1000 | H118: 17000 | I118: 18.74772887 | J118: 414.7724945 | L118: 5000 | M118: 65000 | N118: 93.73864436 | O118: 1497.633009 | P118: 79883.43649 | Q118: 108 | R118: 53.33979421 | S118: 0.019 | T118: 877520.8013 | U118: 1199968.685 | V118: 1000 | W118: 422627.841 | X118: 18.74772887 | Y118: 22515.43529 | AA118: 5000 | AB118: 545000 | AD118: -5000 | AE118: -5000 | AF118: -1000 | AG118: 0 | AH118: 0 | AI118: 0 | AJ118: 0 | AK118: 0 | AL118: 0 | AM118: 0
A119: 110 | B119: 52.16631874 | C119: 13 | D119: -0.022 | E119: 68921.00085 | F119: 90183.94418 | G119: 1000 | H119: 18000 | I119: 19.16945692 | J119: 433.9419514 | L119: 5000 | M119: 70000 | N119: 95.84728462 | O119: 1593.480293 | P119: 83126.00089 | Q119: 109 | R119: 52.16631874 | S119: -0.022 | T119: 889875.1413 | U119: 1174547.374 | V119: 1000 | W119: 423627.841 | X119: 19.16945692 | Y119: 22534.60475 | AA119: 5000 | AB119: 550000 | AD119: -5000 | AE119: -5000 | AF119: -1000 | AG119: 0 | AH119: 0 | AI119: 0 | AJ119: 0 | AK119: 0 | AL119: 0 | AM119: 0
A120: 111 | B120: 56.07879265 | C120: 14 | D120: 0.075 | E120: 74537.00919 | F120: 98022.73999 | G120: 1000 | H120: 19000 | I120: 17.83205295 | J120: 451.7740043 | L120: 5000 | M120: 75000 | N120: 89.16026476 | O120: 1682.640558 | P120: 94360.45095 | Q120: 110 | R120: 56.07879265 | S120: 0.075 | T120: 902332.4342 | U120: 1263713.427 | V120: 1000 | W120: 424627.841 | X120: 17.83205295 | Y120: 22552.4368 | AA120: 5000 | AB120: 555000 | AD120: -5000 | AE120: -5000 | AF120: -1000 | AG120: 0 | AH120: 0 | AI120: 0 | AJ120: 0 | AK120: 0 | AL120: 0 | AM120: 0
A121: 112 | B121: 61.35019915 | C121: 15 | D121: 0.094 | E121: 80199.8176 | F121: 108330.8776 | G121: 1000 | H121: 20000 | I121: 16.29986559 | J121: 468.0738699 | L121: 5000 | M121: 80000 | N121: 81.49932794 | O121: 1764.139886 | P121: 108230.3333 | Q121: 111 | R121: 61.35019915 | S121: 0.094 | T121: 914893.5378 | U121: 1383596.489 | V121: 1000 | W121: 425627.841 | X121: 16.29986559 | Y121: 22568.73667 | AA121: 5000 | AB121: 560000 | AD121: -5000 | AE121: -5000 | AF121: -1000 | AG121: 0 | AH121: 0 | AI121: 0 | AJ121: 0 | AK121: 0 | AL121: 0 | AM121: 0
A122: 113 | B122: 54.35627645 | C122: 16 | D122: -0.114 | E122: 85909.81608 | F122: 96867.15751 | G122: 1000 | H122: 21000 | I122: 18.39713949 | J122: 486.4710094 | L122: 5000 | M122: 85000 | N122: 91.98569745 | O122: 1856.125583 | P122: 100892.0753 | Q122: 112 | R122: 54.35627645 | S122: -0.114 | T122: 927559.3173 | U122: 1226752.489 | V122: 1000 | W122: 426627.841 | X122: 18.39713949 | Y122: 22587.13381 | AA122: 5000 | AB122: 565000 | AD122: -5000 | AE122: -5000 | AF122: -1000 | AG122: 0 | AH122: 0 | AI122: 0 | AJ122: 0 | AK122: 0 | AL122: 0 | AM122: 0
A123: 114 | B123: 62.29229281 | C123: 17 | D123: 0.146 | E123: 91667.39788 | F123: 112155.7625 | G123: 1000 | H123: 22000 | I123: 16.05335034 | J123: 502.5243598 | L123: 5000 | M123: 90000 | N123: 80.2667517 | O123: 1936.392335 | P123: 120622.3183 | Q123: 113 | R123: 62.29229281 | S123: 0.146 | T123: 940330.6449 | U123: 1407004.353 | V123: 1000 | W123: 427627.841 | X123: 16.05335034 | Y123: 22603.18716 | AA123: 5000 | AB123: 570000 | AD123: -5000 | AE123: -5000 | AF123: -1000 | AG123: 0 | AH123: 0 | AI123: 0 | AJ123: 0 | AK123: 0 | AL123: 0 | AM123: 0
A124: 115 | B124: 56.3122327 | C124: 18 | D124: -0.096 | E124: 97472.95953 | F124: 102292.8093 | G124: 1000 | H124: 23000 | I124: 17.75813091 | J124: 520.2824907 | L124: 5000 | M124: 95000 | N124: 88.79065453 | O124: 2025.18299 | P124: 114042.5758 | Q124: 114 | R124: 56.3122327 | S124: -0.096 | T124: 953208.4003 | U124: 1272835.935 | V124: 1000 | W124: 428627.841 | X124: 17.75813091 | Y124: 22620.94529 | AA124: 5000 | AB124: 575000 | AD124: -5000 | AE124: -5000 | AF124: -1000 | AG124: 0 | AH124: 0 | AI124: 0 | AJ124: 0 | AK124: 0 | AL124: 0 | AM124: 0
